Workbook

Sheet Introduction
C4: Joint Monitoring Programme for Water Supply, Sanitation and Hygiene
C6: Estimates on household water, sanitation and hygiene by wealth quintile and sub-national region in
C7: =+Water!B5 -> Somalia
C9: Updated May 2021
C11: Follow the links below to find the following information:
C13: JMP Estimates
C14: WASH status and trends by wealth quintile (customized quintiles made without water and sanitation assets)
C15: Water
C16: Sanitation
C17: Hygiene
C19: Data inputs
C20: customized wealth quintiles and subnational data:
C21: =IF(INDIRECT(CONCATENATE("Water","!B105"))=0,"",INDIRECT(CONCATENATE("Water","!B105"))) -> MICS06
C22: =IF(INDIRECT(CONCATENATE("Water","!B106"))=0,"",INDIRECT(CONCATENATE("Water","!B106"))) -> SFHS16
C23: =IF(INDIRECT(CONCATENATE("Water","!B107"))=0,"",INDIRECT(CONCATENATE("Water","!B107"))) -> SHFS17
C24: =IF(INDIRECT(CONCATENATE("Water","!B108"))=0,"",INDIRECT(CONCATENATE("Water","!B108"))) -> 
C25: =IF(INDIRECT(CONCATENATE("Water","!B109"))=0,"",INDIRECT(CONCATENATE("Water","!B109"))) -> 
C26: =IF(INDIRECT(CONCATENATE("Water","!B110"))=0,"",INDIRECT(CONCATENATE("Water","!B110"))) -> 
C27: =IF(INDIRECT(CONCATENATE("Water","!B111"))=0,"",INDIRECT(CONCATENATE("Water","!B111"))) -> 
C28: =IF(INDIRECT(CONCATENATE("Water","!B112"))=0,"",INDIRECT(CONCATENATE("Water","!B112"))) -> 
C29: =IF(INDIRECT(CONCATENATE("Water","!B113"))=0,"",INDIRECT(CONCATENATE("Water","!B113"))) -> 
C30: =IF(INDIRECT(CONCATENATE("Water","!B114"))=0,"",INDIRECT(CONCATENATE("Water","!B114"))) -> 
C31: =IF(INDIRECT(CONCATENATE("Water","!B115"))=0,"",INDIRECT(CONCATENATE("Water","!B115"))) -> 
C32: =IF(INDIRECT(CONCATENATE("Water","!B116"))=0,"",INDIRECT(CONCATENATE("Water","!B116"))) -> 
L55: =+IF(ISNUMBER(M48), "", "Insufficient data to estimate safely managed sanitation services at national level") -> Insufficient data to estimate safely managed sanitation services at national level

Sheet Water
A1: BGD
B4: Summary of trends in use of drinking water by wealth quintile (%)
B5: =IF(ISERROR(INDIRECT(CONCATENATE($B105,"!A2"))),"",INDIRECT(CONCATENATE($B105,"!A2"))) -> Somalia
B7: =B118 -> National use of drinking water sources, 2000–2020 | J7: =B218 -> Urban use of drinking water sources, 2000–2020 | R7: =B318 -> Rural use of drinking water sources, 2000–2020
B31: =IF(ISERROR(INDIRECT(CONCATENATE($B105,"!A2"))),"",INDIRECT(CONCATENATE($B105,"!A2"))) -> Somalia | F31: Poorest | J31: Poor | N31: Middle | R31: Rich | V31: Richest
F32: Basic | G32: Limited | H32: Unimproved | I32: Surface water | J32: Basic | K32: Limited | L32: Unimproved | M32: Surface water | N32: Basic | O32: Limited | P32: Unimproved | Q32: Surface water | R32: Basic | S32: Limited | T32: Unimproved | U32: Surface water | V32: Basic | W32: Limited | X32: Unimproved | Y32: Surface water
B33: NATIONAL | D33: Estimate | E33: =C99 -> 2000 | F33: =E99 -> 1.932658016 | G33: =F99 -> 2.1333198 | H33: 58.69937499 | I33: 37.23464719 | J33: =J99 -> 0.7089145818 | K33: =K99 -> 0.5022219639 | L33: 66.44530186 | M33: 32.3435616 | N33: =O99 -> 6.052586795 | O33: =P99 -> 1.280380858 | P33: 59.55113664 | Q33: 33.11589571 | R33: =T99 -> 44.85475907 | S33: =U99 -> 5.608236219 | T33: 44.51222887 | U33: 5.024775844 | V33: =Y99 -> 86.40121253 | W33: =Z99 -> 6.492701008 | X33: 6.93237706 | Y33: 0.1737094019
E34: =C100 -> 2020 | F34: =E100 -> 40.1093521 | G34: 44.27377957 | H34: 15.61686832 | I34: 0 | J34: =J100 -> 50.91573742 | K34: 36.07063855 | L34: 6.272642139 | M34: 6.740981886 | N34: =O100 -> 82.53939035 | O34: 17.46060965 | P34: 0 | Q34: 0 | R34: =T100 -> 88.8864381 | S34: 11.1135619 | T34: 0 | U34: 0 | V34: =Y100 -> 93.01062819 | W34: 6.989371812 | X34: 0 | Y34: 0
B36: URBAN | D36: Estimate | E36: =C199 -> 2000 | F36: =E199 -> 40.18385289 | G36: =F199 -> 7.608649757 | H36: 39.88964835 | I36: 12.317849 | J36: =J199 -> 61.1605485 | K36: =K199 -> 6.069219778 | L36: 29.63819198 | M36: 3.132039746 | N36: =O199 -> 76.72469017 | O36: =P199 -> 5.254981874 | P36: 17.56494878 | Q36: 0.4553791728 | R36: =T199 -> 84.15442873 | S36: =U199 -> 7.409325642 | T36: 8.436245626 | U36: 0 | V36: =Y199 -> 92.91052398 | W36: =Z199 -> 5.272936095 | X36: 1.816539921 | Y36: 0
E37: =C200 -> 2020 | F37: =E200 -> 83.63893268 | G37: 15.83669307 | H37: 0.1097001987 | I37: 0.4146740457 | J37: =J200 -> 90.97242199 | K37: 9.027578012 | L37: 0 | M37: 0 | N37: =O200 -> 93.58989644 | O37: 6.410103557 | P37: 0 | Q37: 0 | R37: =T200 -> 91.90801459 | S37: 8.091985407 | T37: 0 | U37: 0 | V37: =Y200 -> 94.03621621 | W37: 5.336822326 | X37: 0.6269614685 | Y37: 0
B39: RURAL | D39: Estimate | E39: =C299 -> 2000 | F39: =E299 -> 0.3995476016 | G39: =F299 -> 0.9801233886 | H39: 58.82396735 | I39: 39.79636166 | J39: =J299 -> 0 | K39: =K299 -> 0 | L39: 61.09129638 | M39: 38.90870362 | N39: =O299 -> 0 | O39: =P299 -> 0 | P39: 67.95730923 | Q39: 32.04269077 | R39: =T299 -> 0 | S39: =U299 -> 0 | T39: 64.05851694 | U39: 35.94148306 | V39: =Y299 -> 18.8054088 | W39: =Z299 -> 4.634600242 | X39: 59.83457111 | Y39: 16.72541985
E40: =C300 -> 2020 | F40: =E300 -> 21.17589053 | G40: 51.94621492 | H40: 26.87789456 | I40: 0 | J40: =J300 -> 41.82010659 | K40: 51.64491091 | L40: 6.534982504 | M40: 0 | N40: =O300 -> 47.24186132 | O40: 40.00093595 | P40: 4.880193821 | Q40: 7.877008912 | R40: =T300 -> 64.72688592 | S40: 26.77712934 | T40: 1.929982817 | U40: 6.566001925 | V40: =Y300 -> 78.43034171 | W40: 19.32918792 | X40: 0 | Y40: 2.240470368
A97: NATIONAL | D97: Poorest | I97: Poor | N97: Middle | S97: Rich | X97: Richest
D98: Improved | E98: Basic | F98: Limited | G98: Unimproved | H98: Surface water | I98: Improved | J98: Basic | K98: Limited | L98: Unimproved | M98: Surface water | N98: Improved | O98: Basic | P98: Limited | Q98: Unimproved | R98: Surface water | S98: Improved | T98: Basic | U98: Limited | V98: Unimproved | W98: Surface water | X98: Improved | Y98: Basic | Z98: Limited | AA98: Unimproved | AB98: Surface water
A99: Forecast period: | C99: =MinBase(C105:C116) -> 2000 | D99: =IF((D101+H101)>100,D101*100/(D101+H101),D101) -> 4.065977816 | E99: =D99*AVERAGEIF(E105:E116,">0")/100 -> 1.932658016 | F99: =D99*(100-AVERAGEIF(E105:E116,">0"))/100 -> 2.1333198 | G99: =100-(E99+F99+H99) -> 58.69937499 | H99: =IF((D101+H101)>100,H101*100/(D101+H101),H101) -> 37.23464719 | I99: =IF((I101+M101)>100,I101*100/(I101+M101),I101) -> 1.211136546 | J99: =I99*AVERAGEIF(J105:J116,">0")/100 -> 0.7089145818 | K99: =I99*(100-AVERAGEIF(J105:J116,">0"))/100 -> 0.5022219639 | L99: =100-(J99+K99+M99) -> 66.44530186 | M99: =IF((I101+M101)>100,M101*100/(I101+M101),M101) -> 32.3435616 | N99: =IF((N101+R101)>100,N101*100/(N101+R101),N101) -> 7.332967653 | O99: =N99*AVERAGEIF(O105:O116,">0")/100 -> 6.052586795 | P99: =N99*(100-AVERAGEIF(O105:O116,">0"))/100 -> 1.280380858 | Q99: =100-(O99+P99+R99) -> 59.55113664 | R99: =IF((N101+R101)>100,R101*100/(N101+R101),R101) -> 33.11589571 | S99: =IF((S101+W101)>100,S101*100/(S101+W101),S101) -> 50.46299529 | T99: =S99*AVERAGEIF(T105:T116,">0")/100 -> 44.85475907 | U99: =S99*(100-AVERAGEIF(T105:T116,">0"))/100 -> 5.608236219 | V99: =100-(T99+U99+W99) -> 44.51222887 | W99: =IF((S101+W101)>100,W101*100/(S101+W101),W101) -> 5.024775844 | X99: =IF((X101+AB101)>100,X101*100/(X101+AB101),X101) -> 92.89391354 | Y99: =X99*AVERAGEIF(Y105:Y116,">0")/100 -> 86.40121253 | Z99: =X99*(100-AVERAGEIF(Y105:Y116,">0"))/100 -> 6.492701008 | AA99: =100-(Y99+Z99+AB99) -> 6.93237706 | AB99: =IF((X101+AB101)>100,AB101*100/(X101+AB101),AB101) -> 0.1737094019
C100: =MaxTarget(C105:C116) -> 2020 | D100: =IF((D102+H102)>100,D102*100/(D102+H102),D102) -> 84.38313168 | E100: =D100*AVERAGEIF(E105:E116,">0")/100 -> 40.1093521 | F100: =D100*(100-AVERAGEIF(E105:E116,">0"))/100 -> 44.27377957 | G100: =100-(E100+F100+H100) -> 15.61686832 | H100: =IF((D102+H102)>100,H102*100/(D102+H102),H102) -> 0 | I100: =IF((I102+M102)>100,I102*100/(I102+M102),I102) -> 86.98637597 | J100: =I100*AVERAGEIF(J105:J116,">0")/100 -> 50.91573742 | K100: =I100*(100-AVERAGEIF(J105:J116,">0"))/100 -> 36.07063855 | L100: =100-(J100+K100+M100) -> 6.272642139 | M100: =IF((I102+M102)>100,M102*100/(I102+M102),M102) -> 6.740981886 | N100: =IF((N102+R102)>100,N102*100/(N102+R102),N102) -> 100 | O100: =N100*AVERAGEIF(O105:O116,">0")/100 -> 82.53939035 | P100: =N100*(100-AVERAGEIF(O105:O116,">0"))/100 -> 17.46060965 | Q100: =100-(O100+P100+R100) -> 0 | R100: =IF((N102+R102)>100,R102*100/(N102+R102),R102) -> 0 | S100: =IF((S102+W102)>100,S102*100/(S102+W102),S102) -> 100 | T100: =S100*AVERAGEIF(T105:T116,">0")/100 -> 88.8864381 | U100: =S100*(100-AVERAGEIF(T105:T116,">0"))/100 -> 11.1135619 | V100: =100-(T100+U100+W100) -> 0 | W100: =IF((S102+W102)>100,W102*100/(S102+W102),W102) -> 0 | X100: =IF((X102+AB102)>100,X102*100/(X102+AB102),X102) -> 100 | Y100: =X100*AVERAGEIF(Y105:Y116,">0")/100 -> 93.01062819 | Z100: =X100*(100-AVERAGEIF(Y105:Y116,">0"))/100 -> 6.989371812 | AA100: =100-(Y100+Z100+AB100) -> 0 | AB100: =IF((X102+AB102)>100,AB102*100/(X102+AB102),AB102) -> 0
A101: Regression period: | C101: =MinRegYear(C99,C105:C116) -> 2004 | D101: =IF(MAX(C105:C116)-MIN(C105:C116)<5,AVERAGEIF(C105:C116,">0",D105:D116), IF(FORECAST($C101,D$105:D$116,$C$105:$C$116)<0,0, IF(FORECAST($C101,D$105:D$116,$C$105:$C$116)>100,100, FORECAST($C101,D$105:D$116,$C$105:$C$116)))) -> 4.065977816 | H101: =IF(MAX(C105:C116)-MIN(C105:C116)<5,AVERAGEIF(C105:C116,">0",H105:H116), IF(FORECAST($C101,H$105:H$116,$C$105:$C$116)<0,0, IF(FORECAST($C101,H$105:H$116,$C$105:$C$116)>100,100, FORECAST($C101,H$105:H$116,$C$105:$C$116)))) -> 37.23464719 | I101: =IF(MAX(C105:C116)-MIN(C105:C116)<5,AVERAGEIF(C105:C116,">0",I105:I116), IF(FORECAST($C101,I$105:I$116,$C$105:$C$116)<0,0, IF(FORECAST($C101,I$105:I$116,$C$105:$C$116)>100,100, FORECAST($C101,I$105:I$116,$C$105:$C$116)))) -> 1.211136546 | M101: =IF(MAX(C105:C116)-MIN(C105:C116)<5,AVERAGEIF(C105:C116,">0",M105:M116), IF(FORECAST($C101,M$105:M$116,$C$105:$C$116)<0,0, IF(FORECAST($C101,M$105:M$116,$C$105:$C$116)>100,100, FORECAST($C101,M$105:M$116,$C$105:$C$116)))) -> 32.3435616 | N101: =IF(MAX(C105:C116)-MIN(C105:C116)<5,AVERAGEIF(C105:C116,">0",N105:N116), IF(FORECAST($C101,N$105:N$116,$C$105:$C$116)<0,0, IF(FORECAST($C101,N$105:N$116,$C$105:$C$116)>100,100, FORECAST($C101,N$105:N$116,$C$105:$C$116)))) -> 7.332967653 | R101: =IF(MAX(C105:C116)-MIN(C105:C116)<5,AVERAGEIF(C105:C116,">0",R105:R116), IF(FORECAST($C101,R$105:R$116,$C$105:$C$116)<0,0, IF(FORECAST($C101,R$105:R$116,$C$105:$C$116)>100,100, FORECAST($C101,R$105:R$116,$C$105:$C$116)))) -> 33.11589571 | S101: =IF(MAX(C105:C116)-MIN(C105:C116)<5,AVERAGEIF(C105:C116,">0",S105:S116), IF(FORECAST($C101,S$105:S$116,$C$105:$C$116)<0,0, IF(FORECAST($C101,S$105:S$116,$C$105:$C$116)>100,100, FORECAST($C101,S$105:S$116,$C$105:$C$116)))) -> 50.46299529 | W101: =IF(MAX(C105:C116)-MIN(C105:C116)<5,AVERAGEIF(C105:C116,">0",W105:W116), IF(FORECAST($C101,W$105:W$116,$C$105:$C$116)<0,0, IF(FORECAST($C101,W$105:W$116,$C$105:$C$116)>100,100, FORECAST($C101,W$105:W$116,$C$105:$C$116)))) -> 5.024775844 | X101: =IF(MAX(C105:C116)-MIN(C105:C116)<5,AVERAGEIF(C105:C116,">0",X105:X116), IF(FORECAST($C101,X$105:X$116,$C$105:$C$116)<0,0, IF(FORECAST($C101,X$105:X$116,$C$105:$C$116)>100,100, FORECAST($C101,X$105:X$116,$C$105:$C$116)))) -> 92.89391354 | AB101: =IF(MAX(C105:C116)-MIN(C105:C116)<5,AVERAGEIF(C105:C116,">0",AB105:AB116), IF(FORECAST($C101,AB$105:AB$116,$C$105:$C$116)<0,0, IF(FORECAST($C101,AB$105:AB$116,$C$105:$C$116)>100,100, FORECAST($C101,AB$105:AB$116,$C$105:$C$116)))) -> 0.1737094019
C102: =MaxRegYear(C100,C105:C116) -> 2019 | D102: =IF(MAX(C105:C116)-MIN(C105:C116)<5,AVERAGEIF(C105:C116,">0",D105:D116), IF(FORECAST($C102,D$105:D$116,$C$105:$C$116)<0,0, IF(FORECAST($C102,D$105:D$116,$C$105:$C$116)>100,100, FORECAST($C102,D$105:D$116,$C$105:$C$116)))) -> 84.38313168 | H102: =IF(MAX(C105:C116)-MIN(C105:C116)<5,AVERAGEIF(C105:C116,">0",H105:H116), IF(FORECAST($C102,H$105:H$116,$C$105:$C$116)<0,0, IF(FORECAST($C102,H$105:H$116,$C$105:$C$116)>100,100, FORECAST($C102,H$105:H$116,$C$105:$C$116)))) -> 0 | I102: =IF(MAX(C105:C116)-MIN(C105:C116)<5,AVERAGEIF(C105:C116,">0",I105:I116), IF(FORECAST($C102,I$105:I$116,$C$105:$C$116)<0,0, IF(FORECAST($C102,I$105:I$116,$C$105:$C$116)>100,100, FORECAST($C102,I$105:I$116,$C$105:$C$116)))) -> 86.98637597 | M102: =IF(MAX(C105:C116)-MIN(C105:C116)<5,AVERAGEIF(C105:C116,">0",M105:M116), IF(FORECAST($C102,M$105:M$116,$C$105:$C$116)<0,0, IF(FORECAST($C102,M$105:M$116,$C$105:$C$116)>100,100, FORECAST($C102,M$105:M$116,$C$105:$C$116)))) -> 6.740981886 | N102: =IF(MAX(C105:C116)-MIN(C105:C116)<5,AVERAGEIF(C105:C116,">0",N105:N116), IF(FORECAST($C102,N$105:N$116,$C$105:$C$116)<0,0, IF(FORECAST($C102,N$105:N$116,$C$105:$C$116)>100,100, FORECAST($C102,N$105:N$116,$C$105:$C$116)))) -> 100 | R102: =IF(MAX(C105:C116)-MIN(C105:C116)<5,AVERAGEIF(C105:C116,">0",R105:R116), IF(FORECAST($C102,R$105:R$116,$C$105:$C$116)<0,0, IF(FORECAST($C102,R$105:R$116,$C$105:$C$116)>100,100, FORECAST($C102,R$105:R$116,$C$105:$C$116)))) -> 0 | S102: =IF(MAX(C105:C116)-MIN(C105:C116)<5,AVERAGEIF(C105:C116,">0",S105:S116), IF(FORECAST($C102,S$105:S$116,$C$105:$C$116)<0,0, IF(FORECAST($C102,S$105:S$116,$C$105:$C$116)>100,100, FORECAST($C102,S$105:S$116,$C$105:$C$116)))) -> 100 | W102: =IF(MAX(C105:C116)-MIN(C105:C116)<5,AVERAGEIF(C105:C116,">0",W105:W116), IF(FORECAST($C102,W$105:W$116,$C$105:$C$116)<0,0, IF(FORECAST($C102,W$105:W$116,$C$105:$C$116)>100,100, FORECAST($C102,W$105:W$116,$C$105:$C$116)))) -> 0 | X102: =IF(MAX(C105:C116)-MIN(C105:C116)<5,AVERAGEIF(C105:C116,">0",X105:X116), IF(FORECAST($C102,X$105:X$116,$C$105:$C$116)<0,0, IF(FORECAST($C102,X$105:X$116,$C$105:$C$116)>100,100, FORECAST($C102,X$105:X$116,$C$105:$C$116)))) -> 100 | AB102: =IF(MAX(C105:C116)-MIN(C105:C116)<5,AVERAGEIF(C105:C116,">0",AB105:AB116), IF(FORECAST($C102,AB$105:AB$116,$C$105:$C$116)<0,0, IF(FORECAST($C102,AB$105:AB$116,$C$105:$C$116)>100,100, FORECAST($C102,AB$105:AB$116,$C$105:$C$116)))) -> 0
B104: Survey | C104: Year | D104: Improved | E104: Basic | H104: Surface water | I104: Improved | J104: Basic | M104: Surface water | N104: Improved | O104: Basic | R104: Surface water | S104: Improved | T104: Basic | W104: Surface water | X104: Improved | Y104: Basic | AB104: Surface water
B105: MICS06 | C105: 2006 | D105: =IF(ISERROR(INDIRECT(CONCATENATE($B105,"!C16"))),"",INDIRECT(CONCATENATE($B105,"!C16"))) -> 14.77493166 | E105: =IF(ISERROR(INDIRECT(CONCATENATE($B105,"!C23"))),"",INDIRECT(CONCATENATE($B105,"!C23"))) -> 38.05469716 | H105: =IF(ISERROR(INDIRECT(CONCATENATE($B105,"!C21"))),"",INDIRECT(CONCATENATE($B105,"!C21"))) -> 32.04744394 | I105: =IF(ISERROR(INDIRECT(CONCATENATE($B105,"!D16"))),"",INDIRECT(CONCATENATE($B105,"!D16"))) -> 12.64783514 | J105: =IF(ISERROR(INDIRECT(CONCATENATE($B105,"!D23"))),"",INDIRECT(CONCATENATE($B105,"!D23"))) -> 51.04063057 | M105: =IF(ISERROR(INDIRECT(CONCATENATE($B105,"!D21"))),"",INDIRECT(CONCATENATE($B105,"!D21"))) -> 28.9298843 | N105: =IF(ISERROR(INDIRECT(CONCATENATE($B105,"!E16"))),"",INDIRECT(CONCATENATE($B105,"!E16"))) -> 20.42079242 | O105: =IF(ISERROR(INDIRECT(CONCATENATE($B105,"!E23"))),"",INDIRECT(CONCATENATE($B105,"!E23"))) -> 71.18048588 | R105: =IF(ISERROR(INDIRECT(CONCATENATE($B105,"!E21"))),"",INDIRECT(CONCATENATE($B105,"!E21"))) -> 28.40941049 | S105: =IF(ISERROR(INDIRECT(CONCATENATE($B105,"!F16"))),"",INDIRECT(CONCATENATE($B105,"!F16"))) -> 57.93634259 | T105: =IF(ISERROR(INDIRECT(CONCATENATE($B105,"!F23"))),"",INDIRECT(CONCATENATE($B105,"!F23"))) -> 79.30141978 | W105: =IF(ISERROR(INDIRECT(CONCATENATE($B105,"!F21"))),"",INDIRECT(CONCATENATE($B105,"!F21"))) -> 4.252157459 | X105: =IF(ISERROR(INDIRECT(CONCATENATE($B105,"!G16"))),"",INDIRECT(CONCATENATE($B105,"!G16"))) -> 93.92227186 | Y105: =IF(ISERROR(INDIRECT(CONCATENATE($B105,"!G23"))),"",INDIRECT(CONCATENATE($B105,"!G23"))) -> 90.03924952 | AB105: =IF(ISERROR(INDIRECT(CONCATENATE($B105,"!G221"))),"",INDIRECT(CONCATENATE($B105,"!G21"))) -> 0.1469848785
B106: SFHS16 | D106: 81.19677203 | E106: N/A | H106: 10.2120133 | I106: 91.68678155 | J106: N/A | M106: 5.531792315 | N106: 93.91224508 | O106: N/A | R106: 4.813145271 | S106: 94.01167404 | T106: N/A | W106: 5.061245551 | X106: 98.97099326 | Y106: N/A | AB106: 0.5520682011
B107: SHFS17 | C107: 2017 | D107: 73.67417783 | E107: 57.01016072 | H107: 3.517826056 | I107: 75.54967738 | J107: 66.02537397 | M107: 10.15465918 | N107: 92.40382864 | O107: 93.89829482 | R107: 2.523741808 | S107: 99.03975274 | T107: 98.47145642 | W107: 0.002756341388 | X107: 99.57824264 | Y107: 95.98200685 | AB107: 0
D111: =IF(ISERROR(INDIRECT(CONCATENATE($B111,"!C16"))),"",INDIRECT(CONCATENATE($B111,"!C16"))) ->  | E111: =IF(ISERROR(INDIRECT(CONCATENATE($B111,"!C23"))),"",INDIRECT(CONCATENATE($B111,"!C23"))) ->  | H111: =IF(ISERROR(INDIRECT(CONCATENATE($B111,"!C21"))),"",INDIRECT(CONCATENATE($B111,"!C21"))) ->  | I111: =IF(ISERROR(INDIRECT(CONCATENATE($B111,"!D16"))),"",INDIRECT(CONCATENATE($B111,"!D16"))) ->  | J111: =IF(ISERROR(INDIRECT(CONCATENATE($B111,"!D23"))),"",INDIRECT(CONCATENATE($B111,"!D23"))) ->  | M111: =IF(ISERROR(INDIRECT(CONCATENATE($B111,"!D21"))),"",INDIRECT(CONCATENATE($B111,"!D21"))) ->  | N111: =IF(ISERROR(INDIRECT(CONCATENATE($B111,"!E16"))),"",INDIRECT(CONCATENATE($B111,"!E16"))) ->  | O111: =IF(ISERROR(INDIRECT(CONCATENATE($B111,"!E23"))),"",INDIRECT(CONCATENATE($B111,"!E23"))) ->  | R111: =IF(ISERROR(INDIRECT(CONCATENATE($B111,"!E21"))),"",INDIRECT(CONCATENATE($B111,"!E21"))) ->  | S111: =IF(ISERROR(INDIRECT(CONCATENATE($B111,"!F16"))),"",INDIRECT(CONCATENATE($B111,"!F16"))) ->  | T111: =IF(ISERROR(INDIRECT(CONCATENATE($B111,"!F23"))),"",INDIRECT(CONCATENATE($B111,"!F23"))) ->  | W111: =IF(ISERROR(INDIRECT(CONCATENATE($B111,"!F21"))),"",INDIRECT(CONCATENATE($B111,"!F21"))) ->  | X111: =IF(ISERROR(INDIRECT(CONCATENATE($B111,"!G16"))),"",INDIRECT(CONCATENATE($B111,"!G16"))) ->  | Y111: =IF(ISERROR(INDIRECT(CONCATENATE($B111,"!G23"))),"",INDIRECT(CONCATENATE($B111,"!G23"))) ->  | AB111: =IF(ISERROR(INDIRECT(CONCATENATE($B111,"!G221"))),"",INDIRECT(CONCATENATE($B111,"!G21"))) -> 
D112: =IF(ISERROR(INDIRECT(CONCATENATE($B112,"!C16"))),"",INDIRECT(CONCATENATE($B112,"!C16"))) ->  | E112: =IF(ISERROR(INDIRECT(CONCATENATE($B112,"!C23"))),"",INDIRECT(CONCATENATE($B112,"!C23"))) ->  | H112: =IF(ISERROR(INDIRECT(CONCATENATE($B112,"!C21"))),"",INDIRECT(CONCATENATE($B112,"!C21"))) ->  | I112: =IF(ISERROR(INDIRECT(CONCATENATE($B112,"!D16"))),"",INDIRECT(CONCATENATE($B112,"!D16"))) ->  | J112: =IF(ISERROR(INDIRECT(CONCATENATE($B112,"!D23"))),"",INDIRECT(CONCATENATE($B112,"!D23"))) ->  | M112: =IF(ISERROR(INDIRECT(CONCATENATE($B112,"!D21"))),"",INDIRECT(CONCATENATE($B112,"!D21"))) ->  | N112: =IF(ISERROR(INDIRECT(CONCATENATE($B112,"!E16"))),"",INDIRECT(CONCATENATE($B112,"!E16"))) ->  | O112: =IF(ISERROR(INDIRECT(CONCATENATE($B112,"!E23"))),"",INDIRECT(CONCATENATE($B112,"!E23"))) ->  | R112: =IF(ISERROR(INDIRECT(CONCATENATE($B112,"!E21"))),"",INDIRECT(CONCATENATE($B112,"!E21"))) ->  | S112: =IF(ISERROR(INDIRECT(CONCATENATE($B112,"!F16"))),"",INDIRECT(CONCATENATE($B112,"!F16"))) ->  | T112: =IF(ISERROR(INDIRECT(CONCATENATE($B112,"!F23"))),"",INDIRECT(CONCATENATE($B112,"!F23"))) ->  | W112: =IF(ISERROR(INDIRECT(CONCATENATE($B112,"!F21"))),"",INDIRECT(CONCATENATE($B112,"!F21"))) ->  | X112: =IF(ISERROR(INDIRECT(CONCATENATE($B112,"!G16"))),"",INDIRECT(CONCATENATE($B112,"!G16"))) ->  | Y112: =IF(ISERROR(INDIRECT(CONCATENATE($B112,"!G23"))),"",INDIRECT(CONCATENATE($B112,"!G23"))) ->  | AB112: =IF(ISERROR(INDIRECT(CONCATENATE($B112,"!G221"))),"",INDIRECT(CONCATENATE($B112,"!G21"))) -> 
B118: =CONCATENATE("National use of drinking water sources, ",C99,"–",C100) -> National use of drinking water sources, 2000–2020 | S118: Data points used for regression
E153: =IF(ISERROR(INDIRECT(CONCATENATE($B153,"!M18"))),"",INDIRECT(CONCATENATE($B153,"!M18"))) ->  | F153: =IF(ISERROR(INDIRECT(CONCATENATE($B153,"!M19"))),"",INDIRECT(CONCATENATE($B153,"!M19"))) ->  | G153: =IF(ISERROR(INDIRECT(CONCATENATE($B153,"!M20"))),"",INDIRECT(CONCATENATE($B153,"!M20"))) ->  | H153: =IF(ISERROR(INDIRECT(CONCATENATE($B153,"!M21"))),"",INDIRECT(CONCATENATE($B153,"!M21"))) ->  | J153: =IF(ISERROR(INDIRECT(CONCATENATE($B153,"!N18"))),"",INDIRECT(CONCATENATE($B153,"!N18"))) ->  | K153: =IF(ISERROR(INDIRECT(CONCATENATE($B153,"!N19"))),"",INDIRECT(CONCATENATE($B153,"!N19"))) ->  | L153: =IF(ISERROR(INDIRECT(CONCATENATE($B153,"!N20"))),"",INDIRECT(CONCATENATE($B153,"!N20"))) ->  | M153: =IF(ISERROR(INDIRECT(CONCATENATE($B153,"!N21"))),"",INDIRECT(CONCATENATE($B153,"!N21"))) ->  | O153: =IF(ISERROR(INDIRECT(CONCATENATE($B153,"!O18"))),"",INDIRECT(CONCATENATE($B153,"!O18"))) ->  | P153: =IF(ISERROR(INDIRECT(CONCATENATE($B153,"!O19"))),"",INDIRECT(CONCATENATE($B153,"!O19"))) ->  | Q153: =IF(ISERROR(INDIRECT(CONCATENATE($B153,"!O20"))),"",INDIRECT(CONCATENATE($B153,"!O20"))) ->  | R153: =IF(ISERROR(INDIRECT(CONCATENATE($B153,"!O21"))),"",INDIRECT(CONCATENATE($B153,"!O21"))) ->  | T153: =IF(ISERROR(INDIRECT(CONCATENATE($B153,"!P18"))),"",INDIRECT(CONCATENATE($B153,"!P18"))) ->  | U153: =IF(ISERROR(INDIRECT(CONCATENATE($B153,"!P19"))),"",INDIRECT(CONCATENATE($B153,"!P19"))) ->  | V153: =IF(ISERROR(INDIRECT(CONCATENATE($B153,"!P20"))),"",INDIRECT(CONCATENATE($B153,"!P20"))) ->  | W153: =IF(ISERROR(INDIRECT(CONCATENATE($B153,"!P21"))),"",INDIRECT(CONCATENATE($B153,"!P21"))) ->  | Y153: =IF(ISERROR(INDIRECT(CONCATENATE($B153,"!Q18"))),"",INDIRECT(CONCATENATE($B153,"!Q18"))) ->  | Z153: =IF(ISERROR(INDIRECT(CONCATENATE($B153,"!Q19"))),"",INDIRECT(CONCATENATE($B153,"!Q19"))) ->  | AA153: =IF(ISERROR(INDIRECT(CONCATENATE($B153,"!Q20"))),"",INDIRECT(CONCATENATE($B153,"!Q20"))) ->  | AB153: =IF(ISERROR(INDIRECT(CONCATENATE($B153,"!Q21"))),"",INDIRECT(CONCATENATE($B153,"!Q1"))) -> 
A197: URBAN | D197: Poorest | I197: Poor | N197: Middle | S197: Rich | X197: Richest
D198: Improved | E198: Basic | F198: Limited | G198: Unimproved | H198: Surface water | I198: Improved | J198: Basic | K198: Limited | L198: Unimproved | M198: Surface water | N198: Improved | O198: Basic | P198: Limited | Q198: Unimproved | R198: Surface water | S198: Improved | T198: Basic | U198: Limited | V198: Unimproved | W198: Surface water | X198: Improved | Y198: Basic | Z198: Limited | AA198: Unimproved | AB198: Surface water
A199: Forecast period: | C199: =MinBase(C205:C216) -> 2000 | D199: =IF((D201+H201)>100,D201*100/(D201+H201),D201) -> 47.79250265 | E199: =D199*AVERAGEIF(E205:E216,">0")/100 -> 40.18385289 | F199: =D199*(100-AVERAGEIF(E205:E216,">0"))/100 -> 7.608649757 | G199: =100-(E199+F199+H199) -> 39.88964835 | H199: =IF((D201+H201)>100,H201*100/(D201+H201),H201) -> 12.317849 | I199: =IF((I201+M201)>100,I201*100/(I201+M201),I201) -> 67.22976828 | J199: =I199*AVERAGEIF(J205:J216,">0")/100 -> 61.1605485 | K199: =I199*(100-AVERAGEIF(J205:J216,">0"))/100 -> 6.069219778 | L199: =100-(J199+K199+M199) -> 29.63819198 | M199: =IF((I201+M201)>100,M201*100/(I201+M201),M201) -> 3.132039746 | N199: =IF((N201+R201)>100,N201*100/(N201+R201),N201) -> 81.97967204 | O199: =N199*AVERAGEIF(O205:O216,">0")/100 -> 76.72469017 | P199: =N199*(100-AVERAGEIF(O205:O216,">0"))/100 -> 5.254981874 | Q199: =100-(O199+P199+R199) -> 17.56494878 | R199: =IF((N201+R201)>100,R201*100/(N201+R201),R201) -> 0.4553791728 | S199: =IF((S201+W201)>100,S201*100/(S201+W201),S201) -> 91.56375437 | T199: =S199*AVERAGEIF(T205:T216,">0")/100 -> 84.15442873 | U199: =S199*(100-AVERAGEIF(T205:T216,">0"))/100 -> 7.409325642 | V199: =100-(T199+U199+W199) -> 8.436245626 | W199: =IF((S201+W201)>100,W201*100/(S201+W201),W201) -> 0 | X199: =IF((X201+AB201)>100,X201*100/(X201+AB201),X201) -> 98.18346008 | Y199: =X199*AVERAGEIF(Y205:Y216,">0")/100 -> 92.91052398 | Z199: =X199*(100-AVERAGEIF(Y205:Y216,">0"))/100 -> 5.272936095 | AA199: =100-(Y199+Z199+AB199) -> 1.816539921 | AB199: =IF((X201+AB201)>100,AB201*100/(X201+AB201),AB201) -> 0
C200: =MaxTarget(C205:C216) -> 2020 | D200: =IF((D202+H202)>100,D202*100/(D202+H202),D202) -> 99.47562576 | E200: =D200*AVERAGEIF(E205:E216,">0")/100 -> 83.63893268 | F200: =D200*(100-AVERAGEIF(E205:E216,">0"))/100 -> 15.83669307 | G200: =100-(E200+F200+H200) -> 0.1097001987 | H200: =IF((D202+H202)>100,H202*100/(D202+H202),H202) -> 0.4146740457 | I200: =IF((I202+M202)>100,I202*100/(I202+M202),I202) -> 100 | J200: =I200*AVERAGEIF(J205:J216,">0")/100 -> 90.97242199 | K200: =I200*(100-AVERAGEIF(J205:J216,">0"))/100 -> 9.027578012 | L200: =100-(J200+K200+M200) -> 0 | M200: =IF((I202+M202)>100,M202*100/(I202+M202),M202) -> 0 | N200: =IF((N202+R202)>100,N202*100/(N202+R202),N202) -> 100 | O200: =N200*AVERAGEIF(O205:O216,">0")/100 -> 93.58989644 | P200: =N200*(100-AVERAGEIF(O205:O216,">0"))/100 -> 6.410103557 | Q200: =100-(O200+P200+R200) -> 0 | R200: =IF((N202+R202)>100,R202*100/(N202+R202),R202) -> 0 | S200: =IF((S202+W202)>100,S202*100/(S202+W202),S202) -> 100 | T200: =S200*AVERAGEIF(T205:T216,">0")/100 -> 91.90801459 | U200: =S200*(100-AVERAGEIF(T205:T216,">0"))/100 -> 8.091985407 | V200: =100-(T200+U200+W200) -> 0 | W200: =IF((S202+W202)>100,W202*100/(S202+W202),W202) -> 0 | X200: =IF((X202+AB202)>100,X202*100/(X202+AB202),X202) -> 99.37303853 | Y200: =X200*AVERAGEIF(Y205:Y216,">0")/100 -> 94.03621621 | Z200: =X200*(100-AVERAGEIF(Y205:Y216,">0"))/100 -> 5.336822326 | AA200: =100-(Y200+Z200+AB200) -> 0.6269614685 | AB200: =IF((X202+AB202)>100,AB202*100/(X202+AB202),AB202) -> 0
A201: Regression period: | C201: =MinRegYear(C199,C205:C216) -> 2004 | D201: =IF(MAX(C205:C216)-MIN(C205:C216)<5,AVERAGEIF(C205:C216,">0",D205:D216), IF(FORECAST($C201,D$205:D$216,$C$205:$C$216)<0,0, IF(FORECAST($C201,D$205:D$216,$C$205:$C$216)>100,100, FORECAST($C201,D$205:D$216,$C$205:$C$216)))) -> 47.79250265 | H201: =IF(MAX(C205:C216)-MIN(C205:C216)<5,AVERAGEIF(C205:C216,">0",H205:H216), IF(FORECAST($C201,H$205:H$216,$C$205:$C$216)<0,0, IF(FORECAST($C201,H$205:H$216,$C$205:$C$216)>100,100, FORECAST($C201,H$205:H$216,$C$205:$C$216)))) -> 12.317849 | I201: =IF(MAX(C205:C216)-MIN(C205:C216)<5,AVERAGEIF(C205:C216,">0",I205:I216), IF(FORECAST($C201,I$205:I$216,$C$205:$C$216)<0,0, IF(FORECAST($C201,I$205:I$216,$C$205:$C$216)>100,100, FORECAST($C201,I$205:I$216,$C$205:$C$216)))) -> 67.22976828 | M201: =IF(MAX(C205:C216)-MIN(C205:C216)<5,AVERAGEIF(C205:C216,">0",M205:M216), IF(FORECAST($C201,M$205:M$216,$C$205:$C$216)<0,0, IF(FORECAST($C201,M$205:M$216,$C$205:$C$216)>100,100, FORECAST($C201,M$205:M$216,$C$205:$C$216)))) -> 3.132039746 | N201: =IF(MAX(C205:C216)-MIN(C205:C216)<5,AVERAGEIF(C205:C216,">0",N205:N216), IF(FORECAST($C201,N$205:N$216,$C$205:$C$216)<0,0, IF(FORECAST($C201,N$205:N$216,$C$205:$C$216)>100,100, FORECAST($C201,N$205:N$216,$C$205:$C$216)))) -> 81.97967204 | R201: =IF(MAX(C205:C216)-MIN(C205:C216)<5,AVERAGEIF(C205:C216,">0",R205:R216), IF(FORECAST($C201,R$205:R$216,$C$205:$C$216)<0,0, IF(FORECAST($C201,R$205:R$216,$C$205:$C$216)>100,100, FORECAST($C201,R$205:R$216,$C$205:$C$216)))) -> 0.4553791728 | S201: =IF(MAX(C205:C216)-MIN(C205:C216)<5,AVERAGEIF(C205:C216,">0",S205:S216), IF(FORECAST($C201,S$205:S$216,$C$205:$C$216)<0,0, IF(FORECAST($C201,S$205:S$216,$C$205:$C$216)>100,100, FORECAST($C201,S$205:S$216,$C$205:$C$216)))) -> 91.56375437 | W201: =IF(MAX(C205:C216)-MIN(C205:C216)<5,AVERAGEIF(C205:C216,">0",W205:W216), IF(FORECAST($C201,W$205:W$216,$C$205:$C$216)<0,0, IF(FORECAST($C201,W$205:W$216,$C$205:$C$216)>100,100, FORECAST($C201,W$205:W$216,$C$205:$C$216)))) -> 0 | X201: =IF(MAX(C205:C216)-MIN(C205:C216)<5,AVERAGEIF(C205:C216,">0",X205:X216), IF(FORECAST($C201,X$205:X$216,$C$205:$C$216)<0,0, IF(FORECAST($C201,X$205:X$216,$C$205:$C$216)>100,100, FORECAST($C201,X$205:X$216,$C$205:$C$216)))) -> 98.18346008 | AB201: =IF(MAX(C205:C216)-MIN(C205:C216)<5,AVERAGEIF(C205:C216,">0",AB205:AB216), IF(FORECAST($C201,AB$205:AB$216,$C$205:$C$216)<0,0, IF(FORECAST($C201,AB$205:AB$216,$C$205:$C$216)>100,100, FORECAST($C201,AB$205:AB$216,$C$205:$C$216)))) -> 0
C202: =MaxRegYear(C200,C205:C216) -> 2019 | D202: =IF(MAX(C205:C216)-MIN(C205:C216)<5,AVERAGEIF(C205:C216,">0",D205:D216), IF(FORECAST($C202,D$205:D$216,$C$205:$C$216)<0,0, IF(FORECAST($C202,D$205:D$216,$C$205:$C$216)>100,100, FORECAST($C202,D$205:D$216,$C$205:$C$216)))) -> 99.47562576 | H202: =IF(MAX(C205:C216)-MIN(C205:C216)<5,AVERAGEIF(C205:C216,">0",H205:H216), IF(FORECAST($C202,H$205:H$216,$C$205:$C$216)<0,0, IF(FORECAST($C202,H$205:H$216,$C$205:$C$216)>100,100, FORECAST($C202,H$205:H$216,$C$205:$C$216)))) -> 0.4146740457 | I202: =IF(MAX(C205:C216)-MIN(C205:C216)<5,AVERAGEIF(C205:C216,">0",I205:I216), IF(FORECAST($C202,I$205:I$216,$C$205:$C$216)<0,0, IF(FORECAST($C202,I$205:I$216,$C$205:$C$216)>100,100, FORECAST($C202,I$205:I$216,$C$205:$C$216)))) -> 100 | M202: =IF(MAX(C205:C216)-MIN(C205:C216)<5,AVERAGEIF(C205:C216,">0",M205:M216), IF(FORECAST($C202,M$205:M$216,$C$205:$C$216)<0,0, IF(FORECAST($C202,M$205:M$216,$C$205:$C$216)>100,100, FORECAST($C202,M$205:M$216,$C$205:$C$216)))) -> 0 | N202: =IF(MAX(C205:C216)-MIN(C205:C216)<5,AVERAGEIF(C205:C216,">0",N205:N216), IF(FORECAST($C202,N$205:N$216,$C$205:$C$216)<0,0, IF(FORECAST($C202,N$205:N$216,$C$205:$C$216)>100,100, FORECAST($C202,N$205:N$216,$C$205:$C$216)))) -> 100 | R202: =IF(MAX(C205:C216)-MIN(C205:C216)<5,AVERAGEIF(C205:C216,">0",R205:R216), IF(FORECAST($C202,R$205:R$216,$C$205:$C$216)<0,0, IF(FORECAST($C202,R$205:R$216,$C$205:$C$216)>100,100, FORECAST($C202,R$205:R$216,$C$205:$C$216)))) -> 0 | S202: =IF(MAX(C205:C216)-MIN(C205:C216)<5,AVERAGEIF(C205:C216,">0",S205:S216), IF(FORECAST($C202,S$205:S$216,$C$205:$C$216)<0,0, IF(FORECAST($C202,S$205:S$216,$C$205:$C$216)>100,100, FORECAST($C202,S$205:S$216,$C$205:$C$216)))) -> 100 | W202: =IF(MAX(C205:C216)-MIN(C205:C216)<5,AVERAGEIF(C205:C216,">0",W205:W216), IF(FORECAST($C202,W$205:W$216,$C$205:$C$216)<0,0, IF(FORECAST($C202,W$205:W$216,$C$205:$C$216)>100,100, FORECAST($C202,W$205:W$216,$C$205:$C$216)))) -> 0 | X202: =IF(MAX(C205:C216)-MIN(C205:C216)<5,AVERAGEIF(C205:C216,">0",X205:X216), IF(FORECAST($C202,X$205:X$216,$C$205:$C$216)<0,0, IF(FORECAST($C202,X$205:X$216,$C$205:$C$216)>100,100, FORECAST($C202,X$205:X$216,$C$205:$C$216)))) -> 99.37303853 | AB202: =IF(MAX(C205:C216)-MIN(C205:C216)<5,AVERAGEIF(C205:C216,">0",AB205:AB216), IF(FORECAST($C202,AB$205:AB$216,$C$205:$C$216)<0,0, IF(FORECAST($C202,AB$205:AB$216,$C$205:$C$216)>100,100, FORECAST($C202,AB$205:AB$216,$C$205:$C$216)))) -> 0
B204: Survey | C204: Year | D204: Improved | E204: Basic | H204: Surface water | I204: Improved | J204: Basic | M204: Surface water | N204: Improved | O204: Basic | R204: Surface water | S204: Improved | T204: Basic | W204: Surface water | X204: Improved | Y204: Basic | AB204: Surface water
B205: MICS06 | C205: 2006 | D205: =IF(ISERROR(INDIRECT(CONCATENATE($B205,"!H16"))),"",INDIRECT(CONCATENATE($B205,"!H16"))) -> 54.68358573 | E205: =IF(ISERROR(INDIRECT(CONCATENATE($B205,"!H23"))),"",INDIRECT(CONCATENATE($B205,"!H23"))) -> 72.94275328 | H205: =IF(ISERROR(INDIRECT(CONCATENATE($B205,"!H21"))),"",INDIRECT(CONCATENATE($B205,"!H21"))) -> 10.73075901 | I205: =IF(ISERROR(INDIRECT(CONCATENATE($B205,"!I16"))),"",INDIRECT(CONCATENATE($B205,"!I16"))) -> 71.60149268 | J205: =IF(ISERROR(INDIRECT(CONCATENATE($B205,"!I23"))),"",INDIRECT(CONCATENATE($B205,"!I23"))) -> 83.07999628 | M205: =IF(ISERROR(INDIRECT(CONCATENATE($B205,"!I21"))),"",INDIRECT(CONCATENATE($B205,"!I21"))) -> 2.650746474 | N205: =IF(ISERROR(INDIRECT(CONCATENATE($B205,"!J16"))),"",INDIRECT(CONCATENATE($B205,"!J16"))) -> 84.71375403 | O205: =IF(ISERROR(INDIRECT(CONCATENATE($B205,"!J23"))),"",INDIRECT(CONCATENATE($B205,"!J23"))) -> 89.69631773 | R205: =IF(ISERROR(INDIRECT(CONCATENATE($B205,"!J21"))),"",INDIRECT(CONCATENATE($B205,"!J21"))) -> 0.3853208386 | S205: =IF(ISERROR(INDIRECT(CONCATENATE($B205,"!K16"))),"",INDIRECT(CONCATENATE($B205,"!K16"))) -> 92.85463771 | T205: =IF(ISERROR(INDIRECT(CONCATENATE($B205,"!K23"))),"",INDIRECT(CONCATENATE($B205,"!K23"))) -> 87.57328662 | W205: =IF(ISERROR(INDIRECT(CONCATENATE($B205,"!K21"))),"",INDIRECT(CONCATENATE($B205,"!K21"))) -> 0 | X205: =IF(ISERROR(INDIRECT(CONCATENATE($B205,"!L16"))),"",INDIRECT(CONCATENATE($B205,"!L16"))) -> 98.34207054 | Y205: =IF(ISERROR(INDIRECT(CONCATENATE($B205,"!L23"))),"",INDIRECT(CONCATENATE($B205,"!L23"))) -> 92.63871831 | AB205: =IF(ISERROR(INDIRECT(CONCATENATE($B205,"!L221"))),"",INDIRECT(CONCATENATE($B205,"!L21"))) -> 0
B206: SFHS16 | D206: 97.30916381 | E206: N/A | H206: 1.591790538 | I206: 97.19454179 | J206: N/A | M206: 1.769359852 | N206: 93.74466504 | O206: N/A | R206: 6.200713766 | S206: 97.81830777 | T206: N/A | W206: 2.064088023 | X206: 98.82439585 | Y206: N/A | AB206: 0.3385317321
B207: SHFS17 | C207: 2017 | D207: 92.58454267 | E207: 95.21689799 | H207: 2.00176404 | I207: 95.64597689 | J207: 98.86484769 | M207: 0.003633474056 | N207: 99.75120493 | O207: 97.48347515 | R207: 0 | S207: 99.95449605 | T207: 96.24274257 | W207: 0 | X207: 99.21442807 | Y207: 96.62029519 | AB207: 0
B218: =CONCATENATE("Urban use of drinking water sources, ",C199,"–",C200) -> Urban use of drinking water sources, 2000–2020 | S218: Data points used for regression
E253: =IF(ISERROR(INDIRECT(CONCATENATE($B253,"!M18"))),"",INDIRECT(CONCATENATE($B253,"!M18"))) ->  | F253: =IF(ISERROR(INDIRECT(CONCATENATE($B253,"!M19"))),"",INDIRECT(CONCATENATE($B253,"!M19"))) ->  | G253: =IF(ISERROR(INDIRECT(CONCATENATE($B253,"!M20"))),"",INDIRECT(CONCATENATE($B253,"!M20"))) ->  | H253: =IF(ISERROR(INDIRECT(CONCATENATE($B253,"!M21"))),"",INDIRECT(CONCATENATE($B253,"!M21"))) ->  | J253: =IF(ISERROR(INDIRECT(CONCATENATE($B253,"!N18"))),"",INDIRECT(CONCATENATE($B253,"!N18"))) ->  | K253: =IF(ISERROR(INDIRECT(CONCATENATE($B253,"!N19"))),"",INDIRECT(CONCATENATE($B253,"!N19"))) ->  | L253: =IF(ISERROR(INDIRECT(CONCATENATE($B253,"!N20"))),"",INDIRECT(CONCATENATE($B253,"!N20"))) ->  | M253: =IF(ISERROR(INDIRECT(CONCATENATE($B253,"!N21"))),"",INDIRECT(CONCATENATE($B253,"!N21"))) ->  | O253: =IF(ISERROR(INDIRECT(CONCATENATE($B253,"!O18"))),"",INDIRECT(CONCATENATE($B253,"!O18"))) ->  | P253: =IF(ISERROR(INDIRECT(CONCATENATE($B253,"!O19"))),"",INDIRECT(CONCATENATE($B253,"!O19"))) ->  | Q253: =IF(ISERROR(INDIRECT(CONCATENATE($B253,"!O20"))),"",INDIRECT(CONCATENATE($B253,"!O20"))) ->  | R253: =IF(ISERROR(INDIRECT(CONCATENATE($B253,"!O21"))),"",INDIRECT(CONCATENATE($B253,"!O21"))) ->  | T253: =IF(ISERROR(INDIRECT(CONCATENATE($B253,"!P18"))),"",INDIRECT(CONCATENATE($B253,"!P18"))) ->  | U253: =IF(ISERROR(INDIRECT(CONCATENATE($B253,"!P19"))),"",INDIRECT(CONCATENATE($B253,"!P19"))) ->  | V253: =IF(ISERROR(INDIRECT(CONCATENATE($B253,"!P20"))),"",INDIRECT(CONCATENATE($B253,"!P20"))) ->  | W253: =IF(ISERROR(INDIRECT(CONCATENATE($B253,"!P21"))),"",INDIRECT(CONCATENATE($B253,"!P21"))) ->  | Y253: =IF(ISERROR(INDIRECT(CONCATENATE($B253,"!Q18"))),"",INDIRECT(CONCATENATE($B253,"!Q18"))) ->  | Z253: =IF(ISERROR(INDIRECT(CONCATENATE($B253,"!Q19"))),"",INDIRECT(CONCATENATE($B253,"!Q19"))) ->  | AA253: =IF(ISERROR(INDIRECT(CONCATENATE($B253,"!Q20"))),"",INDIRECT(CONCATENATE($B253,"!Q20"))) ->  | AB253: =IF(ISERROR(INDIRECT(CONCATENATE($B253,"!Q21"))),"",INDIRECT(CONCATENATE($B253,"!Q1"))) -> 
E254: =IF(ISERROR(INDIRECT(CONCATENATE($B254,"!M18"))),"",INDIRECT(CONCATENATE($B254,"!M18"))) ->  | F254: =IF(ISERROR(INDIRECT(CONCATENATE($B254,"!M19"))),"",INDIRECT(CONCATENATE($B254,"!M19"))) ->  | G254: =IF(ISERROR(INDIRECT(CONCATENATE($B254,"!M20"))),"",INDIRECT(CONCATENATE($B254,"!M20"))) ->  | H254: =IF(ISERROR(INDIRECT(CONCATENATE($B254,"!M21"))),"",INDIRECT(CONCATENATE($B254,"!M21"))) ->  | J254: =IF(ISERROR(INDIRECT(CONCATENATE($B254,"!N18"))),"",INDIRECT(CONCATENATE($B254,"!N18"))) ->  | K254: =IF(ISERROR(INDIRECT(CONCATENATE($B254,"!N19"))),"",INDIRECT(CONCATENATE($B254,"!N19"))) ->  | L254: =IF(ISERROR(INDIRECT(CONCATENATE($B254,"!N20"))),"",INDIRECT(CONCATENATE($B254,"!N20"))) ->  | M254: =IF(ISERROR(INDIRECT(CONCATENATE($B254,"!N21"))),"",INDIRECT(CONCATENATE($B254,"!N21"))) ->  | O254: =IF(ISERROR(INDIRECT(CONCATENATE($B254,"!O18"))),"",INDIRECT(CONCATENATE($B254,"!O18"))) ->  | P254: =IF(ISERROR(INDIRECT(CONCATENATE($B254,"!O19"))),"",INDIRECT(CONCATENATE($B254,"!O19"))) ->  | Q254: =IF(ISERROR(INDIRECT(CONCATENATE($B254,"!O20"))),"",INDIRECT(CONCATENATE($B254,"!O20"))) ->  | R254: =IF(ISERROR(INDIRECT(CONCATENATE($B254,"!O21"))),"",INDIRECT(CONCATENATE($B254,"!O21"))) ->  | T254: =IF(ISERROR(INDIRECT(CONCATENATE($B254,"!P18"))),"",INDIRECT(CONCATENATE($B254,"!P18"))) ->  | U254: =IF(ISERROR(INDIRECT(CONCATENATE($B254,"!P19"))),"",INDIRECT(CONCATENATE($B254,"!P19"))) ->  | V254: =IF(ISERROR(INDIRECT(CONCATENATE($B254,"!P20"))),"",INDIRECT(CONCATENATE($B254,"!P20"))) ->  | W254: =IF(ISERROR(INDIRECT(CONCATENATE($B254,"!P21"))),"",INDIRECT(CONCATENATE($B254,"!P21"))) ->  | Y254: =IF(ISERROR(INDIRECT(CONCATENATE($B254,"!Q18"))),"",INDIRECT(CONCATENATE($B254,"!Q18"))) ->  | Z254: =IF(ISERROR(INDIRECT(CONCATENATE($B254,"!Q19"))),"",INDIRECT(CONCATENATE($B254,"!Q19"))) ->  | AA254: =IF(ISERROR(INDIRECT(CONCATENATE($B254,"!Q20"))),"",INDIRECT(CONCATENATE($B254,"!Q20"))) ->  | AB254: =IF(ISERROR(INDIRECT(CONCATENATE($B254,"!Q21"))),"",INDIRECT(CONCATENATE($B254,"!Q1"))) -> 
E255: =IF(ISERROR(INDIRECT(CONCATENATE($B255,"!M18"))),"",INDIRECT(CONCATENATE($B255,"!M18"))) ->  | F255: =IF(ISERROR(INDIRECT(CONCATENATE($B255,"!M19"))),"",INDIRECT(CONCATENATE($B255,"!M19"))) ->  | G255: =IF(ISERROR(INDIRECT(CONCATENATE($B255,"!M20"))),"",INDIRECT(CONCATENATE($B255,"!M20"))) ->  | H255: =IF(ISERROR(INDIRECT(CONCATENATE($B255,"!M21"))),"",INDIRECT(CONCATENATE($B255,"!M21"))) ->  | J255: =IF(ISERROR(INDIRECT(CONCATENATE($B255,"!N18"))),"",INDIRECT(CONCATENATE($B255,"!N18"))) ->  | K255: =IF(ISERROR(INDIRECT(CONCATENATE($B255,"!N19"))),"",INDIRECT(CONCATENATE($B255,"!N19"))) ->  | L255: =IF(ISERROR(INDIRECT(CONCATENATE($B255,"!N20"))),"",INDIRECT(CONCATENATE($B255,"!N20"))) ->  | M255: =IF(ISERROR(INDIRECT(CONCATENATE($B255,"!N21"))),"",INDIRECT(CONCATENATE($B255,"!N21"))) ->  | O255: =IF(ISERROR(INDIRECT(CONCATENATE($B255,"!O18"))),"",INDIRECT(CONCATENATE($B255,"!O18"))) ->  | P255: =IF(ISERROR(INDIRECT(CONCATENATE($B255,"!O19"))),"",INDIRECT(CONCATENATE($B255,"!O19"))) ->  | Q255: =IF(ISERROR(INDIRECT(CONCATENATE($B255,"!O20"))),"",INDIRECT(CONCATENATE($B255,"!O20"))) ->  | R255: =IF(ISERROR(INDIRECT(CONCATENATE($B255,"!O21"))),"",INDIRECT(CONCATENATE($B255,"!O21"))) ->  | T255: =IF(ISERROR(INDIRECT(CONCATENATE($B255,"!P18"))),"",INDIRECT(CONCATENATE($B255,"!P18"))) ->  | U255: =IF(ISERROR(INDIRECT(CONCATENATE($B255,"!P19"))),"",INDIRECT(CONCATENATE($B255,"!P19"))) ->  | V255: =IF(ISERROR(INDIRECT(CONCATENATE($B255,"!P20"))),"",INDIRECT(CONCATENATE($B255,"!P20"))) ->  | W255: =IF(ISERROR(INDIRECT(CONCATENATE($B255,"!P21"))),"",INDIRECT(CONCATENATE($B255,"!P21"))) ->  | Y255: =IF(ISERROR(INDIRECT(CONCATENATE($B255,"!Q18"))),"",INDIRECT(CONCATENATE($B255,"!Q18"))) ->  | Z255: =IF(ISERROR(INDIRECT(CONCATENATE($B255,"!Q19"))),"",INDIRECT(CONCATENATE($B255,"!Q19"))) ->  | AA255: =IF(ISERROR(INDIRECT(CONCATENATE($B255,"!Q20"))),"",INDIRECT(CONCATENATE($B255,"!Q20"))) ->  | AB255: =IF(ISERROR(INDIRECT(CONCATENATE($B255,"!Q21"))),"",INDIRECT(CONCATENATE($B255,"!Q1"))) -> 
E256: =IF(ISERROR(INDIRECT(CONCATENATE($B256,"!M18"))),"",INDIRECT(CONCATENATE($B256,"!M18"))) ->  | F256: =IF(ISERROR(INDIRECT(CONCATENATE($B256,"!M19"))),"",INDIRECT(CONCATENATE($B256,"!M19"))) ->  | G256: =IF(ISERROR(INDIRECT(CONCATENATE($B256,"!M20"))),"",INDIRECT(CONCATENATE($B256,"!M20"))) ->  | H256: =IF(ISERROR(INDIRECT(CONCATENATE($B256,"!M21"))),"",INDIRECT(CONCATENATE($B256,"!M21"))) ->  | J256: =IF(ISERROR(INDIRECT(CONCATENATE($B256,"!N18"))),"",INDIRECT(CONCATENATE($B256,"!N18"))) ->  | K256: =IF(ISERROR(INDIRECT(CONCATENATE($B256,"!N19"))),"",INDIRECT(CONCATENATE($B256,"!N19"))) ->  | L256: =IF(ISERROR(INDIRECT(CONCATENATE($B256,"!N20"))),"",INDIRECT(CONCATENATE($B256,"!N20"))) ->  | M256: =IF(ISERROR(INDIRECT(CONCATENATE($B256,"!N21"))),"",INDIRECT(CONCATENATE($B256,"!N21"))) ->  | O256: =IF(ISERROR(INDIRECT(CONCATENATE($B256,"!O18"))),"",INDIRECT(CONCATENATE($B256,"!O18"))) ->  | P256: =IF(ISERROR(INDIRECT(CONCATENATE($B256,"!O19"))),"",INDIRECT(CONCATENATE($B256,"!O19"))) ->  | Q256: =IF(ISERROR(INDIRECT(CONCATENATE($B256,"!O20"))),"",INDIRECT(CONCATENATE($B256,"!O20"))) ->  | R256: =IF(ISERROR(INDIRECT(CONCATENATE($B256,"!O21"))),"",INDIRECT(CONCATENATE($B256,"!O21"))) ->  | T256: =IF(ISERROR(INDIRECT(CONCATENATE($B256,"!P18"))),"",INDIRECT(CONCATENATE($B256,"!P18"))) ->  | U256: =IF(ISERROR(INDIRECT(CONCATENATE($B256,"!P19"))),"",INDIRECT(CONCATENATE($B256,"!P19"))) ->  | V256: =IF(ISERROR(INDIRECT(CONCATENATE($B256,"!P20"))),"",INDIRECT(CONCATENATE($B256,"!P20"))) ->  | W256: =IF(ISERROR(INDIRECT(CONCATENATE($B256,"!P21"))),"",INDIRECT(CONCATENATE($B256,"!P21"))) ->  | Y256: =IF(ISERROR(INDIRECT(CONCATENATE($B256,"!Q18"))),"",INDIRECT(CONCATENATE($B256,"!Q18"))) ->  | Z256: =IF(ISERROR(INDIRECT(CONCATENATE($B256,"!Q19"))),"",INDIRECT(CONCATENATE($B256,"!Q19"))) ->  | AA256: =IF(ISERROR(INDIRECT(CONCATENATE($B256,"!Q20"))),"",INDIRECT(CONCATENATE($B256,"!Q20"))) ->  | AB256: =IF(ISERROR(INDIRECT(CONCATENATE($B256,"!Q21"))),"",INDIRECT(CONCATENATE($B256,"!Q1"))) -> 
E257: =IF(ISERROR(INDIRECT(CONCATENATE($B257,"!M18"))),"",INDIRECT(CONCATENATE($B257,"!M18"))) ->  | F257: =IF(ISERROR(INDIRECT(CONCATENATE($B257,"!M19"))),"",INDIRECT(CONCATENATE($B257,"!M19"))) ->  | G257: =IF(ISERROR(INDIRECT(CONCATENATE($B257,"!M20"))),"",INDIRECT(CONCATENATE($B257,"!M20"))) ->  | H257: =IF(ISERROR(INDIRECT(CONCATENATE($B257,"!M21"))),"",INDIRECT(CONCATENATE($B257,"!M21"))) ->  | J257: =IF(ISERROR(INDIRECT(CONCATENATE($B257,"!N18"))),"",INDIRECT(CONCATENATE($B257,"!N18"))) ->  | K257: =IF(ISERROR(INDIRECT(CONCATENATE($B257,"!N19"))),"",INDIRECT(CONCATENATE($B257,"!N19"))) ->  | L257: =IF(ISERROR(INDIRECT(CONCATENATE($B257,"!N20"))),"",INDIRECT(CONCATENATE($B257,"!N20"))) ->  | M257: =IF(ISERROR(INDIRECT(CONCATENATE($B257,"!N21"))),"",INDIRECT(CONCATENATE($B257,"!N21"))) ->  | O257: =IF(ISERROR(INDIRECT(CONCATENATE($B257,"!O18"))),"",INDIRECT(CONCATENATE($B257,"!O18"))) ->  | P257: =IF(ISERROR(INDIRECT(CONCATENATE($B257,"!O19"))),"",INDIRECT(CONCATENATE($B257,"!O19"))) ->  | Q257: =IF(ISERROR(INDIRECT(CONCATENATE($B257,"!O20"))),"",INDIRECT(CONCATENATE($B257,"!O20"))) ->  | R257: =IF(ISERROR(INDIRECT(CONCATENATE($B257,"!O21"))),"",INDIRECT(CONCATENATE($B257,"!O21"))) ->  | T257: =IF(ISERROR(INDIRECT(CONCATENATE($B257,"!P18"))),"",INDIRECT(CONCATENATE($B257,"!P18"))) ->  | U257: =IF(ISERROR(INDIRECT(CONCATENATE($B257,"!P19"))),"",INDIRECT(CONCATENATE($B257,"!P19"))) ->  | V257: =IF(ISERROR(INDIRECT(CONCATENATE($B257,"!P20"))),"",INDIRECT(CONCATENATE($B257,"!P20"))) ->  | W257: =IF(ISERROR(INDIRECT(CONCATENATE($B257,"!P21"))),"",INDIRECT(CONCATENATE($B257,"!P21"))) ->  | Y257: =IF(ISERROR(INDIRECT(CONCATENATE($B257,"!Q18"))),"",INDIRECT(CONCATENATE($B257,"!Q18"))) ->  | Z257: =IF(ISERROR(INDIRECT(CONCATENATE($B257,"!Q19"))),"",INDIRECT(CONCATENATE($B257,"!Q19"))) ->  | AA257: =IF(ISERROR(INDIRECT(CONCATENATE($B257,"!Q20"))),"",INDIRECT(CONCATENATE($B257,"!Q20"))) ->  | AB257: =IF(ISERROR(INDIRECT(CONCATENATE($B257,"!Q21"))),"",INDIRECT(CONCATENATE($B257,"!Q1"))) -> 
A297: RURAL | D297: Poorest | I297: Poor | N297: Middle | S297: Rich | X297: Richest
D298: Improved | E298: Basic | F298: Limited | G298: Unimproved | H298: Surface water | I298: Improved | J298: Basic | K298: Limited | L298: Unimproved | M298: Surface water | N298: Improved | O298: Basic | P298: Limited | Q298: Unimproved | R298: Surface water | S298: Improved | T298: Basic | U298: Limited | V298: Unimproved | W298: Surface water | X298: Improved | Y298: Basic | Z298: Limited | AA298: Unimproved | AB298: Surface water
A299: Forecast period: | C299: 2000 | D299: =IF((D301+H301)>100,D301*100/(D301+H301),D301) -> 1.37967099 | E299: =D299*AVERAGEIF(E305:E316,">0")/100 -> 0.3995476016 | F299: =D299*(100-AVERAGEIF(E305:E316,">0"))/100 -> 0.9801233886 | G299: =100-(E299+F299+H299) -> 58.82396735 | H299: =IF((D301+H301)>100,H301*100/(D301+H301),H301) -> 39.79636166 | I299: =IF((I301+M301)>100,I301*100/(I301+M301),I301) -> 0 | J299: =I299*AVERAGEIF(J305:J316,">0")/100 -> 0 | K299: =I299*(100-AVERAGEIF(J305:J316,">0"))/100 -> 0 | L299: =100-(J299+K299+M299) -> 61.09129638 | M299: =IF((I301+M301)>100,M301*100/(I301+M301),M301) -> 38.90870362 | N299: =IF((N301+R301)>100,N301*100/(N301+R301),N301) -> 0 | O299: =N299*AVERAGEIF(O305:O316,">0")/100 -> 0 | P299: =N299*(100-AVERAGEIF(O305:O316,">0"))/100 -> 0 | Q299: =100-(O299+P299+R299) -> 67.95730923 | R299: =IF((N301+R301)>100,R301*100/(N301+R301),R301) -> 32.04269077 | S299: =IF((S301+W301)>100,S301*100/(S301+W301),S301) -> 0 | T299: =S299*AVERAGEIF(T305:T316,">0")/100 -> 0 | U299: =S299*(100-AVERAGEIF(T305:T316,">0"))/100 -> 0 | V299: =100-(T299+U299+W299) -> 64.05851694 | W299: =IF((S301+W301)>100,W301*100/(S301+W301),W301) -> 35.94148306 | X299: =IF((X301+AB301)>100,X301*100/(X301+AB301),X301) -> 23.44000904 | Y299: =X299*AVERAGEIF(Y305:Y316,">0")/100 -> 18.8054088 | Z299: =X299*(100-AVERAGEIF(Y305:Y316,">0"))/100 -> 4.634600242 | AA299: =100-(Y299+Z299+AB299) -> 59.83457111 | AB299: =IF((X301+AB301)>100,AB301*100/(X301+AB301),AB301) -> 16.72541985
C300: 2020 | D300: =IF((D302+H302)>100,D302*100/(D302+H302),D302) -> 73.12210544 | E300: =D300*AVERAGEIF(E305:E316,">0")/100 -> 21.17589053 | F300: =D300*(100-AVERAGEIF(E305:E316,">0"))/100 -> 51.94621492 | G300: =100-(E300+F300+H300) -> 26.87789456 | H300: =IF((D302+H302)>100,H302*100/(D302+H302),H302) -> 0 | I300: =IF((I302+M302)>100,I302*100/(I302+M302),I302) -> 93.4650175 | J300: =I300*AVERAGEIF(J305:J316,">0")/100 -> 41.82010659 | K300: =I300*(100-AVERAGEIF(J305:J316,">0"))/100 -> 51.64491091 | L300: =100-(J300+K300+M300) -> 6.534982504 | M300: =IF((I302+M302)>100,M302*100/(I302+M302),M302) -> 0 | N300: =IF((N302+R302)>100,N302*100/(N302+R302),N302) -> 87.24279727 | O300: =N300*AVERAGEIF(O305:O316,">0")/100 -> 47.24186132 | P300: =N300*(100-AVERAGEIF(O305:O316,">0"))/100 -> 40.00093595 | Q300: =100-(O300+P300+R300) -> 4.880193821 | R300: =IF((N302+R302)>100,R302*100/(N302+R302),R302) -> 7.877008912 | S300: =IF((S302+W302)>100,S302*100/(S302+W302),S302) -> 91.50401526 | T300: =S300*AVERAGEIF(T305:T316,">0")/100 -> 64.72688592 | U300: =S300*(100-AVERAGEIF(T305:T316,">0"))/100 -> 26.77712934 | V300: =100-(T300+U300+W300) -> 1.929982817 | W300: =IF((S302+W302)>100,W302*100/(S302+W302),W302) -> 6.566001925 | X300: =IF((X302+AB302)>100,X302*100/(X302+AB302),X302) -> 97.75952963 | Y300: =X300*AVERAGEIF(Y305:Y316,">0")/100 -> 78.43034171 | Z300: =X300*(100-AVERAGEIF(Y305:Y316,">0"))/100 -> 19.32918792 | AA300: =100-(Y300+Z300+AB300) -> 0 | AB300: =IF((X302+AB302)>100,AB302*100/(X302+AB302),AB302) -> 2.240470368
A301: Regression period: | C301: =MinRegYear(C299,C305:C316) -> 2004 | D301: =IF(MAX(C305:C316)-MIN(C305:C316)<5,AVERAGEIF(C305:C316,">0",D305:D316), IF(FORECAST($C301,D$305:D$316,$C$305:$C$316)<0,0, IF(FORECAST($C301,D$305:D$316,$C$305:$C$316)>100,100, FORECAST($C301,D$305:D$316,$C$305:$C$316)))) -> 1.37967099 | H301: =IF(MAX(C305:C316)-MIN(C305:C316)<5,AVERAGEIF(C305:C316,">0",H305:H316), IF(FORECAST($C301,H$305:H$316,$C$305:$C$316)<0,0, IF(FORECAST($C301,H$305:H$316,$C$305:$C$316)>100,100, FORECAST($C301,H$305:H$316,$C$305:$C$316)))) -> 39.79636166 | I301: =IF(MAX(C305:C316)-MIN(C305:C316)<5,AVERAGEIF(C305:C316,">0",I305:I316), IF(FORECAST($C301,I$305:I$316,$C$305:$C$316)<0,0, IF(FORECAST($C301,I$305:I$316,$C$305:$C$316)>100,100, FORECAST($C301,I$305:I$316,$C$305:$C$316)))) -> 0 | M301: =IF(MAX(C305:C316)-MIN(C305:C316)<5,AVERAGEIF(C305:C316,">0",M305:M316), IF(FORECAST($C301,M$305:M$316,$C$305:$C$316)<0,0, IF(FORECAST($C301,M$305:M$316,$C$305:$C$316)>100,100, FORECAST($C301,M$305:M$316,$C$305:$C$316)))) -> 38.90870362 | N301: =IF(MAX(C305:C316)-MIN(C305:C316)<5,AVERAGEIF(C305:C316,">0",N305:N316), IF(FORECAST($C301,N$305:N$316,$C$305:$C$316)<0,0, IF(FORECAST($C301,N$305:N$316,$C$305:$C$316)>100,100, FORECAST($C301,N$305:N$316,$C$305:$C$316)))) -> 0 | R301: =IF(MAX(C305:C316)-MIN(C305:C316)<5,AVERAGEIF(C305:C316,">0",R305:R316), IF(FORECAST($C301,R$305:R$316,$C$305:$C$316)<0,0, IF(FORECAST($C301,R$305:R$316,$C$305:$C$316)>100,100, FORECAST($C301,R$305:R$316,$C$305:$C$316)))) -> 32.04269077 | S301: =IF(MAX(C305:C316)-MIN(C305:C316)<5,AVERAGEIF(C305:C316,">0",S305:S316), IF(FORECAST($C301,S$305:S$316,$C$305:$C$316)<0,0, IF(FORECAST($C301,S$305:S$316,$C$305:$C$316)>100,100, FORECAST($C301,S$305:S$316,$C$305:$C$316)))) -> 0 | W301: =IF(MAX(C305:C316)-MIN(C305:C316)<5,AVERAGEIF(C305:C316,">0",W305:W316), IF(FORECAST($C301,W$305:W$316,$C$305:$C$316)<0,0, IF(FORECAST($C301,W$305:W$316,$C$305:$C$316)>100,100, FORECAST($C301,W$305:W$316,$C$305:$C$316)))) -> 35.94148306 | X301: =IF(MAX(C305:C316)-MIN(C305:C316)<5,AVERAGEIF(C305:C316,">0",X305:X316), IF(FORECAST($C301,X$305:X$316,$C$305:$C$316)<0,0, IF(FORECAST($C301,X$305:X$316,$C$305:$C$316)>100,100, FORECAST($C301,X$305:X$316,$C$305:$C$316)))) -> 23.44000904 | AB301: =IF(MAX(C305:C316)-MIN(C305:C316)<5,AVERAGEIF(C305:C316,">0",AB305:AB316), IF(FORECAST($C301,AB$305:AB$316,$C$305:$C$316)<0,0, IF(FORECAST($C301,AB$305:AB$316,$C$305:$C$316)>100,100, FORECAST($C301,AB$305:AB$316,$C$305:$C$316)))) -> 16.72541985
C302: =MaxRegYear(C300,C305:C316) -> 2019 | D302: =IF(MAX(C305:C316)-MIN(C305:C316)<5,AVERAGEIF(C305:C316,">0",D305:D316), IF(FORECAST($C302,D$305:D$316,$C$305:$C$316)<0,0, IF(FORECAST($C302,D$305:D$316,$C$305:$C$316)>100,100, FORECAST($C302,D$305:D$316,$C$305:$C$316)))) -> 73.12210544 | H302: =IF(MAX(C305:C316)-MIN(C305:C316)<5,AVERAGEIF(C305:C316,">0",H305:H316), IF(FORECAST($C302,H$305:H$316,$C$305:$C$316)<0,0, IF(FORECAST($C302,H$305:H$316,$C$305:$C$316)>100,100, FORECAST($C302,H$305:H$316,$C$305:$C$316)))) -> 0 | I302: =IF(MAX(C305:C316)-MIN(C305:C316)<5,AVERAGEIF(C305:C316,">0",I305:I316), IF(FORECAST($C302,I$305:I$316,$C$305:$C$316)<0,0, IF(FORECAST($C302,I$305:I$316,$C$305:$C$316)>100,100, FORECAST($C302,I$305:I$316,$C$305:$C$316)))) -> 93.4650175 | M302: =IF(MAX(C305:C316)-MIN(C305:C316)<5,AVERAGEIF(C305:C316,">0",M305:M316), IF(FORECAST($C302,M$305:M$316,$C$305:$C$316)<0,0, IF(FORECAST($C302,M$305:M$316,$C$305:$C$316)>100,100, FORECAST($C302,M$305:M$316,$C$305:$C$316)))) -> 0 | N302: =IF(MAX(C305:C316)-MIN(C305:C316)<5,AVERAGEIF(C305:C316,">0",N305:N316), IF(FORECAST($C302,N$305:N$316,$C$305:$C$316)<0,0, IF(FORECAST($C302,N$305:N$316,$C$305:$C$316)>100,100, FORECAST($C302,N$305:N$316,$C$305:$C$316)))) -> 87.24279727 | R302: =IF(MAX(C305:C316)-MIN(C305:C316)<5,AVERAGEIF(C305:C316,">0",R305:R316), IF(FORECAST($C302,R$305:R$316,$C$305:$C$316)<0,0, IF(FORECAST($C302,R$305:R$316,$C$305:$C$316)>100,100, FORECAST($C302,R$305:R$316,$C$305:$C$316)))) -> 7.877008912 | S302: =IF(MAX(C305:C316)-MIN(C305:C316)<5,AVERAGEIF(C305:C316,">0",S305:S316), IF(FORECAST($C302,S$305:S$316,$C$305:$C$316)<0,0, IF(FORECAST($C302,S$305:S$316,$C$305:$C$316)>100,100, FORECAST($C302,S$305:S$316,$C$305:$C$316)))) -> 91.50401526 | W302: =IF(MAX(C305:C316)-MIN(C305:C316)<5,AVERAGEIF(C305:C316,">0",W305:W316), IF(FORECAST($C302,W$305:W$316,$C$305:$C$316)<0,0, IF(FORECAST($C302,W$305:W$316,$C$305:$C$316)>100,100, FORECAST($C302,W$305:W$316,$C$305:$C$316)))) -> 6.566001925 | X302: =IF(MAX(C305:C316)-MIN(C305:C316)<5,AVERAGEIF(C305:C316,">0",X305:X316), IF(FORECAST($C302,X$305:X$316,$C$305:$C$316)<0,0, IF(FORECAST($C302,X$305:X$316,$C$305:$C$316)>100,100, FORECAST($C302,X$305:X$316,$C$305:$C$316)))) -> 100 | AB302: =IF(MAX(C305:C316)-MIN(C305:C316)<5,AVERAGEIF(C305:C316,">0",AB305:AB316), IF(FORECAST($C302,AB$305:AB$316,$C$305:$C$316)<0,0, IF(FORECAST($C302,AB$305:AB$316,$C$305:$C$316)>100,100, FORECAST($C302,AB$305:AB$316,$C$305:$C$316)))) -> 2.291817868
B304: Survey | C304: Year | D304: Improved | E304: Basic | H304: Surface water | I304: Improved | J304: Basic | M304: Surface water | N304: Improved | O304: Basic | R304: Surface water | S304: Improved | T304: Basic | W304: Surface water | X304: Improved | Y304: Basic | AB304: Surface water
B305: MICS06 | C305: 2006 | D305: =IF(ISERROR(INDIRECT(CONCATENATE($B305,"!M16"))),"",INDIRECT(CONCATENATE($B305,"!M16"))) -> 10.94532892 | E305: =IF(ISERROR(INDIRECT(CONCATENATE($B305,"!M23"))),"",INDIRECT(CONCATENATE($B305,"!M23"))) -> 22.95230429 | H305: =IF(ISERROR(INDIRECT(CONCATENATE($B305,"!M21"))),"",INDIRECT(CONCATENATE($B305,"!M21"))) -> 33.81045533 | I305: =IF(ISERROR(INDIRECT(CONCATENATE($B305,"!N16"))),"",INDIRECT(CONCATENATE($B305,"!N16"))) -> 7.749218216 | J305: =IF(ISERROR(INDIRECT(CONCATENATE($B305,"!N23"))),"",INDIRECT(CONCATENATE($B305,"!N23"))) -> 24.78940878 | M305: =IF(ISERROR(INDIRECT(CONCATENATE($B305,"!N21"))),"",INDIRECT(CONCATENATE($B305,"!N21"))) -> 33.63028275 | N305: =IF(ISERROR(INDIRECT(CONCATENATE($B305,"!O16"))),"",INDIRECT(CONCATENATE($B305,"!O16"))) -> 11.05351126 | O305: =IF(ISERROR(INDIRECT(CONCATENATE($B305,"!O23"))),"",INDIRECT(CONCATENATE($B305,"!O23"))) -> 52.42532853 | R305: =IF(ISERROR(INDIRECT(CONCATENATE($B305,"!O21"))),"",INDIRECT(CONCATENATE($B305,"!O21"))) -> 28.82059986 | S305: =IF(ISERROR(INDIRECT(CONCATENATE($B305,"!P16"))),"",INDIRECT(CONCATENATE($B305,"!P16"))) -> 11.2264845 | T305: =IF(ISERROR(INDIRECT(CONCATENATE($B305,"!P23"))),"",INDIRECT(CONCATENATE($B305,"!P23"))) -> 63.13530398 | W305: =IF(ISERROR(INDIRECT(CONCATENATE($B305,"!P21"))),"",INDIRECT(CONCATENATE($B305,"!P21"))) -> 32.02475224 | X305: =IF(ISERROR(INDIRECT(CONCATENATE($B305,"!Q16"))),"",INDIRECT(CONCATENATE($B305,"!Q16"))) -> 33.95145167 | Y305: =IF(ISERROR(INDIRECT(CONCATENATE($B305,"!Q23"))),"",INDIRECT(CONCATENATE($B305,"!Q23"))) -> 65.80111961 | AB305: =IF(ISERROR(INDIRECT(CONCATENATE($B305,"!Q221"))),"",INDIRECT(CONCATENATE($B305,"!Q21"))) -> 14.80093958
B306: SFHS16 | D306: 46.16233316 | E306: N/A | H306: 32.81098343 | I306: 83.91140572 | J306: N/A | M306: 7.354815893 | N306: 87.34424257 | O306: N/A | R306: 7.18655636 | S306: 89.60401054 | T306: N/A | W306: 7.027434981 | X306: 90.87685217 | Y306: N/A | AB306: 6.81061605
B307: SHFS17 | C307: 2017 | D307: 63.55644752 | E307: 34.96695391 | H307: 0.887970545 | I307: 80.27797145 | J307: 64.69884621 | M307: 4.598967998 | N307: 75.52136865 | O307: 55.8744115 | R307: 11.09909983 | S307: 79.15362591 | T307: 78.33801987 | W307: 10.48273274 | X307: 91.76438613 | Y307: 94.65452499 | AB307: 4.216298132
B318: =CONCATENATE("Rural use of drinking water sources, ",C299,"–",C300) -> Rural use of drinking water sources, 2000–2020 | S318: Data points used for regression

Sheet Sanitation
B4: Summary of trends in use of sanitation facilities by wealth quintile (%)
B5: =IF(ISERROR(INDIRECT(CONCATENATE($B105,"!A2"))),"",INDIRECT(CONCATENATE($B105,"!A2"))) -> Somalia
B7: =B118 -> National use of sanitation facilities, 2000–2020 | J7: =B218 -> Urban use of sanitation facilities, 2000–2020 | R7: =B318 -> Rural use of sanitation facilities, 2000–2020
B31: =IF(ISERROR(INDIRECT(CONCATENATE($B105,"!A2"))),"",INDIRECT(CONCATENATE($B105,"!A2"))) -> Somalia | F31: Poorest | J31: Poor | N31: Middle | R31: Rich | V31: Richest
F32: Basic | G32: Limited | H32: Unimproved | I32: Open defecation | J32: Basic | K32: Limited | L32: Unimproved | M32: Open defecation | N32: Basic | O32: Limited | P32: Unimproved | Q32: Open defecation | R32: Basic | S32: Limited | T32: Unimproved | U32: Open defecation | V32: Basic | W32: Limited | X32: Unimproved | Y32: Open defecation
B33: NATIONAL | D33: Estimate | E33: =C99 -> 2000 | F33: =E99 -> 3.991234724 | G33: =F99 -> 4.993334481 | H33: 2.745778107 | I33: 88.26965269 | J33: =J99 -> 1.832363959 | K33: =K99 -> 1.364523375 | L33: 0 | M33: 96.80311267 | N33: =O99 -> 5.33537806 | O33: =P99 -> 4.128558459 | P33: 2.700212896 | Q33: 87.83585059 | R33: =T99 -> 27.89456482 | S33: =U99 -> 31.70269208 | T33: 17.62845346 | U33: 22.77428964 | V33: =Y99 -> 44.59770385 | W33: =Z99 -> 39.64451596 | X33: 15.32511842 | Y33: 0.432661769
E34: =C100 -> 2020 | F34: =E100 -> 6.06389038 | G34: 7.586382414 | H34: 22.40507871 | I34: 63.9446485 | J34: =J100 -> 19.35553781 | K34: 14.41366692 | L34: 42.58727057 | M34: 23.6435247 | N34: =O100 -> 43.74969319 | O34: 33.8538645 | P34: 22.39644231 | Q34: 0 | R34: =T100 -> 46.80511532 | S34: 53.19488468 | T34: 0 | U34: 0 | V34: =Y100 -> 52.45526608 | W34: 46.62938792 | X34: 0.9153459997 | Y34: 0
B36: URBAN | D36: Estimate | E36: =C199 -> 2000 | F36: =E199 -> 25.44995816 | G36: =F199 -> 25.66664035 | H36: 16.14117798 | I36: 32.7422235 | J36: =J199 -> 35.16775454 | K36: =K199 -> 36.40408143 | L36: 17.46878772 | M36: 10.95937631 | N36: =O199 -> 40.16669557 | O36: =P199 -> 45.52979504 | P36: 13.31273446 | Q36: 0.990774935 | R36: =T199 -> 41.87650226 | S36: =U199 -> 46.33546216 | T36: 11.78803557 | U36: 0 | V36: =Y199 -> 49.5460308 | W36: =Z199 -> 30.14704461 | X36: 20.30692459 | Y36: 0
E37: =C200 -> 2020 | F37: =E200 -> 40.57030533 | G37: 40.91572291 | H37: 18.51397176 | I37: 0 | J37: =J200 -> 41.67110953 | K37: 43.13606268 | L37: 15.19282779 | M37: 0 | N37: =O200 -> 43.92639672 | O37: 49.79149543 | P37: 3.315402013 | Q37: 2.966705841 | R37: =T200 -> 44.14311491 | S37: 48.84342101 | T37: 3.315846705 | U37: 3.697617373 | V37: =Y200 -> 60.24145183 | W37: 36.65483807 | X37: 1.517936382 | Y37: 1.585773723
B39: RURAL | D39: Estimate | E39: =C299 -> 2000 | F39: =E299 -> 1.154685534 | G39: =F299 -> 0.9844186183 | H39: 0.1813914638 | I39: 97.67950438 | J39: =J299 -> 1.268020668 | K39: =K299 -> 0.9796447061 | L39: 0 | M39: 97.75233463 | N39: =O299 -> 1.72002934 | O39: =P299 -> 0.8639257746 | P39: 0 | Q39: 97.41604489 | R39: =T299 -> 2.501490396 | S39: =U299 -> 1.50688285 | T39: 0 | U39: 95.99162675 | V39: =Y299 -> 19.81992527 | W39: =Z299 -> 17.8337074 | X39: 12.54441272 | Y39: 49.80195462
E40: =C300 -> 2020 | F40: =E300 -> 3.581394671 | G40: 3.053291558 | H40: 24.85318465 | I40: 68.51212912 | J40: =J300 -> 2.316610222 | K40: 1.789761789 | L40: 27.74486865 | M40: 68.14875934 | N40: =O300 -> 16.17636463 | O40: 8.124965092 | P40: 44.242055 | Q40: 31.45661528 | R40: =T300 -> 24.03769501 | S40: 14.48016368 | T40: 44.02059267 | U40: 17.46154865 | V40: =Y300 -> 42.7128532 | W40: 38.43246207 | X40: 17.91404893 | Y40: 0.9406357983
A97: NATIONAL | D97: Poorest | I97: Poor | N97: Middle | S97: Rich | X97: Richest
D98: Improved | E98: Basic | F98: Limited | G98: Unimproved | H98: Open defecation | I98: Improved | J98: Basic | K98: Limited | L98: Unimproved | M98: Open defecation | N98: Improved | O98: Basic | P98: Limited | Q98: Unimproved | R98: Open defecation | S98: Improved | T98: Basic | U98: Limited | V98: Unimproved | W98: Open defecation | X98: Improved | Y98: Basic | Z98: Limited | AA98: Unimproved | AB98: Open defecation
A99: Forecast period: | C99: 2000 | D99: =IF((D101+H101)>100,D101*100/(D101+H101),D101) -> 8.984569205 | E99: =D99*AVERAGEIF(E105:E116,">0")/100 -> 3.991234724 | F99: =D99*(100-AVERAGEIF(E105:E116,">0"))/100 -> 4.993334481 | G99: =100-(E99+F99+H99) -> 2.745778107 | H99: =IF((D101+H101)>100,H101*100/(D101+H101),H101) -> 88.26965269 | I99: =IF((I101+M101)>100,I101*100/(I101+M101),I101) -> 3.196887334 | J99: =I99*AVERAGEIF(J105:J116,">0")/100 -> 1.832363959 | K99: =I99*(100-AVERAGEIF(J105:J116,">0"))/100 -> 1.364523375 | L99: =100-(J99+K99+M99) -> 0 | M99: =IF((I101+M101)>100,M101*100/(I101+M101),M101) -> 96.80311267 | N99: =IF((N101+R101)>100,N101*100/(N101+R101),N101) -> 9.463936518 | O99: =N99*AVERAGEIF(O105:O116,">0")/100 -> 5.33537806 | P99: =N99*(100-AVERAGEIF(O105:O116,">0"))/100 -> 4.128558459 | Q99: =100-(O99+P99+R99) -> 2.700212896 | R99: =IF((N101+R101)>100,R101*100/(N101+R101),R101) -> 87.83585059 | S99: =IF((S101+W101)>100,S101*100/(S101+W101),S101) -> 59.5972569 | T99: =S99*AVERAGEIF(T105:T116,">0")/100 -> 27.89456482 | U99: =S99*(100-AVERAGEIF(T105:T116,">0"))/100 -> 31.70269208 | V99: =100-(T99+U99+W99) -> 17.62845346 | W99: =IF((S101+W101)>100,W101*100/(S101+W101),W101) -> 22.77428964 | X99: =IF((X101+AB101)>100,X101*100/(X101+AB101),X101) -> 84.24221981 | Y99: =X99*AVERAGEIF(Y105:Y116,">0")/100 -> 44.59770385 | Z99: =X99*(100-AVERAGEIF(Y105:Y116,">0"))/100 -> 39.64451596 | AA99: =100-(Y99+Z99+AB99) -> 15.32511842 | AB99: =IF((X101+AB101)>100,AB101*100/(X101+AB101),AB101) -> 0.432661769
C100: 2020 | D100: =IF((D102+H102)>100,D102*100/(D102+H102),D102) -> 13.65027279 | E100: =D100*AVERAGEIF(E105:E116,">0")/100 -> 6.06389038 | F100: =D100*(100-AVERAGEIF(E105:E116,">0"))/100 -> 7.586382414 | G100: =100-(E100+F100+H100) -> 22.40507871 | H100: =IF((D102+H102)>100,H102*100/(D102+H102),H102) -> 63.9446485 | I100: =IF((I102+M102)>100,I102*100/(I102+M102),I102) -> 33.76920472 | J100: =I100*AVERAGEIF(J105:J116,">0")/100 -> 19.35553781 | K100: =I100*(100-AVERAGEIF(J105:J116,">0"))/100 -> 14.41366692 | L100: =100-(J100+K100+M100) -> 42.58727057 | M100: =IF((I102+M102)>100,M102*100/(I102+M102),M102) -> 23.6435247 | N100: =IF((N102+R102)>100,N102*100/(N102+R102),N102) -> 77.60355769 | O100: =N100*AVERAGEIF(O105:O116,">0")/100 -> 43.74969319 | P100: =N100*(100-AVERAGEIF(O105:O116,">0"))/100 -> 33.8538645 | Q100: =100-(O100+P100+R100) -> 22.39644231 | R100: =IF((N102+R102)>100,R102*100/(N102+R102),R102) -> 0 | S100: =IF((S102+W102)>100,S102*100/(S102+W102),S102) -> 100 | T100: =S100*AVERAGEIF(T105:T116,">0")/100 -> 46.80511532 | U100: =S100*(100-AVERAGEIF(T105:T116,">0"))/100 -> 53.19488468 | V100: =100-(T100+U100+W100) -> 0 | W100: =IF((S102+W102)>100,W102*100/(S102+W102),W102) -> 0 | X100: =IF((X102+AB102)>100,X102*100/(X102+AB102),X102) -> 99.084654 | Y100: =X100*AVERAGEIF(Y105:Y116,">0")/100 -> 52.45526608 | Z100: =X100*(100-AVERAGEIF(Y105:Y116,">0"))/100 -> 46.62938792 | AA100: =100-(Y100+Z100+AB100) -> 0.9153459997 | AB100: =IF((X102+AB102)>100,AB102*100/(X102+AB102),AB102) -> 0
A101: Regression period: | C101: =MinRegYear(C99,C105:C116) -> 2004 | D101: =IF(MAX(C105:C116)-MIN(C105:C116)<5,AVERAGEIF(C105:C116,">0",D105:D116), IF(FORECAST($C101,D$105:D$116,$C$105:$C$116)<0,0, IF(FORECAST($C101,D$105:D$116,$C$105:$C$116)>100,100, FORECAST($C101,D$105:D$116,$C$105:$C$116)))) -> 8.984569205 | H101: =IF(MAX(C105:C116)-MIN(C105:C116)<5,AVERAGEIF(C105:C116,">0",H105:H116), IF(FORECAST($C101,H$105:H$116,$C$105:$C$116)<0,0, IF(FORECAST($C101,H$105:H$116,$C$105:$C$116)>100,100, FORECAST($C101,H$105:H$116,$C$105:$C$116)))) -> 88.26965269 | I101: =IF(MAX(C105:C116)-MIN(C105:C116)<5,AVERAGEIF(C105:C116,">0",I105:I116), IF(FORECAST($C101,I$105:I$116,$C$105:$C$116)<0,0, IF(FORECAST($C101,I$105:I$116,$C$105:$C$116)>100,100, FORECAST($C101,I$105:I$116,$C$105:$C$116)))) -> 3.281839794 | M101: =IF(MAX(C105:C116)-MIN(C105:C116)<5,AVERAGEIF(C105:C116,">0",M105:M116), IF(FORECAST($C101,M$105:M$116,$C$105:$C$116)<0,0, IF(FORECAST($C101,M$105:M$116,$C$105:$C$116)>100,100, FORECAST($C101,M$105:M$116,$C$105:$C$116)))) -> 99.3755094 | N101: =IF(MAX(C105:C116)-MIN(C105:C116)<5,AVERAGEIF(C105:C116,">0",N105:N116), IF(FORECAST($C101,N$105:N$116,$C$105:$C$116)<0,0, IF(FORECAST($C101,N$105:N$116,$C$105:$C$116)>100,100, FORECAST($C101,N$105:N$116,$C$105:$C$116)))) -> 9.463936518 | R101: =IF(MAX(C105:C116)-MIN(C105:C116)<5,AVERAGEIF(C105:C116,">0",R105:R116), IF(FORECAST($C101,R$105:R$116,$C$105:$C$116)<0,0, IF(FORECAST($C101,R$105:R$116,$C$105:$C$116)>100,100, FORECAST($C101,R$105:R$116,$C$105:$C$116)))) -> 87.83585059 | S101: =IF(MAX(C105:C116)-MIN(C105:C116)<5,AVERAGEIF(C105:C116,">0",S105:S116), IF(FORECAST($C101,S$105:S$116,$C$105:$C$116)<0,0, IF(FORECAST($C101,S$105:S$116,$C$105:$C$116)>100,100, FORECAST($C101,S$105:S$116,$C$105:$C$116)))) -> 59.5972569 | W101: =IF(MAX(C105:C116)-MIN(C105:C116)<5,AVERAGEIF(C105:C116,">0",W105:W116), IF(FORECAST($C101,W$105:W$116,$C$105:$C$116)<0,0, IF(FORECAST($C101,W$105:W$116,$C$105:$C$116)>100,100, FORECAST($C101,W$105:W$116,$C$105:$C$116)))) -> 22.77428964 | X101: =IF(MAX(C105:C116)-MIN(C105:C116)<5,AVERAGEIF(C105:C116,">0",X105:X116), IF(FORECAST($C101,X$105:X$116,$C$105:$C$116)<0,0, IF(FORECAST($C101,X$105:X$116,$C$105:$C$116)>100,100, FORECAST($C101,X$105:X$116,$C$105:$C$116)))) -> 84.24221981 | AB101: =IF(MAX(C105:C116)-MIN(C105:C116)<5,AVERAGEIF(C105:C116,">0",AB105:AB116), IF(FORECAST($C101,AB$105:AB$116,$C$105:$C$116)<0,0, IF(FORECAST($C101,AB$105:AB$116,$C$105:$C$116)>100,100, FORECAST($C101,AB$105:AB$116,$C$105:$C$116)))) -> 0.432661769
C102: =MaxRegYear(C100,C105:C116) -> 2019 | D102: =IF(MAX(C105:C116)-MIN(C105:C116)<5,AVERAGEIF(C105:C116,">0",D105:D116), IF(FORECAST($C102,D$105:D$116,$C$105:$C$116)<0,0, IF(FORECAST($C102,D$105:D$116,$C$105:$C$116)>100,100, FORECAST($C102,D$105:D$116,$C$105:$C$116)))) -> 13.65027279 | H102: =IF(MAX(C105:C116)-MIN(C105:C116)<5,AVERAGEIF(C105:C116,">0",H105:H116), IF(FORECAST($C102,H$105:H$116,$C$105:$C$116)<0,0, IF(FORECAST($C102,H$105:H$116,$C$105:$C$116)>100,100, FORECAST($C102,H$105:H$116,$C$105:$C$116)))) -> 63.9446485 | I102: =IF(MAX(C105:C116)-MIN(C105:C116)<5,AVERAGEIF(C105:C116,">0",I105:I116), IF(FORECAST($C102,I$105:I$116,$C$105:$C$116)<0,0, IF(FORECAST($C102,I$105:I$116,$C$105:$C$116)>100,100, FORECAST($C102,I$105:I$116,$C$105:$C$116)))) -> 33.76920472 | M102: =IF(MAX(C105:C116)-MIN(C105:C116)<5,AVERAGEIF(C105:C116,">0",M105:M116), IF(FORECAST($C102,M$105:M$116,$C$105:$C$116)<0,0, IF(FORECAST($C102,M$105:M$116,$C$105:$C$116)>100,100, FORECAST($C102,M$105:M$116,$C$105:$C$116)))) -> 23.6435247 | N102: =IF(MAX(C105:C116)-MIN(C105:C116)<5,AVERAGEIF(C105:C116,">0",N105:N116), IF(FORECAST($C102,N$105:N$116,$C$105:$C$116)<0,0, IF(FORECAST($C102,N$105:N$116,$C$105:$C$116)>100,100, FORECAST($C102,N$105:N$116,$C$105:$C$116)))) -> 77.60355769 | R102: =IF(MAX(C105:C116)-MIN(C105:C116)<5,AVERAGEIF(C105:C116,">0",R105:R116), IF(FORECAST($C102,R$105:R$116,$C$105:$C$116)<0,0, IF(FORECAST($C102,R$105:R$116,$C$105:$C$116)>100,100, FORECAST($C102,R$105:R$116,$C$105:$C$116)))) -> 0 | S102: =IF(MAX(C105:C116)-MIN(C105:C116)<5,AVERAGEIF(C105:C116,">0",S105:S116), IF(FORECAST($C102,S$105:S$116,$C$105:$C$116)<0,0, IF(FORECAST($C102,S$105:S$116,$C$105:$C$116)>100,100, FORECAST($C102,S$105:S$116,$C$105:$C$116)))) -> 100 | W102: =IF(MAX(C105:C116)-MIN(C105:C116)<5,AVERAGEIF(C105:C116,">0",W105:W116), IF(FORECAST($C102,W$105:W$116,$C$105:$C$116)<0,0, IF(FORECAST($C102,W$105:W$116,$C$105:$C$116)>100,100, FORECAST($C102,W$105:W$116,$C$105:$C$116)))) -> 0 | X102: =IF(MAX(C105:C116)-MIN(C105:C116)<5,AVERAGEIF(C105:C116,">0",X105:X116), IF(FORECAST($C102,X$105:X$116,$C$105:$C$116)<0,0, IF(FORECAST($C102,X$105:X$116,$C$105:$C$116)>100,100, FORECAST($C102,X$105:X$116,$C$105:$C$116)))) -> 99.084654 | AB102: =IF(MAX(C105:C116)-MIN(C105:C116)<5,AVERAGEIF(C105:C116,">0",AB105:AB116), IF(FORECAST($C102,AB$105:AB$116,$C$105:$C$116)<0,0, IF(FORECAST($C102,AB$105:AB$116,$C$105:$C$116)>100,100, FORECAST($C102,AB$105:AB$116,$C$105:$C$116)))) -> 0
B104: Survey | C104: Year | D104: Improved | E104: Not shared | H104: Open defecation | I104: Improved | J104: Not shared | M104: Open defecation | N104: Improved | O104: Not shared | R104: Open defecation | S104: Improved | T104: Not shared | W104: Open defecation | X104: Improved | Y104: Not shared | AB104: Open defecation
B105: MICS06 | C105: 2006 | D105: =IF(ISERROR(INDIRECT(CONCATENATE($B105,"!C122"))),"",INDIRECT(CONCATENATE($B105,"!C122"))) -> 9.606663017 | E105: =IF(ISERROR(INDIRECT(CONCATENATE($B105,"!C129"))),"",INDIRECT(CONCATENATE($B105,"!C129"))) -> 58.25306964 | H105: =IF(ISERROR(INDIRECT(CONCATENATE($B105,"!C127"))),"",INDIRECT(CONCATENATE($B105,"!C127"))) -> 85.0263188 | I105: =IF(ISERROR(INDIRECT(CONCATENATE($B105,"!D122"))),"",INDIRECT(CONCATENATE($B105,"!D122"))) -> 7.346821785 | J105: =IF(ISERROR(INDIRECT(CONCATENATE($B105,"!D129"))),"",INDIRECT(CONCATENATE($B105,"!D129"))) -> 55.97227103 | M105: =IF(ISERROR(INDIRECT(CONCATENATE($B105,"!D127"))),"",INDIRECT(CONCATENATE($B105,"!D127"))) -> 89.27791144 | N105: =IF(ISERROR(INDIRECT(CONCATENATE($B105,"!E122"))),"",INDIRECT(CONCATENATE($B105,"!E122"))) -> 18.54921934 | O105: =IF(ISERROR(INDIRECT(CONCATENATE($B105,"!E129"))),"",INDIRECT(CONCATENATE($B105,"!E129"))) -> 58.83844191 | R105: =IF(ISERROR(INDIRECT(CONCATENATE($B105,"!E127"))),"",INDIRECT(CONCATENATE($B105,"!E127"))) -> 75.33568055 | S105: =IF(ISERROR(INDIRECT(CONCATENATE($B105,"!F122"))),"",INDIRECT(CONCATENATE($B105,"!F122"))) -> 65.01463797 | T105: =IF(ISERROR(INDIRECT(CONCATENATE($B105,"!F129"))),"",INDIRECT(CONCATENATE($B105,"!F129"))) -> 54.01701055 | W105: =IF(ISERROR(INDIRECT(CONCATENATE($B105,"!F127"))),"",INDIRECT(CONCATENATE($B105,"!F127"))) -> 19.29235085 | X105: =IF(ISERROR(INDIRECT(CONCATENATE($B105,"!G122"))),"",INDIRECT(CONCATENATE($B105,"!G122"))) -> 86.22121104 | Y105: =IF(ISERROR(INDIRECT(CONCATENATE($B105,"!G129"))),"",INDIRECT(CONCATENATE($B105,"!G129"))) -> 68.79030112 | AB105: =IF(ISERROR(INDIRECT(CONCATENATE($B105,"!G2127"))),"",INDIRECT(CONCATENATE($B105,"!G127"))) -> 0.3708244943
B106: SFHS16 | D106: 40.5519056 | E106: N/A | H106: 32.31003161 | I106: 33.32051987 | J106: N/A | M106: 10.45058489 | N106: 71.96584975 | O106: N/A | R106: 6.678036957 | S106: 86.94161243 | T106: N/A | W106: 6.565445066 | X106: 91.0825075 | Y106: N/A | AB106: 3.312446897
B107: SHFS17 | C107: 2017 | D107: 13.02817898 | E107: 30.59336546 | H107: 67.18798239 | I107: 29.70422273 | J107: 58.66198206 | M107: 33.74112266 | N107: 68.51827487 | O107: 53.91333003 | R107: 6.584745335 | S107: 94.81023381 | T107: 39.59322009 | W107: 0.1416874926 | X107: 97.10566278 | Y107: 37.08939662 | AB107: 0.03071948336
B118: =CONCATENATE("National use of sanitation facilities, ",C99,"–",C100) -> National use of sanitation facilities, 2000–2020 | S118: Data points used for regression
A197: URBAN | D197: Poorest | I197: Poor | N197: Middle | S197: Rich | X197: Richest
D198: Improved | E198: Basic | F198: Limited | G198: Unimproved | H198: Open defecation | I198: Improved | J198: Basic | K198: Limited | L198: Unimproved | M198: Open defecation | N198: Improved | O198: Basic | P198: Limited | Q198: Unimproved | R198: Open defecation | S198: Improved | T198: Basic | U198: Limited | V198: Unimproved | W198: Open defecation | X198: Improved | Y198: Basic | Z198: Limited | AA198: Unimproved | AB198: Open defecation
A199: Forecast period: | C199: 2000 | D199: =IF((D201+H201)>100,D201*100/(D201+H201),D201) -> 51.11659851 | E199: =D199*AVERAGEIF(E205:E216,">0")/100 -> 25.44995816 | F199: =D199*(100-AVERAGEIF(E205:E216,">0"))/100 -> 25.66664035 | G199: =100-(E199+F199+H199) -> 16.14117798 | H199: =IF((D201+H201)>100,H201*100/(D201+H201),H201) -> 32.7422235 | I199: =IF((I201+M201)>100,I201*100/(I201+M201),I201) -> 71.57183597 | J199: =I199*AVERAGEIF(J205:J216,">0")/100 -> 35.16775454 | K199: =I199*(100-AVERAGEIF(J205:J216,">0"))/100 -> 36.40408143 | L199: =100-(J199+K199+M199) -> 17.46878772 | M199: =IF((I201+M201)>100,M201*100/(I201+M201),M201) -> 10.95937631 | N199: =IF((N201+R201)>100,N201*100/(N201+R201),N201) -> 85.69649061 | O199: =N199*AVERAGEIF(O205:O216,">0")/100 -> 40.16669557 | P199: =N199*(100-AVERAGEIF(O205:O216,">0"))/100 -> 45.52979504 | Q199: =100-(O199+P199+R199) -> 13.31273446 | R199: =IF((N201+R201)>100,R201*100/(N201+R201),R201) -> 0.990774935 | S199: =IF((S201+W201)>100,S201*100/(S201+W201),S201) -> 88.21196443 | T199: =S199*AVERAGEIF(T205:T216,">0")/100 -> 41.87650226 | U199: =S199*(100-AVERAGEIF(T205:T216,">0"))/100 -> 46.33546216 | V199: =100-(T199+U199+W199) -> 11.78803557 | W199: =IF((S201+W201)>100,W201*100/(S201+W201),W201) -> 0 | X199: =IF((X201+AB201)>100,X201*100/(X201+AB201),X201) -> 79.69307541 | Y199: =X199*AVERAGEIF(Y205:Y216,">0")/100 -> 49.5460308 | Z199: =X199*(100-AVERAGEIF(Y205:Y216,">0"))/100 -> 30.14704461 | AA199: =100-(Y199+Z199+AB199) -> 20.30692459 | AB199: =IF((X201+AB201)>100,AB201*100/(X201+AB201),AB201) -> 0
C200: 2020 | D200: =IF((D202+H202)>100,D202*100/(D202+H202),D202) -> 81.48602824 | E200: =D200*AVERAGEIF(E205:E216,">0")/100 -> 40.57030533 | F200: =D200*(100-AVERAGEIF(E205:E216,">0"))/100 -> 40.91572291 | G200: =100-(E200+F200+H200) -> 18.51397176 | H200: =IF((D202+H202)>100,H202*100/(D202+H202),H202) -> 0 | I200: =IF((I202+M202)>100,I202*100/(I202+M202),I202) -> 84.80717221 | J200: =I200*AVERAGEIF(J205:J216,">0")/100 -> 41.67110953 | K200: =I200*(100-AVERAGEIF(J205:J216,">0"))/100 -> 43.13606268 | L200: =100-(J200+K200+M200) -> 15.19282779 | M200: =IF((I202+M202)>100,M202*100/(I202+M202),M202) -> 0 | N200: =IF((N202+R202)>100,N202*100/(N202+R202),N202) -> 93.71789215 | O200: =N200*AVERAGEIF(O205:O216,">0")/100 -> 43.92639672 | P200: =N200*(100-AVERAGEIF(O205:O216,">0"))/100 -> 49.79149543 | Q200: =100-(O200+P200+R200) -> 3.315402013 | R200: =IF((N202+R202)>100,R202*100/(N202+R202),R202) -> 2.966705841 | S200: =IF((S202+W202)>100,S202*100/(S202+W202),S202) -> 92.98653592 | T200: =S200*AVERAGEIF(T205:T216,">0")/100 -> 44.14311491 | U200: =S200*(100-AVERAGEIF(T205:T216,">0"))/100 -> 48.84342101 | V200: =100-(T200+U200+W200) -> 3.315846705 | W200: =IF((S202+W202)>100,W202*100/(S202+W202),W202) -> 3.697617373 | X200: =IF((X202+AB202)>100,X202*100/(X202+AB202),X202) -> 96.8962899 | Y200: =X200*AVERAGEIF(Y205:Y216,">0")/100 -> 60.24145183 | Z200: =X200*(100-AVERAGEIF(Y205:Y216,">0"))/100 -> 36.65483807 | AA200: =100-(Y200+Z200+AB200) -> 1.517936382 | AB200: =IF((X202+AB202)>100,AB202*100/(X202+AB202),AB202) -> 1.585773723
A201: Regression period: | C201: =MinRegYear(C199,C205:C216) -> 2004 | D201: =IF(MAX(C205:C216)-MIN(C205:C216)<5,AVERAGEIF(C205:C216,">0",D205:D216), IF(FORECAST($C201,D$205:D$216,$C$205:$C$216)<0,0, IF(FORECAST($C201,D$205:D$216,$C$205:$C$216)>100,100, FORECAST($C201,D$205:D$216,$C$205:$C$216)))) -> 51.11659851 | H201: =IF(MAX(C205:C216)-MIN(C205:C216)<5,AVERAGEIF(C205:C216,">0",H205:H216), IF(FORECAST($C201,H$205:H$216,$C$205:$C$216)<0,0, IF(FORECAST($C201,H$205:H$216,$C$205:$C$216)>100,100, FORECAST($C201,H$205:H$216,$C$205:$C$216)))) -> 32.7422235 | I201: =IF(MAX(C205:C216)-MIN(C205:C216)<5,AVERAGEIF(C205:C216,">0",I205:I216), IF(FORECAST($C201,I$205:I$216,$C$205:$C$216)<0,0, IF(FORECAST($C201,I$205:I$216,$C$205:$C$216)>100,100, FORECAST($C201,I$205:I$216,$C$205:$C$216)))) -> 71.57183597 | M201: =IF(MAX(C205:C216)-MIN(C205:C216)<5,AVERAGEIF(C205:C216,">0",M205:M216), IF(FORECAST($C201,M$205:M$216,$C$205:$C$216)<0,0, IF(FORECAST($C201,M$205:M$216,$C$205:$C$216)>100,100, FORECAST($C201,M$205:M$216,$C$205:$C$216)))) -> 10.95937631 | N201: =IF(MAX(C205:C216)-MIN(C205:C216)<5,AVERAGEIF(C205:C216,">0",N205:N216), IF(FORECAST($C201,N$205:N$216,$C$205:$C$216)<0,0, IF(FORECAST($C201,N$205:N$216,$C$205:$C$216)>100,100, FORECAST($C201,N$205:N$216,$C$205:$C$216)))) -> 85.69649061 | R201: =IF(MAX(C205:C216)-MIN(C205:C216)<5,AVERAGEIF(C205:C216,">0",R205:R216), IF(FORECAST($C201,R$205:R$216,$C$205:$C$216)<0,0, IF(FORECAST($C201,R$205:R$216,$C$205:$C$216)>100,100, FORECAST($C201,R$205:R$216,$C$205:$C$216)))) -> 0.990774935 | S201: =IF(MAX(C205:C216)-MIN(C205:C216)<5,AVERAGEIF(C205:C216,">0",S205:S216), IF(FORECAST($C201,S$205:S$216,$C$205:$C$216)<0,0, IF(FORECAST($C201,S$205:S$216,$C$205:$C$216)>100,100, FORECAST($C201,S$205:S$216,$C$205:$C$216)))) -> 88.21196443 | W201: =IF(MAX(C205:C216)-MIN(C205:C216)<5,AVERAGEIF(C205:C216,">0",W205:W216), IF(FORECAST($C201,W$205:W$216,$C$205:$C$216)<0,0, IF(FORECAST($C201,W$205:W$216,$C$205:$C$216)>100,100, FORECAST($C201,W$205:W$216,$C$205:$C$216)))) -> 0 | X201: =IF(MAX(C205:C216)-MIN(C205:C216)<5,AVERAGEIF(C205:C216,">0",X205:X216), IF(FORECAST($C201,X$205:X$216,$C$205:$C$216)<0,0, IF(FORECAST($C201,X$205:X$216,$C$205:$C$216)>100,100, FORECAST($C201,X$205:X$216,$C$205:$C$216)))) -> 79.69307541 | AB201: =IF(MAX(C205:C216)-MIN(C205:C216)<5,AVERAGEIF(C205:C216,">0",AB205:AB216), IF(FORECAST($C201,AB$205:AB$216,$C$205:$C$216)<0,0, IF(FORECAST($C201,AB$205:AB$216,$C$205:$C$216)>100,100, FORECAST($C201,AB$205:AB$216,$C$205:$C$216)))) -> 0
C202: =MaxRegYear(C200,C205:C216) -> 2019 | D202: =IF(MAX(C205:C216)-MIN(C205:C216)<5,AVERAGEIF(C205:C216,">0",D205:D216), IF(FORECAST($C202,D$205:D$216,$C$205:$C$216)<0,0, IF(FORECAST($C202,D$205:D$216,$C$205:$C$216)>100,100, FORECAST($C202,D$205:D$216,$C$205:$C$216)))) -> 81.48602824 | H202: =IF(MAX(C205:C216)-MIN(C205:C216)<5,AVERAGEIF(C205:C216,">0",H205:H216), IF(FORECAST($C202,H$205:H$216,$C$205:$C$216)<0,0, IF(FORECAST($C202,H$205:H$216,$C$205:$C$216)>100,100, FORECAST($C202,H$205:H$216,$C$205:$C$216)))) -> 0 | I202: =IF(MAX(C205:C216)-MIN(C205:C216)<5,AVERAGEIF(C205:C216,">0",I205:I216), IF(FORECAST($C202,I$205:I$216,$C$205:$C$216)<0,0, IF(FORECAST($C202,I$205:I$216,$C$205:$C$216)>100,100, FORECAST($C202,I$205:I$216,$C$205:$C$216)))) -> 84.80717221 | M202: =IF(MAX(C205:C216)-MIN(C205:C216)<5,AVERAGEIF(C205:C216,">0",M205:M216), IF(FORECAST($C202,M$205:M$216,$C$205:$C$216)<0,0, IF(FORECAST($C202,M$205:M$216,$C$205:$C$216)>100,100, FORECAST($C202,M$205:M$216,$C$205:$C$216)))) -> 0 | N202: =IF(MAX(C205:C216)-MIN(C205:C216)<5,AVERAGEIF(C205:C216,">0",N205:N216), IF(FORECAST($C202,N$205:N$216,$C$205:$C$216)<0,0, IF(FORECAST($C202,N$205:N$216,$C$205:$C$216)>100,100, FORECAST($C202,N$205:N$216,$C$205:$C$216)))) -> 93.71789215 | R202: =IF(MAX(C205:C216)-MIN(C205:C216)<5,AVERAGEIF(C205:C216,">0",R205:R216), IF(FORECAST($C202,R$205:R$216,$C$205:$C$216)<0,0, IF(FORECAST($C202,R$205:R$216,$C$205:$C$216)>100,100, FORECAST($C202,R$205:R$216,$C$205:$C$216)))) -> 2.966705841 | S202: =IF(MAX(C205:C216)-MIN(C205:C216)<5,AVERAGEIF(C205:C216,">0",S205:S216), IF(FORECAST($C202,S$205:S$216,$C$205:$C$216)<0,0, IF(FORECAST($C202,S$205:S$216,$C$205:$C$216)>100,100, FORECAST($C202,S$205:S$216,$C$205:$C$216)))) -> 92.98653592 | W202: =IF(MAX(C205:C216)-MIN(C205:C216)<5,AVERAGEIF(C205:C216,">0",W205:W216), IF(FORECAST($C202,W$205:W$216,$C$205:$C$216)<0,0, IF(FORECAST($C202,W$205:W$216,$C$205:$C$216)>100,100, FORECAST($C202,W$205:W$216,$C$205:$C$216)))) -> 3.697617373 | X202: =IF(MAX(C205:C216)-MIN(C205:C216)<5,AVERAGEIF(C205:C216,">0",X205:X216), IF(FORECAST($C202,X$205:X$216,$C$205:$C$216)<0,0, IF(FORECAST($C202,X$205:X$216,$C$205:$C$216)>100,100, FORECAST($C202,X$205:X$216,$C$205:$C$216)))) -> 96.8962899 | AB202: =IF(MAX(C205:C216)-MIN(C205:C216)<5,AVERAGEIF(C205:C216,">0",AB205:AB216), IF(FORECAST($C202,AB$205:AB$216,$C$205:$C$216)<0,0, IF(FORECAST($C202,AB$205:AB$216,$C$205:$C$216)>100,100, FORECAST($C202,AB$205:AB$216,$C$205:$C$216)))) -> 1.585773723
B204: Survey | C204: Year | D204: Improved | E204: Not shared | H204: Open defecation | I204: Improved | J204: Not shared | M204: Open defecation | N204: Improved | O204: Not shared | R204: Open defecation | S204: Improved | T204: Not shared | W204: Open defecation | X204: Improved | Y204: Not shared | AB204: Open defecation
B205: MICS06 | C205: 2006 | D205: =IF(ISERROR(INDIRECT(CONCATENATE($B205,"!H122"))),"",INDIRECT(CONCATENATE($B205,"!H122"))) -> 55.43501665 | E205: =IF(ISERROR(INDIRECT(CONCATENATE($B205,"!H129"))),"",INDIRECT(CONCATENATE($B205,"!H129"))) -> 58.18922303 | H205: =IF(ISERROR(INDIRECT(CONCATENATE($B205,"!H127"))),"",INDIRECT(CONCATENATE($B205,"!H127"))) -> 27.85378935 | I205: =IF(ISERROR(INDIRECT(CONCATENATE($B205,"!I122"))),"",INDIRECT(CONCATENATE($B205,"!I122"))) -> 73.54103876 | J205: =IF(ISERROR(INDIRECT(CONCATENATE($B205,"!I129"))),"",INDIRECT(CONCATENATE($B205,"!I129"))) -> 55.77635076 | M205: =IF(ISERROR(INDIRECT(CONCATENATE($B205,"!I127"))),"",INDIRECT(CONCATENATE($B205,"!I127"))) -> 9.353077152 | N205: =IF(ISERROR(INDIRECT(CONCATENATE($B205,"!J122"))),"",INDIRECT(CONCATENATE($B205,"!J122"))) -> 87.12799466 | O205: =IF(ISERROR(INDIRECT(CONCATENATE($B205,"!J129"))),"",INDIRECT(CONCATENATE($B205,"!J129"))) -> 55.5228777 | R205: =IF(ISERROR(INDIRECT(CONCATENATE($B205,"!J127"))),"",INDIRECT(CONCATENATE($B205,"!J127"))) -> 0.9839075504 | S205: =IF(ISERROR(INDIRECT(CONCATENATE($B205,"!K122"))),"",INDIRECT(CONCATENATE($B205,"!K122"))) -> 89.31324168 | T205: =IF(ISERROR(INDIRECT(CONCATENATE($B205,"!K129"))),"",INDIRECT(CONCATENATE($B205,"!K129"))) -> 61.95199949 | W205: =IF(ISERROR(INDIRECT(CONCATENATE($B205,"!K127"))),"",INDIRECT(CONCATENATE($B205,"!K127"))) -> 0.03657055651 | X205: =IF(ISERROR(INDIRECT(CONCATENATE($B205,"!L122"))),"",INDIRECT(CONCATENATE($B205,"!L122"))) -> 82.21708719 | Y205: =IF(ISERROR(INDIRECT(CONCATENATE($B205,"!L129"))),"",INDIRECT(CONCATENATE($B205,"!L129"))) -> 85.67039508 | AB205: =IF(ISERROR(INDIRECT(CONCATENATE($B205,"!L2127"))),"",INDIRECT(CONCATENATE($B205,"!L127"))) -> 0
B206: SFHS16 | C206: 2016 | D206: 72.451373 | E206: N/A | H206: 2.181010464 | I206: 79.91070073 | J206: N/A | M206: 2.59688709 | N206: 88.13178951 | O206: N/A | R206: 5.545092885 | S206: 86.92027669 | T206: N/A | W206: 6.42791192 | X206: 90.92289874 | Y206: N/A | AB206: 2.681451599
B207: SHFS17 | C207: 2017 | D207: 80.12837939 | E207: 41.38687906 | H207: 1.220762014 | I207: 85.08737365 | J207: 42.49625625 | M207: 0.2558688597 | N207: 96.26821043 | O207: 38.21887365 | R207: 0 | S207: 96.9966036 | T207: 32.99317611 | W207: 0 | X207: 96.90502639 | Y207: 38.67172761 | AB207: 0.06038329963
B218: =CONCATENATE("Urban use of sanitation facilities, ",C199,"–",C200) -> Urban use of sanitation facilities, 2000–2020 | S218: Data points used for regression
A297: RURAL | D297: Poorest | I297: Poor | N297: Middle | S297: Rich | X297: Richest
D298: Improved | E298: Basic | F298: Limited | G298: Unimproved | H298: Open defecation | I298: Improved | J298: Basic | K298: Limited | L298: Unimproved | M298: Open defecation | N298: Improved | O298: Basic | P298: Limited | Q298: Unimproved | R298: Open defecation | S298: Improved | T298: Basic | U298: Limited | V298: Unimproved | W298: Open defecation | X298: Improved | Y298: Basic | Z298: Limited | AA298: Unimproved | AB298: Open defecation
A299: Forecast period: | C299: =MinBase(C305:C316) -> 2000 | D299: =IF((D301+H301)>100,D301*100/(D301+H301),D301) -> 2.139104152 | E299: =D299*AVERAGEIF(E305:E316,">0")/100 -> 1.154685534 | F299: =D299*(100-AVERAGEIF(E305:E316,">0"))/100 -> 0.9844186183 | G299: =100-(E299+F299+H299) -> 0.1813914638 | H299: =IF((D301+H301)>100,H301*100/(D301+H301),H301) -> 97.67950438 | I299: =IF((I301+M301)>100,I301*100/(I301+M301),I301) -> 2.247665374 | J299: =I299*AVERAGEIF(J305:J316,">0")/100 -> 1.268020668 | K299: =I299*(100-AVERAGEIF(J305:J316,">0"))/100 -> 0.9796447061 | L299: =100-(J299+K299+M299) -> 0 | M299: =IF((I301+M301)>100,M301*100/(I301+M301),M301) -> 97.75233463 | N299: =IF((N301+R301)>100,N301*100/(N301+R301),N301) -> 2.583955114 | O299: =N299*AVERAGEIF(O305:O316,">0")/100 -> 1.72002934 | P299: =N299*(100-AVERAGEIF(O305:O316,">0"))/100 -> 0.8639257746 | Q299: =100-(O299+P299+R299) -> 0 | R299: =IF((N301+R301)>100,R301*100/(N301+R301),R301) -> 97.41604489 | S299: =IF((S301+W301)>100,S301*100/(S301+W301),S301) -> 4.008373246 | T299: =S299*AVERAGEIF(T305:T316,">0")/100 -> 2.501490396 | U299: =S299*(100-AVERAGEIF(T305:T316,">0"))/100 -> 1.50688285 | V299: =100-(T299+U299+W299) -> 0 | W299: =IF((S301+W301)>100,W301*100/(S301+W301),W301) -> 95.99162675 | X299: =IF((X301+AB301)>100,X301*100/(X301+AB301),X301) -> 37.65363266 | Y299: =X299*AVERAGEIF(Y305:Y316,">0")/100 -> 19.81992527 | Z299: =X299*(100-AVERAGEIF(Y305:Y316,">0"))/100 -> 17.8337074 | AA299: =100-(Y299+Z299+AB299) -> 12.54441272 | AB299: =IF((X301+AB301)>100,AB301*100/(X301+AB301),AB301) -> 49.80195462
C300: =MaxTarget(C305:C316) -> 2020 | D300: =IF((D302+H302)>100,D302*100/(D302+H302),D302) -> 6.63468623 | E300: =D300*AVERAGEIF(E305:E316,">0")/100 -> 3.581394671 | F300: =D300*(100-AVERAGEIF(E305:E316,">0"))/100 -> 3.053291558 | G300: =100-(E300+F300+H300) -> 24.85318465 | H300: =IF((D302+H302)>100,H302*100/(D302+H302),H302) -> 68.51212912 | I300: =IF((I302+M302)>100,I302*100/(I302+M302),I302) -> 4.106372011 | J300: =I300*AVERAGEIF(J305:J316,">0")/100 -> 2.316610222 | K300: =I300*(100-AVERAGEIF(J305:J316,">0"))/100 -> 1.789761789 | L300: =100-(J300+K300+M300) -> 27.74486865 | M300: =IF((I302+M302)>100,M302*100/(I302+M302),M302) -> 68.14875934 | N300: =IF((N302+R302)>100,N302*100/(N302+R302),N302) -> 24.30132972 | O300: =N300*AVERAGEIF(O305:O316,">0")/100 -> 16.17636463 | P300: =N300*(100-AVERAGEIF(O305:O316,">0"))/100 -> 8.124965092 | Q300: =100-(O300+P300+R300) -> 44.242055 | R300: =IF((N302+R302)>100,R302*100/(N302+R302),R302) -> 31.45661528 | S300: =IF((S302+W302)>100,S302*100/(S302+W302),S302) -> 38.51785868 | T300: =S300*AVERAGEIF(T305:T316,">0")/100 -> 24.03769501 | U300: =S300*(100-AVERAGEIF(T305:T316,">0"))/100 -> 14.48016368 | V300: =100-(T300+U300+W300) -> 44.02059267 | W300: =IF((S302+W302)>100,W302*100/(S302+W302),W302) -> 17.46154865 | X300: =IF((X302+AB302)>100,X302*100/(X302+AB302),X302) -> 81.14531527 | Y300: =X300*AVERAGEIF(Y305:Y316,">0")/100 -> 42.7128532 | Z300: =X300*(100-AVERAGEIF(Y305:Y316,">0"))/100 -> 38.43246207 | AA300: =100-(Y300+Z300+AB300) -> 17.91404893 | AB300: =IF((X302+AB302)>100,AB302*100/(X302+AB302),AB302) -> 0.9406357983
A301: Regression period: | C301: =MinRegYear(C299,C305:C316) -> 2004 | D301: =IF(MAX(C305:C316)-MIN(C305:C316)<5,AVERAGEIF(C305:C316,">0",D305:D316), IF(FORECAST($C301,D$305:D$316,$C$305:$C$316)<0,0, IF(FORECAST($C301,D$305:D$316,$C$305:$C$316)>100,100, FORECAST($C301,D$305:D$316,$C$305:$C$316)))) -> 2.139104152 | H301: =IF(MAX(C305:C316)-MIN(C305:C316)<5,AVERAGEIF(C305:C316,">0",H305:H316), IF(FORECAST($C301,H$305:H$316,$C$305:$C$316)<0,0, IF(FORECAST($C301,H$305:H$316,$C$305:$C$316)>100,100, FORECAST($C301,H$305:H$316,$C$305:$C$316)))) -> 97.67950438 | I301: =IF(MAX(C305:C316)-MIN(C305:C316)<5,AVERAGEIF(C305:C316,">0",I305:I316), IF(FORECAST($C301,I$305:I$316,$C$305:$C$316)<0,0, IF(FORECAST($C301,I$305:I$316,$C$305:$C$316)>100,100, FORECAST($C301,I$305:I$316,$C$305:$C$316)))) -> 2.274852028 | M301: =IF(MAX(C305:C316)-MIN(C305:C316)<5,AVERAGEIF(C305:C316,">0",M305:M316), IF(FORECAST($C301,M$305:M$316,$C$305:$C$316)<0,0, IF(FORECAST($C301,M$305:M$316,$C$305:$C$316)>100,100, FORECAST($C301,M$305:M$316,$C$305:$C$316)))) -> 98.93469876 | N301: =IF(MAX(C305:C316)-MIN(C305:C316)<5,AVERAGEIF(C305:C316,">0",N305:N316), IF(FORECAST($C301,N$305:N$316,$C$305:$C$316)<0,0, IF(FORECAST($C301,N$305:N$316,$C$305:$C$316)>100,100, FORECAST($C301,N$305:N$316,$C$305:$C$316)))) -> 2.652494378 | R301: =IF(MAX(C305:C316)-MIN(C305:C316)<5,AVERAGEIF(C305:C316,">0",R305:R316), IF(FORECAST($C301,R$305:R$316,$C$305:$C$316)<0,0, IF(FORECAST($C301,R$305:R$316,$C$305:$C$316)>100,100, FORECAST($C301,R$305:R$316,$C$305:$C$316)))) -> 100 | S301: =IF(MAX(C305:C316)-MIN(C305:C316)<5,AVERAGEIF(C305:C316,">0",S305:S316), IF(FORECAST($C301,S$305:S$316,$C$305:$C$316)<0,0, IF(FORECAST($C301,S$305:S$316,$C$305:$C$316)>100,100, FORECAST($C301,S$305:S$316,$C$305:$C$316)))) -> 4.101534294 | W301: =IF(MAX(C305:C316)-MIN(C305:C316)<5,AVERAGEIF(C305:C316,">0",W305:W316), IF(FORECAST($C301,W$305:W$316,$C$305:$C$316)<0,0, IF(FORECAST($C301,W$305:W$316,$C$305:$C$316)>100,100, FORECAST($C301,W$305:W$316,$C$305:$C$316)))) -> 98.22262671 | X301: =IF(MAX(C305:C316)-MIN(C305:C316)<5,AVERAGEIF(C305:C316,">0",X305:X316), IF(FORECAST($C301,X$305:X$316,$C$305:$C$316)<0,0, IF(FORECAST($C301,X$305:X$316,$C$305:$C$316)>100,100, FORECAST($C301,X$305:X$316,$C$305:$C$316)))) -> 37.65363266 | AB301: =IF(MAX(C305:C316)-MIN(C305:C316)<5,AVERAGEIF(C305:C316,">0",AB305:AB316), IF(FORECAST($C301,AB$305:AB$316,$C$305:$C$316)<0,0, IF(FORECAST($C301,AB$305:AB$316,$C$305:$C$316)>100,100, FORECAST($C301,AB$305:AB$316,$C$305:$C$316)))) -> 49.80195462
C302: =MaxRegYear(C300,C305:C316) -> 2019 | D302: =IF(MAX(C305:C316)-MIN(C305:C316)<5,AVERAGEIF(C305:C316,">0",D305:D316), IF(FORECAST($C302,D$305:D$316,$C$305:$C$316)<0,0, IF(FORECAST($C302,D$305:D$316,$C$305:$C$316)>100,100, FORECAST($C302,D$305:D$316,$C$305:$C$316)))) -> 6.63468623 | H302: =IF(MAX(C305:C316)-MIN(C305:C316)<5,AVERAGEIF(C305:C316,">0",H305:H316), IF(FORECAST($C302,H$305:H$316,$C$305:$C$316)<0,0, IF(FORECAST($C302,H$305:H$316,$C$305:$C$316)>100,100, FORECAST($C302,H$305:H$316,$C$305:$C$316)))) -> 68.51212912 | I302: =IF(MAX(C305:C316)-MIN(C305:C316)<5,AVERAGEIF(C305:C316,">0",I305:I316), IF(FORECAST($C302,I$305:I$316,$C$305:$C$316)<0,0, IF(FORECAST($C302,I$305:I$316,$C$305:$C$316)>100,100, FORECAST($C302,I$305:I$316,$C$305:$C$316)))) -> 4.106372011 | M302: =IF(MAX(C305:C316)-MIN(C305:C316)<5,AVERAGEIF(C305:C316,">0",M305:M316), IF(FORECAST($C302,M$305:M$316,$C$305:$C$316)<0,0, IF(FORECAST($C302,M$305:M$316,$C$305:$C$316)>100,100, FORECAST($C302,M$305:M$316,$C$305:$C$316)))) -> 68.14875934 | N302: =IF(MAX(C305:C316)-MIN(C305:C316)<5,AVERAGEIF(C305:C316,">0",N305:N316), IF(FORECAST($C302,N$305:N$316,$C$305:$C$316)<0,0, IF(FORECAST($C302,N$305:N$316,$C$305:$C$316)>100,100, FORECAST($C302,N$305:N$316,$C$305:$C$316)))) -> 24.30132972 | R302: =IF(MAX(C305:C316)-MIN(C305:C316)<5,AVERAGEIF(C305:C316,">0",R305:R316), IF(FORECAST($C302,R$305:R$316,$C$305:$C$316)<0,0, IF(FORECAST($C302,R$305:R$316,$C$305:$C$316)>100,100, FORECAST($C302,R$305:R$316,$C$305:$C$316)))) -> 31.45661528 | S302: =IF(MAX(C305:C316)-MIN(C305:C316)<5,AVERAGEIF(C305:C316,">0",S305:S316), IF(FORECAST($C302,S$305:S$316,$C$305:$C$316)<0,0, IF(FORECAST($C302,S$305:S$316,$C$305:$C$316)>100,100, FORECAST($C302,S$305:S$316,$C$305:$C$316)))) -> 38.51785868 | W302: =IF(MAX(C305:C316)-MIN(C305:C316)<5,AVERAGEIF(C305:C316,">0",W305:W316), IF(FORECAST($C302,W$305:W$316,$C$305:$C$316)<0,0, IF(FORECAST($C302,W$305:W$316,$C$305:$C$316)>100,100, FORECAST($C302,W$305:W$316,$C$305:$C$316)))) -> 17.46154865 | X302: =IF(MAX(C305:C316)-MIN(C305:C316)<5,AVERAGEIF(C305:C316,">0",X305:X316), IF(FORECAST($C302,X$305:X$316,$C$305:$C$316)<0,0, IF(FORECAST($C302,X$305:X$316,$C$305:$C$316)>100,100, FORECAST($C302,X$305:X$316,$C$305:$C$316)))) -> 81.14531527 | AB302: =IF(MAX(C305:C316)-MIN(C305:C316)<5,AVERAGEIF(C305:C316,">0",AB305:AB316), IF(FORECAST($C302,AB$305:AB$316,$C$305:$C$316)<0,0, IF(FORECAST($C302,AB$305:AB$316,$C$305:$C$316)>100,100, FORECAST($C302,AB$305:AB$316,$C$305:$C$316)))) -> 0.9406357983
B304: Survey | C304: Year | D304: Improved | E304: Not shared | H304: Open defecation | I304: Improved | J304: Not shared | M304: Open defecation | N304: Improved | O304: Not shared | R304: Open defecation | S304: Improved | T304: Not shared | W304: Open defecation | X304: Improved | Y304: Not shared | AB304: Open defecation
B305: MICS06 | C305: 2006 | D305: =IF(ISERROR(INDIRECT(CONCATENATE($B305,"!M122"))),"",INDIRECT(CONCATENATE($B305,"!M122"))) -> 2.738515096 | E305: =IF(ISERROR(INDIRECT(CONCATENATE($B305,"!M129"))),"",INDIRECT(CONCATENATE($B305,"!M129"))) -> 61.25224468 | H305: =IF(ISERROR(INDIRECT(CONCATENATE($B305,"!M127"))),"",INDIRECT(CONCATENATE($B305,"!M127"))) -> 93.79052102 | I305: =IF(ISERROR(INDIRECT(CONCATENATE($B305,"!N122"))),"",INDIRECT(CONCATENATE($B305,"!N122"))) -> 2.519054693 | J305: =IF(ISERROR(INDIRECT(CONCATENATE($B305,"!N129"))),"",INDIRECT(CONCATENATE($B305,"!N129"))) -> 38.22010073 | M305: =IF(ISERROR(INDIRECT(CONCATENATE($B305,"!N127"))),"",INDIRECT(CONCATENATE($B305,"!N127"))) -> 94.82990684 | N305: =IF(ISERROR(INDIRECT(CONCATENATE($B305,"!O122"))),"",INDIRECT(CONCATENATE($B305,"!O122"))) -> 5.539005757 | O305: =IF(ISERROR(INDIRECT(CONCATENATE($B305,"!O129"))),"",INDIRECT(CONCATENATE($B305,"!O129"))) -> 63.92193032 | R305: =IF(ISERROR(INDIRECT(CONCATENATE($B305,"!O127"))),"",INDIRECT(CONCATENATE($B305,"!O127"))) -> 92.45570202 | S305: =IF(ISERROR(INDIRECT(CONCATENATE($B305,"!P122"))),"",INDIRECT(CONCATENATE($B305,"!P122"))) -> 8.690377546 | T305: =IF(ISERROR(INDIRECT(CONCATENATE($B305,"!P129"))),"",INDIRECT(CONCATENATE($B305,"!P129"))) -> 49.9678225 | W305: =IF(ISERROR(INDIRECT(CONCATENATE($B305,"!P127"))),"",INDIRECT(CONCATENATE($B305,"!P127"))) -> 87.45448297 | X305: =IF(ISERROR(INDIRECT(CONCATENATE($B305,"!Q122"))),"",INDIRECT(CONCATENATE($B305,"!Q122"))) -> 43.45252368 | Y305: =IF(ISERROR(INDIRECT(CONCATENATE($B305,"!Q129"))),"",INDIRECT(CONCATENATE($B305,"!Q129"))) -> 52.88495433 | AB305: =IF(ISERROR(INDIRECT(CONCATENATE($B305,"!Q2127"))),"",INDIRECT(CONCATENATE($B305,"!Q127"))) -> 43.28711211
B306: SFHS16 | D306: 13.44420296 | E306: N/A | H306: 75.3779939 | I306: 15.53665482 | J306: N/A | M306: 25.14138983 | N306: 26.9209701 | O306: N/A | R306: 42.34368013 | S306: 39.93436048 | T306: N/A | W306: 15.12243601 | X306: 67.97733623 | Y306: N/A | AB306: 16.51503179
B307: SHFS17 | C307: 2017 | D307: 6.035275286 | E307: 46.70748537 | H307: 72.40111249 | I307: 3.862169347 | J307: 74.60992127 | M307: 72.25355126 | N307: 21.41481834 | O307: 69.20958811 | R307: 40.84109016 | S307: 33.92901543 | T307: 74.84542428 | W307: 28.22969239 | X307: 75.34642426 | Y307: 52.39001577 | AB307: 7.455478307
B318: =CONCATENATE("Rural use of sanitation facilities, ",C299,"–",C300) -> Rural use of sanitation facilities, 2000–2020 | S318: Data points used for regression

Sheet Hygiene
B4: Access to hygiene facilities by wealth quintile (%)
B5: =IF(ISERROR(INDIRECT(CONCATENATE($E$32,"!A2"))),"",INDIRECT(CONCATENATE($E$32,"!A2"))) -> Somalia
B7: =CONCATENATE("National ",IF(ISERROR(INDIRECT(CONCATENATE($E$32,"!A2"))),"",INDIRECT(CONCATENATE($E$32,"!A210")))) -> National Access to hygiene facilities | K7: =CONCATENATE("Urban ",IF(ISERROR(INDIRECT(CONCATENATE($E$32,"!A2"))),"",INDIRECT(CONCATENATE($E$32,"!A210")))) -> Urban Access to hygiene facilities | S7: =CONCATENATE("Rural ",IF(ISERROR(INDIRECT(CONCATENATE($E$32,"!A2"))),"",INDIRECT(CONCATENATE($E$32,"!A210")))) -> Rural Access to hygiene facilities
E32: =INDEX(B88:B100,A88) -> SHFS17 | G32: =IF(ISERROR(INDIRECT(CONCATENATE($E$32,"!A2"))),"",INDIRECT(CONCATENATE($E$32,"!A2"))) -> Somalia | K32: Poorest | N32: Poor | Q32: Middle | T32: Rich | W32: Richest
K33: Basic | L33: Limited | M33: No facility | N33: Basic | O33: Limited | P33: No facility | Q33: Basic | R33: Limited | S33: No facility | T33: Basic | U33: Limited | V33: No facility | W33: Basic | X33: Limited | Y33: No facility
B34: >>> Select Survey : | G34: NATIONAL | J34: =IF(ISERROR(INDIRECT(CONCATENATE(#REF!,"!A2"))),"",INDIRECT(CONCATENATE(#REF!,"!A210"))) ->  | K34: =IF(ISERROR(INDIRECT(CONCATENATE($E$32,"!C222"))),"",INDIRECT(CONCATENATE($E$32,"!C222"))) -> N/A | L34: =IF(ISERROR(INDIRECT(CONCATENATE($E$32,"!C223"))),"",INDIRECT(CONCATENATE($E$32,"!C223"))) -> N/A | M34: =IF(ISERROR(INDIRECT(CONCATENATE($E$32,"!C224"))),"",INDIRECT(CONCATENATE($E$32,"!C224"))) -> N/A | N34: =IF(ISERROR(INDIRECT(CONCATENATE($E$32,"!D222"))),"",INDIRECT(CONCATENATE($E$32,"!D222"))) -> N/A | O34: =IF(ISERROR(INDIRECT(CONCATENATE($E$32,"!D223"))),"",INDIRECT(CONCATENATE($E$32,"!D223"))) -> N/A | P34: =IF(ISERROR(INDIRECT(CONCATENATE($E$32,"!D224"))),"",INDIRECT(CONCATENATE($E$32,"!D224"))) -> N/A | Q34: =IF(ISERROR(INDIRECT(CONCATENATE($E$32,"!E222"))),"",INDIRECT(CONCATENATE($E$32,"!E222"))) -> N/A | R34: =IF(ISERROR(INDIRECT(CONCATENATE($E$32,"!E223"))),"",INDIRECT(CONCATENATE($E$32,"!E223"))) -> N/A | S34: =IF(ISERROR(INDIRECT(CONCATENATE($E$32,"!E224"))),"",INDIRECT(CONCATENATE($E$32,"!E224"))) -> N/A | T34: =IF(ISERROR(INDIRECT(CONCATENATE($E$32,"!F222"))),"",INDIRECT(CONCATENATE($E$32,"!F222"))) -> N/A | U34: =IF(ISERROR(INDIRECT(CONCATENATE($E$32,"!F223"))),"",INDIRECT(CONCATENATE($E$32,"!F223"))) -> N/A | V34: =IF(ISERROR(INDIRECT(CONCATENATE($E$32,"!F224"))),"",INDIRECT(CONCATENATE($E$32,"!F224"))) -> N/A | W34: =IF(ISERROR(INDIRECT(CONCATENATE($E$32,"!G222"))),"",INDIRECT(CONCATENATE($E$32,"!G222"))) -> N/A | X34: =IF(ISERROR(INDIRECT(CONCATENATE($E$32,"!G223"))),"",INDIRECT(CONCATENATE($E$32,"!G223"))) -> N/A | Y34: =IF(ISERROR(INDIRECT(CONCATENATE($E$32,"!G224"))),"",INDIRECT(CONCATENATE($E$32,"!G224"))) -> N/A
G37: URBAN | J37: =IF(ISERROR(INDIRECT(CONCATENATE(#REF!,"!A2"))),"",INDIRECT(CONCATENATE(#REF!,"!A210"))) ->  | K37: =IF(ISERROR(INDIRECT(CONCATENATE($E$32,"!H222"))),"",INDIRECT(CONCATENATE($E$32,"!H222"))) -> N/A | L37: =IF(ISERROR(INDIRECT(CONCATENATE($E$32,"!H223"))),"",INDIRECT(CONCATENATE($E$32,"!H223"))) -> N/A | M37: =IF(ISERROR(INDIRECT(CONCATENATE($E$32,"!H224"))),"",INDIRECT(CONCATENATE($E$32,"!H224"))) -> N/A | N37: =IF(ISERROR(INDIRECT(CONCATENATE($E$32,"!I222"))),"",INDIRECT(CONCATENATE($E$32,"!I222"))) -> N/A | O37: =IF(ISERROR(INDIRECT(CONCATENATE($E$32,"!I223"))),"",INDIRECT(CONCATENATE($E$32,"!I223"))) -> N/A | P37: =IF(ISERROR(INDIRECT(CONCATENATE($E$32,"!I224"))),"",INDIRECT(CONCATENATE($E$32,"!I224"))) -> N/A | Q37: =IF(ISERROR(INDIRECT(CONCATENATE($E$32,"!J222"))),"",INDIRECT(CONCATENATE($E$32,"!J222"))) -> N/A | R37: =IF(ISERROR(INDIRECT(CONCATENATE($E$32,"!J223"))),"",INDIRECT(CONCATENATE($E$32,"!J223"))) -> N/A | S37: =IF(ISERROR(INDIRECT(CONCATENATE($E$32,"!J224"))),"",INDIRECT(CONCATENATE($E$32,"!J224"))) -> N/A | T37: =IF(ISERROR(INDIRECT(CONCATENATE($E$32,"!K222"))),"",INDIRECT(CONCATENATE($E$32,"!K222"))) -> N/A | U37: =IF(ISERROR(INDIRECT(CONCATENATE($E$32,"!K223"))),"",INDIRECT(CONCATENATE($E$32,"!K223"))) -> N/A | V37: =IF(ISERROR(INDIRECT(CONCATENATE($E$32,"!K224"))),"",INDIRECT(CONCATENATE($E$32,"!K224"))) -> N/A | W37: =IF(ISERROR(INDIRECT(CONCATENATE($E$32,"!L222"))),"",INDIRECT(CONCATENATE($E$32,"!L222"))) -> N/A | X37: =IF(ISERROR(INDIRECT(CONCATENATE($E$32,"!L223"))),"",INDIRECT(CONCATENATE($E$32,"!L223"))) -> N/A | Y37: =IF(ISERROR(INDIRECT(CONCATENATE($E$32,"!L224"))),"",INDIRECT(CONCATENATE($E$32,"!L224"))) -> N/A
G40: RURAL | J40: =IF(ISERROR(INDIRECT(CONCATENATE(#REF!,"!A2"))),"",INDIRECT(CONCATENATE(#REF!,"!A210"))) ->  | K40: =IF(ISERROR(INDIRECT(CONCATENATE($E$32,"!M222"))),"",INDIRECT(CONCATENATE($E$32,"!M222"))) -> N/A | L40: =IF(ISERROR(INDIRECT(CONCATENATE($E$32,"!M223"))),"",INDIRECT(CONCATENATE($E$32,"!M223"))) -> N/A | M40: =IF(ISERROR(INDIRECT(CONCATENATE($E$32,"!M224"))),"",INDIRECT(CONCATENATE($E$32,"!M224"))) -> N/A | N40: =IF(ISERROR(INDIRECT(CONCATENATE($E$32,"!N222"))),"",INDIRECT(CONCATENATE($E$32,"!N222"))) -> N/A | O40: =IF(ISERROR(INDIRECT(CONCATENATE($E$32,"!N223"))),"",INDIRECT(CONCATENATE($E$32,"!N223"))) -> N/A | P40: =IF(ISERROR(INDIRECT(CONCATENATE($E$32,"!N224"))),"",INDIRECT(CONCATENATE($E$32,"!N224"))) -> N/A | Q40: =IF(ISERROR(INDIRECT(CONCATENATE($E$32,"!O222"))),"",INDIRECT(CONCATENATE($E$32,"!O222"))) -> N/A | R40: =IF(ISERROR(INDIRECT(CONCATENATE($E$32,"!O223"))),"",INDIRECT(CONCATENATE($E$32,"!O223"))) -> N/A | S40: =IF(ISERROR(INDIRECT(CONCATENATE($E$32,"!O224"))),"",INDIRECT(CONCATENATE($E$32,"!O224"))) -> N/A | T40: =IF(ISERROR(INDIRECT(CONCATENATE($E$32,"!P222"))),"",INDIRECT(CONCATENATE($E$32,"!P222"))) -> N/A | U40: =IF(ISERROR(INDIRECT(CONCATENATE($E$32,"!P223"))),"",INDIRECT(CONCATENATE($E$32,"!P223"))) -> N/A | V40: =IF(ISERROR(INDIRECT(CONCATENATE($E$32,"!P224"))),"",INDIRECT(CONCATENATE($E$32,"!P224"))) -> N/A | W40: =IF(ISERROR(INDIRECT(CONCATENATE($E$32,"!Q222"))),"",INDIRECT(CONCATENATE($E$32,"!Q222"))) -> N/A | X40: =IF(ISERROR(INDIRECT(CONCATENATE($E$32,"!Q223"))),"",INDIRECT(CONCATENATE($E$32,"!Q223"))) -> N/A | Y40: =IF(ISERROR(INDIRECT(CONCATENATE($E$32,"!Q224"))),"",INDIRECT(CONCATENATE($E$32,"!Q224"))) -> N/A
A88: 3 | B88: MICS06
B89: SFHS16
B90: SHFS17
B91: Template

Sheet MICS06
A2: =A1026 -> Somalia
A3: =A1034 -> 2006
A4: Use of drinking water sources
A5: by wealth quintile and sub-national region
A6: Notes:
A7: WHO/UNICEF JMP customised wealth index excludes water,
A8: sanitation and hygiene assets.
A9: Survey used for analysis: | B9: =A1025 -> MICS06
A10: =B1028 -> 
A11: =B1027 -> 
A14: Use of drinking water sources | C14: NATIONAL wealth index quintile | H14: URBAN wealth index quintile | M14: RURAL wealth index quintile | R14: SUB-REGIONS: | BA14: Raw numbers of respondents: | BB14: Use of drinking water sources | BC14: NATIONAL wealth index quintile | BH14: URBAN wealth index quintile | BM14: RURAL wealth index quintile | BR14: SUB-REGIONS:
A15: Weighted percentage (used in graphs) | C15: Poorest | D15: Poor | E15: Middle | F15: Rich | G15: Richest | H15: Poorest | I15: Poor | J15: Middle | K15: Rich | L15: Richest | M15: Poorest | N15: Poor | O15: Middle | P15: Rich | Q15: Richest | R15: Central South | S15: North East | T15: North West | BA15: Water data, raw numbers (weighted) | BC15: Poorest | BD15: Poor | BE15: Middle | BF15: Rich | BG15: Richest | BH15: Poorest | BI15: Poor | BJ15: Middle | BK15: Rich | BL15: Richest | BM15: Poorest | BN15: Poor | BO15: Middle | BP15: Rich | BQ15: Richest | BR15: Central South | BS15: North East | BT15: North West
A16: Water | B16: Improved | C16: 14.77493166 | D16: 12.64783514 | E16: 20.42079242 | F16: 57.93634259 | G16: 93.92227186 | H16: 54.68358573 | I16: 71.60149268 | J16: 84.71375403 | K16: 92.85463771 | L16: 98.34207054 | M16: 10.94532892 | N16: 7.749218216 | O16: 11.05351126 | P16: 11.2264845 | Q16: 33.95145167 | R16: 35.15863702 | S16: 41.14229545 | T16: 51.52828161 | BA16: Water | BB16: Improved | BC16: N/A | BD16: N/A | BE16: N/A | BF16: N/A | BG16: N/A | BH16: N/A | BI16: N/A | BJ16: N/A | BK16: N/A | BL16: N/A | BM16: N/A | BN16: N/A | BO16: N/A | BP16: N/A | BQ16: N/A | BR16: N/A | BS16: N/A | BT16: N/A
B17: Not Improved | C17: 85.22506834 | D17: 87.35216486 | E17: 79.57920758 | F17: 42.06365741 | G17: 6.077728139 | H17: 45.31641427 | I17: 28.39850732 | J17: 15.28624597 | K17: 7.145362291 | L17: 1.65792946 | M17: 89.05467108 | N17: 92.25078178 | O17: 88.94648874 | P17: 88.7735155 | Q17: 66.04854833 | R17: 64.84136298 | S17: 58.85770455 | T17: 48.47171839 | BB17: Not Improved | BC17: N/A | BD17: N/A | BE17: N/A | BF17: N/A | BG17: N/A | BH17: N/A | BI17: N/A | BJ17: N/A | BK17: N/A | BL17: N/A | BM17: N/A | BN17: N/A | BO17: N/A | BP17: N/A | BQ17: N/A | BR17: N/A | BS17: N/A | BT17: N/A
A18: Water ladder | B18: Basic | C18: 5.622555501 | D18: 6.455534807 | E18: 14.53561926 | F18: 45.90814849 | G18: 84.5550352 | H18: 39.88771302 | I18: 59.45240455 | J18: 75.94606558 | K18: 81.3025899 | L18: 91.09957065 | M18: 2.512205199 | N18: 1.920985381 | O18: 5.79483959 | P18: 7.087875112 | Q18: 22.34043532 | R18: 28.53169077 | S18: 24.98768368 | T18: 41.23549503 | BA18: Water ladder | BB18: Basic | BC18: N/A | BD18: N/A | BE18: N/A | BF18: N/A | BG18: N/A | BH18: N/A | BI18: N/A | BJ18: N/A | BK18: N/A | BL18: N/A | BM18: N/A | BN18: N/A | BO18: N/A | BP18: N/A | BQ18: N/A | BR18: N/A | BS18: N/A | BT18: N/A
B19: Limited | C19: 9.152376164 | D19: 6.192300329 | E19: 5.885173155 | F19: 11.98255336 | G19: 9.354049614 | H19: 14.79587271 | I19: 12.10802782 | J19: 8.724149987 | K19: 11.53689693 | L19: 7.238977544 | M19: 8.433123719 | N19: 5.828232835 | O19: 5.258671666 | P19: 4.138609383 | Q19: 11.61101635 | R19: 6.604733888 | S19: 16.09416398 | T19: 10.23101766 | BB19: Limited | BC19: N/A | BD19: N/A | BE19: N/A | BF19: N/A | BG19: N/A | BH19: N/A | BI19: N/A | BJ19: N/A | BK19: N/A | BL19: N/A | BM19: N/A | BN19: N/A | BO19: N/A | BP19: N/A | BQ19: N/A | BR19: N/A | BS19: N/A | BT19: N/A
B20: Unimproved | C20: 53.1776244 | D20: 58.42228056 | E20: 51.16979709 | F20: 37.85714069 | G20: 5.943930308 | H20: 34.58565526 | I20: 25.78882116 | J20: 14.94446359 | K20: 7.160513167 | L20: 1.661451806 | M20: 55.24421575 | N20: 58.62049903 | O20: 60.12588889 | P20: 56.74876326 | Q20: 51.24760874 | R20: 36.42086254 | S20: 54.31322385 | T20: 48.45577616 | BB20: Unimproved | BC20: N/A | BD20: N/A | BE20: N/A | BF20: N/A | BG20: N/A | BH20: N/A | BI20: N/A | BJ20: N/A | BK20: N/A | BL20: N/A | BM20: N/A | BN20: N/A | BO20: N/A | BP20: N/A | BQ20: N/A | BR20: N/A | BS20: N/A | BT20: N/A
B21: Surface water | C21: 32.04744394 | D21: 28.9298843 | E21: 28.40941049 | F21: 4.252157459 | G21: 0.1469848785 | H21: 10.73075901 | I21: 2.650746474 | J21: 0.3853208386 | K21: 0 | L21: 0 | M21: 33.81045533 | N21: 33.63028275 | O21: 28.82059986 | P21: 32.02475224 | Q21: 14.80093958 | R21: 28.4427128 | S21: 4.604928485 | T21: 0.07771115299 | BB21: Surface water | BC21: N/A | BD21: N/A | BE21: N/A | BF21: N/A | BG21: N/A | BH21: N/A | BI21: N/A | BJ21: N/A | BK21: N/A | BL21: N/A | BM21: N/A | BN21: N/A | BO21: N/A | BP21: N/A | BQ21: N/A | BR21: N/A | BS21: N/A | BT21: N/A
A22: Improved water point at more than 30 minutes | B22: Yes | C22: 61.94530284 | D22: 48.95936943 | E22: 28.81951412 | F22: 20.69858022 | G22: 9.960750477 | H22: 27.05724672 | I22: 16.92000372 | J22: 10.30368227 | K22: 12.42671338 | L22: 7.361281692 | M22: 77.04769571 | N22: 75.21059122 | O22: 47.57467147 | P22: 36.86469602 | Q22: 34.19888039 | R22: 18.79739886 | S22: 39.17585235 | T22: 19.8789798 | BA22: Improved water point at more than 30 minutes | BB22: Yes | BC22: N/A | BD22: N/A | BE22: N/A | BF22: N/A | BG22: N/A | BH22: N/A | BI22: N/A | BJ22: N/A | BK22: N/A | BL22: N/A | BM22: N/A | BN22: N/A | BO22: N/A | BP22: N/A | BQ22: N/A | BR22: N/A | BS22: N/A | BT22: N/A
B23: No | C23: 38.05469716 | D23: 51.04063057 | E23: 71.18048588 | F23: 79.30141978 | G23: 90.03924952 | H23: 72.94275328 | I23: 83.07999628 | J23: 89.69631773 | K23: 87.57328662 | L23: 92.63871831 | M23: 22.95230429 | N23: 24.78940878 | O23: 52.42532853 | P23: 63.13530398 | Q23: 65.80111961 | R23: 81.20260114 | S23: 60.82414765 | T23: 80.1210202 | BB23: No | BC23: N/A | BD23: N/A | BE23: N/A | BF23: N/A | BG23: N/A | BH23: N/A | BI23: N/A | BJ23: N/A | BK23: N/A | BL23: N/A | BM23: N/A | BN23: N/A | BO23: N/A | BP23: N/A | BQ23: N/A | BR23: N/A | BS23: N/A | BT23: N/A
A24: Manually calculated ratios | B24: Improved wells | C24: =(C61+C62)/(C61+C62+C63)*100 -> 15.93523213 | D24: 20.5708594 | E24: 26.79629853 | F24: 40.94650714 | G24: 47.59540171 | H24: 35.73306661 | I24: 28.00453069 | J24: 35.43925059 | K24: 60.19678466 | L24: 37.86708702 | M24: 12.99808384 | N24: 12.11076307 | O24: 24.08944634 | P24: 22.95618192 | Q24: 51.78762999 | R24: 22.78524969 | S24: 41.23987892 | T24: 28.28217249
B25: Improved springs
B26: Other
C27: NATIONAL wealth index quintile | H27: URBAN wealth index quintile | M27: RURAL wealth index quintile | R27: SUB-REGIONS: | BA27: Raw numbers of respondents: | BB27: Use of drinking water sources | BC27: NATIONAL wealth index quintile | BH27: URBAN wealth index quintile | BM27: RURAL wealth index quintile | BR27: SUB-REGIONS:
A28: Percentage based on weighted population | C28: Poorest | D28: Poor | E28: Middle | F28: Rich | G28: Richest | H28: Poorest | I28: Poor | J28: Middle | K28: Rich | L28: Richest | M28: Poorest | N28: Poor | O28: Middle | P28: Rich | Q28: Richest | R28: Central South | S28: North East | T28: North West | BA28: Water data, raw numbers (weighted) | BC28: Poorest | BD28: Poor | BE28: Middle | BF28: Rich | BG28: Richest | BH28: Poorest | BI28: Poor | BJ28: Middle | BK28: Rich | BL28: Richest | BM28: Poorest | BN28: Poor | BO28: Middle | BP28: Rich | BQ28: Richest | BR28: Central South | BS28: North East | BT28: North West
A29: Piped water | B29: Yes | C29: 5.173691979 | D29: 3.486659403 | E29: 8.162209284 | F29: 28.17643892 | G29: 69.97722375 | H29: 25.28237969 | I29: 38.30226717 | J29: 49.60933611 | K29: 64.70981429 | L29: 87.31578229 | M29: 3.883784687 | N29: 1.795627548 | O29: 1.923660631 | P29: 3.075605451 | Q29: 11.72660779 | R29: 18.98018318 | S29: 17.27909356 | T29: 35.48490266 | BA29: Piped water | BB29: Yes | BC29: N/A | BD29: N/A | BE29: N/A | BF29: N/A | BG29: N/A | BH29: N/A | BI29: N/A | BJ29: N/A | BK29: N/A | BL29: N/A | BM29: N/A | BN29: N/A | BO29: N/A | BP29: N/A | BQ29: N/A | BR29: N/A | BS29: N/A | BT29: N/A
B30: No | C30: 94.82630802 | D30: 96.5133406 | E30: 91.83779072 | F30: 71.82356108 | G30: 30.02277625 | H30: 74.71762031 | I30: 61.69773283 | J30: 50.39066389 | K30: 35.29018571 | L30: 12.68421771 | M30: 96.11621531 | N30: 98.20437245 | O30: 98.07633937 | P30: 96.92439455 | Q30: 88.27339221 | R30: 81.01981682 | S30: 82.72090644 | T30: 64.51509734 | BB30: No | BC30: N/A | BD30: N/A | BE30: N/A | BF30: N/A | BG30: N/A | BH30: N/A | BI30: N/A | BJ30: N/A | BK30: N/A | BL30: N/A | BM30: N/A | BN30: N/A | BO30: N/A | BP30: N/A | BQ30: N/A | BR30: N/A | BS30: N/A | BT30: N/A
A31: Piped water on premises | B31: Yes | C31: 0.375321008 | D31: 0.2551350002 | E31: 1.344613645 | F31: 12.125476 | G31: 60.92056708 | H31: 4.346973173 | I31: 18.65729902 | J31: 35.45901009 | K31: 57.91610622 | L31: 78.18594603 | M31: 0.1383533304 | N31: 0.2488983732 | O31: 0.08295044994 | P31: 0 | Q31: 0.8881101439 | R31: 14.79847527 | S31: 11.13943702 | T31: 17.09325785 | BA31: Piped water on premises | BB31: Yes | BC31: N/A | BD31: N/A | BE31: N/A | BF31: N/A | BG31: N/A | BH31: N/A | BI31: N/A | BJ31: N/A | BK31: N/A | BL31: N/A | BM31: N/A | BN31: N/A | BO31: N/A | BP31: N/A | BQ31: N/A | BR31: N/A | BS31: N/A | BT31: N/A
B32: No | C32: 99.62467899 | D32: 99.744865 | E32: 98.65538635 | F32: 87.874524 | G32: 39.07943292 | H32: 95.65302683 | I32: 81.34270098 | J32: 64.54098991 | K32: 42.08389378 | L32: 21.81405397 | M32: 99.86164667 | N32: 99.75110163 | O32: 99.91704955 | P32: 100 | Q32: 99.11188986 | R32: 85.20152473 | S32: 88.86056298 | T32: 82.90674215 | BB32: No | BC32: N/A | BD32: N/A | BE32: N/A | BF32: N/A | BG32: N/A | BH32: N/A | BI32: N/A | BJ32: N/A | BK32: N/A | BL32: N/A | BM32: N/A | BN32: N/A | BO32: N/A | BP32: N/A | BQ32: N/A | BR32: N/A | BS32: N/A | BT32: N/A
A33: Piped water into dwelling | B33: Yes | C33: N/A | D33: N/A | E33: N/A | F33: N/A | G33: N/A | H33: N/A | I33: N/A | J33: N/A | K33: N/A | L33: N/A | M33: N/A | N33: N/A | O33: N/A | P33: N/A | Q33: N/A | R33: N/A | S33: N/A | T33: N/A | BA33: Piped water into dwelling | BB33: Yes | BC33: N/A | BD33: N/A | BE33: N/A | BF33: N/A | BG33: N/A | BH33: N/A | BI33: N/A | BJ33: N/A | BK33: N/A | BL33: N/A | BM33: N/A | BN33: N/A | BO33: N/A | BP33: N/A | BQ33: N/A | BR33: N/A | BS33: N/A | BT33: N/A
B34: No | C34: N/A | D34: N/A | E34: N/A | F34: N/A | G34: N/A | H34: N/A | I34: N/A | J34: N/A | K34: N/A | L34: N/A | M34: N/A | N34: N/A | O34: N/A | P34: N/A | Q34: N/A | R34: N/A | S34: N/A | T34: N/A | BB34: No | BC34: N/A | BD34: N/A | BE34: N/A | BF34: N/A | BG34: N/A | BH34: N/A | BI34: N/A | BJ34: N/A | BK34: N/A | BL34: N/A | BM34: N/A | BN34: N/A | BO34: N/A | BP34: N/A | BQ34: N/A | BR34: N/A | BS34: N/A | BT34: N/A
A35: Water source on premises | B35: Yes | C35: 0.4481054209 | D35: 0.5278195992 | E35: 1.714317396 | F35: 16.28712139 | G35: 63.87544627 | H35: 6.301797333 | I35: 20.09369314 | J35: 40.04670802 | K35: 61.78270892 | L35: 78.86557154 | M35: 0.1383533304 | N35: 0.5981676858 | O35: 0.2239658501 | P35: 0.1174645117 | Q35: 5.216213108 | R35: 15.51724591 | S35: 13.91534139 | T35: 20.30786498 | BA35: Water source on premises | BB35: Yes | BC35: N/A | BD35: N/A | BE35: N/A | BF35: N/A | BG35: N/A | BH35: N/A | BI35: N/A | BJ35: N/A | BK35: N/A | BL35: N/A | BM35: N/A | BN35: N/A | BO35: N/A | BP35: N/A | BQ35: N/A | BR35: N/A | BS35: N/A | BT35: N/A
B36: No | C36: 99.55189458 | D36: 99.4721804 | E36: 98.2856826 | F36: 83.71287861 | G36: 36.12455373 | H36: 93.69820267 | I36: 79.90630686 | J36: 59.95329198 | K36: 38.21729108 | L36: 21.13442846 | M36: 99.86164667 | N36: 99.40183231 | O36: 99.77603415 | P36: 99.88253549 | Q36: 94.78378689 | R36: 84.48275409 | S36: 86.08465861 | T36: 79.69213502 | BB36: No | BC36: N/A | BD36: N/A | BE36: N/A | BF36: N/A | BG36: N/A | BH36: N/A | BI36: N/A | BJ36: N/A | BK36: N/A | BL36: N/A | BM36: N/A | BN36: N/A | BO36: N/A | BP36: N/A | BQ36: N/A | BR36: N/A | BS36: N/A | BT36: N/A
A37: Improved Water source on premises | B37: Yes | C37: 2.540255458 | D37: 2.350178243 | E37: 7.467296119 | F37: 24.30035361 | G37: 66.51241445 | H37: 8.667599351 | I37: 26.88760728 | J37: 45.61162691 | K37: 63.45252808 | L37: 79.86954576 | M37: 1.264039952 | N37: 3.211915915 | O37: 0.7504443432 | P37: 1.046316073 | Q37: 9.960218432 | R37: 42.68225045 | S37: 28.23931856 | T37: 37.46726379 | BA37: Improved water source on premises | BB37: Yes | BC37: N/A | BD37: N/A | BE37: N/A | BF37: N/A | BG37: N/A | BH37: N/A | BI37: N/A | BJ37: N/A | BK37: N/A | BL37: N/A | BM37: N/A | BN37: N/A | BO37: N/A | BP37: N/A | BQ37: N/A | BR37: N/A | BS37: N/A | BT37: N/A
B38: No | C38: 97.45974454 | D38: 97.64982176 | E38: 92.53270388 | F38: 75.69964639 | G38: 33.48758555 | H38: 91.33240065 | I38: 73.11239272 | J38: 54.38837309 | K38: 36.54747192 | L38: 20.13045424 | M38: 98.73596005 | N38: 96.78808409 | O38: 99.24955566 | P38: 98.95368393 | Q38: 90.03978157 | R38: 57.31774955 | S38: 71.76068144 | T38: 62.53273621 | BB38: No | BC38: N/A | BD38: N/A | BE38: N/A | BF38: N/A | BG38: N/A | BH38: N/A | BI38: N/A | BJ38: N/A | BK38: N/A | BL38: N/A | BM38: N/A | BN38: N/A | BO38: N/A | BP38: N/A | BQ38: N/A | BR38: N/A | BS38: N/A | BT38: N/A
A39: Piped water on premises available when needed | B39: Yes | C39: N/A | D39: N/A | E39: N/A | F39: N/A | G39: N/A | H39: N/A | I39: N/A | J39: N/A | K39: N/A | L39: N/A | M39: N/A | N39: N/A | O39: N/A | P39: N/A | Q39: N/A | R39: N/A | S39: N/A | T39: N/A | BA39: Piped water on premises available when needed | BB39: Yes | BC39: N/A | BD39: N/A | BE39: N/A | BF39: N/A | BG39: N/A | BH39: N/A | BI39: N/A | BJ39: N/A | BK39: N/A | BL39: N/A | BM39: N/A | BN39: N/A | BO39: N/A | BP39: N/A | BQ39: N/A | BR39: N/A | BS39: N/A | BT39: N/A
B40: No | C40: N/A | D40: N/A | E40: N/A | F40: N/A | G40: N/A | H40: N/A | I40: N/A | J40: N/A | K40: N/A | L40: N/A | M40: N/A | N40: N/A | O40: N/A | P40: N/A | Q40: N/A | R40: N/A | S40: N/A | T40: N/A | BB40: No | BC40: N/A | BD40: N/A | BE40: N/A | BF40: N/A | BG40: N/A | BH40: N/A | BI40: N/A | BJ40: N/A | BK40: N/A | BL40: N/A | BM40: N/A | BN40: N/A | BO40: N/A | BP40: N/A | BQ40: N/A | BR40: N/A | BS40: N/A | BT40: N/A
A41: Water point at more than 30 minutes | B41: Yes | C41: 59.89842273 | D41: 57.30517173 | E41: 35.74866297 | F41: 28.4020747 | G41: 11.45324167 | H41: 29.98636804 | I41: 20.91653037 | J41: 13.66592938 | K41: 13.61447049 | L41: 7.54076816 | M41: 65.13331268 | N41: 60.64874179 | O41: 57.06449676 | P41: 37.204125 | Q41: 38.72062454 | R41: 37.71845448 | S41: 41.66908498 | T41: 39.45839628 | BA41: Water point at more than 30 minutes | BB41: Yes | BC41: N/A | BD41: N/A | BE41: N/A | BF41: N/A | BG41: N/A | BH41: N/A | BI41: N/A | BJ41: N/A | BK41: N/A | BL41: N/A | BM41: N/A | BN41: N/A | BO41: N/A | BP41: N/A | BQ41: N/A | BR41: N/A | BS41: N/A | BT41: N/A
B42: No | C42: 40.10157727 | D42: 42.69482827 | E42: 64.25133703 | F42: 71.5979253 | G42: 88.54675833 | H42: 70.01363196 | I42: 79.08346963 | J42: 86.33407062 | K42: 86.38552951 | L42: 92.45923184 | M42: 34.86668732 | N42: 39.35125821 | O42: 42.93550324 | P42: 62.795875 | Q42: 61.27937546 | R42: 62.28154552 | S42: 58.33091502 | T42: 60.54160372 | BB42: No | BC42: N/A | BD42: N/A | BE42: N/A | BF42: N/A | BG42: N/A | BH42: N/A | BI42: N/A | BJ42: N/A | BK42: N/A | BL42: N/A | BM42: N/A | BN42: N/A | BO42: N/A | BP42: N/A | BQ42: N/A | BR42: N/A | BS42: N/A | BT42: N/A
A43: Water source available when needed | B43: Yes | C43: 17.85801805 | D43: 21.47080552 | E43: 30.41296433 | F43: 40.47410481 | G43: 65.29307495 | H43: 43.66037155 | I43: 46.55229457 | J43: 54.91512461 | K43: 69.2639283 | L43: 69.08172041 | M43: 10.59492852 | N43: 17.22902207 | O43: 21.54932907 | P43: 29.84773315 | Q43: 29.70699783 | R43: 36.96118121 | S43: 34.04487974 | T43: 30.77425851 | BA43: Water source available when needed | BB43: Yes | BC43: N/A | BD43: N/A | BE43: N/A | BF43: N/A | BG43: N/A | BH43: N/A | BI43: N/A | BJ43: N/A | BK43: N/A | BL43: N/A | BM43: N/A | BN43: N/A | BO43: N/A | BP43: N/A | BQ43: N/A | BR43: N/A | BS43: N/A | BT43: N/A
B44: No | C44: 82.14198195 | D44: 78.52919448 | E44: 69.58703567 | F44: 59.52589519 | G44: 34.70692505 | H44: 56.33962845 | I44: 53.44770543 | J44: 45.08487539 | K44: 30.7360717 | L44: 30.91827959 | M44: 89.40507148 | N44: 82.77097793 | O44: 78.45067093 | P44: 70.15226685 | Q44: 70.29300217 | R44: 63.03881879 | S44: 65.95512026 | T44: 69.22574149 | BB44: No | BC44: N/A | BD44: N/A | BE44: N/A | BF44: N/A | BG44: N/A | BH44: N/A | BI44: N/A | BJ44: N/A | BK44: N/A | BL44: N/A | BM44: N/A | BN44: N/A | BO44: N/A | BP44: N/A | BQ44: N/A | BR44: N/A | BS44: N/A | BT44: N/A
A45: Improved water source available when needed | B45: Yes | C45: 27.69726668 | D45: 40.48275034 | E45: 43.60629128 | F45: 47.20820282 | G45: 66.11991003 | H45: 37.8228637 | I45: 47.21502433 | J45: 53.39959676 | K45: 71.38290084 | L45: 69.08379923 | M45: 16.17189425 | N45: 26.41157655 | O45: 46.37201396 | P45: 53.26553569 | Q45: 43.53573958 | R45: 56.40915383 | S45: 59.8015208 | T45: 47.49311547 | BA45: Improved water source available when needed | BB45: Yes | BC45: N/A | BD45: N/A | BE45: N/A | BF45: N/A | BG45: N/A | BH45: N/A | BI45: N/A | BJ45: N/A | BK45: N/A | BL45: N/A | BM45: N/A | BN45: N/A | BO45: N/A | BP45: N/A | BQ45: N/A | BR45: N/A | BS45: N/A | BT45: N/A
B46: No | C46: 72.30273332 | D46: 59.51724966 | E46: 56.39370872 | F46: 52.79179718 | G46: 33.88008997 | H46: 62.1771363 | I46: 52.78497567 | J46: 46.60040324 | K46: 28.61709916 | L46: 30.91620077 | M46: 83.82810575 | N46: 73.58842345 | O46: 53.62798604 | P46: 46.73446431 | Q46: 56.46426042 | R46: 43.59084617 | S46: 40.1984792 | T46: 52.50688453 | BB46: No | BC46: N/A | BD46: N/A | BE46: N/A | BF46: N/A | BG46: N/A | BH46: N/A | BI46: N/A | BJ46: N/A | BK46: N/A | BL46: N/A | BM46: N/A | BN46: N/A | BO46: N/A | BP46: N/A | BQ46: N/A | BR46: N/A | BS46: N/A | BT46: N/A
A47: Microbiological quality at point of collection | B47: Not contaminated (No E. coli in 100 mL) | C47: N/A | D47: N/A | E47: N/A | F47: N/A | G47: N/A | H47: N/A | I47: N/A | J47: N/A | K47: N/A | L47: N/A | M47: N/A | N47: N/A | O47: N/A | P47: N/A | Q47: N/A | R47: N/A | S47: N/A | T47: N/A | BA47: Microbiological quality at point of collection | BB47: Not contaminated (No E. coli in 100 mL) | BC47: N/A | BD47: N/A | BE47: N/A | BF47: N/A | BG47: N/A | BH47: N/A | BI47: N/A | BJ47: N/A | BK47: N/A | BL47: N/A | BM47: N/A | BN47: N/A | BO47: N/A | BP47: N/A | BQ47: N/A | BR47: N/A | BS47: N/A | BT47: N/A
B48: Contaminated (E. coli detected in 100 mL) | C48: N/A | D48: N/A | E48: N/A | F48: N/A | G48: N/A | H48: N/A | I48: N/A | J48: N/A | K48: N/A | L48: N/A | M48: N/A | N48: N/A | O48: N/A | P48: N/A | Q48: N/A | R48: N/A | S48: N/A | T48: N/A | BB48: Contaminated (E. coli detected in 100 mL) | BC48: N/A | BD48: N/A | BE48: N/A | BF48: N/A | BG48: N/A | BH48: N/A | BI48: N/A | BJ48: N/A | BK48: N/A | BL48: N/A | BM48: N/A | BN48: N/A | BO48: N/A | BP48: N/A | BQ48: N/A | BR48: N/A | BS48: N/A | BT48: N/A
B49: Highly contaminated (>100 CFU/100 mL) | C49: N/A | D49: N/A | E49: N/A | F49: N/A | G49: N/A | H49: N/A | I49: N/A | J49: N/A | K49: N/A | L49: N/A | M49: N/A | N49: N/A | O49: N/A | P49: N/A | Q49: N/A | R49: N/A | S49: N/A | T49: N/A | BB49: Highly contaminated (>100 CFU/100 mL) | BC49: N/A | BD49: N/A | BE49: N/A | BF49: N/A | BG49: N/A | BH49: N/A | BI49: N/A | BJ49: N/A | BK49: N/A | BL49: N/A | BM49: N/A | BN49: N/A | BO49: N/A | BP49: N/A | BQ49: N/A | BR49: N/A | BS49: N/A | BT49: N/A
A50: Microbiological quality of improved water sources at point of collection | B50: Not contaminated (No E. coli in 100 mL) | C50: N/A | D50: N/A | E50: N/A | F50: N/A | G50: N/A | H50: N/A | I50: N/A | J50: N/A | K50: N/A | L50: N/A | M50: N/A | N50: N/A | O50: N/A | P50: N/A | Q50: N/A | R50: N/A | S50: N/A | T50: N/A | BA50: Microbiological quality of improved water sources at point of collection | BB50: Not contaminated (No E. coli in 100 mL) | BC50: N/A | BD50: N/A | BE50: N/A | BF50: N/A | BG50: N/A | BH50: N/A | BI50: N/A | BJ50: N/A | BK50: N/A | BL50: N/A | BM50: N/A | BN50: N/A | BO50: N/A | BP50: N/A | BQ50: N/A | BR50: N/A | BS50: N/A | BT50: N/A
B51: Contaminated (E. coli detected in 100 mL) | C51: N/A | D51: N/A | E51: N/A | F51: N/A | G51: N/A | H51: N/A | I51: N/A | J51: N/A | K51: N/A | L51: N/A | M51: N/A | N51: N/A | O51: N/A | P51: N/A | Q51: N/A | R51: N/A | S51: N/A | T51: N/A | BB51: Contaminated (E. coli detected in 100 mL) | BC51: N/A | BD51: N/A | BE51: N/A | BF51: N/A | BG51: N/A | BH51: N/A | BI51: N/A | BJ51: N/A | BK51: N/A | BL51: N/A | BM51: N/A | BN51: N/A | BO51: N/A | BP51: N/A | BQ51: N/A | BR51: N/A | BS51: N/A | BT51: N/A
B52: Highly contaminated (>100 CFU/100 mL) | C52: N/A | D52: N/A | E52: N/A | F52: N/A | G52: N/A | H52: N/A | I52: N/A | J52: N/A | K52: N/A | L52: N/A | M52: N/A | N52: N/A | O52: N/A | P52: N/A | Q52: N/A | R52: N/A | S52: N/A | T52: N/A | BB52: Highly contaminated (>100 CFU/100 mL) | BC52: N/A | BD52: N/A | BE52: N/A | BF52: N/A | BG52: N/A | BH52: N/A | BI52: N/A | BJ52: N/A | BK52: N/A | BL52: N/A | BM52: N/A | BN52: N/A | BO52: N/A | BP52: N/A | BQ52: N/A | BR52: N/A | BS52: N/A | BT52: N/A
A53: Microbiological quality of piped on premises at point of collection | B53: Not contaminated (No E. coli in 100 mL) | C53: N/A | D53: N/A | E53: N/A | F53: N/A | G53: N/A | H53: N/A | I53: N/A | J53: N/A | K53: N/A | L53: N/A | M53: N/A | N53: N/A | O53: N/A | P53: N/A | Q53: N/A | R53: N/A | S53: N/A | T53: N/A | BA53: Microbiological quality of piped on premises at point of collection | BB53: Not contaminated (No E. coli in 100 mL) | BC53: N/A | BD53: N/A | BE53: N/A | BF53: N/A | BG53: N/A | BH53: N/A | BI53: N/A | BJ53: N/A | BK53: N/A | BL53: N/A | BM53: N/A | BN53: N/A | BO53: N/A | BP53: N/A | BQ53: N/A | BR53: N/A | BS53: N/A | BT53: N/A
B54: Contaminated (E. coli detected in 100 mL) | C54: N/A | D54: N/A | E54: N/A | F54: N/A | G54: N/A | H54: N/A | I54: N/A | J54: N/A | K54: N/A | L54: N/A | M54: N/A | N54: N/A | O54: N/A | P54: N/A | Q54: N/A | R54: N/A | S54: N/A | T54: N/A | BB54: Contaminated (E. coli detected in 100 mL) | BC54: N/A | BD54: N/A | BE54: N/A | BF54: N/A | BG54: N/A | BH54: N/A | BI54: N/A | BJ54: N/A | BK54: N/A | BL54: N/A | BM54: N/A | BN54: N/A | BO54: N/A | BP54: N/A | BQ54: N/A | BR54: N/A | BS54: N/A | BT54: N/A
B55: Highly contaminated (>100 CFU/100 mL) | C55: N/A | D55: N/A | E55: N/A | F55: N/A | G55: N/A | H55: N/A | I55: N/A | J55: N/A | K55: N/A | L55: N/A | M55: N/A | N55: N/A | O55: N/A | P55: N/A | Q55: N/A | R55: N/A | S55: N/A | T55: N/A | BB55: Highly contaminated (>100 CFU/100 mL) | BC55: N/A | BD55: N/A | BE55: N/A | BF55: N/A | BG55: N/A | BH55: N/A | BI55: N/A | BJ55: N/A | BK55: N/A | BL55: N/A | BM55: N/A | BN55: N/A | BO55: N/A | BP55: N/A | BQ55: N/A | BR55: N/A | BS55: N/A | BT55: N/A
C56: NATIONAL wealth index quintile | H56: URBAN wealth index quintile | M56: RURAL wealth index quintile | R56: SUB-REGIONS: | BA56: Raw numbers of respondents: | BB56: Use of drinking water sources | BC56: NATIONAL wealth index quintile | BH56: URBAN wealth index quintile | BM56: RURAL wealth index quintile | BR56: SUB-REGIONS:
A57: Percentage based on weighted population | C57: Poorest | D57: Poor | E57: Middle | F57: Rich | G57: Richest | H57: Poorest | I57: Poor | J57: Middle | K57: Rich | L57: Richest | M57: Poorest | N57: Poor | O57: Middle | P57: Rich | Q57: Richest | R57: Central South | S57: North East | T57: North West | BA57: Water data, raw numbers (weighted) | BC57: Poorest | BD57: Poor | BE57: Middle | BF57: Rich | BG57: Richest | BH57: Poorest | BI57: Poor | BJ57: Middle | BK57: Rich | BL57: Richest | BM57: Poorest | BN57: Poor | BO57: Middle | BP57: Rich | BQ57: Richest | BR57: Central South | BS57: North East | BT57: North West
A58: Main source of drinking water | B58: Piped into dwelling | C58: 0.375321008 | D58: 0.2551350002 | E58: 1.291253438 | F58: 9.357249892 | G58: 48.92421741 | H58: 4.098006959 | I58: 15.00558891 | J58: 25.50149754 | K58: 43.43965497 | L58: 67.66662723 | M58: 0.1383533304 | N58: 0.2488983732 | O58: 0.08295044994 | P58: 0 | Q58: 0.8881101439 | R58: 11.39550579 | S58: 8.84674574 | T58: 14.97017928
B59: Piped into yard or plot | C59: 0 | D59: 0 | E59: 0.05336020741 | F59: 2.768226107 | G59: 11.77634969 | H59: 0.2489662138 | I59: 3.651710112 | J59: 9.957512549 | K59: 13.89999793 | L59: 10.51931881 | M59: 0 | N59: 0 | O59: 0 | P59: 0 | Q59: 0 | R59: 3.334480013 | S59: 2.292691277 | T59: 2.123078569
B60: Public tap/standpipe | C60: 4.798370971 | D60: 3.231524403 | E60: 6.817595639 | F60: 16.05096292 | G60: 9.056656678 | H60: 20.93540651 | I60: 19.64496815 | J60: 14.15032602 | K60: 6.793708073 | L60: 9.129836257 | M60: 3.745431357 | N60: 1.546729175 | O60: 1.840710181 | P60: 3.075605451 | Q60: 10.83849764 | R60: 4.181707908 | S60: 6.139656542 | T60: 18.3916448
B61: Tubewell/borehole | C61: 0.8056761103 | D61: 1.943473819 | E61: 2.516613971 | F61: 3.542473398 | G61: 0.7786561815 | H61: 2.954448968 | I61: 2.518808341 | J61: 1.462655888 | K61: 1.218430552 | L61: 0.2345719144 | M61: 0.5842906782 | N61: 1.052288138 | O61: 1.897111918 | P61: 2.610149101 | Q61: 4.181723996 | R61: 1.675054546 | S61: 0.6982024607 | T61: 3.031847303
B62: Protected well | C62: 5.665038865 | D62: 3.703175087 | E62: 4.799994423 | F62: 4.924642888 | G62: 1.095312488 | H62: 9.939907286 | I62: 4.367172438 | J62: 2.033265528 | K62: 1.503912211 | L62: 0.1541735032 | M62: 4.84326571 | N62: 2.94754015 | O62: 4.153456868 | P62: 3.774556558 | Q62: 5.819670091 | R62: 4.865199051 | S62: 4.869918269 | T62: 1.601806793
B63: Unprotected well | C63: 34.13562776 | D63: 21.8030983 | E63: 19.98794035 | F63: 12.21136615 | G63: 2.063320653 | H63: 23.1908653 | I63: 17.70282899 | J63: 6.36862526 | K63: 1.800062841 | L63: 0.6378596058 | M63: 36.32903216 | N63: 29.02722595 | O63: 19.06652482 | P63: 21.42787085 | Q63: 9.310928351 | R63: 22.16363899 | S63: 7.93366656 | T63: 11.75000277
B64: Protected spring | C64: 0 | D64: 0.248805981 | E64: 0.1376665075 | F64: 0.6279340591 | G64: 0 | H64: 0 | I64: 0 | J64: 0 | K64: 0 | L64: 0 | M64: 0 | N64: 0.07748111124 | O64: 0.3246705771 | P64: 0.04423392394 | Q64: 1.193309314 | R64: 0.01103887368 | S64: 1.487109823 | T64: 0.1616953674
B65: Unprotected spring | C65: 1.25672782 | D65: 1.225774701 | E65: 2.860737233 | F65: 2.144760931 | G65: 0.1505919046 | H65: 0 | I65: 0 | J65: 0 | K65: 0.3945873262 | L65: 0 | M65: 1.355883342 | N65: 1.300702512 | O65: 1.355535513 | P65: 3.650597908 | Q65: 4.438977649 | R65: 0.5286047992 | S65: 2.861539117 | T65: 3.510597106
B66: Roof top | C66: 0 | D66: 0 | E66: 0.1520739418 | F66: 0.2731925337 | G66: 0.2559967415 | H66: 0 | I66: 0.2178241075 | J66: 0 | K66: 0.2869726009 | L66: 0 | M66: 0 | N66: 0 | O66: 0 | P66: 0.1597029008 | Q66: 0.6302517035 | R66: 0 | S66: 0.6578866739 | T66: 0.2671255034
B67: Berkad | C67: 8.838240699 | D67: 24.95969054 | E67: 21.06614786 | F67: 20.55463737 | G67: 3.015628318 | H67: 7.284951557 | I67: 5.166698654 | J67: 5.17088843 | K67: 4.950712124 | L67: 1.020069855 | M67: 7.382365882 | N67: 17.71843672 | O67: 28.31715048 | P67: 24.27405109 | Q67: 34.53406522 | R67: 5.483693914 | S67: 43.20340829 | T67: 30.23565381
B68: Balli | C68: 5.917722203 | D68: 4.852289359 | E68: 2.164501722 | F68: 0 | G68: 0 | H68: 0 | I68: 0 | J68: 0 | K68: 0 | L68: 0 | M68: 6.995925964 | N68: 6.597595361 | O68: 4.13499013 | P68: 2.907981387 | Q68: 0.2676116812 | R68: 3.164112417 | S68: 0.1523981286 | T68: 2.124615776
B69: Tanker-truck | C69: 1.398601736 | D69: 2.182702756 | E69: 1.579717061 | F69: 8.327944981 | G69: 8.789158136 | H69: 4.323573822 | I69: 7.120413092 | J69: 9.814513511 | K69: 10.80190027 | L69: 5.960521132 | M69: 1.063846753 | N69: 1.572072146 | O69: 2.152345436 | P69: 0.5873045867 | Q69: 7.198139729 | R69: 0.7399030088 | S69: 13.59687398 | T69: 10.10858768
B70: Cart with small tank/drum | C70: 1.731922974 | D70: 1.083018091 | E70: 3.021212924 | F70: 11.89875623 | G70: 12.68881099 | H70: 12.18327597 | I70: 18.64187527 | J70: 20.91083772 | K70: 14.33360779 | L70: 4.677021701 | M70: 0.5701410885 | N70: 0.3042091228 | O70: 0.6022658251 | P70: 0.8920426725 | Q70: 3.201749052 | R70: 8.727948088 | S70: 2.473042766 | T70: 0.8723163032
B71: Surface water | C71: 32.04744394 | D71: 28.9298843 | E71: 28.40941049 | F71: 4.2475487 | G71: 0.1466666511 | H71: 10.73075901 | I71: 2.646919394 | J71: 0.3842264805 | K71: 0 | L71: 0 | M71: 33.81045533 | N71: 33.63028275 | O71: 28.82059986 | P71: 32.02475224 | Q71: 14.80093958 | R71: 28.43297267 | S71: 4.600204003 | T71: 0.07761224943
B72: Bottled water | C72: 0 | D72: 0 | E72: 0.05130430788 | F72: 0.1649595828 | G72: 0.5571135445 | H72: 0 | I72: 0.4331322645 | J72: 0.883145274 | K72: 0.5764533143 | L72: 0 | M72: 0 | N72: 0 | O72: 0 | P72: 0.08288930115 | Q72: 0 | R72: 0.2277997366 | S72: 0.08016792 | T72: 0
B73: Other | C73: 2.720754411 | D73: 5.318063833 | E73: 4.806508612 | F73: 2.49448704 | G73: 0.701520612 | H73: 3.923865727 | I73: 2.772500203 | J73: 2.395246864 | K73: 0 | L73: 0 | M73: 2.682309579 | N73: 3.687520145 | O73: 7.229554661 | P73: 4.029482717 | Q73: 2.696025839 | R73: 4.691084568 | S73: 0 | T73: 0.7732366735
B74: Missing | C74: 0.3085514992 | D74: 0.2633638239 | E74: 0.2839613182 | F74: 0.4108572215 | G74: 0 | H74: 0.1859726733 | I74: 0.1095600782 | J74: 0.9672589393 | K74: 0 | L74: 0 | M74: 0.4986988257 | N74: 0.2890183517 | O74: 0.02213327802 | P74: 0.458779315 | Q74: 0 | R74: 0.3772556261 | S74: 0.1064884478 | T74: 0
A108: =A1026 -> Somalia
A109: =A1034 -> 2006
A110: Use of sanitation facilities
A111: by wealth quintile and sub-national region
A112: Notes:
A113: WHO/UNICEF JMP customised wealth index excludes water,
A114: sanitation and hygiene assets.
A115: Survey used for analysis: | B115: =A1025 -> MICS06
A116: =B1030 -> 
A117: =B1029 -> 
A120: Use of sanitation facilities | C120: NATIONAL wealth index quintile | H120: URBAN wealth index quintile | M120: RURAL wealth index quintile | R120: SUB-REGIONS: | BA120: Raw numbers of respondents: | BB120: Use of sanitation facilities | BC120: NATIONAL wealth index quintile | BH120: URBAN wealth index quintile | BM120: RURAL wealth index quintile | BR120: SUB-REGIONS:
A121: Weighted percentage (used in graphs) | C121: Poorest | D121: Poor | E121: Middle | F121: Rich | G121: Richest | H121: Poorest | I121: Poor | J121: Middle | K121: Rich | L121: Richest | M121: Poorest | N121: Poor | O121: Middle | P121: Rich | Q121: Richest | R121: Central South | S121: North East | T121: North West | BA121: Sanitation data, raw numbers (weighted) | BC121: Poorest | BD121: Poor | BE121: Middle | BF121: Rich | BG121: Richest | BH121: Poorest | BI121: Poor | BJ121: Middle | BK121: Rich | BL121: Richest | BM121: Poorest | BN121: Poor | BO121: Middle | BP121: Rich | BQ121: Richest | BR121: Central South | BS121: North East | BT121: North West
A122: Sanitation | B122: Improved | C122: 9.606663017 | D122: 7.346821785 | E122: 18.54921934 | F122: 65.01463797 | G122: 86.22121104 | H122: 55.43501665 | I122: 73.54103876 | J122: 87.12799466 | K122: 89.31324168 | L122: 82.21708719 | M122: 2.738515096 | N122: 2.519054693 | O122: 5.539005757 | P122: 8.690377546 | Q122: 43.45252368 | R122: 35.27593808 | S122: 43.68528367 | T122: 39.96994224 | BA122: Sanitation | BB122: Improved | BC122: 652.1697326 | BD122: 499.1284175 | BE122: 1260.637058 | BF122: 4415.227458 | BG122: 5853.959367 | BH122: 1435.499954 | BI122: 1902.079684 | BJ122: 2258.069924 | BK122: 2314.248185 | BL122: 2126.207193 | BM122: 115.0250782 | BN122: 105.8656479 | BO122: 232.8259247 | BP122: 365.5598011 | BQ122: 1825.74064 | BR122: 7693.306203 | BS122: 1544.136984 | BT122: 3443.678846
B123: Not Improved | C123: 90.39333698 | D123: 92.65317822 | E123: 81.45078066 | F123: 34.98536203 | G123: 13.77878896 | H123: 44.56498335 | I123: 26.45896124 | J123: 12.87200534 | K123: 10.68675832 | L123: 17.78291281 | M123: 97.2614849 | N123: 97.48094531 | O123: 94.46099424 | P123: 91.30962245 | Q123: 56.54747632 | R123: 64.72406192 | S123: 56.31471633 | T123: 60.03005776 | BB123: Not Improved | BC123: 6136.553172 | BD123: 6294.672115 | BE123: 5535.536058 | BF123: 2375.900811 | BG123: 935.5061212 | BH123: 1154.018442 | BI123: 684.3397031 | BJ123: 333.5998749 | BK123: 276.9109102 | BL123: 459.8819836 | BM123: 4085.246754 | BN123: 4096.72861 | BO123: 3970.562462 | BP123: 3840.929494 | BQ123: 2375.950045 | BR123: 14115.62822 | BS123: 1990.547592 | BT123: 5171.992464
A124: Sanitation ladder | B124: Basic | C124: 5.596176097 | D124: 4.003507488 | E124: 10.77968382 | F124: 35.02301419 | G124: 59.27664913 | H124: 32.25720547 | I124: 40.9864448 | J124: 48.34492036 | K124: 55.31002905 | L124: 70.3658291 | M124: 1.677401967 | N124: 0.9627852409 | O124: 3.335865155 | P124: 4.160770745 | Q124: 22.8022804 | R124: 20.72393461 | S124: 20.582844 | T124: 29.40805604 | BA124: Sanitation ladder | BB124: Basic | BC124: 379.9088885 | BD124: 271.4215351 | BE124: 730.5573702 | BF124: 2366.442852 | BG124: 4009.684749 | BH124: 835.3062695 | BI124: 1057.783212 | BJ124: 1247.520878 | BK124: 1428.572689 | BL124: 1811.414988 | BM124: 70.45544234 | BN124: 40.46195725 | BO124: 139.7454424 | BP124: 174.3284248 | BQ124: 952.426092 | BR124: 4517.216796 | BS124: 719.8013852 | BT124: 2520.997214
B125: Limited | C125: 4.010486919 | D125: 3.14915474 | E125: 7.541134116 | F125: 29.81399518 | G125: 26.8934187 | H125: 23.17781118 | I125: 32.49710915 | J125: 38.72715221 | K125: 33.96881507 | L125: 11.76969629 | M125: 1.061113129 | N125: 1.556269452 | O125: 1.882790067 | P125: 4.166129522 | Q125: 20.31448256 | R125: 14.51686312 | S125: 22.49710637 | T125: 10.25937262 | BB125: Limited | BC125: 272.2608441 | BD125: 213.4998913 | BE125: 511.0753898 | BF125: 2014.478691 | BG125: 1819.167115 | BH125: 600.1936841 | BI125: 838.6893923 | BJ125: 999.3383085 | BK125: 877.3620681 | BL125: 302.9851923 | BM125: 44.56963585 | BN125: 65.40369061 | BO125: 78.8734912 | BP125: 174.5529474 | BQ125: 848.5135212 | BR125: 3164.255203 | BS125: 786.7449381 | BT125: 879.4817907
B126: Unimproved | C126: 5.367018187 | D126: 3.569426328 | E126: 6.343501522 | F126: 15.87063978 | G126: 13.45910768 | H126: 16.71119399 | I126: 17.1633689 | J126: 11.94401988 | K126: 10.68458533 | L126: 17.86447461 | M126: 3.470963888 | N126: 2.65103847 | O126: 2.325642757 | P126: 4.218616762 | Q126: 13.59612493 | R126: 6.476131521 | S126: 6.942452025 | T126: 15.91880029 | BB126: Unimproved | BC126: 364.351993 | BD126: 241.9925968 | BE126: 429.9098071 | BF126: 1072.350936 | BG126: 910.4222249 | BH126: 432.7394425 | BI126: 442.9543369 | BJ126: 308.2105434 | BK126: 275.9663491 | BL126: 459.8819836 | BM126: 145.7899185 | BN126: 111.4123905 | BO126: 97.42539369 | BP126: 176.7520635 | BQ126: 567.8951363 | BR126: 1411.608878 | BS126: 242.7840673 | BT126: 1364.634613
B127: Open defecation | C127: 85.0263188 | D127: 89.27791144 | E127: 75.33568055 | F127: 19.29235085 | G127: 0.3708244943 | H127: 27.85378935 | I127: 9.353077152 | J127: 0.9839075504 | K127: 0.03657055651 | L127: 0 | M127: 93.79052102 | N127: 94.82990684 | O127: 92.45570202 | P127: 87.45448297 | Q127: 43.28711211 | R127: 58.28307075 | S127: 49.9775976 | T127: 44.41377105 | BB127: Open defecation | BC127: 5772.201179 | BD127: 6052.679518 | BE127: 5105.626251 | BF127: 1303.549875 | BG127: 25.08389629 | BH127: 721.278999 | BI127: 241.3853662 | BJ127: 25.38933154 | BK127: 0.9445610342 | BL127: 0 | BM127: 3939.456835 | BN127: 3985.316219 | BO127: 3873.137068 | BP127: 3664.17743 | BQ127: 1808.054909 | BR127: 12704.01934 | BS127: 1747.763525 | BT127: 3807.357851
A128: Shared among Improved Sanitation | B128: Yes | C128: 41.74693036 | D128: 44.02772897 | E128: 41.16155809 | F128: 45.98298945 | G128: 31.20969888 | H128: 41.81077697 | I128: 44.22364924 | J128: 44.4771223 | K128: 38.04800051 | L128: 14.32960492 | M128: 38.74775532 | N128: 61.77989927 | O128: 36.07806968 | P128: 50.0321775 | Q128: 47.11504567 | R128: 41.19334423 | S128: 52.22175554 | T128: 25.86346775 | BA128: Shared among improved sanitation facilities | BB128: Yes | BC128: N/A | BD128: N/A | BE128: N/A | BF128: N/A | BG128: N/A | BH128: N/A | BI128: N/A | BJ128: N/A | BK128: N/A | BL128: N/A | BM128: N/A | BN128: N/A | BO128: N/A | BP128: N/A | BQ128: N/A | BR128: N/A | BS128: N/A | BT128: N/A
B129: No | C129: 58.25306964 | D129: 55.97227103 | E129: 58.83844191 | F129: 54.01701055 | G129: 68.79030112 | H129: 58.18922303 | I129: 55.77635076 | J129: 55.5228777 | K129: 61.95199949 | L129: 85.67039508 | M129: 61.25224468 | N129: 38.22010073 | O129: 63.92193032 | P129: 49.9678225 | Q129: 52.88495433 | R129: 58.80665577 | S129: 47.77824446 | T129: 74.13653225 | BB129: No | BC129: N/A | BD129: N/A | BE129: N/A | BF129: N/A | BG129: N/A | BH129: N/A | BI129: N/A | BJ129: N/A | BK129: N/A | BL129: N/A | BM129: N/A | BN129: N/A | BO129: N/A | BP129: N/A | BQ129: N/A | BR129: N/A | BS129: N/A | BT129: N/A
A130: Manually calculated ratios | B130: Improved latrines | C130: =(C157+C158)/(C157+C158+C159)*100 -> 20.75421074 | D130: =(D157+D158)/(D157+D158+D159)*100 -> 36.69764038 | E130: 46.19547791 | F130: 54.82486633 | G130: 54.71291014 | H130: 35.60253877 | I130: 48.25378156 | J130: 53.39054393 | K130: 58.92047055 | L130: 51.65660139 | M130: 2.765508195 | N130: 23.02142369 | O130: 49.46139221 | P130: 42.73271377 | Q130: 59.4335211 | R130: 43.77396736 | S130: 67.99812007 | T130: 50.70694366
B131: Other
B132: Other
C133: NATIONAL wealth index quintile | H133: URBAN wealth index quintile | M133: RURAL wealth index quintile | R133: SUB-REGIONS: | BA133: Raw numbers of respondents: | BB133: Use of sanitation facilities | BC133: NATIONAL wealth index quintile | BH133: URBAN wealth index quintile | BM133: RURAL wealth index quintile | BR133: SUB-REGIONS:
A134: Percentage based on weighted population | C134: Poorest | D134: Poor | E134: Middle | F134: Rich | G134: Richest | H134: Poorest | I134: Poor | J134: Middle | K134: Rich | L134: Richest | M134: Poorest | N134: Poor | O134: Middle | P134: Rich | Q134: Richest | R134: Central South | S134: North East | T134: North West | BA134: Sanitation data, raw numbers (weighted) | BC134: Poorest | BD134: Poor | BE134: Middle | BF134: Rich | BG134: Richest | BH134: Poorest | BI134: Poor | BJ134: Middle | BK134: Rich | BL134: Richest | BM134: Poorest | BN134: Poor | BO134: Middle | BP134: Rich | BQ134: Richest | BR134: Central South | BS134: North East | BT134: North West
A135: Sanitation type | B135: Sewer connection | C135: 0.1621971065 | D135: 0.3911798005 | E135: 0.5247769019 | F135: 5.272264484 | G135: 33.70246688 | H135: 2.507882046 | I135: 6.077968618 | J135: 29.38178496 | K135: 38.10869394 | L135: 27.11420296 | M135: 0 | N135: 0.06148112164 | O135: 0.185685467 | P135: 0 | Q135: 0.8770165194 | R135: 11.51365878 | S135: 3.60619449 | T135: 0.9406294385 | BA135: Sanitation type | BB135: Sewer connection | BC135: N/A | BD135: N/A | BE135: N/A | BF135: N/A | BG135: N/A | BH135: N/A | BI135: N/A | BJ135: N/A | BK135: N/A | BL135: N/A | BM135: N/A | BN135: N/A | BO135: N/A | BP135: N/A | BQ135: N/A | BR135: N/A | BS135: N/A | BT135: N/A
B136: Septic tank connection | C136: 0.09820514491 | D136: 0 | E136: 0.1956318299 | F136: 0.564698548 | G136: 1.929177212 | H136: 0.9723678422 | I136: 1.049589482 | J136: 0.2881698604 | K136: 2.578833843 | L136: 2.192141035 | M136: 0 | N136: 0 | O136: 0 | P136: 0 | Q136: 0.1424504126 | R136: 0.4726748401 | S136: 0.9395075354 | T136: 0.6151418842 | BB136: Septic tank connection | BC136: N/A | BD136: N/A | BE136: N/A | BF136: N/A | BG136: N/A | BH136: N/A | BI136: N/A | BJ136: N/A | BK136: N/A | BL136: N/A | BM136: N/A | BN136: N/A | BO136: N/A | BP136: N/A | BQ136: N/A | BR136: N/A | BS136: N/A | BT136: N/A
B137: Improved latrines | C137: 9.346260766 | D137: 6.955641984 | E137: 17.82881061 | F137: 59.17767493 | G137: 50.58956695 | H137: 51.95476677 | I137: 66.41348066 | J137: 57.45803984 | K137: 48.6257139 | L137: 52.91074319 | M137: 2.738515096 | N137: 2.457573571 | O137: 5.35332029 | P137: 8.690377546 | Q137: 42.43305675 | R137: 23.28960445 | S137: 39.13958164 | T137: 38.41417092 | BB137: Improved latrines | BC137: N/A | BD137: N/A | BE137: N/A | BF137: N/A | BG137: N/A | BH137: N/A | BI137: N/A | BJ137: N/A | BK137: N/A | BL137: N/A | BM137: N/A | BN137: N/A | BO137: N/A | BP137: N/A | BQ137: N/A | BR137: N/A | BS137: N/A | BT137: N/A
B138: Unimproved facilities | C138: 5.367018187 | D138: 3.561962051 | E138: 6.32576304 | F138: 15.790468 | G138: 13.40933578 | H138: 16.71119399 | I138: 17.12616055 | J138: 11.89235386 | K138: 10.6503051 | L138: 17.78291281 | M138: 3.470963888 | N138: 2.65103847 | O138: 2.31778234 | P138: 4.201890249 | Q138: 13.51587203 | R138: 6.472617371 | S138: 6.868620442 | T138: 15.83898182 | BB138: Unimproved facilities | BC138: N/A | BD138: N/A | BE138: N/A | BF138: N/A | BG138: N/A | BH138: N/A | BI138: N/A | BJ138: N/A | BK138: N/A | BL138: N/A | BM138: N/A | BN138: N/A | BO138: N/A | BP138: N/A | BQ138: N/A | BR138: N/A | BS138: N/A | BT138: N/A
B139: Open defecation | C139: 85.0263188 | D139: 89.09121616 | E139: 75.12501762 | F139: 19.19489403 | G139: 0.3694531821 | H139: 27.85378935 | I139: 9.332800682 | J139: 0.9796514799 | K139: 0.03645322419 | L139: 0 | M139: 93.79052102 | N139: 94.82990684 | O139: 92.1432119 | P139: 87.10773221 | Q139: 43.03160429 | R139: 58.25144455 | S139: 49.44609589 | T139: 44.19107594 | BB139: Open defecation | BC139: N/A | BD139: N/A | BE139: N/A | BF139: N/A | BG139: N/A | BH139: N/A | BI139: N/A | BJ139: N/A | BK139: N/A | BL139: N/A | BM139: N/A | BN139: N/A | BO139: N/A | BP139: N/A | BQ139: N/A | BR139: N/A | BS139: N/A | BT139: N/A
A140: Septic tank emptying practices | B140: Not emptied/treated and disposed in situ | C140: N/A | D140: N/A | E140: N/A | F140: N/A | G140: N/A | H140: N/A | I140: N/A | J140: N/A | K140: N/A | L140: N/A | M140: N/A | N140: N/A | O140: N/A | P140: N/A | Q140: N/A | R140: N/A | S140: N/A | T140: N/A | BA140: Septic tank emptying practices | BB140: Not emptied/treated and disposed in situ | BC140: N/A | BD140: N/A | BE140: N/A | BF140: N/A | BG140: N/A | BH140: N/A | BI140: N/A | BJ140: N/A | BK140: N/A | BL140: N/A | BM140: N/A | BN140: N/A | BO140: N/A | BP140: N/A | BQ140: N/A | BR140: N/A | BS140: N/A | BT140: N/A
B141: Emptied and buried on site | C141: N/A | D141: N/A | E141: N/A | F141: N/A | G141: N/A | H141: N/A | I141: N/A | J141: N/A | K141: N/A | L141: N/A | M141: N/A | N141: N/A | O141: N/A | P141: N/A | Q141: N/A | R141: N/A | S141: N/A | T141: N/A | BB141: Emptied and buried on site | BC141: N/A | BD141: N/A | BE141: N/A | BF141: N/A | BG141: N/A | BH141: N/A | BI141: N/A | BJ141: N/A | BK141: N/A | BL141: N/A | BM141: N/A | BN141: N/A | BO141: N/A | BP141: N/A | BQ141: N/A | BR141: N/A | BS141: N/A | BT141: N/A
B142: Emptied and discharged locally | C142: N/A | D142: N/A | E142: N/A | F142: N/A | G142: N/A | H142: N/A | I142: N/A | J142: N/A | K142: N/A | L142: N/A | M142: N/A | N142: N/A | O142: N/A | P142: N/A | Q142: N/A | R142: N/A | S142: N/A | T142: N/A | BB142: Emptied and discharged locally | BC142: N/A | BD142: N/A | BE142: N/A | BF142: N/A | BG142: N/A | BH142: N/A | BI142: N/A | BJ142: N/A | BK142: N/A | BL142: N/A | BM142: N/A | BN142: N/A | BO142: N/A | BP142: N/A | BQ142: N/A | BR142: N/A | BS142: N/A | BT142: N/A
B143: Emptied and removed offsite | C143: N/A | D143: N/A | E143: N/A | F143: N/A | G143: N/A | H143: N/A | I143: N/A | J143: N/A | K143: N/A | L143: N/A | M143: N/A | N143: N/A | O143: N/A | P143: N/A | Q143: N/A | R143: N/A | S143: N/A | T143: N/A | BB143: Emptied and removed offsite | BC143: N/A | BD143: N/A | BE143: N/A | BF143: N/A | BG143: N/A | BH143: N/A | BI143: N/A | BJ143: N/A | BK143: N/A | BL143: N/A | BM143: N/A | BN143: N/A | BO143: N/A | BP143: N/A | BQ143: N/A | BR143: N/A | BS143: N/A | BT143: N/A
A144: Latrine emptying practices | B144: Not emptied/treated and disposed in situ | C144: N/A | D144: N/A | E144: N/A | F144: N/A | G144: N/A | H144: N/A | I144: N/A | J144: N/A | K144: N/A | L144: N/A | M144: N/A | N144: N/A | O144: N/A | P144: N/A | Q144: N/A | R144: N/A | S144: N/A | T144: N/A | BA144: Latrine emptying practices | BB144: Not emptied/treated and disposed in situ | BC144: N/A | BD144: N/A | BE144: N/A | BF144: N/A | BG144: N/A | BH144: N/A | BI144: N/A | BJ144: N/A | BK144: N/A | BL144: N/A | BM144: N/A | BN144: N/A | BO144: N/A | BP144: N/A | BQ144: N/A | BR144: N/A | BS144: N/A | BT144: N/A
B145: Emptied and buried on site | C145: N/A | D145: N/A | E145: N/A | F145: N/A | G145: N/A | H145: N/A | I145: N/A | J145: N/A | K145: N/A | L145: N/A | M145: N/A | N145: N/A | O145: N/A | P145: N/A | Q145: N/A | R145: N/A | S145: N/A | T145: N/A | BB145: Emptied and buried on site | BC145: N/A | BD145: N/A | BE145: N/A | BF145: N/A | BG145: N/A | BH145: N/A | BI145: N/A | BJ145: N/A | BK145: N/A | BL145: N/A | BM145: N/A | BN145: N/A | BO145: N/A | BP145: N/A | BQ145: N/A | BR145: N/A | BS145: N/A | BT145: N/A
B146: Emptied and discharged locally | C146: N/A | D146: N/A | E146: N/A | F146: N/A | G146: N/A | H146: N/A | I146: N/A | J146: N/A | K146: N/A | L146: N/A | M146: N/A | N146: N/A | O146: N/A | P146: N/A | Q146: N/A | R146: N/A | S146: N/A | T146: N/A | BB146: Emptied and discharged locally | BC146: N/A | BD146: N/A | BE146: N/A | BF146: N/A | BG146: N/A | BH146: N/A | BI146: N/A | BJ146: N/A | BK146: N/A | BL146: N/A | BM146: N/A | BN146: N/A | BO146: N/A | BP146: N/A | BQ146: N/A | BR146: N/A | BS146: N/A | BT146: N/A
B147: Emptied and removed offsite | C147: N/A | D147: N/A | E147: N/A | F147: N/A | G147: N/A | H147: N/A | I147: N/A | J147: N/A | K147: N/A | L147: N/A | M147: N/A | N147: N/A | O147: N/A | P147: N/A | Q147: N/A | R147: N/A | S147: N/A | T147: N/A | BB147: Emptied and removed offsite | BC147: N/A | BD147: N/A | BE147: N/A | BF147: N/A | BG147: N/A | BH147: N/A | BI147: N/A | BJ147: N/A | BK147: N/A | BL147: N/A | BM147: N/A | BN147: N/A | BO147: N/A | BP147: N/A | BQ147: N/A | BR147: N/A | BS147: N/A | BT147: N/A
A148: Shared among improved sanitation facilities | B148: Yes | C148: 4.010486919 | D148: 3.142569322 | E148: 7.520046666 | F148: 29.66338746 | G148: 26.7939666 | H148: 23.17781118 | I148: 32.42665889 | J148: 38.55963089 | K148: 33.85983013 | L148: 11.71596073 | M148: 1.061113129 | N148: 1.556269452 | O148: 1.876426443 | P148: 4.149611116 | Q148: 20.19457368 | R148: 14.50898582 | S148: 22.25785417 | T148: 10.2079311 | BA148: Shared among improved sanitation facilities | BB148: Yes | BC148: N/A | BD148: N/A | BE148: N/A | BF148: N/A | BG148: N/A | BH148: N/A | BI148: N/A | BJ148: N/A | BK148: N/A | BL148: N/A | BM148: N/A | BN148: N/A | BO148: N/A | BP148: N/A | BQ148: N/A | BR148: N/A | BS148: N/A | BT148: N/A
B149: No | C149: 5.596176097 | D149: 3.995135474 | E149: 10.74954033 | F149: 34.84609271 | G149: 59.05744357 | H149: 32.25720547 | I149: 40.89759057 | J149: 48.13579565 | K149: 55.13257336 | L149: 70.04456785 | M149: 1.677401967 | N149: 0.9627852409 | O149: 3.324590297 | P149: 4.144273587 | Q149: 22.66768697 | R149: 20.71268916 | S149: 20.36394959 | T149: 29.2606011 | BB149: No | BC149: N/A | BD149: N/A | BE149: N/A | BF149: N/A | BG149: N/A | BH149: N/A | BI149: N/A | BJ149: N/A | BK149: N/A | BL149: N/A | BM149: N/A | BN149: N/A | BO149: N/A | BP149: N/A | BQ149: N/A | BR149: N/A | BS149: N/A | BT149: N/A
B150: DK/missing | C150: 90.39333698 | D150: 92.8622952 | E150: 81.730413 | F150: 35.49051983 | G150: 14.14858983 | H150: 44.56498335 | I150: 26.67575053 | J150: 13.30457347 | K150: 11.00759651 | L150: 18.23947143 | M150: 97.2614849 | N150: 97.48094531 | O150: 94.79898326 | P150: 91.7061153 | Q150: 57.13773935 | R150: 64.77832502 | S150: 57.37819624 | T150: 60.53146781 | BB150: DK/missing | BC150: N/A | BD150: N/A | BE150: N/A | BF150: N/A | BG150: N/A | BH150: N/A | BI150: N/A | BJ150: N/A | BK150: N/A | BL150: N/A | BM150: N/A | BN150: N/A | BO150: N/A | BP150: N/A | BQ150: N/A | BR150: N/A | BS150: N/A | BT150: N/A
A151: Shared among all sanitation facilities | B151: Yes | C151: 36.86383888 | D151: 38.90895779 | E151: 42.13018162 | F151: 43.63295314 | G151: 28.84987727 | H151: 42.46506063 | I151: 43.17645176 | J151: 43.42260071 | K151: 35.89089727 | L151: 12.41179793 | M151: 32.31938986 | N151: 43.2170151 | O151: 29.29068942 | P151: 43.93528714 | Q151: 43.3318848 | R151: 40.83978997 | S151: 48.71132069 | T151: 23.55023492 | BA151: Shared among all sanitation facilities | BB151: Yes | BC151: N/A | BD151: N/A | BE151: N/A | BF151: N/A | BG151: N/A | BH151: N/A | BI151: N/A | BJ151: N/A | BK151: N/A | BL151: N/A | BM151: N/A | BN151: N/A | BO151: N/A | BP151: N/A | BQ151: N/A | BR151: N/A | BS151: N/A | BT151: N/A
B152: No | C152: 61.41177449 | D152: 54.59746439 | E152: 55.51354398 | F152: 55.1744121 | G152: 70.75800493 | H152: 57.15236239 | I152: 55.90398535 | J152: 56.14055158 | K152: 63.73344776 | L152: 87.13164346 | M152: 62.90311376 | N152: 51.2405179 | O152: 60.41303372 | P152: 49.14838733 | Q152: 54.99764809 | R152: 58.46723711 | S152: 48.01412831 | T152: 74.87227157 | BB152: No | BC152: N/A | BD152: N/A | BE152: N/A | BF152: N/A | BG152: N/A | BH152: N/A | BI152: N/A | BJ152: N/A | BK152: N/A | BL152: N/A | BM152: N/A | BN152: N/A | BO152: N/A | BP152: N/A | BQ152: N/A | BR152: N/A | BS152: N/A | BT152: N/A
A153: Kind of toilet facility | B153: Flush to piped sewer system | C153: 0.1621971065 | D153: 0.3911798005 | E153: 0.5247769019 | F153: 5.272264484 | G153: 33.70246688 | H153: 2.507882046 | I153: 6.077968618 | J153: 29.38178496 | K153: 38.10869394 | L153: 27.11420296 | M153: 0 | N153: 0.06148112164 | O153: 0.185685467 | P153: 0 | Q153: 0.8770165194 | R153: 11.51365878 | S153: 3.60619449 | T153: 0.9406294385 | BA153: Kind of toilet facility | BB153: Flush to piped sewer system | BC153: 11.01111212 | BD153: 26.57597537 | BE153: 35.66474672 | BF153: 358.0462438 | BG153: 2288.217357 | BH153: 64.94206691 | BI153: 157.2017587 | BJ153: 761.4788473 | BK153: 987.4568891 | BL153: 701.1974682 | BM153: 0 | BN153: 2.583802087 | BO153: 7.805081354 | BP153: 0 | BQ153: 36.84952141 | BR153: 2511.006294 | BS153: 127.4676004 | BT153: 81.04154066
B154: Flush to septic tank | C154: 0.09820514491 | D154: 0 | E154: 0.1956318299 | F154: 0.564698548 | G154: 1.929177212 | H154: 0.9723678422 | I154: 1.049589482 | J154: 0.2881698604 | K154: 2.578833843 | L154: 2.192141035 | M154: 0 | N154: 0 | O154: 0 | P154: 0 | Q154: 0.1424504126 | R154: 0.4726748401 | S154: 0.9395075354 | T154: 0.6151418842 | BB154: Flush to septic tank | BC154: 6.666875166 | BD154: 0 | BE154: 13.29547783 | BF154: 38.34940272 | BG154: 130.980821 | BH154: 25.17964414 | BI154: 27.14678586 | BJ154: 7.468411242 | BK154: 66.82168768 | BL154: 56.69072206 | BM154: 0 | BN154: 0 | BO154: 0 | BP154: 0 | BQ154: 5.985325717 | BR154: 103.0853459 | BS154: 33.20862794 | BT154: 52.99860283
B155: Flush to pit (latrine) | C155: 8.020690587 | D155: 5.053365904 | E155: 12.79111185 | F155: 41.09063809 | G155: 34.81760726 | H155: 42.87731997 | I155: 51.49905141 | J155: 44.03743607 | K155: 33.34995499 | L155: 34.71488438 | M155: 2.653843077 | N155: 1.75044339 | O155: 3.341683 | P155: 5.999481982 | Q155: 23.51902452 | R155: 18.54135142 | S155: 25.56326156 | T155: 22.79938061 | BB155: Flush to pit (latrine) | BC155: 544.502459 | BD155: 343.3155997 | BE155: 869.3061047 | BF155: 2790.517939 | BG155: 2363.929428 | BH155: 1110.316088 | BI155: 1331.98145 | BJ155: 1141.304931 | BK155: 864.150392 | BL155: 897.7578678 | BM155: 111.4686232 | BN155: 73.56403339 | BO155: 140.4639151 | BP155: 252.3675673 | BQ155: 988.1966628 | BR155: 4043.671173 | BS155: 903.5806634 | BT155: 1964.319694
B156: Flush to somewhere else | C156: 0 | D156: 0 | E156: 0.05313565475 | F156: 0.1071531299 | G156: 0.2691725927 | H156: 0 | I156: 0.2813506012 | J156: 0 | K156: 0 | L156: 0.7066802046 | M156: 0 | N156: 0 | O156: 0 | P156: 0.08584809874 | Q156: 0 | R156: 0.0499249407 | S156: 0 | T156: 0.2121178911 | BB156: Flush to somewhere else | BC156: 0 | BD156: 0 | BE156: 3.611191083 | BF156: 7.276906496 | BG156: 18.27538029 | BH156: 0 | BI156: 7.276906496 | BJ156: 0 | BK156: 0 | BL156: 18.27538029 | BM156: 0 | BN156: 0 | BO156: 0 | BP156: 3.611191083 | BQ156: 0 | BR156: 10.88809758 | BS156: 0 | BT156: 18.27538029
B157: Ventilated Improved Pit latrine (VIP) | C157: 0 | D157: 0.03803176256 | E157: 0.08550717979 | F157: 3.040235228 | G157: 2.280763253 | H157: 0.1089227185 | I157: 1.573972986 | J157: 1.150512878 | K157: 1.809908237 | L157: 3.566752733 | M157: 0 | N157: 0 | O157: 0.06146950626 | P157: 0.1381488352 | Q157: 3.542223826 | R157: 0.0757947304 | S157: 7.297317983 | T157: 1.105494004 | BB157: Ventilated Improved Pit latrine (VIP) | BC157: 0 | BD157: 2.583802087 | BE157: 5.811215965 | BF157: 206.466274 | BG157: 154.8516339 | BH157: 2.820573833 | BI157: 40.70954246 | BJ157: 29.8174948 | BK157: 46.89760189 | BL157: 92.23940639 | BM157: 0 | BN157: 0 | BO157: 2.583802087 | BP157: 5.811215965 | BQ157: 148.8332886 | BR157: 16.53002305 | BS157: 257.9371732 | BT157: 95.24572974
B158: Pit latrine with slab | C158: 1.325570178 | D158: 1.864244318 | E158: 4.952191581 | F158: 15.04680162 | G158: 13.49119644 | H158: 8.968524076 | I158: 13.34045627 | J158: 12.27009089 | K158: 13.46585067 | L158: 14.62910607 | M158: 0.0846720192 | N158: 0.7071301811 | O158: 1.950167784 | P158: 2.552746729 | Q158: 15.3718084 | R158: 4.672458298 | S158: 6.279002099 | T158: 14.50929631 | BB158: Pit latrine with slab | BC158: 89.98928631 | BD158: 126.6530404 | BE158: 336.5595129 | BF158: 1021.847598 | BG158: 915.9801262 | BH158: 232.2415807 | BI158: 345.0401473 | BJ158: 318.0002401 | BK158: 348.9216143 | BL158: 378.3217288 | BM158: 3.556454972 | BN158: 29.71781238 | BO158: 81.97312615 | BP158: 107.3810179 | BQ158: 645.8758415 | BR158: 1019.013366 | BS158: 221.9429187 | BT158: 1250.073279
B159: Pit latrine without slab/open pit | C159: 5.061423743 | D159: 3.281370772 | E159: 5.867478517 | F159: 14.90353488 | G159: 13.05480103 | H159: 16.419181 | I159: 15.99388253 | J159: 11.71606423 | K159: 10.6503051 | L159: 17.02879461 | M159: 2.977044426 | N159: 2.364487763 | O159: 2.055448573 | P159: 3.60614323 | Q159: 12.90981377 | R159: 6.098954377 | S159: 6.389408483 | T159: 15.17939523 | BB159: Pit latrine without slab/open pit | BC159: 343.606033 | BD159: 222.929785 | BE159: 398.7639976 | BF159: 1012.11817 | BG159: 886.3512106 | BH159: 425.1777123 | BI159: 413.6688786 | BJ159: 303.6416983 | BK159: 275.9663491 | BL159: 440.3798143 | BM159: 125.0439585 | BN159: 99.36982695 | BO159: 86.3984866 | BP159: 151.6920289 | BQ159: 542.4304427 | BR159: 1330.116961 | BS159: 225.8454361 | BT159: 1307.806799
B160: No facilities or bush or field | C160: 85.0263188 | D160: 89.09121616 | E160: 75.12501762 | F160: 19.19489403 | G160: 0.3694531821 | H160: 27.85378935 | I160: 9.332800682 | J160: 0.9796514799 | K160: 0.03645322419 | L160: 0 | M160: 93.79052102 | N160: 94.82990684 | O160: 92.1432119 | P160: 87.10773221 | Q160: 43.03160429 | R160: 58.25144455 | S160: 49.44609589 | T160: 44.19107594 | BB160: No facilities or bush or field | BC160: 5772.201179 | BD160: 6052.679518 | BE160: 5105.626251 | BF160: 1303.549875 | BG160: 25.08389629 | BH160: 721.278999 | BI160: 241.3853662 | BJ160: 25.38933154 | BK160: 0.9445610342 | BL160: 0 | BM160: 3939.456835 | BN160: 3985.316219 | BO160: 3873.137068 | BP160: 3664.17743 | BQ160: 1808.054909 | BR160: 12704.01934 | BS160: 1747.763525 | BT160: 3807.357851
B161: Other | C161: 0.3055944443 | D161: 0.1718034903 | E161: 0.1932199419 | F161: 0.2320563689 | G161: 0 | H161: 0.0802896842 | I161: 0.3215435442 | J161: 0 | K161: 0 | L161: 0 | M161: 0.4939194621 | N161: 0.1106873018 | O161: 0.1175511672 | P161: 0.3121739015 | Q161: 0.1771377681 | R161: 0.1746838549 | S161: 0.3421668619 | T161: 0.1290386651 | BB161: Other | BC161: 20.74596004 | BD161: 11.67198644 | BE161: 13.13156175 | BF161: 15.75924567 | BG161: 0 | BH161: 2.079116142 | BI161: 8.316464567 | BJ161: 0 | BK161: 0 | BL161: 0 | BM161: 20.74596004 | BN161: 4.651738188 | BO161: 4.94113211 | BP161: 13.13156175 | BQ161: 7.442781101 | BR161: 38.09668736 | BS161: 12.09451929 | BT161: 11.11754725
B162: Missing | C162: 0 | D162: 0.1087877888 | E162: 0.2119289264 | F162: 0.5477236248 | G162: 0.0853621554 | H162: 0.211723311 | I162: 0.5293838788 | J162: 0.1762896289 | K162: 0 | L162: 0.04743800097 | M162: 0 | N162: 0.1758634053 | O162: 0.1447825996 | P162: 0.1977250187 | Q162: 0.4289204966 | R162: 0.1490541991 | S162: 0.1370450977 | T162: 0.3184300404 | BB162: Missing | BC162: 0 | BD162: 7.390825373 | BE162: 14.40305672 | BF162: 37.19661392 | BG162: 5.79563408 | BH162: 5.482614086 | BI162: 13.69208728 | BJ162: 4.568845072 | BK162: 0 | BL162: 1.226789009 | BM162: 0 | BN162: 7.390825373 | BO162: 6.085774979 | BP162: 8.317281744 | BQ162: 18.02191255 | BR162: 32.50713253 | BS162: 4.844111931 | BT162: 27.43488563
BB163: Total | BC163: 6788.722905 | BD163: 6793.800533 | BE163: 6796.173116 | BF163: 6791.128269 | BG163: 6789.465488 | BH163: 2589.518395 | BI163: 2586.419387 | BJ163: 2591.669799 | BK163: 2591.159095 | BL163: 2586.089177 | BM163: 4200.271832 | BN163: 4202.594258 | BO163: 4203.388386 | BP163: 4206.489295 | BQ163: 4201.690685 | BR163: 21808.93442 | BS163: 3534.684576 | BT163: 8615.67131
A208: =A1026 -> Somalia
A209: =A1034 -> 2006
A210: Access to hygiene facilities
A211: by wealth quintile and sub-national region
A212: Notes:
A213: WHO/UNICEF JMP customised wealth index excludes water,
A214: sanitation and hygiene assets.
A215: Survey used for analysis: | B215: =A1025 -> MICS06
A220: Access to handwashing | C220: NATIONAL wealth index quintile | H220: URBAN wealth index quintile | M220: RURAL wealth index quintile | R220: SUB-REGIONS: | BA220: Raw numbers of respondents: | BB220: Access to handwashing | BC220: NATIONAL wealth index quintile | BH220: URBAN wealth index quintile | BM220: RURAL wealth index quintile | BR220: SUB-REGIONS:
A221: Weighted percentage (used in graphs) | C221: Poorest | D221: Poor | E221: Middle | F221: Rich | G221: Richest | H221: Poorest | I221: Poor | J221: Middle | K221: Rich | L221: Richest | M221: Poorest | N221: Poor | O221: Middle | P221: Rich | Q221: Richest | R221: Central South | S221: North East | T221: North West | BA221: Hygiene data, raw numbers (weighted) | BC221: Poorest | BD221: Poor | BE221: Middle | BF221: Rich | BG221: Richest | BH221: Poorest | BI221: Poor | BJ221: Middle | BK221: Rich | BL221: Richest | BM221: Poorest | BN221: Poor | BO221: Middle | BP221: Rich | BQ221: Richest | BR221: Central South | BS221: North East | BT221: North West
A222: Hygiene ladder | B222: Basic | C222: N/A | D222: N/A | E222: N/A | F222: N/A | G222: N/A | H222: N/A | I222: N/A | J222: N/A | K222: N/A | L222: N/A | M222: N/A | N222: N/A | O222: N/A | P222: N/A | Q222: N/A | R222: N/A | S222: N/A | T222: N/A | BA222: Hygiene ladder | BB222: Basic | BC222: N/A | BD222: N/A | BE222: N/A | BF222: N/A | BG222: N/A | BH222: N/A | BI222: N/A | BJ222: N/A | BK222: N/A | BL222: N/A | BM222: N/A | BN222: N/A | BO222: N/A | BP222: N/A | BQ222: N/A | BR222: N/A | BS222: N/A | BT222: N/A
B223: Limited | C223: N/A | D223: N/A | E223: N/A | F223: N/A | G223: N/A | H223: N/A | I223: N/A | J223: N/A | K223: N/A | L223: N/A | M223: N/A | N223: N/A | O223: N/A | P223: N/A | Q223: N/A | R223: N/A | S223: N/A | T223: N/A | BB223: Limited | BC223: N/A | BD223: N/A | BE223: N/A | BF223: N/A | BG223: N/A | BH223: N/A | BI223: N/A | BJ223: N/A | BK223: N/A | BL223: N/A | BM223: N/A | BN223: N/A | BO223: N/A | BP223: N/A | BQ223: N/A | BR223: N/A | BS223: N/A | BT223: N/A
B224: No facility | C224: N/A | D224: N/A | E224: N/A | F224: N/A | G224: N/A | H224: N/A | I224: N/A | J224: N/A | K224: N/A | L224: N/A | M224: N/A | N224: N/A | O224: N/A | P224: N/A | Q224: N/A | R224: N/A | S224: N/A | T224: N/A | BB224: No facility | BC224: N/A | BD224: N/A | BE224: N/A | BF224: N/A | BG224: N/A | BH224: N/A | BI224: N/A | BJ224: N/A | BK224: N/A | BL224: N/A | BM224: N/A | BN224: N/A | BO224: N/A | BP224: N/A | BQ224: N/A | BR224: N/A | BS224: N/A | BT224: N/A
BA225: Observed handwashing place | BB225: Fixed | BC225: N/A | BD225: N/A | BE225: N/A | BF225: N/A | BG225: N/A | BH225: N/A | BI225: N/A | BJ225: N/A | BK225: N/A | BL225: N/A | BM225: N/A | BN225: N/A | BO225: N/A | BP225: N/A | BQ225: N/A | BR225: N/A | BS225: N/A | BT225: N/A
BB226: Mobile | BC226: N/A | BD226: N/A | BE226: N/A | BF226: N/A | BG226: N/A | BH226: N/A | BI226: N/A | BJ226: N/A | BK226: N/A | BL226: N/A | BM226: N/A | BN226: N/A | BO226: N/A | BP226: N/A | BQ226: N/A | BR226: N/A | BS226: N/A | BT226: N/A
BA227: Water / Soap | BB227: Water and soap | BC227: N/A | BD227: N/A | BE227: N/A | BF227: N/A | BG227: N/A | BH227: N/A | BI227: N/A | BJ227: N/A | BK227: N/A | BL227: N/A | BM227: N/A | BN227: N/A | BO227: N/A | BP227: N/A | BQ227: N/A | BR227: N/A | BS227: N/A | BT227: N/A
BB228: Water only | BC228: N/A | BD228: N/A | BE228: N/A | BF228: N/A | BG228: N/A | BH228: N/A | BI228: N/A | BJ228: N/A | BK228: N/A | BL228: N/A | BM228: N/A | BN228: N/A | BO228: N/A | BP228: N/A | BQ228: N/A | BR228: N/A | BS228: N/A | BT228: N/A
BB229: Soap only | BC229: N/A | BD229: N/A | BE229: N/A | BF229: N/A | BG229: N/A | BH229: N/A | BI229: N/A | BJ229: N/A | BK229: N/A | BL229: N/A | BM229: N/A | BN229: N/A | BO229: N/A | BP229: N/A | BQ229: N/A | BR229: N/A | BS229: N/A | BT229: N/A
BB230: Neither | BC230: N/A | BD230: N/A | BE230: N/A | BF230: N/A | BG230: N/A | BH230: N/A | BI230: N/A | BJ230: N/A | BK230: N/A | BL230: N/A | BM230: N/A | BN230: N/A | BO230: N/A | BP230: N/A | BQ230: N/A | BR230: N/A | BS230: N/A | BT230: N/A
BA259: Raw numbers of respondents: | BB259: Menstrual health and hygiene | BC259: NATIONAL wealth index quintile | BH259: URBAN wealth index quintile | BM259: RURAL wealth index quintile | BR259: SUB-REGIONS:
BA260: MHH data, raw numbers (weighted) | BC260: Poorest | BD260: Poor | BE260: Middle | BF260: Rich | BG260: Richest | BH260: Poorest | BI260: Poor | BJ260: Middle | BK260: Rich | BL260: Richest | BM260: Poorest | BN260: Poor | BO260: Middle | BP260: Rich | BQ260: Richest | BR260: Central South | BS260: North East | BT260: North West
BA261: Private place to wash and change | BB261: Yes | BC261: N/A | BD261: N/A | BE261: N/A | BF261: N/A | BG261: N/A | BH261: N/A | BI261: N/A | BJ261: N/A | BK261: N/A | BL261: N/A | BM261: N/A | BN261: N/A | BO261: N/A | BP261: N/A | BQ261: N/A | BR261: N/A | BS261: N/A | BT261: N/A
BB262: No | BC262: N/A | BD262: N/A | BE262: N/A | BF262: N/A | BG262: N/A | BH262: N/A | BI262: N/A | BJ262: N/A | BK262: N/A | BL262: N/A | BM262: N/A | BN262: N/A | BO262: N/A | BP262: N/A | BQ262: N/A | BR262: N/A | BS262: N/A | BT262: N/A
BB263: DK/not sure/missing | BC263: N/A | BD263: N/A | BE263: N/A | BF263: N/A | BG263: N/A | BH263: N/A | BI263: N/A | BJ263: N/A | BK263: N/A | BL263: N/A | BM263: N/A | BN263: N/A | BO263: N/A | BP263: N/A | BQ263: N/A | BR263: N/A | BS263: N/A | BT263: N/A
BA264: Use of menstrual materials | BB264: Materials reusable | BC264: N/A | BD264: N/A | BE264: N/A | BF264: N/A | BG264: N/A | BH264: N/A | BI264: N/A | BJ264: N/A | BK264: N/A | BL264: N/A | BM264: N/A | BN264: N/A | BO264: N/A | BP264: N/A | BQ264: N/A | BR264: N/A | BS264: N/A | BT264: N/A
BB265: Materials not reusable | BC265: N/A | BD265: N/A | BE265: N/A | BF265: N/A | BG265: N/A | BH265: N/A | BI265: N/A | BJ265: N/A | BK265: N/A | BL265: N/A | BM265: N/A | BN265: N/A | BO265: N/A | BP265: N/A | BQ265: N/A | BR265: N/A | BS265: N/A | BT265: N/A
BB266: No materials used | BC266: N/A | BD266: N/A | BE266: N/A | BF266: N/A | BG266: N/A | BH266: N/A | BI266: N/A | BJ266: N/A | BK266: N/A | BL266: N/A | BM266: N/A | BN266: N/A | BO266: N/A | BP266: N/A | BQ266: N/A | BR266: N/A | BS266: N/A | BT266: N/A
BB267: DK/not sure/missing | BC267: N/A | BD267: N/A | BE267: N/A | BF267: N/A | BG267: N/A | BH267: N/A | BI267: N/A | BJ267: N/A | BK267: N/A | BL267: N/A | BM267: N/A | BN267: N/A | BO267: N/A | BP267: N/A | BQ267: N/A | BR267: N/A | BS267: N/A | BT267: N/A
BA268: Use of menstrual materials with private place to wash and change | BB268: Materials reusable | BC268: N/A | BD268: N/A | BE268: N/A | BF268: N/A | BG268: N/A | BH268: N/A | BI268: N/A | BJ268: N/A | BK268: N/A | BL268: N/A | BM268: N/A | BN268: N/A | BO268: N/A | BP268: N/A | BQ268: N/A | BR268: N/A | BS268: N/A | BT268: N/A
BB269: Materials not reusable | BC269: N/A | BD269: N/A | BE269: N/A | BF269: N/A | BG269: N/A | BH269: N/A | BI269: N/A | BJ269: N/A | BK269: N/A | BL269: N/A | BM269: N/A | BN269: N/A | BO269: N/A | BP269: N/A | BQ269: N/A | BR269: N/A | BS269: N/A | BT269: N/A
BB270: No materials used | BC270: N/A | BD270: N/A | BE270: N/A | BF270: N/A | BG270: N/A | BH270: N/A | BI270: N/A | BJ270: N/A | BK270: N/A | BL270: N/A | BM270: N/A | BN270: N/A | BO270: N/A | BP270: N/A | BQ270: N/A | BR270: N/A | BS270: N/A | BT270: N/A
BA271: Awareness of menstruation before menarche | BB271: Yes | BC271: N/A | BD271: N/A | BE271: N/A | BF271: N/A | BG271: N/A | BH271: N/A | BI271: N/A | BJ271: N/A | BK271: N/A | BL271: N/A | BM271: N/A | BN271: N/A | BO271: N/A | BP271: N/A | BQ271: N/A | BR271: N/A | BS271: N/A | BT271: N/A
BB272: No | BC272: N/A | BD272: N/A | BE272: N/A | BF272: N/A | BG272: N/A | BH272: N/A | BI272: N/A | BJ272: N/A | BK272: N/A | BL272: N/A | BM272: N/A | BN272: N/A | BO272: N/A | BP272: N/A | BQ272: N/A | BR272: N/A | BS272: N/A | BT272: N/A
BB273: DK/not sure/missing | BC273: N/A | BD273: N/A | BE273: N/A | BF273: N/A | BG273: N/A | BH273: N/A | BI273: N/A | BJ273: N/A | BK273: N/A | BL273: N/A | BM273: N/A | BN273: N/A | BO273: N/A | BP273: N/A | BQ273: N/A | BR273: N/A | BS273: N/A | BT273: N/A
BA274: Participation in (all) activities during menstruation | BB274: Yes | BC274: N/A | BD274: N/A | BE274: N/A | BF274: N/A | BG274: N/A | BH274: N/A | BI274: N/A | BJ274: N/A | BK274: N/A | BL274: N/A | BM274: N/A | BN274: N/A | BO274: N/A | BP274: N/A | BQ274: N/A | BR274: N/A | BS274: N/A | BT274: N/A
BB275: No | BC275: N/A | BD275: N/A | BE275: N/A | BF275: N/A | BG275: N/A | BH275: N/A | BI275: N/A | BJ275: N/A | BK275: N/A | BL275: N/A | BM275: N/A | BN275: N/A | BO275: N/A | BP275: N/A | BQ275: N/A | BR275: N/A | BS275: N/A | BT275: N/A
BB276: DK/not sure/missing/no such activity | BC276: N/A | BD276: N/A | BE276: N/A | BF276: N/A | BG276: N/A | BH276: N/A | BI276: N/A | BJ276: N/A | BK276: N/A | BL276: N/A | BM276: N/A | BN276: N/A | BO276: N/A | BP276: N/A | BQ276: N/A | BR276: N/A | BS276: N/A | BT276: N/A
BA277: Participation in specific activities during menstruation | BB277: Did not go to school (amongst those usually attending school) | BC277: N/A | BD277: N/A | BE277: N/A | BF277: N/A | BG277: N/A | BH277: N/A | BI277: N/A | BJ277: N/A | BK277: N/A | BL277: N/A | BM277: N/A | BN277: N/A | BO277: N/A | BP277: N/A | BQ277: N/A | BR277: N/A | BS277: N/A | BT277: N/A
BB278: Did not go to work (amongst those who usually work) | BC278: N/A | BD278: N/A | BE278: N/A | BF278: N/A | BG278: N/A | BH278: N/A | BI278: N/A | BJ278: N/A | BK278: N/A | BL278: N/A | BM278: N/A | BN278: N/A | BO278: N/A | BP278: N/A | BQ278: N/A | BR278: N/A | BS278: N/A | BT278: N/A
BB279: Did not participate in social activities | BC279: N/A | BD279: N/A | BE279: N/A | BF279: N/A | BG279: N/A | BH279: N/A | BI279: N/A | BJ279: N/A | BK279: N/A | BL279: N/A | BM279: N/A | BN279: N/A | BO279: N/A | BP279: N/A | BQ279: N/A | BR279: N/A | BS279: N/A | BT279: N/A
BB280: Did not cook food | BC280: N/A | BD280: N/A | BE280: N/A | BF280: N/A | BG280: N/A | BH280: N/A | BI280: N/A | BJ280: N/A | BK280: N/A | BL280: N/A | BM280: N/A | BN280: N/A | BO280: N/A | BP280: N/A | BQ280: N/A | BR280: N/A | BS280: N/A | BT280: N/A
BB281: Did not eat with others | BC281: N/A | BD281: N/A | BE281: N/A | BF281: N/A | BG281: N/A | BH281: N/A | BI281: N/A | BJ281: N/A | BK281: N/A | BL281: N/A | BM281: N/A | BN281: N/A | BO281: N/A | BP281: N/A | BQ281: N/A | BR281: N/A | BS281: N/A | BT281: N/A
BB282: Did not bathe in regular place | BC282: N/A | BD282: N/A | BE282: N/A | BF282: N/A | BG282: N/A | BH282: N/A | BI282: N/A | BJ282: N/A | BK282: N/A | BL282: N/A | BM282: N/A | BN282: N/A | BO282: N/A | BP282: N/A | BQ282: N/A | BR282: N/A | BS282: N/A | BT282: N/A
BB283: Did not participate in other activities | BC283: N/A | BD283: N/A | BE283: N/A | BF283: N/A | BG283: N/A | BH283: N/A | BI283: N/A | BJ283: N/A | BK283: N/A | BL283: N/A | BM283: N/A | BN283: N/A | BO283: N/A | BP283: N/A | BQ283: N/A | BR283: N/A | BS283: N/A | BT283: N/A
BB284: DK/not sure/missing/no such activity | BC284: N/A | BD284: N/A | BE284: N/A | BF284: N/A | BG284: N/A | BH284: N/A | BI284: N/A | BJ284: N/A | BK284: N/A | BL284: N/A | BM284: N/A | BN284: N/A | BO284: N/A | BP284: N/A | BQ284: N/A | BR284: N/A | BS284: N/A | BT284: N/A
BA339: Raw numbers of respondents: | BB339: Basic water, sanitation and hygiene | BC339: NATIONAL wealth index quintile | BH339: URBAN wealth index quintile | BM339: RURAL wealth index quintile | BR339: SUB-REGIONS:
BA340: WatSan data, raw numbers (weighted) | BC340: Poorest | BD340: Poor | BE340: Middle | BF340: Rich | BG340: Richest | BH340: Poorest | BI340: Poor | BJ340: Middle | BK340: Rich | BL340: Richest | BM340: Poorest | BN340: Poor | BO340: Middle | BP340: Rich | BQ340: Richest | BR340: Central South | BS340: North East | BT340: North West
BA341: Use of Basic Water Sanitation and Hygiene | BB341: Yes | BC341: N/A | BD341: N/A | BE341: N/A | BF341: N/A | BG341: N/A | BH341: N/A | BI341: N/A | BJ341: N/A | BK341: N/A | BL341: N/A | BM341: N/A | BN341: N/A | BO341: N/A | BP341: N/A | BQ341: N/A | BR341: N/A | BS341: N/A | BT341: N/A
BB342: No | BC342: N/A | BD342: N/A | BE342: N/A | BF342: N/A | BG342: N/A | BH342: N/A | BI342: N/A | BJ342: N/A | BK342: N/A | BL342: N/A | BM342: N/A | BN342: N/A | BO342: N/A | BP342: N/A | BQ342: N/A | BR342: N/A | BS342: N/A | BT342: N/A
BA343: Use of Basic Water and Sanitation | BB343: Yes | BC343: N/A | BD343: N/A | BE343: N/A | BF343: N/A | BG343: N/A | BH343: N/A | BI343: N/A | BJ343: N/A | BK343: N/A | BL343: N/A | BM343: N/A | BN343: N/A | BO343: N/A | BP343: N/A | BQ343: N/A | BR343: N/A | BS343: N/A | BT343: N/A
BB344: No | BC344: N/A | BD344: N/A | BE344: N/A | BF344: N/A | BG344: N/A | BH344: N/A | BI344: N/A | BJ344: N/A | BK344: N/A | BL344: N/A | BM344: N/A | BN344: N/A | BO344: N/A | BP344: N/A | BQ344: N/A | BR344: N/A | BS344: N/A | BT344: N/A
BA345: Use of Basic Water and Hygiene | BB345: Yes | BC345: N/A | BD345: N/A | BE345: N/A | BF345: N/A | BG345: N/A | BH345: N/A | BI345: N/A | BJ345: N/A | BK345: N/A | BL345: N/A | BM345: N/A | BN345: N/A | BO345: N/A | BP345: N/A | BQ345: N/A | BR345: N/A | BS345: N/A | BT345: N/A
BB346: No | BC346: N/A | BD346: N/A | BE346: N/A | BF346: N/A | BG346: N/A | BH346: N/A | BI346: N/A | BJ346: N/A | BK346: N/A | BL346: N/A | BM346: N/A | BN346: N/A | BO346: N/A | BP346: N/A | BQ346: N/A | BR346: N/A | BS346: N/A | BT346: N/A
BA347: Use of Basic Sanitation and Hygiene | BB347: Yes | BC347: N/A | BD347: N/A | BE347: N/A | BF347: N/A | BG347: N/A | BH347: N/A | BI347: N/A | BJ347: N/A | BK347: N/A | BL347: N/A | BM347: N/A | BN347: N/A | BO347: N/A | BP347: N/A | BQ347: N/A | BR347: N/A | BS347: N/A | BT347: N/A
BB348: No | BC348: N/A | BD348: N/A | BE348: N/A | BF348: N/A | BG348: N/A | BH348: N/A | BI348: N/A | BJ348: N/A | BK348: N/A | BL348: N/A | BM348: N/A | BN348: N/A | BO348: N/A | BP348: N/A | BQ348: N/A | BR348: N/A | BS348: N/A | BT348: N/A
BA349: Use of Basic Water | BB349: Yes | BC349: N/A | BD349: N/A | BE349: N/A | BF349: N/A | BG349: N/A | BH349: N/A | BI349: N/A | BJ349: N/A | BK349: N/A | BL349: N/A | BM349: N/A | BN349: N/A | BO349: N/A | BP349: N/A | BQ349: N/A | BR349: N/A | BS349: N/A | BT349: N/A
BB350: No | BC350: N/A | BD350: N/A | BE350: N/A | BF350: N/A | BG350: N/A | BH350: N/A | BI350: N/A | BJ350: N/A | BK350: N/A | BL350: N/A | BM350: N/A | BN350: N/A | BO350: N/A | BP350: N/A | BQ350: N/A | BR350: N/A | BS350: N/A | BT350: N/A
BA351: Use of Basic Sanitation | BB351: Yes | BC351: N/A | BD351: N/A | BE351: N/A | BF351: N/A | BG351: N/A | BH351: N/A | BI351: N/A | BJ351: N/A | BK351: N/A | BL351: N/A | BM351: N/A | BN351: N/A | BO351: N/A | BP351: N/A | BQ351: N/A | BR351: N/A | BS351: N/A | BT351: N/A
BB352: No | BC352: N/A | BD352: N/A | BE352: N/A | BF352: N/A | BG352: N/A | BH352: N/A | BI352: N/A | BJ352: N/A | BK352: N/A | BL352: N/A | BM352: N/A | BN352: N/A | BO352: N/A | BP352: N/A | BQ352: N/A | BR352: N/A | BS352: N/A | BT352: N/A
BA353: Access to Basic Hygiene | BB353: Yes | BC353: N/A | BD353: N/A | BE353: N/A | BF353: N/A | BG353: N/A | BH353: N/A | BI353: N/A | BJ353: N/A | BK353: N/A | BL353: N/A | BM353: N/A | BN353: N/A | BO353: N/A | BP353: N/A | BQ353: N/A | BR353: N/A | BS353: N/A | BT353: N/A
BB354: No | BC354: N/A | BD354: N/A | BE354: N/A | BF354: N/A | BG354: N/A | BH354: N/A | BI354: N/A | BJ354: N/A | BK354: N/A | BL354: N/A | BM354: N/A | BN354: N/A | BO354: N/A | BP354: N/A | BQ354: N/A | BR354: N/A | BS354: N/A | BT354: N/A
C399: INITIAL (national) Wealth Index | H399: URBAN Wealth Index | M399: RURAL Wealth Index
C400: Component Matrix | H400: Component Matrix | M400: Component Matrix
E401: Component | J401: Component | O401: Component
B402: Note: The INITIAL (national) Wealth Index is based on the first component of the Principal Component Analysis (PCA) which has been obtained at national level. The final national-level (NATIONAL) Wealth Index is based on the URBAN and RURAL specific wealth indexes. Regression procedures are used to establish the relationships between the two sets of scores (urban and rural) and the initial (national) wealth factors. This allows best use of the available information for each area and a better precision of the FINAL (NATIONAL) Wealth Index. For dependency reasons, all WASH variables (contained in the generic MICS and DHS scripts) have been excluded from the sets of asset variables used in the PCAs. The PCA can extracts as many components as there are asset variables in the input. Only the first of the components is used to represent the Wealth Index. The scores represent the weights of the asset variables on the Wealth Index (correlations between the variables and the component). The communalities are the proportion of each variable's variance that can be explained by the component. Proportion of explained variance is the part of the model's total variance that is explained by the component. For more information on the procedure used: The DHS Wealth Index, DHS Comparative Reports No. 6, Shea Oscar Rutstein, Kiersten Johnson, ORC Macro International Inc., 2004. The DHS Wealth Index: Approaches for Rural and Urban Areas, Shea O. Rutstein, ORC Macro International Inc., 2008. MICS Methodological Paper No. 4, Review of options for reporting water, sanitation and hygiene coverage by wealth quintile, UNICEF, 2016. | E402: 1 | J402: 1 | O402: 1
C403: Electricity | E403: 0.7658331967 | H403: Electricity | J403: 0.7116868635 | M403: Metal/tin roof | O403: 0.6733660894
C404: Earth/sand floor | E404: -0.7482932852 | H404: Earth/sand floor | J404: -0.6982453666 | M404: Earth/sand floor | O404: -0.6618477409
C405: Mobile telephone | E405: 0.7341829023 | H405: Television | J405: 0.6805362476 | M405: cow0 | O405: 0.5542602606
C406: Non-mobile telephone | E406: 0.7289527757 | H406: Mobile telephone | J406: 0.6664022631 | M406: Cement floor | O406: 0.5429994908
C407: Charcoal fuel | E407: 0.7241126907 | H407: Non-mobile telephone | J407: 0.6662564107 | M407: horse0 | O407: 0.5061042754
C408: Television | E408: 0.7112310846 | H408: Satellite Dish | J408: 0.6222327609 | M408: Charcoal fuel | O408: 0.4984406607
C409: Wood fuel | E409: -0.6887889322 | H409: Clock | J409: 0.5787130473 | M409: horse1 | O409: -0.495716217
C410: Stone with lime/cement walls | E410: 0.6547755399 | H410: Stone with lime/cement walls | J410: 0.5555477826 | M410: sheep0 | O410: 0.4601773662
C411: Satellite Dish | E411: 0.6440591573 | H411: Wood fuel | J411: -0.5481147638 | M411: Stone with lime/cement walls | O411: 0.4343927398
C412: Clock | E412: 0.6292640953 | H412: Charcoal fuel | J412: 0.5470461465 | M412: Vinyl/asphalt strip floor | O412: 0.4268121353
... 322 more rows

Sheet SFHS16
A2: =A1026 -> Somalia
A3: =A1034 -> 2016
A4: Use of drinking water sources
A5: by wealth quintile and sub-national region
A6: Notes:
A7: WHO/UNICEF JMP customised wealth index excludes water,
A8: sanitation and hygiene assets.
A9: Survey used for analysis: | B9: =A1025 -> SHFS16
A10: =B1028 -> Ratio of Improved wells based on: | B10: SHFS17
A11: =B1027 -> Time to improved source based on: | B11: SHFS17
A14: Use of drinking water sources | C14: NATIONAL wealth index quintile | H14: URBAN wealth index quintile | M14: RURAL wealth index quintile | R14: SUB-REGIONS: | BA14: Raw numbers of respondents: | BB14: Use of drinking water sources | BC14: NATIONAL wealth index quintile | BH14: URBAN wealth index quintile | BM14: RURAL wealth index quintile | BR14: SUB-REGIONS:
A15: Weighted percentage (used in graphs) | C15: Poorest | D15: Poor | E15: Middle | F15: Rich | G15: Richest | H15: Poorest | I15: Poor | J15: Middle | K15: Rich | L15: Richest | M15: Poorest | N15: Poor | O15: Middle | P15: Rich | Q15: Richest | R15: Awdal | S15: Banadir | T15: Bari | U15: Mudug | V15: Nugaal | W15: Sanaag | X15: Sool | Y15: Togdheer | Z15: Woqooyi Galbeed | BA15: Water data, raw numbers (weighted) | BC15: Poorest | BD15: Poor | BE15: Middle | BF15: Rich | BG15: Richest | BH15: Poorest | BI15: Poor | BJ15: Middle | BK15: Rich | BL15: Richest | BM15: Poorest | BN15: Poor | BO15: Middle | BP15: Rich | BQ15: Richest | BR15: Awdal | BS15: Banadir | BT15: Bari | BU15: Mudug | BV15: Nugaal | BW15: Sanaag | BX15: Sool | BY15: Togdheer | BZ15: Woqooyi Galbeed
A16: Water | B16: Improved | C16: =C58+C59+C61+C60*SHFS17!C24/100 -> 81.19677203 | D16: =D58+D59+D61+D60*SHFS17!D24/100 -> 91.68678155 | E16: =E58+E59+E61+E60*SHFS17!E24/100 -> 93.91224508 | F16: =F58+F59+F61+F60*SHFS17!F24/100 -> 94.01167404 | G16: =G58+G59+G61+G60*SHFS17!G24/100 -> 98.97099326 | H16: =H58+H59+H61+H60*SHFS17!H24/100 -> 97.30916381 | I16: =I58+I59+I61+I60*SHFS17!I24/100 -> 97.19454179 | J16: =J58+J59+J61+J60*SHFS17!J24/100 -> 93.74466504 | K16: =K58+K59+K61+K60*SHFS17!K24/100 -> 97.81830777 | L16: =L58+L59+L61+L60*SHFS17!L24/100 -> 98.82439585 | M16: =M58+M59+M61+M60*SHFS17!M24/100 -> 46.16233316 | N16: =N58+N59+N61+N60*SHFS17!N24/100 -> 83.91140572 | O16: =O58+O59+O61+O60*SHFS17!O24/100 -> 87.34424257 | P16: =P58+P59+P61+P60*SHFS17!P24/100 -> 89.60401054 | Q16: =Q58+Q59+Q61+Q60*SHFS17!Q24/100 -> 90.87685217 | R16: =R58+R59+R61+R60*MICS06!R24/100 -> 61.45103756 | S16: =S58+S59+S61+S60*MICS06!S24/100 -> 93.63029917 | T16: =T58+T59+T61+T60*MICS06!T24/100 -> 80.3513991 | U16: =U58+U59+U61+U60*MICS06!U24/100 -> 83.47918142 | V16: =V58+V59+V61+V60*MICS06!V24/100 -> 82.265097 | W16: =W58+W59+W61+W60*MICS06!W24/100 -> 46.46510434 | X16: =X58+X59+X61+X60*MICS06!X24/100 -> 94.6648282 | Y16: =Y58+Y59+Y61+Y60*MICS06!Y24/100 -> 89.35673983 | Z16: =Z58+Z59+Z61+Z60*MICS06!Z24/100 -> 84.18739298 | BA16: Water | BB16: Improved | BC16: N/A | BD16: N/A | BE16: N/A | BF16: N/A | BG16: N/A | BH16: N/A | BI16: N/A | BJ16: N/A | BK16: N/A | BL16: N/A | BM16: N/A | BN16: N/A | BO16: N/A | BP16: N/A | BQ16: N/A | BR16: N/A | BS16: N/A | BT16: N/A | BU16: N/A | BV16: N/A | BW16: N/A | BX16: N/A | BY16: N/A | BZ16: N/A
B17: Not Improved | C17: =100-C16 -> 18.80322797 | D17: =100-D16 -> 8.313218453 | E17: 6.087754917 | F17: 5.988325956 | G17: 1.029006736 | H17: 2.690836188 | I17: 2.80545821 | J17: 6.255334961 | K17: 2.181692235 | L17: 1.175604153 | M17: 53.83766684 | N17: 16.08859428 | O17: 12.65575743 | P17: 10.39598946 | Q17: 9.12314783 | R17: 38.54896244 | S17: 6.369700833 | T17: 19.6486009 | U17: 16.52081858 | V17: 17.734903 | W17: 53.53489566 | X17: 5.335171797 | Y17: 10.64326017 | Z17: 15.81260702 | BB17: Not Improved | BC17: N/A | BD17: N/A | BE17: N/A | BF17: N/A | BG17: N/A | BH17: N/A | BI17: N/A | BJ17: N/A | BK17: N/A | BL17: N/A | BM17: N/A | BN17: N/A | BO17: N/A | BP17: N/A | BQ17: N/A | BR17: N/A | BS17: N/A | BT17: N/A | BU17: N/A | BV17: N/A | BW17: N/A | BX17: N/A | BY17: N/A | BZ17: N/A
A18: Water ladder | B18: Basic | C18: =C16*SHFS17!C23/100 -> 46.29041023 | D18: =D16*SHFS17!D23/100 -> 60.53654039 | E18: =E16*SHFS17!E23/100 -> 88.18199676 | F18: =F16*SHFS17!F23/100 -> 92.57466463 | G18: =G16*SHFS17!G23/100 -> 94.99434554 | H18: =H16*SHFS17!H23/100 -> 92.65476724 | I18: =I16*SHFS17!I23/100 -> 96.09123571 | J18: =J16*SHFS17!J23/100 -> 91.38555725 | K18: =K16*SHFS17!K23/100 -> 94.14302213 | L18: =L16*SHFS17!L23/100 -> 95.48442299 | M18: =M16*SHFS17!M23/100 -> 16.14156176 | N18: =N16*SHFS17!N23/100 -> 54.28971134 | O18: =O16*SHFS17!O23/100 -> 48.80308151 | P18: =P16*SHFS17!P23/100 -> 70.19400759 | Q18: =Q16*SHFS17!Q23/100 -> 86.01905275 | R18: N/A | S18: N/A | T18: N/A | U18: N/A | V18: N/A | W18: N/A | X18: N/A | Y18: N/A | Z18: N/A | BA18: Water ladder | BB18: Basic | BC18: N/A | BD18: N/A | BE18: N/A | BF18: N/A | BG18: N/A | BH18: N/A | BI18: N/A | BJ18: N/A | BK18: N/A | BL18: N/A | BM18: N/A | BN18: N/A | BO18: N/A | BP18: N/A | BQ18: N/A | BR18: N/A | BS18: N/A | BT18: N/A | BU18: N/A | BV18: N/A | BW18: N/A | BX18: N/A | BY18: N/A | BZ18: N/A
B19: Limited | C19: =C16*SHFS17!C22/100 -> 34.90636179 | D19: =D16*SHFS17!D22/100 -> 31.15024115 | E19: =E16*SHFS17!E22/100 -> 5.730248325 | F19: =F16*SHFS17!F22/100 -> 1.437009411 | G19: =G16*SHFS17!G22/100 -> 3.976647726 | H19: =H16*SHFS17!H22/100 -> 4.654396575 | I19: =I16*SHFS17!I22/100 -> 1.103306083 | J19: =J16*SHFS17!J22/100 -> 2.359107789 | K19: =K16*SHFS17!K22/100 -> 3.675285638 | L19: =L16*SHFS17!L22/100 -> 3.339972856 | M19: =M16*SHFS17!M22/100 -> 30.0207714 | N19: =N16*SHFS17!N22/100 -> 29.62169438 | O19: =O16*SHFS17!O22/100 -> 38.54116106 | P19: =P16*SHFS17!P22/100 -> 19.41000296 | Q19: =Q16*SHFS17!Q22/100 -> 4.857799425 | R19: N/A | S19: N/A | T19: N/A | U19: N/A | V19: N/A | W19: N/A | X19: N/A | Y19: N/A | Z19: N/A | BB19: Limited | BC19: N/A | BD19: N/A | BE19: N/A | BF19: N/A | BG19: N/A | BH19: N/A | BI19: N/A | BJ19: N/A | BK19: N/A | BL19: N/A | BM19: N/A | BN19: N/A | BO19: N/A | BP19: N/A | BQ19: N/A | BR19: N/A | BS19: N/A | BT19: N/A | BU19: N/A | BV19: N/A | BW19: N/A | BX19: N/A | BY19: N/A | BZ19: N/A
B20: Unimproved | C20: =100-(C18+C19+C21) -> 8.591214677 | D20: =100-(D18+D19+D21) -> 2.781426138 | E20: 1.274609646 | F20: 0.9270804045 | G20: 0.4769385346 | H20: 1.099045649 | I20: 1.036098358 | J20: 0.05462119408 | K20: 0.1176042116 | L20: 0.8370724209 | M20: 21.02668341 | N20: 8.73377839 | O20: 5.469201073 | P20: 3.368554475 | Q20: 2.31253178 | R20: N/A | S20: N/A | T20: N/A | U20: N/A | V20: N/A | W20: N/A | X20: N/A | Y20: N/A | Z20: N/A | BB20: Unimproved | BC20: N/A | BD20: N/A | BE20: N/A | BF20: N/A | BG20: N/A | BH20: N/A | BI20: N/A | BJ20: N/A | BK20: N/A | BL20: N/A | BM20: N/A | BN20: N/A | BO20: N/A | BP20: N/A | BQ20: N/A | BR20: N/A | BS20: N/A | BT20: N/A | BU20: N/A | BV20: N/A | BW20: N/A | BX20: N/A | BY20: N/A | BZ20: N/A
B21: Surface water | C21: =C62 -> 10.2120133 | D21: 5.531792315 | E21: 4.813145271 | F21: 5.061245551 | G21: 0.5520682011 | H21: 1.591790538 | I21: 1.769359852 | J21: 6.200713766 | K21: 2.064088023 | L21: 0.3385317321 | M21: 32.81098343 | N21: 7.354815893 | O21: 7.18655636 | P21: 7.027434981 | Q21: 6.81061605 | R21: N/A | S21: N/A | T21: N/A | U21: N/A | V21: N/A | W21: N/A | X21: N/A | Y21: N/A | Z21: N/A | BB21: Surface water | BC21: N/A | BD21: N/A | BE21: N/A | BF21: N/A | BG21: N/A | BH21: N/A | BI21: N/A | BJ21: N/A | BK21: N/A | BL21: N/A | BM21: N/A | BN21: N/A | BO21: N/A | BP21: N/A | BQ21: N/A | BR21: N/A | BS21: N/A | BT21: N/A | BU21: N/A | BV21: N/A | BW21: N/A | BX21: N/A | BY21: N/A | BZ21: N/A
A22: Improved water point at more than 30 minutes | B22: Yes | C22: N/A | D22: N/A | E22: N/A | F22: N/A | G22: N/A | H22: N/A | I22: N/A | J22: N/A | K22: N/A | L22: N/A | M22: N/A | N22: N/A | O22: N/A | P22: N/A | Q22: N/A | R22: N/A | S22: N/A | T22: N/A | U22: N/A | V22: N/A | W22: N/A | X22: N/A | Y22: N/A | Z22: N/A | BA22: Improved water point at more than 30 minutes | BB22: Yes | BC22: N/A | BD22: N/A | BE22: N/A | BF22: N/A | BG22: N/A | BH22: N/A | BI22: N/A | BJ22: N/A | BK22: N/A | BL22: N/A | BM22: N/A | BN22: N/A | BO22: N/A | BP22: N/A | BQ22: N/A | BR22: N/A | BS22: N/A | BT22: N/A | BU22: N/A | BV22: N/A | BW22: N/A | BX22: N/A | BY22: N/A | BZ22: N/A
B23: No | C23: N/A | D23: N/A | E23: N/A | F23: N/A | G23: N/A | H23: N/A | I23: N/A | J23: N/A | K23: N/A | L23: N/A | M23: N/A | N23: N/A | O23: N/A | P23: N/A | Q23: N/A | R23: N/A | S23: N/A | T23: N/A | U23: N/A | V23: N/A | W23: N/A | X23: N/A | Y23: N/A | Z23: N/A | BB23: No | BC23: N/A | BD23: N/A | BE23: N/A | BF23: N/A | BG23: N/A | BH23: N/A | BI23: N/A | BJ23: N/A | BK23: N/A | BL23: N/A | BM23: N/A | BN23: N/A | BO23: N/A | BP23: N/A | BQ23: N/A | BR23: N/A | BS23: N/A | BT23: N/A | BU23: N/A | BV23: N/A | BW23: N/A | BX23: N/A | BY23: N/A | BZ23: N/A
A24: Manually calculated ratios | B24: Improved wells
B25: Improved springs
B26: Other
C27: NATIONAL wealth index quintile | H27: URBAN wealth index quintile | M27: RURAL wealth index quintile | R27: SUB-REGIONS: | BA27: Raw numbers of respondents: | BB27: Use of drinking water sources | BC27: NATIONAL wealth index quintile | BH27: URBAN wealth index quintile | BM27: RURAL wealth index quintile | BR27: SUB-REGIONS:
A28: Percentage based on weighted population | C28: Poorest | D28: Poor | E28: Middle | F28: Rich | G28: Richest | H28: Poorest | I28: Poor | J28: Middle | K28: Rich | L28: Richest | M28: Poorest | N28: Poor | O28: Middle | P28: Rich | Q28: Richest | R28: Awdal | S28: Banadir | T28: Bari | U28: Mudug | V28: Nugaal | W28: Sanaag | X28: Sool | Y28: Togdheer | Z28: Woqooyi Galbeed | BA28: Water data, raw numbers (weighted) | BC28: Poorest | BD28: Poor | BE28: Middle | BF28: Rich | BG28: Richest | BH28: Poorest | BI28: Poor | BJ28: Middle | BK28: Rich | BL28: Richest | BM28: Poorest | BN28: Poor | BO28: Middle | BP28: Rich | BQ28: Richest | BR28: Awdal | BS28: Banadir | BT28: Bari | BU28: Mudug | BV28: Nugaal | BW28: Sanaag | BX28: Sool | BY28: Togdheer | BZ28: Woqooyi Galbeed
A29: Piped water | B29: Yes | C29: =C58+C59 -> 36.27887157 | D29: 50.11253885 | E29: 53.96106513 | F29: 58.76845246 | G29: 73.41086055 | H29: 65.57085971 | I29: 66.4939928 | J29: 58.41424573 | K29: 61.6942653 | L29: 78.38723455 | M29: 7.866708923 | N29: 13.74514188 | O29: 30.05952782 | P29: 33.57717671 | Q29: 28.00900347 | R29: 49.54329181 | S29: 87.86235929 | T29: 58.55663272 | U29: 80.37839086 | V29: 80.18278099 | W29: 17.51521091 | X29: 4.824768576 | Y29: 57.05822507 | Z29: 40.34920925 | BA29: Piped water | BB29: Yes | BC29: N/A | BD29: N/A | BE29: N/A | BF29: N/A | BG29: N/A | BH29: N/A | BI29: N/A | BJ29: N/A | BK29: N/A | BL29: N/A | BM29: N/A | BN29: N/A | BO29: N/A | BP29: N/A | BQ29: N/A | BR29: N/A | BS29: N/A | BT29: N/A | BU29: N/A | BV29: N/A | BW29: N/A | BX29: N/A | BY29: N/A | BZ29: N/A
B30: No | C30: =100-C29 -> 63.72112843 | D30: =100-D29 -> 49.88746115 | E30: 46.03893487 | F30: 41.23154754 | G30: 26.58913945 | H30: 34.42914029 | I30: 33.5060072 | J30: 41.58575427 | K30: 38.3057347 | L30: 21.61276545 | M30: 92.13329108 | N30: 86.25485812 | O30: 69.94047218 | P30: 66.42282329 | Q30: 71.99099653 | R30: 50.45670819 | S30: 12.13764071 | T30: 41.44336728 | U30: 19.62160914 | V30: 19.81721901 | W30: 82.48478909 | X30: 95.17523142 | Y30: 42.94177493 | Z30: 59.65079075 | BB30: No | BC30: N/A | BD30: N/A | BE30: N/A | BF30: N/A | BG30: N/A | BH30: N/A | BI30: N/A | BJ30: N/A | BK30: N/A | BL30: N/A | BM30: N/A | BN30: N/A | BO30: N/A | BP30: N/A | BQ30: N/A | BR30: N/A | BS30: N/A | BT30: N/A | BU30: N/A | BV30: N/A | BW30: N/A | BX30: N/A | BY30: N/A | BZ30: N/A
A31: Piped water on premises | B31: Yes | C31: =C58 -> 27.96115994 | D31: 40.35033519 | E31: 31.32131726 | F31: 52.01725896 | G31: 68.42814035 | H31: 61.6010105 | I31: 59.16987701 | J31: 50.59961996 | K31: 56.35998663 | L31: 73.55147537 | M31: 6.567199892 | N31: 7.189550879 | O31: 4.464202848 | P31: 22.43251883 | Q31: 22.69716702 | R31: 40.95506746 | S31: 67.98773113 | T31: 48.04972583 | U31: 73.98557582 | V31: 77.32329513 | W31: 8.03964327 | X31: 1.25866546 | Y31: 47.59568229 | Z31: 31.95240168 | BA31: Piped water on premises | BB31: Yes | BC31: N/A | BD31: N/A | BE31: N/A | BF31: N/A | BG31: N/A | BH31: N/A | BI31: N/A | BJ31: N/A | BK31: N/A | BL31: N/A | BM31: N/A | BN31: N/A | BO31: N/A | BP31: N/A | BQ31: N/A | BR31: N/A | BS31: N/A | BT31: N/A | BU31: N/A | BV31: N/A | BW31: N/A | BX31: N/A | BY31: N/A | BZ31: N/A
B32: No | C32: =100-C31 -> 72.03884006 | D32: =100-D31 -> 59.64966481 | E32: 68.67868274 | F32: 47.98274104 | G32: 31.57185965 | H32: 38.3989895 | I32: 40.83012299 | J32: 49.40038004 | K32: 43.64001337 | L32: 26.44852463 | M32: 93.43280011 | N32: 92.81044912 | O32: 95.53579715 | P32: 77.56748117 | Q32: 77.30283298 | R32: 59.04493254 | S32: 32.01226887 | T32: 51.95027417 | U32: 26.01442418 | V32: 22.67670487 | W32: 91.96035673 | X32: 98.74133454 | Y32: 52.40431771 | Z32: 68.04759832 | BB32: No | BC32: N/A | BD32: N/A | BE32: N/A | BF32: N/A | BG32: N/A | BH32: N/A | BI32: N/A | BJ32: N/A | BK32: N/A | BL32: N/A | BM32: N/A | BN32: N/A | BO32: N/A | BP32: N/A | BQ32: N/A | BR32: N/A | BS32: N/A | BT32: N/A | BU32: N/A | BV32: N/A | BW32: N/A | BX32: N/A | BY32: N/A | BZ32: N/A
A33: Piped water into dwelling | B33: Yes | C33: N/A | D33: N/A | E33: N/A | F33: N/A | G33: N/A | H33: N/A | I33: N/A | J33: N/A | K33: N/A | L33: N/A | M33: N/A | N33: N/A | O33: N/A | P33: N/A | Q33: N/A | R33: N/A | S33: N/A | T33: N/A | U33: N/A | V33: N/A | W33: N/A | X33: N/A | Y33: N/A | Z33: N/A | BA33: Piped water into dwelling | BB33: Yes | BC33: N/A | BD33: N/A | BE33: N/A | BF33: N/A | BG33: N/A | BH33: N/A | BI33: N/A | BJ33: N/A | BK33: N/A | BL33: N/A | BM33: N/A | BN33: N/A | BO33: N/A | BP33: N/A | BQ33: N/A | BR33: N/A | BS33: N/A | BT33: N/A | BU33: N/A | BV33: N/A | BW33: N/A | BX33: N/A | BY33: N/A | BZ33: N/A
B34: No | C34: N/A | D34: N/A | E34: N/A | F34: N/A | G34: N/A | H34: N/A | I34: N/A | J34: N/A | K34: N/A | L34: N/A | M34: N/A | N34: N/A | O34: N/A | P34: N/A | Q34: N/A | R34: N/A | S34: N/A | T34: N/A | U34: N/A | V34: N/A | W34: N/A | X34: N/A | Y34: N/A | Z34: N/A | BB34: No | BC34: N/A | BD34: N/A | BE34: N/A | BF34: N/A | BG34: N/A | BH34: N/A | BI34: N/A | BJ34: N/A | BK34: N/A | BL34: N/A | BM34: N/A | BN34: N/A | BO34: N/A | BP34: N/A | BQ34: N/A | BR34: N/A | BS34: N/A | BT34: N/A | BU34: N/A | BV34: N/A | BW34: N/A | BX34: N/A | BY34: N/A | BZ34: N/A
A35: Water source on premises | B35: Yes | C35: N/A | D35: N/A | E35: N/A | F35: N/A | G35: N/A | H35: N/A | I35: N/A | J35: N/A | K35: N/A | L35: N/A | M35: N/A | N35: N/A | O35: N/A | P35: N/A | Q35: N/A | R35: N/A | S35: N/A | T35: N/A | U35: N/A | V35: N/A | W35: N/A | X35: N/A | Y35: N/A | Z35: N/A | BA35: Water source on premises | BB35: Yes | BC35: N/A | BD35: N/A | BE35: N/A | BF35: N/A | BG35: N/A | BH35: N/A | BI35: N/A | BJ35: N/A | BK35: N/A | BL35: N/A | BM35: N/A | BN35: N/A | BO35: N/A | BP35: N/A | BQ35: N/A | BR35: N/A | BS35: N/A | BT35: N/A | BU35: N/A | BV35: N/A | BW35: N/A | BX35: N/A | BY35: N/A | BZ35: N/A
B36: No | C36: N/A | D36: N/A | E36: N/A | F36: N/A | G36: N/A | H36: N/A | I36: N/A | J36: N/A | K36: N/A | L36: N/A | M36: N/A | N36: N/A | O36: N/A | P36: N/A | Q36: N/A | R36: N/A | S36: N/A | T36: N/A | U36: N/A | V36: N/A | W36: N/A | X36: N/A | Y36: N/A | Z36: N/A | BB36: No | BC36: N/A | BD36: N/A | BE36: N/A | BF36: N/A | BG36: N/A | BH36: N/A | BI36: N/A | BJ36: N/A | BK36: N/A | BL36: N/A | BM36: N/A | BN36: N/A | BO36: N/A | BP36: N/A | BQ36: N/A | BR36: N/A | BS36: N/A | BT36: N/A | BU36: N/A | BV36: N/A | BW36: N/A | BX36: N/A | BY36: N/A | BZ36: N/A
A37: Improved Water source on premises | B37: Yes | C37: N/A | D37: N/A | E37: N/A | F37: N/A | G37: N/A | H37: N/A | I37: N/A | J37: N/A | K37: N/A | L37: N/A | M37: N/A | N37: N/A | O37: N/A | P37: N/A | Q37: N/A | R37: N/A | S37: N/A | T37: N/A | U37: N/A | V37: N/A | W37: N/A | X37: N/A | Y37: N/A | Z37: N/A | BA37: Improved water source on premises | BB37: Yes | BC37: N/A | BD37: N/A | BE37: N/A | BF37: N/A | BG37: N/A | BH37: N/A | BI37: N/A | BJ37: N/A | BK37: N/A | BL37: N/A | BM37: N/A | BN37: N/A | BO37: N/A | BP37: N/A | BQ37: N/A | BR37: N/A | BS37: N/A | BT37: N/A | BU37: N/A | BV37: N/A | BW37: N/A | BX37: N/A | BY37: N/A | BZ37: N/A
B38: No | C38: N/A | D38: N/A | E38: N/A | F38: N/A | G38: N/A | H38: N/A | I38: N/A | J38: N/A | K38: N/A | L38: N/A | M38: N/A | N38: N/A | O38: N/A | P38: N/A | Q38: N/A | R38: N/A | S38: N/A | T38: N/A | U38: N/A | V38: N/A | W38: N/A | X38: N/A | Y38: N/A | Z38: N/A | BB38: No | BC38: N/A | BD38: N/A | BE38: N/A | BF38: N/A | BG38: N/A | BH38: N/A | BI38: N/A | BJ38: N/A | BK38: N/A | BL38: N/A | BM38: N/A | BN38: N/A | BO38: N/A | BP38: N/A | BQ38: N/A | BR38: N/A | BS38: N/A | BT38: N/A | BU38: N/A | BV38: N/A | BW38: N/A | BX38: N/A | BY38: N/A | BZ38: N/A
A39: Piped water on premises available when needed | B39: Yes | C39: N/A | D39: N/A | E39: N/A | F39: N/A | G39: N/A | H39: N/A | I39: N/A | J39: N/A | K39: N/A | L39: N/A | M39: N/A | N39: N/A | O39: N/A | P39: N/A | Q39: N/A | R39: N/A | S39: N/A | T39: N/A | U39: N/A | V39: N/A | W39: N/A | X39: N/A | Y39: N/A | Z39: N/A | BA39: Piped water on premises available when needed | BB39: Yes | BC39: N/A | BD39: N/A | BE39: N/A | BF39: N/A | BG39: N/A | BH39: N/A | BI39: N/A | BJ39: N/A | BK39: N/A | BL39: N/A | BM39: N/A | BN39: N/A | BO39: N/A | BP39: N/A | BQ39: N/A | BR39: N/A | BS39: N/A | BT39: N/A | BU39: N/A | BV39: N/A | BW39: N/A | BX39: N/A | BY39: N/A | BZ39: N/A
B40: No | C40: N/A | D40: N/A | E40: N/A | F40: N/A | G40: N/A | H40: N/A | I40: N/A | J40: N/A | K40: N/A | L40: N/A | M40: N/A | N40: N/A | O40: N/A | P40: N/A | Q40: N/A | R40: N/A | S40: N/A | T40: N/A | U40: N/A | V40: N/A | W40: N/A | X40: N/A | Y40: N/A | Z40: N/A | BB40: No | BC40: N/A | BD40: N/A | BE40: N/A | BF40: N/A | BG40: N/A | BH40: N/A | BI40: N/A | BJ40: N/A | BK40: N/A | BL40: N/A | BM40: N/A | BN40: N/A | BO40: N/A | BP40: N/A | BQ40: N/A | BR40: N/A | BS40: N/A | BT40: N/A | BU40: N/A | BV40: N/A | BW40: N/A | BX40: N/A | BY40: N/A | BZ40: N/A
A41: Water point at more than 30 minutes | B41: Yes | C41: N/A | D41: N/A | E41: N/A | F41: N/A | G41: N/A | H41: N/A | I41: N/A | J41: N/A | K41: N/A | L41: N/A | M41: N/A | N41: N/A | O41: N/A | P41: N/A | Q41: N/A | R41: N/A | S41: N/A | T41: N/A | U41: N/A | V41: N/A | W41: N/A | X41: N/A | Y41: N/A | Z41: N/A | BA41: Water point at more than 30 minutes | BB41: Yes | BC41: N/A | BD41: N/A | BE41: N/A | BF41: N/A | BG41: N/A | BH41: N/A | BI41: N/A | BJ41: N/A | BK41: N/A | BL41: N/A | BM41: N/A | BN41: N/A | BO41: N/A | BP41: N/A | BQ41: N/A | BR41: N/A | BS41: N/A | BT41: N/A | BU41: N/A | BV41: N/A | BW41: N/A | BX41: N/A | BY41: N/A | BZ41: N/A
B42: No | C42: N/A | D42: N/A | E42: N/A | F42: N/A | G42: N/A | H42: N/A | I42: N/A | J42: N/A | K42: N/A | L42: N/A | M42: N/A | N42: N/A | O42: N/A | P42: N/A | Q42: N/A | R42: N/A | S42: N/A | T42: N/A | U42: N/A | V42: N/A | W42: N/A | X42: N/A | Y42: N/A | Z42: N/A | BB42: No | BC42: N/A | BD42: N/A | BE42: N/A | BF42: N/A | BG42: N/A | BH42: N/A | BI42: N/A | BJ42: N/A | BK42: N/A | BL42: N/A | BM42: N/A | BN42: N/A | BO42: N/A | BP42: N/A | BQ42: N/A | BR42: N/A | BS42: N/A | BT42: N/A | BU42: N/A | BV42: N/A | BW42: N/A | BX42: N/A | BY42: N/A | BZ42: N/A
A43: Water source available when needed | B43: Yes | C43: N/A | D43: N/A | E43: N/A | F43: N/A | G43: N/A | H43: N/A | I43: N/A | J43: N/A | K43: N/A | L43: N/A | M43: N/A | N43: N/A | O43: N/A | P43: N/A | Q43: N/A | R43: N/A | S43: N/A | T43: N/A | U43: N/A | V43: N/A | W43: N/A | X43: N/A | Y43: N/A | Z43: N/A | BA43: Water source available when needed | BB43: Yes | BC43: N/A | BD43: N/A | BE43: N/A | BF43: N/A | BG43: N/A | BH43: N/A | BI43: N/A | BJ43: N/A | BK43: N/A | BL43: N/A | BM43: N/A | BN43: N/A | BO43: N/A | BP43: N/A | BQ43: N/A | BR43: N/A | BS43: N/A | BT43: N/A | BU43: N/A | BV43: N/A | BW43: N/A | BX43: N/A | BY43: N/A | BZ43: N/A
B44: No | C44: N/A | D44: N/A | E44: N/A | F44: N/A | G44: N/A | H44: N/A | I44: N/A | J44: N/A | K44: N/A | L44: N/A | M44: N/A | N44: N/A | O44: N/A | P44: N/A | Q44: N/A | R44: N/A | S44: N/A | T44: N/A | U44: N/A | V44: N/A | W44: N/A | X44: N/A | Y44: N/A | Z44: N/A | BB44: No | BC44: N/A | BD44: N/A | BE44: N/A | BF44: N/A | BG44: N/A | BH44: N/A | BI44: N/A | BJ44: N/A | BK44: N/A | BL44: N/A | BM44: N/A | BN44: N/A | BO44: N/A | BP44: N/A | BQ44: N/A | BR44: N/A | BS44: N/A | BT44: N/A | BU44: N/A | BV44: N/A | BW44: N/A | BX44: N/A | BY44: N/A | BZ44: N/A
A45: Improved water source available when needed | B45: Yes | C45: N/A | D45: N/A | E45: N/A | F45: N/A | G45: N/A | H45: N/A | I45: N/A | J45: N/A | K45: N/A | L45: N/A | M45: N/A | N45: N/A | O45: N/A | P45: N/A | Q45: N/A | R45: N/A | S45: N/A | T45: N/A | U45: N/A | V45: N/A | W45: N/A | X45: N/A | Y45: N/A | Z45: N/A | BA45: Improved water source available when needed | BB45: Yes | BC45: N/A | BD45: N/A | BE45: N/A | BF45: N/A | BG45: N/A | BH45: N/A | BI45: N/A | BJ45: N/A | BK45: N/A | BL45: N/A | BM45: N/A | BN45: N/A | BO45: N/A | BP45: N/A | BQ45: N/A | BR45: N/A | BS45: N/A | BT45: N/A | BU45: N/A | BV45: N/A | BW45: N/A | BX45: N/A | BY45: N/A | BZ45: N/A
B46: No | C46: N/A | D46: N/A | E46: N/A | F46: N/A | G46: N/A | H46: N/A | I46: N/A | J46: N/A | K46: N/A | L46: N/A | M46: N/A | N46: N/A | O46: N/A | P46: N/A | Q46: N/A | R46: N/A | S46: N/A | T46: N/A | U46: N/A | V46: N/A | W46: N/A | X46: N/A | Y46: N/A | Z46: N/A | BB46: No | BC46: N/A | BD46: N/A | BE46: N/A | BF46: N/A | BG46: N/A | BH46: N/A | BI46: N/A | BJ46: N/A | BK46: N/A | BL46: N/A | BM46: N/A | BN46: N/A | BO46: N/A | BP46: N/A | BQ46: N/A | BR46: N/A | BS46: N/A | BT46: N/A | BU46: N/A | BV46: N/A | BW46: N/A | BX46: N/A | BY46: N/A | BZ46: N/A
A47: Microbiological quality at point of collection | B47: Not contaminated (No E. coli in 100 mL) | C47: N/A | D47: N/A | E47: N/A | F47: N/A | G47: N/A | H47: N/A | I47: N/A | J47: N/A | K47: N/A | L47: N/A | M47: N/A | N47: N/A | O47: N/A | P47: N/A | Q47: N/A | R47: N/A | S47: N/A | T47: N/A | U47: N/A | V47: N/A | W47: N/A | X47: N/A | Y47: N/A | Z47: N/A | BA47: Microbiological quality at point of collection | BB47: Not contaminated (No E. coli in 100 mL) | BC47: N/A | BD47: N/A | BE47: N/A | BF47: N/A | BG47: N/A | BH47: N/A | BI47: N/A | BJ47: N/A | BK47: N/A | BL47: N/A | BM47: N/A | BN47: N/A | BO47: N/A | BP47: N/A | BQ47: N/A | BR47: N/A | BS47: N/A | BT47: N/A | BU47: N/A | BV47: N/A | BW47: N/A | BX47: N/A | BY47: N/A | BZ47: N/A
B48: Contaminated (E. coli detected in 100 mL) | C48: N/A | D48: N/A | E48: N/A | F48: N/A | G48: N/A | H48: N/A | I48: N/A | J48: N/A | K48: N/A | L48: N/A | M48: N/A | N48: N/A | O48: N/A | P48: N/A | Q48: N/A | R48: N/A | S48: N/A | T48: N/A | U48: N/A | V48: N/A | W48: N/A | X48: N/A | Y48: N/A | Z48: N/A | BB48: Contaminated (E. coli detected in 100 mL) | BC48: N/A | BD48: N/A | BE48: N/A | BF48: N/A | BG48: N/A | BH48: N/A | BI48: N/A | BJ48: N/A | BK48: N/A | BL48: N/A | BM48: N/A | BN48: N/A | BO48: N/A | BP48: N/A | BQ48: N/A | BR48: N/A | BS48: N/A | BT48: N/A | BU48: N/A | BV48: N/A | BW48: N/A | BX48: N/A | BY48: N/A | BZ48: N/A
B49: Highly contaminated (>100 CFU/100 mL) | C49: N/A | D49: N/A | E49: N/A | F49: N/A | G49: N/A | H49: N/A | I49: N/A | J49: N/A | K49: N/A | L49: N/A | M49: N/A | N49: N/A | O49: N/A | P49: N/A | Q49: N/A | R49: N/A | S49: N/A | T49: N/A | U49: N/A | V49: N/A | W49: N/A | X49: N/A | Y49: N/A | Z49: N/A | BB49: Highly contaminated (>100 CFU/100 mL) | BC49: N/A | BD49: N/A | BE49: N/A | BF49: N/A | BG49: N/A | BH49: N/A | BI49: N/A | BJ49: N/A | BK49: N/A | BL49: N/A | BM49: N/A | BN49: N/A | BO49: N/A | BP49: N/A | BQ49: N/A | BR49: N/A | BS49: N/A | BT49: N/A | BU49: N/A | BV49: N/A | BW49: N/A | BX49: N/A | BY49: N/A | BZ49: N/A
A50: Microbiological quality of improved water sources at point of collection | B50: Not contaminated (No E. coli in 100 mL) | C50: N/A | D50: N/A | E50: N/A | F50: N/A | G50: N/A | H50: N/A | I50: N/A | J50: N/A | K50: N/A | L50: N/A | M50: N/A | N50: N/A | O50: N/A | P50: N/A | Q50: N/A | R50: N/A | S50: N/A | T50: N/A | U50: N/A | V50: N/A | W50: N/A | X50: N/A | Y50: N/A | Z50: N/A | BA50: Microbiological quality of improved water sources at point of collection | BB50: Not contaminated (No E. coli in 100 mL) | BC50: N/A | BD50: N/A | BE50: N/A | BF50: N/A | BG50: N/A | BH50: N/A | BI50: N/A | BJ50: N/A | BK50: N/A | BL50: N/A | BM50: N/A | BN50: N/A | BO50: N/A | BP50: N/A | BQ50: N/A | BR50: N/A | BS50: N/A | BT50: N/A | BU50: N/A | BV50: N/A | BW50: N/A | BX50: N/A | BY50: N/A | BZ50: N/A
B51: Contaminated (E. coli detected in 100 mL) | C51: N/A | D51: N/A | E51: N/A | F51: N/A | G51: N/A | H51: N/A | I51: N/A | J51: N/A | K51: N/A | L51: N/A | M51: N/A | N51: N/A | O51: N/A | P51: N/A | Q51: N/A | R51: N/A | S51: N/A | T51: N/A | U51: N/A | V51: N/A | W51: N/A | X51: N/A | Y51: N/A | Z51: N/A | BB51: Contaminated (E. coli detected in 100 mL) | BC51: N/A | BD51: N/A | BE51: N/A | BF51: N/A | BG51: N/A | BH51: N/A | BI51: N/A | BJ51: N/A | BK51: N/A | BL51: N/A | BM51: N/A | BN51: N/A | BO51: N/A | BP51: N/A | BQ51: N/A | BR51: N/A | BS51: N/A | BT51: N/A | BU51: N/A | BV51: N/A | BW51: N/A | BX51: N/A | BY51: N/A | BZ51: N/A
B52: Highly contaminated (>100 CFU/100 mL) | C52: N/A | D52: N/A | E52: N/A | F52: N/A | G52: N/A | H52: N/A | I52: N/A | J52: N/A | K52: N/A | L52: N/A | M52: N/A | N52: N/A | O52: N/A | P52: N/A | Q52: N/A | R52: N/A | S52: N/A | T52: N/A | U52: N/A | V52: N/A | W52: N/A | X52: N/A | Y52: N/A | Z52: N/A | BB52: Highly contaminated (>100 CFU/100 mL) | BC52: N/A | BD52: N/A | BE52: N/A | BF52: N/A | BG52: N/A | BH52: N/A | BI52: N/A | BJ52: N/A | BK52: N/A | BL52: N/A | BM52: N/A | BN52: N/A | BO52: N/A | BP52: N/A | BQ52: N/A | BR52: N/A | BS52: N/A | BT52: N/A | BU52: N/A | BV52: N/A | BW52: N/A | BX52: N/A | BY52: N/A | BZ52: N/A
A53: Microbiological quality of piped on premises at point of collection | B53: Not contaminated (No E. coli in 100 mL) | C53: N/A | D53: N/A | E53: N/A | F53: N/A | G53: N/A | H53: N/A | I53: N/A | J53: N/A | K53: N/A | L53: N/A | M53: N/A | N53: N/A | O53: N/A | P53: N/A | Q53: N/A | R53: N/A | S53: N/A | T53: N/A | U53: N/A | V53: N/A | W53: N/A | X53: N/A | Y53: N/A | Z53: N/A | BA53: Microbiological quality of piped on premises at point of collection | BB53: Not contaminated (No E. coli in 100 mL) | BC53: N/A | BD53: N/A | BE53: N/A | BF53: N/A | BG53: N/A | BH53: N/A | BI53: N/A | BJ53: N/A | BK53: N/A | BL53: N/A | BM53: N/A | BN53: N/A | BO53: N/A | BP53: N/A | BQ53: N/A | BR53: N/A | BS53: N/A | BT53: N/A | BU53: N/A | BV53: N/A | BW53: N/A | BX53: N/A | BY53: N/A | BZ53: N/A
B54: Contaminated (E. coli detected in 100 mL) | C54: N/A | D54: N/A | E54: N/A | F54: N/A | G54: N/A | H54: N/A | I54: N/A | J54: N/A | K54: N/A | L54: N/A | M54: N/A | N54: N/A | O54: N/A | P54: N/A | Q54: N/A | R54: N/A | S54: N/A | T54: N/A | U54: N/A | V54: N/A | W54: N/A | X54: N/A | Y54: N/A | Z54: N/A | BB54: Contaminated (E. coli detected in 100 mL) | BC54: N/A | BD54: N/A | BE54: N/A | BF54: N/A | BG54: N/A | BH54: N/A | BI54: N/A | BJ54: N/A | BK54: N/A | BL54: N/A | BM54: N/A | BN54: N/A | BO54: N/A | BP54: N/A | BQ54: N/A | BR54: N/A | BS54: N/A | BT54: N/A | BU54: N/A | BV54: N/A | BW54: N/A | BX54: N/A | BY54: N/A | BZ54: N/A
B55: Highly contaminated (>100 CFU/100 mL) | C55: N/A | D55: N/A | E55: N/A | F55: N/A | G55: N/A | H55: N/A | I55: N/A | J55: N/A | K55: N/A | L55: N/A | M55: N/A | N55: N/A | O55: N/A | P55: N/A | Q55: N/A | R55: N/A | S55: N/A | T55: N/A | U55: N/A | V55: N/A | W55: N/A | X55: N/A | Y55: N/A | Z55: N/A | BB55: Highly contaminated (>100 CFU/100 mL) | BC55: N/A | BD55: N/A | BE55: N/A | BF55: N/A | BG55: N/A | BH55: N/A | BI55: N/A | BJ55: N/A | BK55: N/A | BL55: N/A | BM55: N/A | BN55: N/A | BO55: N/A | BP55: N/A | BQ55: N/A | BR55: N/A | BS55: N/A | BT55: N/A | BU55: N/A | BV55: N/A | BW55: N/A | BX55: N/A | BY55: N/A | BZ55: N/A
C56: NATIONAL wealth index quintile | H56: URBAN wealth index quintile | M56: RURAL wealth index quintile | R56: SUB-REGIONS: | BA56: Raw numbers of respondents: | BB56: Use of drinking water sources | BC56: NATIONAL wealth index quintile | BH56: URBAN wealth index quintile | BM56: RURAL wealth index quintile | BR56: SUB-REGIONS:
A57: Percentage based on weighted population | C57: Poorest | D57: Poor | E57: Middle | F57: Rich | G57: Richest | H57: Poorest | I57: Poor | J57: Middle | K57: Rich | L57: Richest | M57: Poorest | N57: Poor | O57: Middle | P57: Rich | Q57: Richest | R57: Awdal | S57: Banadir | T57: Bari | U57: Mudug | V57: Nugaal | W57: Sanaag | X57: Sool | Y57: Togdheer | Z57: Woqooyi Galbeed | BA57: Water data, raw numbers (weighted) | BC57: Poorest | BD57: Poor | BE57: Middle | BF57: Rich | BG57: Richest | BH57: Poorest | BI57: Poor | BJ57: Middle | BK57: Rich | BL57: Richest | BM57: Poorest | BN57: Poor | BO57: Middle | BP57: Rich | BQ57: Richest | BR57: Awdal | BS57: Banadir | BT57: Bari | BU57: Mudug | BV57: Nugaal | BW57: Sanaag | BX57: Sool | BY57: Togdheer | BZ57: Woqooyi Galbeed
A58: Water facilities | B58: Piped supply | C58: 27.96115994 | D58: 40.35033519 | E58: 31.32131726 | F58: 52.01725896 | G58: 68.42814035 | H58: 61.6010105 | I58: 59.16987701 | J58: 50.59961996 | K58: 56.35998663 | L58: 73.55147537 | M58: 6.567199892 | N58: 7.189550879 | O58: 4.464202848 | P58: 22.43251883 | Q58: 22.69716702 | R58: 40.95506746 | S58: 67.98773113 | T58: 48.04972583 | U58: 73.98557582 | V58: 77.32329513 | W58: 8.03964327 | X58: 1.25866546 | Y58: 47.59568229 | Z58: 31.95240168
B59: Public tap | C59: 8.317711633 | D59: 9.762203656 | E59: 22.63974787 | F59: 6.751193493 | G59: 4.982720206 | H59: 3.969849213 | I59: 7.324115791 | J59: 7.814625771 | K59: 5.33427867 | L59: 4.835759178 | M59: 1.299509031 | N59: 6.555590997 | O59: 25.59532498 | P59: 11.14465788 | Q59: 5.311836442 | R59: 8.58822435 | S59: 19.87462816 | T59: 10.50690689 | U59: 6.39281504 | V59: 2.859485866 | W59: 9.475567637 | X59: 3.566103115 | Y59: 9.462542775 | Z59: 8.396807567
B60: Well | C60: 34.40082937 | D60: 16.67604819 | E60: 10.68381625 | F60: 9.513920336 | G60: 2.82152203 | H60: 6.191943076 | I60: 4.509453131 | J60: 7.795637823 | K60: 7.345119915 | L60: 2.800856273 | M60: 58.5981966 | N60: 55.2560383 | O60: 38.21588621 | P60: 33.23580831 | Q60: 18.9388464 | R60: 35.43760604 | S60: 6.730969682 | T60: 20.32103663 | U60: 15.33193353 | V60: 6.748300379 | W60: 47.29822611 | X60: 2.813315814 | Y60: 3.269009 | Z60: 10.34188677
B61: Tanker | C61: 19.10828576 | D61: 27.67962065 | E61: 30.54197335 | F61: 26.65638166 | G61: 23.21554922 | H61: 26.64540668 | I61: 27.22719421 | J61: 27.58940268 | K61: 28.89652676 | L61: 18.47337744 | M61: 0.7241110484 | N61: 23.64400393 | O61: 24.5380296 | P61: 26.15957999 | Q61: 46.24153408 | R61: 3.833198739 | S61: 2.99209613 | T61: 16.04753575 | U61: 3.100790558 | V61: 2.082316008 | W61: 28.94989343 | X61: 89.84005963 | Y61: 32.29851476 | Z61: 43.83818374
B62: Other | C62: 10.2120133 | D62: 5.531792315 | E62: 4.813145271 | F62: 5.061245551 | G62: 0.5520682011 | H62: 1.591790538 | I62: 1.769359852 | J62: 6.200713766 | K62: 2.064088023 | L62: 0.3385317321 | M62: 32.81098343 | N62: 7.354815893 | O62: 7.18655636 | P62: 7.027434981 | Q62: 6.81061605 | R62: 11.18590342 | S62: 2.414574898 | T62: 5.074794895 | U62: 1.188885046 | V62: 10.98660262 | W62: 6.23666955 | X62: 2.521855982 | Y62: 7.37425117 | Z62: 5.470720244
A108: =A1026 -> Somalia
A109: =A1034 -> 2016
A110: Use of sanitation facilities
A111: by wealth quintile and sub-national region
A112: Notes:
A113: WHO/UNICEF JMP customised wealth index excludes water,
A114: sanitation and hygiene assets.
A115: Survey used for analysis: | B115: =A1025 -> SHFS16
A116: =B1030 -> Ratio of Improved latrines based on: | B116: SHFS17
A117: =B1029 -> Ratio of Shared improved based on: | B117: SHFS17
A120: Use of sanitation facilities | C120: NATIONAL wealth index quintile | H120: URBAN wealth index quintile | M120: RURAL wealth index quintile | R120: SUB-REGIONS: | BA120: Raw numbers of respondents: | BB120: Use of sanitation facilities | BC120: NATIONAL wealth index quintile | BH120: URBAN wealth index quintile | BM120: RURAL wealth index quintile | BR120: SUB-REGIONS:
A121: Weighted percentage (used in graphs) | C121: Poorest | D121: Poor | E121: Middle | F121: Rich | G121: Richest | H121: Poorest | I121: Poor | J121: Middle | K121: Rich | L121: Richest | M121: Poorest | N121: Poor | O121: Middle | P121: Rich | Q121: Richest | R121: Awdal | S121: Banadir | T121: Bari | U121: Mudug | V121: Nugaal | W121: Sanaag | X121: Sool | Y121: Togdheer | Z121: Woqooyi Galbeed | BA121: Sanitation data, raw numbers (weighted) | BC121: Poorest | BD121: Poor | BE121: Middle | BF121: Rich | BG121: Richest | BH121: Poorest | BI121: Poor | BJ121: Middle | BK121: Rich | BL121: Richest | BM121: Poorest | BN121: Poor | BO121: Middle | BP121: Rich | BQ121: Richest | BR121: Awdal | BS121: Banadir | BT121: Bari | BU121: Mudug | BV121: Nugaal | BW121: Sanaag | BX121: Sool | BY121: Togdheer | BZ121: Woqooyi Galbeed
A122: Sanitation | B122: Improved | C122: =C153+C154*SHFS17!C130/100 -> 40.5519056 | D122: =D153+D154*SHFS17!D130/100 -> 33.32051987 | E122: =E153+E154*SHFS17!E130/100 -> 71.96584975 | F122: =F153+F154*SHFS17!F130/100 -> 86.94161243 | G122: =G153+G154*SHFS17!G130/100 -> 91.0825075 | H122: =H153+H154*SHFS17!H130/100 -> 72.451373 | I122: =I153+I154*SHFS17!I130/100 -> 79.91070073 | J122: =J153+J154*SHFS17!J130/100 -> 88.13178951 | K122: =K153+K154*SHFS17!K130/100 -> 86.92027669 | L122: =L153+L154*SHFS17!L130/100 -> 90.92289874 | M122: =M153+M154*SHFS17!M130/100 -> 13.44420296 | N122: =N153+N154*SHFS17!N130/100 -> 15.53665482 | O122: =O153+O154*SHFS17!O130/100 -> 26.9209701 | P122: =P153+P154*SHFS17!P130/100 -> 39.93436048 | Q122: =Q153+Q154*SHFS17!Q130/100 -> 67.97733623 | R122: =R153+R154*MICS06!R130/100 -> 25.76503897 | S122: =S153+S154*MICS06!S130/100 -> 79.28280351 | T122: =T153+T154*MICS06!T130/100 -> 57.6479731 | U122: =U153+U154*MICS06!U130/100 -> 13.55720716 | V122: =V153+V154*MICS06!V130/100 -> 22.60211983 | W122: =W153+W154*MICS06!W130/100 -> 9.412628281 | X122: =X153+X154*MICS06!X130/100 -> 6.937519213 | Y122: =Y153+Y154*MICS06!Y130/100 -> 14.7900517 | Z122: =Z153+Z154*MICS06!Z130/100 -> 21.16732852 | BA122: Sanitation | BB122: Improved | BC122: N/A | BD122: N/A | BE122: N/A | BF122: N/A | BG122: N/A | BH122: N/A | BI122: N/A | BJ122: N/A | BK122: N/A | BL122: N/A | BM122: N/A | BN122: N/A | BO122: N/A | BP122: N/A | BQ122: N/A | BR122: N/A | BS122: N/A | BT122: N/A | BU122: N/A | BV122: N/A | BW122: N/A | BX122: N/A | BY122: N/A | BZ122: N/A
B123: Not Improved | C123: =100-C122 -> 59.4480944 | D123: =100-D122 -> 66.67948013 | E123: 28.03415025 | F123: 13.05838757 | G123: 8.917492498 | H123: 27.548627 | I123: 20.08929927 | J123: 11.86821049 | K123: 13.07972331 | L123: 9.077101264 | M123: 86.55579704 | N123: 84.46334518 | O123: 73.0790299 | P123: 60.06563952 | Q123: 32.02266377 | R123: 74.23496103 | S123: 20.71719649 | T123: 42.3520269 | U123: 86.44279284 | V123: 77.39788017 | W123: 90.58737172 | X123: 93.06248079 | Y123: 85.2099483 | Z123: 78.83267148 | BB123: Not Improved | BC123: N/A | BD123: N/A | BE123: N/A | BF123: N/A | BG123: N/A | BH123: N/A | BI123: N/A | BJ123: N/A | BK123: N/A | BL123: N/A | BM123: N/A | BN123: N/A | BO123: N/A | BP123: N/A | BQ123: N/A | BR123: N/A | BS123: N/A | BT123: N/A | BU123: N/A | BV123: N/A | BW123: N/A | BX123: N/A | BY123: N/A | BZ123: N/A
A124: Sanitation ladder | B124: Basic | C124: =C122*SHFS17!C129/100 -> 12.40619268 | D124: =D122*SHFS17!D129/100 -> 19.54647739 | E124: =E122*SHFS17!E129/100 -> 38.79918608 | F124: =F122*SHFS17!F129/100 -> 34.42298396 | G124: =G122*SHFS17!G129/100 -> 33.78195246 | H124: =H122*SHFS17!H129/100 -> 29.98536212 | I124: =I122*SHFS17!I129/100 -> 33.95905615 | J124: =J122*SHFS17!J129/100 -> 33.68297728 | K124: =K122*SHFS17!K129/100 -> 28.67775997 | L124: =L122*SHFS17!L129/100 -> 35.16145573 | M124: =M122*SHFS17!M129/100 -> 6.279449132 | N124: =N122*SHFS17!N129/100 -> 11.59188593 | O124: =O122*SHFS17!O129/100 -> 18.63189252 | P124: =P122*SHFS17!P129/100 -> 29.88904153 | Q124: =Q122*SHFS17!Q129/100 -> 35.61333717 | R124: N/A | S124: N/A | T124: N/A | U124: N/A | V124: N/A | W124: N/A | X124: N/A | Y124: N/A | Z124: N/A | BA124: Sanitation ladder | BB124: Basic | BC124: N/A | BD124: N/A | BE124: N/A | BF124: N/A | BG124: N/A | BH124: N/A | BI124: N/A | BJ124: N/A | BK124: N/A | BL124: N/A | BM124: N/A | BN124: N/A | BO124: N/A | BP124: N/A | BQ124: N/A | BR124: N/A | BS124: N/A | BT124: N/A | BU124: N/A | BV124: N/A | BW124: N/A | BX124: N/A | BY124: N/A | BZ124: N/A
B125: Limited | C125: =C122*SHFS17!C128/100 -> 28.14571292 | D125: =D122*SHFS17!D128/100 -> 13.77404248 | E125: =E122*SHFS17!E128/100 -> 33.16666367 | F125: =F122*SHFS17!F128/100 -> 52.51862847 | G125: =G122*SHFS17!G128/100 -> 57.30055504 | H125: =H122*SHFS17!H128/100 -> 42.46601088 | I125: =I122*SHFS17!I128/100 -> 45.95164458 | J125: =J122*SHFS17!J128/100 -> 54.44881223 | K125: =K122*SHFS17!K128/100 -> 58.24251672 | L125: =L122*SHFS17!L128/100 -> 55.761443 | M125: =M122*SHFS17!M128/100 -> 7.164753832 | N125: =N122*SHFS17!N128/100 -> 3.944768892 | O125: =O122*SHFS17!O128/100 -> 8.289077578 | P125: =P122*SHFS17!P128/100 -> 10.04531894 | Q125: =Q122*SHFS17!Q128/100 -> 32.36399906 | R125: N/A | S125: N/A | T125: N/A | U125: N/A | V125: N/A | W125: N/A | X125: N/A | Y125: N/A | Z125: N/A | BB125: Limited | BC125: N/A | BD125: N/A | BE125: N/A | BF125: N/A | BG125: N/A | BH125: N/A | BI125: N/A | BJ125: N/A | BK125: N/A | BL125: N/A | BM125: N/A | BN125: N/A | BO125: N/A | BP125: N/A | BQ125: N/A | BR125: N/A | BS125: N/A | BT125: N/A | BU125: N/A | BV125: N/A | BW125: N/A | BX125: N/A | BY125: N/A | BZ125: N/A
B126: Unimproved | C126: =100-(C124+C125+C127) -> 27.13806279 | D126: =100-(D124+D125+D127) -> 56.22889524 | E126: 21.35611329 | F126: 6.492942507 | G126: 5.605045601 | H126: 25.36761654 | I126: 17.49241218 | J126: 6.323117609 | K126: 6.65181139 | L126: 6.395649665 | M126: 11.17780314 | N126: 59.32195535 | O126: 30.73534978 | P126: 44.94320351 | Q126: 15.50763199 | R126: N/A | S126: N/A | T126: N/A | U126: N/A | V126: N/A | W126: N/A | X126: N/A | Y126: N/A | Z126: N/A | BB126: Unimproved | BC126: N/A | BD126: N/A | BE126: N/A | BF126: N/A | BG126: N/A | BH126: N/A | BI126: N/A | BJ126: N/A | BK126: N/A | BL126: N/A | BM126: N/A | BN126: N/A | BO126: N/A | BP126: N/A | BQ126: N/A | BR126: N/A | BS126: N/A | BT126: N/A | BU126: N/A | BV126: N/A | BW126: N/A | BX126: N/A | BY126: N/A | BZ126: N/A
B127: Open defecation | C127: =C155 -> 32.31003161 | D127: =D155 -> 10.45058489 | E127: 6.678036957 | F127: 6.565445066 | G127: 3.312446897 | H127: 2.181010464 | I127: 2.59688709 | J127: 5.545092885 | K127: 6.42791192 | L127: 2.681451599 | M127: 75.3779939 | N127: 25.14138983 | O127: 42.34368013 | P127: 15.12243601 | Q127: 16.51503179 | R127: N/A | S127: N/A | T127: N/A | U127: N/A | V127: N/A | W127: N/A | X127: N/A | Y127: N/A | Z127: N/A | BB127: Open defecation | BC127: N/A | BD127: N/A | BE127: N/A | BF127: N/A | BG127: N/A | BH127: N/A | BI127: N/A | BJ127: N/A | BK127: N/A | BL127: N/A | BM127: N/A | BN127: N/A | BO127: N/A | BP127: N/A | BQ127: N/A | BR127: N/A | BS127: N/A | BT127: N/A | BU127: N/A | BV127: N/A | BW127: N/A | BX127: N/A | BY127: N/A | BZ127: N/A
A128: Shared among Improved Sanitation | B128: Yes | C128: N/A | D128: N/A | E128: N/A | F128: N/A | G128: N/A | H128: N/A | I128: N/A | J128: N/A | K128: N/A | L128: N/A | M128: N/A | N128: N/A | O128: N/A | P128: N/A | Q128: N/A | R128: N/A | S128: N/A | T128: N/A | U128: N/A | V128: N/A | W128: N/A | X128: N/A | Y128: N/A | Z128: N/A | BA128: Shared among improved sanitation facilities | BB128: Yes | BC128: N/A | BD128: N/A | BE128: N/A | BF128: N/A | BG128: N/A | BH128: N/A | BI128: N/A | BJ128: N/A | BK128: N/A | BL128: N/A | BM128: N/A | BN128: N/A | BO128: N/A | BP128: N/A | BQ128: N/A | BR128: N/A | BS128: N/A | BT128: N/A | BU128: N/A | BV128: N/A | BW128: N/A | BX128: N/A | BY128: N/A | BZ128: N/A
B129: No | C129: N/A | D129: N/A | E129: N/A | F129: N/A | G129: N/A | H129: N/A | I129: N/A | J129: N/A | K129: N/A | L129: N/A | M129: N/A | N129: N/A | O129: N/A | P129: N/A | Q129: N/A | R129: N/A | S129: N/A | T129: N/A | U129: N/A | V129: N/A | W129: N/A | X129: N/A | Y129: N/A | Z129: N/A | BB129: No | BC129: N/A | BD129: N/A | BE129: N/A | BF129: N/A | BG129: N/A | BH129: N/A | BI129: N/A | BJ129: N/A | BK129: N/A | BL129: N/A | BM129: N/A | BN129: N/A | BO129: N/A | BP129: N/A | BQ129: N/A | BR129: N/A | BS129: N/A | BT129: N/A | BU129: N/A | BV129: N/A | BW129: N/A | BX129: N/A | BY129: N/A | BZ129: N/A
A130: Manually calculated ratios | B130: Improved latrines
B131: Other
B132: Other
C133: NATIONAL wealth index quintile | H133: URBAN wealth index quintile | M133: RURAL wealth index quintile | R133: SUB-REGIONS: | BA133: Raw numbers of respondents: | BB133: Use of sanitation facilities | BC133: NATIONAL wealth index quintile | BH133: URBAN wealth index quintile | BM133: RURAL wealth index quintile | BR133: SUB-REGIONS:
A134: Percentage based on weighted population | C134: Poorest | D134: Poor | E134: Middle | F134: Rich | G134: Richest | H134: Poorest | I134: Poor | J134: Middle | K134: Rich | L134: Richest | M134: Poorest | N134: Poor | O134: Middle | P134: Rich | Q134: Richest | R134: Awdal | S134: Banadir | T134: Bari | U134: Mudug | V134: Nugaal | W134: Sanaag | X134: Sool | Y134: Togdheer | Z134: Woqooyi Galbeed | BA134: Sanitation data, raw numbers (weighted) | BC134: Poorest | BD134: Poor | BE134: Middle | BF134: Rich | BG134: Richest | BH134: Poorest | BI134: Poor | BJ134: Middle | BK134: Rich | BL134: Richest | BM134: Poorest | BN134: Poor | BO134: Middle | BP134: Rich | BQ134: Richest | BR134: Awdal | BS134: Banadir | BT134: Bari | BU134: Mudug | BV134: Nugaal | BW134: Sanaag | BX134: Sool | BY134: Togdheer | BZ134: Woqooyi Galbeed
A135: Sanitation type | B135: Sewer connection | C135: =C153 -> 13.06325288 | D135: =D153 -> 12.5430228 | E135: 33.1856564 | F135: 11.76266077 | G135: 26.94080307 | H135: 13.139354 | I135: 17.26923423 | J135: 14.0749582 | K135: 15.59621241 | L135: 31.18223873 | M135: 5.955471482 | N135: 10.44350727 | O135: 19.13996102 | P135: 8.675141528 | Q135: 4.238265371 | R135: 5.605999271 | S135: 36.88885733 | T135: 19.67885044 | U135: 13.55720716 | V135: 22.60211983 | W135: 9.412628281 | X135: 6.937519213 | Y135: 14.7900517 | Z135: 21.16732852 | BA135: Sanitation type | BB135: Sewer connection | BC135: N/A | BD135: N/A | BE135: N/A | BF135: N/A | BG135: N/A | BH135: N/A | BI135: N/A | BJ135: N/A | BK135: N/A | BL135: N/A | BM135: N/A | BN135: N/A | BO135: N/A | BP135: N/A | BQ135: N/A | BR135: N/A | BS135: N/A | BT135: N/A | BU135: N/A | BV135: N/A | BW135: N/A | BX135: N/A | BY135: N/A | BZ135: N/A
B136: Septic tank connection | C136: N/A | D136: N/A | E136: N/A | F136: N/A | G136: N/A | H136: N/A | I136: N/A | J136: N/A | K136: N/A | L136: N/A | M136: N/A | N136: N/A | O136: N/A | P136: N/A | Q136: N/A | R136: N/A | S136: N/A | T136: N/A | U136: N/A | V136: N/A | W136: N/A | X136: N/A | Y136: N/A | Z136: N/A | BB136: Septic tank connection | BC136: N/A | BD136: N/A | BE136: N/A | BF136: N/A | BG136: N/A | BH136: N/A | BI136: N/A | BJ136: N/A | BK136: N/A | BL136: N/A | BM136: N/A | BN136: N/A | BO136: N/A | BP136: N/A | BQ136: N/A | BR136: N/A | BS136: N/A | BT136: N/A | BU136: N/A | BV136: N/A | BW136: N/A | BX136: N/A | BY136: N/A | BZ136: N/A
B137: Improved latrines | C137: N/A | D137: N/A | E137: N/A | F137: N/A | G137: N/A | H137: N/A | I137: N/A | J137: N/A | K137: N/A | L137: N/A | M137: N/A | N137: N/A | O137: N/A | P137: N/A | Q137: N/A | R137: N/A | S137: N/A | T137: N/A | U137: N/A | V137: N/A | W137: N/A | X137: N/A | Y137: N/A | Z137: N/A | BB137: Improved latrines | BC137: N/A | BD137: N/A | BE137: N/A | BF137: N/A | BG137: N/A | BH137: N/A | BI137: N/A | BJ137: N/A | BK137: N/A | BL137: N/A | BM137: N/A | BN137: N/A | BO137: N/A | BP137: N/A | BQ137: N/A | BR137: N/A | BS137: N/A | BT137: N/A | BU137: N/A | BV137: N/A | BW137: N/A | BX137: N/A | BY137: N/A | BZ137: N/A
B138: Unimproved facilities | C138: N/A | D138: N/A | E138: N/A | F138: N/A | G138: N/A | H138: N/A | I138: N/A | J138: N/A | K138: N/A | L138: N/A | M138: N/A | N138: N/A | O138: N/A | P138: N/A | Q138: N/A | R138: N/A | S138: N/A | T138: N/A | U138: N/A | V138: N/A | W138: N/A | X138: N/A | Y138: N/A | Z138: N/A | BB138: Unimproved facilities | BC138: N/A | BD138: N/A | BE138: N/A | BF138: N/A | BG138: N/A | BH138: N/A | BI138: N/A | BJ138: N/A | BK138: N/A | BL138: N/A | BM138: N/A | BN138: N/A | BO138: N/A | BP138: N/A | BQ138: N/A | BR138: N/A | BS138: N/A | BT138: N/A | BU138: N/A | BV138: N/A | BW138: N/A | BX138: N/A | BY138: N/A | BZ138: N/A
B139: Open defecation | C139: =C155 -> 32.31003161 | D139: =D155 -> 10.45058489 | E139: 6.678036957 | F139: 6.565445066 | G139: 3.312446897 | H139: 2.181010464 | I139: 2.59688709 | J139: 5.545092885 | K139: 6.42791192 | L139: 2.681451599 | M139: 75.3779939 | N139: 25.14138983 | O139: 42.34368013 | P139: 15.12243601 | Q139: 16.51503179 | R139: 48.34142447 | S139: 0.7653805595 | T139: 5.441616462 | U139: 0.9017241913 | V139: 9.971419502 | W139: 25.43839588 | X139: 7.246648098 | Y139: 10.94824838 | Z139: 13.14734533 | BB139: Open defecation | BC139: N/A | BD139: N/A | BE139: N/A | BF139: N/A | BG139: N/A | BH139: N/A | BI139: N/A | BJ139: N/A | BK139: N/A | BL139: N/A | BM139: N/A | BN139: N/A | BO139: N/A | BP139: N/A | BQ139: N/A | BR139: N/A | BS139: N/A | BT139: N/A | BU139: N/A | BV139: N/A | BW139: N/A | BX139: N/A | BY139: N/A | BZ139: N/A
A140: Septic tank emptying practices | B140: Not emptied/treated and disposed in situ | C140: N/A | D140: N/A | E140: N/A | F140: N/A | G140: N/A | H140: N/A | I140: N/A | J140: N/A | K140: N/A | L140: N/A | M140: N/A | N140: N/A | O140: N/A | P140: N/A | Q140: N/A | R140: N/A | S140: N/A | T140: N/A | U140: N/A | V140: N/A | W140: N/A | X140: N/A | Y140: N/A | Z140: N/A | BA140: Septic tank emptying practices | BB140: Not emptied/treated and disposed in situ | BC140: N/A | BD140: N/A | BE140: N/A | BF140: N/A | BG140: N/A | BH140: N/A | BI140: N/A | BJ140: N/A | BK140: N/A | BL140: N/A | BM140: N/A | BN140: N/A | BO140: N/A | BP140: N/A | BQ140: N/A | BR140: N/A | BS140: N/A | BT140: N/A | BU140: N/A | BV140: N/A | BW140: N/A | BX140: N/A | BY140: N/A | BZ140: N/A
B141: Emptied and buried on site | C141: N/A | D141: N/A | E141: N/A | F141: N/A | G141: N/A | H141: N/A | I141: N/A | J141: N/A | K141: N/A | L141: N/A | M141: N/A | N141: N/A | O141: N/A | P141: N/A | Q141: N/A | R141: N/A | S141: N/A | T141: N/A | U141: N/A | V141: N/A | W141: N/A | X141: N/A | Y141: N/A | Z141: N/A | BB141: Emptied and buried on site | BC141: N/A | BD141: N/A | BE141: N/A | BF141: N/A | BG141: N/A | BH141: N/A | BI141: N/A | BJ141: N/A | BK141: N/A | BL141: N/A | BM141: N/A | BN141: N/A | BO141: N/A | BP141: N/A | BQ141: N/A | BR141: N/A | BS141: N/A | BT141: N/A | BU141: N/A | BV141: N/A | BW141: N/A | BX141: N/A | BY141: N/A | BZ141: N/A
B142: Emptied and discharged locally | C142: N/A | D142: N/A | E142: N/A | F142: N/A | G142: N/A | H142: N/A | I142: N/A | J142: N/A | K142: N/A | L142: N/A | M142: N/A | N142: N/A | O142: N/A | P142: N/A | Q142: N/A | R142: N/A | S142: N/A | T142: N/A | U142: N/A | V142: N/A | W142: N/A | X142: N/A | Y142: N/A | Z142: N/A | BB142: Emptied and discharged locally | BC142: N/A | BD142: N/A | BE142: N/A | BF142: N/A | BG142: N/A | BH142: N/A | BI142: N/A | BJ142: N/A | BK142: N/A | BL142: N/A | BM142: N/A | BN142: N/A | BO142: N/A | BP142: N/A | BQ142: N/A | BR142: N/A | BS142: N/A | BT142: N/A | BU142: N/A | BV142: N/A | BW142: N/A | BX142: N/A | BY142: N/A | BZ142: N/A
B143: Emptied and removed offsite | C143: N/A | D143: N/A | E143: N/A | F143: N/A | G143: N/A | H143: N/A | I143: N/A | J143: N/A | K143: N/A | L143: N/A | M143: N/A | N143: N/A | O143: N/A | P143: N/A | Q143: N/A | R143: N/A | S143: N/A | T143: N/A | U143: N/A | V143: N/A | W143: N/A | X143: N/A | Y143: N/A | Z143: N/A | BB143: Emptied and removed offsite | BC143: N/A | BD143: N/A | BE143: N/A | BF143: N/A | BG143: N/A | BH143: N/A | BI143: N/A | BJ143: N/A | BK143: N/A | BL143: N/A | BM143: N/A | BN143: N/A | BO143: N/A | BP143: N/A | BQ143: N/A | BR143: N/A | BS143: N/A | BT143: N/A | BU143: N/A | BV143: N/A | BW143: N/A | BX143: N/A | BY143: N/A | BZ143: N/A
A144: Latrine emptying practices | B144: Not emptied/treated and disposed in situ | C144: N/A | D144: N/A | E144: N/A | F144: N/A | G144: N/A | H144: N/A | I144: N/A | J144: N/A | K144: N/A | L144: N/A | M144: N/A | N144: N/A | O144: N/A | P144: N/A | Q144: N/A | R144: N/A | S144: N/A | T144: N/A | U144: N/A | V144: N/A | W144: N/A | X144: N/A | Y144: N/A | Z144: N/A | BA144: Latrine emptying practices | BB144: Not emptied/treated and disposed in situ | BC144: N/A | BD144: N/A | BE144: N/A | BF144: N/A | BG144: N/A | BH144: N/A | BI144: N/A | BJ144: N/A | BK144: N/A | BL144: N/A | BM144: N/A | BN144: N/A | BO144: N/A | BP144: N/A | BQ144: N/A | BR144: N/A | BS144: N/A | BT144: N/A | BU144: N/A | BV144: N/A | BW144: N/A | BX144: N/A | BY144: N/A | BZ144: N/A
B145: Emptied and buried on site | C145: N/A | D145: N/A | E145: N/A | F145: N/A | G145: N/A | H145: N/A | I145: N/A | J145: N/A | K145: N/A | L145: N/A | M145: N/A | N145: N/A | O145: N/A | P145: N/A | Q145: N/A | R145: N/A | S145: N/A | T145: N/A | U145: N/A | V145: N/A | W145: N/A | X145: N/A | Y145: N/A | Z145: N/A | BB145: Emptied and buried on site | BC145: N/A | BD145: N/A | BE145: N/A | BF145: N/A | BG145: N/A | BH145: N/A | BI145: N/A | BJ145: N/A | BK145: N/A | BL145: N/A | BM145: N/A | BN145: N/A | BO145: N/A | BP145: N/A | BQ145: N/A | BR145: N/A | BS145: N/A | BT145: N/A | BU145: N/A | BV145: N/A | BW145: N/A | BX145: N/A | BY145: N/A | BZ145: N/A
B146: Emptied and discharged locally | C146: N/A | D146: N/A | E146: N/A | F146: N/A | G146: N/A | H146: N/A | I146: N/A | J146: N/A | K146: N/A | L146: N/A | M146: N/A | N146: N/A | O146: N/A | P146: N/A | Q146: N/A | R146: N/A | S146: N/A | T146: N/A | U146: N/A | V146: N/A | W146: N/A | X146: N/A | Y146: N/A | Z146: N/A | BB146: Emptied and discharged locally | BC146: N/A | BD146: N/A | BE146: N/A | BF146: N/A | BG146: N/A | BH146: N/A | BI146: N/A | BJ146: N/A | BK146: N/A | BL146: N/A | BM146: N/A | BN146: N/A | BO146: N/A | BP146: N/A | BQ146: N/A | BR146: N/A | BS146: N/A | BT146: N/A | BU146: N/A | BV146: N/A | BW146: N/A | BX146: N/A | BY146: N/A | BZ146: N/A
B147: Emptied and removed offsite | C147: N/A | D147: N/A | E147: N/A | F147: N/A | G147: N/A | H147: N/A | I147: N/A | J147: N/A | K147: N/A | L147: N/A | M147: N/A | N147: N/A | O147: N/A | P147: N/A | Q147: N/A | R147: N/A | S147: N/A | T147: N/A | U147: N/A | V147: N/A | W147: N/A | X147: N/A | Y147: N/A | Z147: N/A | BB147: Emptied and removed offsite | BC147: N/A | BD147: N/A | BE147: N/A | BF147: N/A | BG147: N/A | BH147: N/A | BI147: N/A | BJ147: N/A | BK147: N/A | BL147: N/A | BM147: N/A | BN147: N/A | BO147: N/A | BP147: N/A | BQ147: N/A | BR147: N/A | BS147: N/A | BT147: N/A | BU147: N/A | BV147: N/A | BW147: N/A | BX147: N/A | BY147: N/A | BZ147: N/A
A148: Shared among improved sanitation facilities | B148: Yes | C148: N/A | D148: N/A | E148: N/A | F148: N/A | G148: N/A | H148: N/A | I148: N/A | J148: N/A | K148: N/A | L148: N/A | M148: N/A | N148: N/A | O148: N/A | P148: N/A | Q148: N/A | R148: N/A | S148: N/A | T148: N/A | U148: N/A | V148: N/A | W148: N/A | X148: N/A | Y148: N/A | Z148: N/A | BA148: Shared among improved sanitation facilities | BB148: Yes | BC148: N/A | BD148: N/A | BE148: N/A | BF148: N/A | BG148: N/A | BH148: N/A | BI148: N/A | BJ148: N/A | BK148: N/A | BL148: N/A | BM148: N/A | BN148: N/A | BO148: N/A | BP148: N/A | BQ148: N/A | BR148: N/A | BS148: N/A | BT148: N/A | BU148: N/A | BV148: N/A | BW148: N/A | BX148: N/A | BY148: N/A | BZ148: N/A
B149: No | C149: N/A | D149: N/A | E149: N/A | F149: N/A | G149: N/A | H149: N/A | I149: N/A | J149: N/A | K149: N/A | L149: N/A | M149: N/A | N149: N/A | O149: N/A | P149: N/A | Q149: N/A | R149: N/A | S149: N/A | T149: N/A | U149: N/A | V149: N/A | W149: N/A | X149: N/A | Y149: N/A | Z149: N/A | BB149: No | BC149: N/A | BD149: N/A | BE149: N/A | BF149: N/A | BG149: N/A | BH149: N/A | BI149: N/A | BJ149: N/A | BK149: N/A | BL149: N/A | BM149: N/A | BN149: N/A | BO149: N/A | BP149: N/A | BQ149: N/A | BR149: N/A | BS149: N/A | BT149: N/A | BU149: N/A | BV149: N/A | BW149: N/A | BX149: N/A | BY149: N/A | BZ149: N/A
B150: DK/missing | C150: N/A | D150: N/A | E150: N/A | F150: N/A | G150: N/A | H150: N/A | I150: N/A | J150: N/A | K150: N/A | L150: N/A | M150: N/A | N150: N/A | O150: N/A | P150: N/A | Q150: N/A | R150: N/A | S150: N/A | T150: N/A | U150: N/A | V150: N/A | W150: N/A | X150: N/A | Y150: N/A | Z150: N/A | BB150: DK/missing | BC150: N/A | BD150: N/A | BE150: N/A | BF150: N/A | BG150: N/A | BH150: N/A | BI150: N/A | BJ150: N/A | BK150: N/A | BL150: N/A | BM150: N/A | BN150: N/A | BO150: N/A | BP150: N/A | BQ150: N/A | BR150: N/A | BS150: N/A | BT150: N/A | BU150: N/A | BV150: N/A | BW150: N/A | BX150: N/A | BY150: N/A | BZ150: N/A
A151: Shared among all sanitation facilities | B151: Yes | C151: N/A | D151: N/A | E151: N/A | F151: N/A | G151: N/A | H151: N/A | I151: N/A | J151: N/A | K151: N/A | L151: N/A | M151: N/A | N151: N/A | O151: N/A | P151: N/A | Q151: N/A | R151: N/A | S151: N/A | T151: N/A | U151: N/A | V151: N/A | W151: N/A | X151: N/A | Y151: N/A | Z151: N/A | BA151: Shared among all sanitation facilities | BB151: Yes | BC151: N/A | BD151: N/A | BE151: N/A | BF151: N/A | BG151: N/A | BH151: N/A | BI151: N/A | BJ151: N/A | BK151: N/A | BL151: N/A | BM151: N/A | BN151: N/A | BO151: N/A | BP151: N/A | BQ151: N/A | BR151: N/A | BS151: N/A | BT151: N/A | BU151: N/A | BV151: N/A | BW151: N/A | BX151: N/A | BY151: N/A | BZ151: N/A
B152: No | C152: N/A | D152: N/A | E152: N/A | F152: N/A | G152: N/A | H152: N/A | I152: N/A | J152: N/A | K152: N/A | L152: N/A | M152: N/A | N152: N/A | O152: N/A | P152: N/A | Q152: N/A | R152: N/A | S152: N/A | T152: N/A | U152: N/A | V152: N/A | W152: N/A | X152: N/A | Y152: N/A | Z152: N/A | BB152: No | BC152: N/A | BD152: N/A | BE152: N/A | BF152: N/A | BG152: N/A | BH152: N/A | BI152: N/A | BJ152: N/A | BK152: N/A | BL152: N/A | BM152: N/A | BN152: N/A | BO152: N/A | BP152: N/A | BQ152: N/A | BR152: N/A | BS152: N/A | BT152: N/A | BU152: N/A | BV152: N/A | BW152: N/A | BX152: N/A | BY152: N/A | BZ152: N/A
A153: Toilet facility | B153: Yes and connected to sewage | C153: 13.06325288 | D153: 12.5430228 | E153: 33.1856564 | F153: 11.76266077 | G153: 26.94080307 | H153: 13.139354 | I153: 17.26923423 | J153: 14.0749582 | K153: 15.59621241 | L153: 31.18223873 | M153: 5.955471482 | N153: 10.44350727 | O153: 19.13996102 | P153: 8.675141528 | Q153: 4.238265371 | R153: 5.605999271 | S153: 36.88885733 | T153: 19.67885044 | U153: 13.55720716 | V153: 22.60211983 | W153: 9.412628281 | X153: 6.937519213 | Y153: 14.7900517 | Z153: 21.16732852 | BA153: Toilet facility | BB153: Yes and connected to sewage | BC153: 1304.721018 | BD153: 1094.408001 | BE153: 3079.933831 | BF153: 1087.675984 | BG153: 2572.318536 | BH153: 822.6339733 | BI153: 1077.808389 | BJ153: 884.5442207 | BK153: 974.0845248 | BL153: 1960.840084 | BM153: 136.5445229 | BN153: 192.1652958 | BO153: 593.9213988 | BP153: 213.9957737 | BQ153: 102.6706504 | BR153: 220.8027301 | BS153: 3059.848782 | BT153: 1339.092612 | BU153: 469.7915415 | BV153: 208.306909 | BW153: 319.4284622 | BX153: 171.0310258 | BY153: 822.2348007 | BZ153: 2528.520506
B154: Yes and not connected to sewage | C154: 54.62671551 | D154: 77.0063923 | E154: 60.13630665 | F154: 81.67189417 | G154: 69.74675003 | H154: 84.67963553 | I154: 80.13387868 | J154: 80.37994892 | K154: 77.97587567 | L154: 66.13630968 | M154: 18.66653462 | N154: 64.4151029 | O154: 38.51635886 | P154: 76.20242246 | Q154: 79.24670284 | R154: 46.05257626 | S154: 62.34576212 | T154: 74.87953309 | U154: 85.54106865 | V154: 67.42646067 | W154: 65.14897584 | X154: 85.81583269 | Y154: 74.26169992 | Z154: 65.68532614 | BB154: Yes and not connected to sewage | BC154: 5455.962961 | BD154: 6718.987378 | BE154: 5581.201802 | BF154: 7552.080228 | BG154: 6659.447289 | BH154: 5301.656765 | BI154: 5001.320008 | BJ154: 5051.497722 | BK154: 4870.098703 | BL154: 4158.865185 | BM154: 427.9783843 | BN154: 1185.267265 | BO154: 1195.179536 | BP154: 1879.738365 | BQ154: 1919.726542 | BR154: 1813.866552 | BS154: 5171.442492 | BT154: 5095.349948 | BU154: 2964.214534 | BV154: 621.4194824 | BW154: 2210.906087 | BX154: 2115.622233 | BY154: 4128.488206 | BZ154: 7846.370123
B155: No facility | C155: 32.31003161 | D155: 10.45058489 | E155: 6.678036957 | F155: 6.565445066 | G155: 3.312446897 | H155: 2.181010464 | I155: 2.59688709 | J155: 5.545092885 | K155: 6.42791192 | L155: 2.681451599 | M155: 75.3779939 | N155: 25.14138983 | O155: 42.34368013 | P155: 15.12243601 | Q155: 16.51503179 | R155: 48.34142447 | S155: 0.7653805595 | T155: 5.441616462 | U155: 0.9017241913 | V155: 9.971419502 | W155: 25.43839588 | X155: 7.246648098 | Y155: 10.94824838 | Z155: 13.14734533 | BB155: No facility | BC155: 3227.035235 | BD155: 911.8379124 | BE155: 619.7831889 | BF155: 607.0970726 | BG155: 316.2737403 | BH155: 136.5495825 | BI155: 162.0770587 | BJ155: 348.4827305 | BK155: 401.4647509 | BL155: 168.6183543 | BM155: 1728.234657 | BN155: 462.6130366 | BO155: 1313.942997 | BP155: 373.0356886 | BQ155: 400.0714694 | BR155: 1904.017104 | BS155: 63.48661743 | BT155: 370.2873003 | BU155: 31.2470255 | BV155: 91.89914886 | BW155: 863.2814804 | BX155: 178.6519964 | BY155: 608.6544525 | BZ155: 1570.502023
BB156: Total | BC156: 9987.719213 | BD156: 8725.233292 | BE156: 9280.918822 | BF156: 9246.853284 | BG156: 9548.039566 | BH156: 6260.840321 | BI156: 6241.205455 | BJ156: 6284.524673 | BK156: 6245.647978 | BL156: 6288.323623 | BM156: 2292.757564 | BN156: 1840.045597 | BO156: 3103.043932 | BP156: 2466.769827 | BQ156: 2422.468661 | BR156: 3938.686386 | BS156: 8294.777891 | BT156: 6804.729861 | BU156: 3465.253101 | BV156: 921.6255403 | BW156: 3393.61603 | BX156: 2465.305256 | BY156: 5559.377459 | BZ156: 11945.39265
A208: =A1026 -> Somalia
A209: =A1034 -> 2016
A210: Access to hygiene facilities
A211: by wealth quintile and sub-national region
A212: Notes:
A213: WHO/UNICEF JMP customised wealth index excludes water,
A214: sanitation and hygiene assets.
A215: Survey used for analysis: | B215: =A1025 -> SHFS16
A220: Access to handwashing | C220: NATIONAL wealth index quintile | H220: URBAN wealth index quintile | M220: RURAL wealth index quintile | R220: SUB-REGIONS: | BA220: Raw numbers of respondents: | BB220: Access to handwashing | BC220: NATIONAL wealth index quintile | BH220: URBAN wealth index quintile | BM220: RURAL wealth index quintile | BR220: SUB-REGIONS:
A221: Weighted percentage (used in graphs) | C221: Poorest | D221: Poor | E221: Middle | F221: Rich | G221: Richest | H221: Poorest | I221: Poor | J221: Middle | K221: Rich | L221: Richest | M221: Poorest | N221: Poor | O221: Middle | P221: Rich | Q221: Richest | R221: Awdal | S221: Banadir | T221: Bari | U221: Mudug | V221: Nugaal | W221: Sanaag | X221: Sool | Y221: Togdheer | Z221: Woqooyi Galbeed | BA221: Hygiene data, raw numbers (weighted) | BC221: Poorest | BD221: Poor | BE221: Middle | BF221: Rich | BG221: Richest | BH221: Poorest | BI221: Poor | BJ221: Middle | BK221: Rich | BL221: Richest | BM221: Poorest | BN221: Poor | BO221: Middle | BP221: Rich | BQ221: Richest | BR221: Awdal | BS221: Banadir | BT221: Bari | BU221: Mudug | BV221: Nugaal | BW221: Sanaag | BX221: Sool | BY221: Togdheer | BZ221: Woqooyi Galbeed
A222: Hygiene ladder | B222: Basic | C222: N/A | D222: N/A | E222: N/A | F222: N/A | G222: N/A | H222: N/A | I222: N/A | J222: N/A | K222: N/A | L222: N/A | M222: N/A | N222: N/A | O222: N/A | P222: N/A | Q222: N/A | R222: N/A | S222: N/A | T222: N/A | U222: N/A | V222: N/A | W222: N/A | X222: N/A | Y222: N/A | Z222: N/A | BA222: Hygiene ladder | BB222: Basic | BC222: N/A | BD222: N/A | BE222: N/A | BF222: N/A | BG222: N/A | BH222: N/A | BI222: N/A | BJ222: N/A | BK222: N/A | BL222: N/A | BM222: N/A | BN222: N/A | BO222: N/A | BP222: N/A | BQ222: N/A | BR222: N/A | BS222: N/A | BT222: N/A | BU222: N/A | BV222: N/A | BW222: N/A | BX222: N/A | BY222: N/A | BZ222: N/A
B223: Limited | C223: N/A | D223: N/A | E223: N/A | F223: N/A | G223: N/A | H223: N/A | I223: N/A | J223: N/A | K223: N/A | L223: N/A | M223: N/A | N223: N/A | O223: N/A | P223: N/A | Q223: N/A | R223: N/A | S223: N/A | T223: N/A | U223: N/A | V223: N/A | W223: N/A | X223: N/A | Y223: N/A | Z223: N/A | BB223: Limited | BC223: N/A | BD223: N/A | BE223: N/A | BF223: N/A | BG223: N/A | BH223: N/A | BI223: N/A | BJ223: N/A | BK223: N/A | BL223: N/A | BM223: N/A | BN223: N/A | BO223: N/A | BP223: N/A | BQ223: N/A | BR223: N/A | BS223: N/A | BT223: N/A | BU223: N/A | BV223: N/A | BW223: N/A | BX223: N/A | BY223: N/A | BZ223: N/A
B224: No facility | C224: N/A | D224: N/A | E224: N/A | F224: N/A | G224: N/A | H224: N/A | I224: N/A | J224: N/A | K224: N/A | L224: N/A | M224: N/A | N224: N/A | O224: N/A | P224: N/A | Q224: N/A | R224: N/A | S224: N/A | T224: N/A | U224: N/A | V224: N/A | W224: N/A | X224: N/A | Y224: N/A | Z224: N/A | BB224: No facility | BC224: N/A | BD224: N/A | BE224: N/A | BF224: N/A | BG224: N/A | BH224: N/A | BI224: N/A | BJ224: N/A | BK224: N/A | BL224: N/A | BM224: N/A | BN224: N/A | BO224: N/A | BP224: N/A | BQ224: N/A | BR224: N/A | BS224: N/A | BT224: N/A | BU224: N/A | BV224: N/A | BW224: N/A | BX224: N/A | BY224: N/A | BZ224: N/A
BA225: Observed handwashing place | BB225: Fixed | BC225: N/A | BD225: N/A | BE225: N/A | BF225: N/A | BG225: N/A | BH225: N/A | BI225: N/A | BJ225: N/A | BK225: N/A | BL225: N/A | BM225: N/A | BN225: N/A | BO225: N/A | BP225: N/A | BQ225: N/A | BR225: N/A | BS225: N/A | BT225: N/A | BU225: N/A | BV225: N/A | BW225: N/A | BX225: N/A | BY225: N/A | BZ225: N/A
BB226: Mobile | BC226: N/A | BD226: N/A | BE226: N/A | BF226: N/A | BG226: N/A | BH226: N/A | BI226: N/A | BJ226: N/A | BK226: N/A | BL226: N/A | BM226: N/A | BN226: N/A | BO226: N/A | BP226: N/A | BQ226: N/A | BR226: N/A | BS226: N/A | BT226: N/A | BU226: N/A | BV226: N/A | BW226: N/A | BX226: N/A | BY226: N/A | BZ226: N/A
BA227: Water / Soap | BB227: Water and soap | BC227: N/A | BD227: N/A | BE227: N/A | BF227: N/A | BG227: N/A | BH227: N/A | BI227: N/A | BJ227: N/A | BK227: N/A | BL227: N/A | BM227: N/A | BN227: N/A | BO227: N/A | BP227: N/A | BQ227: N/A | BR227: N/A | BS227: N/A | BT227: N/A | BU227: N/A | BV227: N/A | BW227: N/A | BX227: N/A | BY227: N/A | BZ227: N/A
BB228: Water only | BC228: N/A | BD228: N/A | BE228: N/A | BF228: N/A | BG228: N/A | BH228: N/A | BI228: N/A | BJ228: N/A | BK228: N/A | BL228: N/A | BM228: N/A | BN228: N/A | BO228: N/A | BP228: N/A | BQ228: N/A | BR228: N/A | BS228: N/A | BT228: N/A | BU228: N/A | BV228: N/A | BW228: N/A | BX228: N/A | BY228: N/A | BZ228: N/A
BB229: Soap only | BC229: N/A | BD229: N/A | BE229: N/A | BF229: N/A | BG229: N/A | BH229: N/A | BI229: N/A | BJ229: N/A | BK229: N/A | BL229: N/A | BM229: N/A | BN229: N/A | BO229: N/A | BP229: N/A | BQ229: N/A | BR229: N/A | BS229: N/A | BT229: N/A | BU229: N/A | BV229: N/A | BW229: N/A | BX229: N/A | BY229: N/A | BZ229: N/A
BB230: Neither | BC230: N/A | BD230: N/A | BE230: N/A | BF230: N/A | BG230: N/A | BH230: N/A | BI230: N/A | BJ230: N/A | BK230: N/A | BL230: N/A | BM230: N/A | BN230: N/A | BO230: N/A | BP230: N/A | BQ230: N/A | BR230: N/A | BS230: N/A | BT230: N/A | BU230: N/A | BV230: N/A | BW230: N/A | BX230: N/A | BY230: N/A | BZ230: N/A
BA259: Raw numbers of respondents: | BB259: Menstrual health and hygiene | BC259: NATIONAL wealth index quintile | BH259: URBAN wealth index quintile | BM259: RURAL wealth index quintile | BR259: SUB-REGIONS:
BA260: MHH data, raw numbers (weighted) | BC260: Poorest | BD260: Poor | BE260: Middle | BF260: Rich | BG260: Richest | BH260: Poorest | BI260: Poor | BJ260: Middle | BK260: Rich | BL260: Richest | BM260: Poorest | BN260: Poor | BO260: Middle | BP260: Rich | BQ260: Richest | BR260: Awdal | BS260: Banadir | BT260: Bari | BU260: Mudug | BV260: Nugaal | BW260: Sanaag | BX260: Sool | BY260: Togdheer | BZ260: Woqooyi Galbeed
BA261: Private place to wash and change | BB261: Yes | BC261: N/A | BD261: N/A | BE261: N/A | BF261: N/A | BG261: N/A | BH261: N/A | BI261: N/A | BJ261: N/A | BK261: N/A | BL261: N/A | BM261: N/A | BN261: N/A | BO261: N/A | BP261: N/A | BQ261: N/A | BR261: N/A | BS261: N/A | BT261: N/A | BU261: N/A | BV261: N/A | BW261: N/A | BX261: N/A | BY261: N/A | BZ261: N/A
BB262: No | BC262: N/A | BD262: N/A | BE262: N/A | BF262: N/A | BG262: N/A | BH262: N/A | BI262: N/A | BJ262: N/A | BK262: N/A | BL262: N/A | BM262: N/A | BN262: N/A | BO262: N/A | BP262: N/A | BQ262: N/A | BR262: N/A | BS262: N/A | BT262: N/A | BU262: N/A | BV262: N/A | BW262: N/A | BX262: N/A | BY262: N/A | BZ262: N/A
BB263: DK/not sure/missing | BC263: N/A | BD263: N/A | BE263: N/A | BF263: N/A | BG263: N/A | BH263: N/A | BI263: N/A | BJ263: N/A | BK263: N/A | BL263: N/A | BM263: N/A | BN263: N/A | BO263: N/A | BP263: N/A | BQ263: N/A | BR263: N/A | BS263: N/A | BT263: N/A | BU263: N/A | BV263: N/A | BW263: N/A | BX263: N/A | BY263: N/A | BZ263: N/A
BA264: Use of menstrual materials | BB264: Materials reusable | BC264: N/A | BD264: N/A | BE264: N/A | BF264: N/A | BG264: N/A | BH264: N/A | BI264: N/A | BJ264: N/A | BK264: N/A | BL264: N/A | BM264: N/A | BN264: N/A | BO264: N/A | BP264: N/A | BQ264: N/A | BR264: N/A | BS264: N/A | BT264: N/A | BU264: N/A | BV264: N/A | BW264: N/A | BX264: N/A | BY264: N/A | BZ264: N/A
BB265: Materials not reusable | BC265: N/A | BD265: N/A | BE265: N/A | BF265: N/A | BG265: N/A | BH265: N/A | BI265: N/A | BJ265: N/A | BK265: N/A | BL265: N/A | BM265: N/A | BN265: N/A | BO265: N/A | BP265: N/A | BQ265: N/A | BR265: N/A | BS265: N/A | BT265: N/A | BU265: N/A | BV265: N/A | BW265: N/A | BX265: N/A | BY265: N/A | BZ265: N/A
BB266: No materials used | BC266: N/A | BD266: N/A | BE266: N/A | BF266: N/A | BG266: N/A | BH266: N/A | BI266: N/A | BJ266: N/A | BK266: N/A | BL266: N/A | BM266: N/A | BN266: N/A | BO266: N/A | BP266: N/A | BQ266: N/A | BR266: N/A | BS266: N/A | BT266: N/A | BU266: N/A | BV266: N/A | BW266: N/A | BX266: N/A | BY266: N/A | BZ266: N/A
BB267: DK/not sure/missing | BC267: N/A | BD267: N/A | BE267: N/A | BF267: N/A | BG267: N/A | BH267: N/A | BI267: N/A | BJ267: N/A | BK267: N/A | BL267: N/A | BM267: N/A | BN267: N/A | BO267: N/A | BP267: N/A | BQ267: N/A | BR267: N/A | BS267: N/A | BT267: N/A | BU267: N/A | BV267: N/A | BW267: N/A | BX267: N/A | BY267: N/A | BZ267: N/A
BA268: Use of menstrual materials with private place to wash and change | BB268: Materials reusable | BC268: N/A | BD268: N/A | BE268: N/A | BF268: N/A | BG268: N/A | BH268: N/A | BI268: N/A | BJ268: N/A | BK268: N/A | BL268: N/A | BM268: N/A | BN268: N/A | BO268: N/A | BP268: N/A | BQ268: N/A | BR268: N/A | BS268: N/A | BT268: N/A | BU268: N/A | BV268: N/A | BW268: N/A | BX268: N/A | BY268: N/A | BZ268: N/A
BB269: Materials not reusable | BC269: N/A | BD269: N/A | BE269: N/A | BF269: N/A | BG269: N/A | BH269: N/A | BI269: N/A | BJ269: N/A | BK269: N/A | BL269: N/A | BM269: N/A | BN269: N/A | BO269: N/A | BP269: N/A | BQ269: N/A | BR269: N/A | BS269: N/A | BT269: N/A | BU269: N/A | BV269: N/A | BW269: N/A | BX269: N/A | BY269: N/A | BZ269: N/A
BB270: No materials used | BC270: N/A | BD270: N/A | BE270: N/A | BF270: N/A | BG270: N/A | BH270: N/A | BI270: N/A | BJ270: N/A | BK270: N/A | BL270: N/A | BM270: N/A | BN270: N/A | BO270: N/A | BP270: N/A | BQ270: N/A | BR270: N/A | BS270: N/A | BT270: N/A | BU270: N/A | BV270: N/A | BW270: N/A | BX270: N/A | BY270: N/A | BZ270: N/A
BA271: Awareness of menstruation before menarche | BB271: Yes | BC271: N/A | BD271: N/A | BE271: N/A | BF271: N/A | BG271: N/A | BH271: N/A | BI271: N/A | BJ271: N/A | BK271: N/A | BL271: N/A | BM271: N/A | BN271: N/A | BO271: N/A | BP271: N/A | BQ271: N/A | BR271: N/A | BS271: N/A | BT271: N/A | BU271: N/A | BV271: N/A | BW271: N/A | BX271: N/A | BY271: N/A | BZ271: N/A
BB272: No | BC272: N/A | BD272: N/A | BE272: N/A | BF272: N/A | BG272: N/A | BH272: N/A | BI272: N/A | BJ272: N/A | BK272: N/A | BL272: N/A | BM272: N/A | BN272: N/A | BO272: N/A | BP272: N/A | BQ272: N/A | BR272: N/A | BS272: N/A | BT272: N/A | BU272: N/A | BV272: N/A | BW272: N/A | BX272: N/A | BY272: N/A | BZ272: N/A
BB273: DK/not sure/missing | BC273: N/A | BD273: N/A | BE273: N/A | BF273: N/A | BG273: N/A | BH273: N/A | BI273: N/A | BJ273: N/A | BK273: N/A | BL273: N/A | BM273: N/A | BN273: N/A | BO273: N/A | BP273: N/A | BQ273: N/A | BR273: N/A | BS273: N/A | BT273: N/A | BU273: N/A | BV273: N/A | BW273: N/A | BX273: N/A | BY273: N/A | BZ273: N/A
BA274: Participation in (all) activities during menstruation | BB274: Yes | BC274: N/A | BD274: N/A | BE274: N/A | BF274: N/A | BG274: N/A | BH274: N/A | BI274: N/A | BJ274: N/A | BK274: N/A | BL274: N/A | BM274: N/A | BN274: N/A | BO274: N/A | BP274: N/A | BQ274: N/A | BR274: N/A | BS274: N/A | BT274: N/A | BU274: N/A | BV274: N/A | BW274: N/A | BX274: N/A | BY274: N/A | BZ274: N/A
BB275: No | BC275: N/A | BD275: N/A | BE275: N/A | BF275: N/A | BG275: N/A | BH275: N/A | BI275: N/A | BJ275: N/A | BK275: N/A | BL275: N/A | BM275: N/A | BN275: N/A | BO275: N/A | BP275: N/A | BQ275: N/A | BR275: N/A | BS275: N/A | BT275: N/A | BU275: N/A | BV275: N/A | BW275: N/A | BX275: N/A | BY275: N/A | BZ275: N/A
BB276: DK/not sure/missing/no such activity | BC276: N/A | BD276: N/A | BE276: N/A | BF276: N/A | BG276: N/A | BH276: N/A | BI276: N/A | BJ276: N/A | BK276: N/A | BL276: N/A | BM276: N/A | BN276: N/A | BO276: N/A | BP276: N/A | BQ276: N/A | BR276: N/A | BS276: N/A | BT276: N/A | BU276: N/A | BV276: N/A | BW276: N/A | BX276: N/A | BY276: N/A | BZ276: N/A
BA277: Participation in specific activities during menstruation | BB277: Did not go to school (amongst those usually attending school) | BC277: N/A | BD277: N/A | BE277: N/A | BF277: N/A | BG277: N/A | BH277: N/A | BI277: N/A | BJ277: N/A | BK277: N/A | BL277: N/A | BM277: N/A | BN277: N/A | BO277: N/A | BP277: N/A | BQ277: N/A | BR277: N/A | BS277: N/A | BT277: N/A | BU277: N/A | BV277: N/A | BW277: N/A | BX277: N/A | BY277: N/A | BZ277: N/A
BB278: Did not go to work (amongst those who usually work) | BC278: N/A | BD278: N/A | BE278: N/A | BF278: N/A | BG278: N/A | BH278: N/A | BI278: N/A | BJ278: N/A | BK278: N/A | BL278: N/A | BM278: N/A | BN278: N/A | BO278: N/A | BP278: N/A | BQ278: N/A | BR278: N/A | BS278: N/A | BT278: N/A | BU278: N/A | BV278: N/A | BW278: N/A | BX278: N/A | BY278: N/A | BZ278: N/A
BB279: Did not participate in social activities | BC279: N/A | BD279: N/A | BE279: N/A | BF279: N/A | BG279: N/A | BH279: N/A | BI279: N/A | BJ279: N/A | BK279: N/A | BL279: N/A | BM279: N/A | BN279: N/A | BO279: N/A | BP279: N/A | BQ279: N/A | BR279: N/A | BS279: N/A | BT279: N/A | BU279: N/A | BV279: N/A | BW279: N/A | BX279: N/A | BY279: N/A | BZ279: N/A
BB280: Did not cook food | BC280: N/A | BD280: N/A | BE280: N/A | BF280: N/A | BG280: N/A | BH280: N/A | BI280: N/A | BJ280: N/A | BK280: N/A | BL280: N/A | BM280: N/A | BN280: N/A | BO280: N/A | BP280: N/A | BQ280: N/A | BR280: N/A | BS280: N/A | BT280: N/A | BU280: N/A | BV280: N/A | BW280: N/A | BX280: N/A | BY280: N/A | BZ280: N/A
BB281: Did not eat with others | BC281: N/A | BD281: N/A | BE281: N/A | BF281: N/A | BG281: N/A | BH281: N/A | BI281: N/A | BJ281: N/A | BK281: N/A | BL281: N/A | BM281: N/A | BN281: N/A | BO281: N/A | BP281: N/A | BQ281: N/A | BR281: N/A | BS281: N/A | BT281: N/A | BU281: N/A | BV281: N/A | BW281: N/A | BX281: N/A | BY281: N/A | BZ281: N/A
BB282: Did not bathe in regular place | BC282: N/A | BD282: N/A | BE282: N/A | BF282: N/A | BG282: N/A | BH282: N/A | BI282: N/A | BJ282: N/A | BK282: N/A | BL282: N/A | BM282: N/A | BN282: N/A | BO282: N/A | BP282: N/A | BQ282: N/A | BR282: N/A | BS282: N/A | BT282: N/A | BU282: N/A | BV282: N/A | BW282: N/A | BX282: N/A | BY282: N/A | BZ282: N/A
BB283: Did not participate in other activities | BC283: N/A | BD283: N/A | BE283: N/A | BF283: N/A | BG283: N/A | BH283: N/A | BI283: N/A | BJ283: N/A | BK283: N/A | BL283: N/A | BM283: N/A | BN283: N/A | BO283: N/A | BP283: N/A | BQ283: N/A | BR283: N/A | BS283: N/A | BT283: N/A | BU283: N/A | BV283: N/A | BW283: N/A | BX283: N/A | BY283: N/A | BZ283: N/A
BB284: DK/not sure/missing/no such activity | BC284: N/A | BD284: N/A | BE284: N/A | BF284: N/A | BG284: N/A | BH284: N/A | BI284: N/A | BJ284: N/A | BK284: N/A | BL284: N/A | BM284: N/A | BN284: N/A | BO284: N/A | BP284: N/A | BQ284: N/A | BR284: N/A | BS284: N/A | BT284: N/A | BU284: N/A | BV284: N/A | BW284: N/A | BX284: N/A | BY284: N/A | BZ284: N/A
BA339: Raw numbers of respondents: | BB339: Basic water, sanitation and hygiene | BC339: NATIONAL wealth index quintile | BH339: URBAN wealth index quintile | BM339: RURAL wealth index quintile | BR339: SUB-REGIONS:
BA340: WatSan data, raw numbers (weighted) | BC340: Poorest | BD340: Poor | BE340: Middle | BF340: Rich | BG340: Richest | BH340: Poorest | BI340: Poor | BJ340: Middle | BK340: Rich | BL340: Richest | BM340: Poorest | BN340: Poor | BO340: Middle | BP340: Rich | BQ340: Richest | BR340: Awdal | BS340: Banadir | BT340: Bari | BU340: Mudug | BV340: Nugaal | BW340: Sanaag | BX340: Sool | BY340: Togdheer | BZ340: Woqooyi Galbeed
BA341: Use of Basic Water Sanitation and Hygiene | BB341: Yes | BC341: N/A | BD341: N/A | BE341: N/A | BF341: N/A | BG341: N/A | BH341: N/A | BI341: N/A | BJ341: N/A | BK341: N/A | BL341: N/A | BM341: N/A | BN341: N/A | BO341: N/A | BP341: N/A | BQ341: N/A | BR341: N/A | BS341: N/A | BT341: N/A | BU341: N/A | BV341: N/A | BW341: N/A | BX341: N/A | BY341: N/A | BZ341: N/A
BB342: No | BC342: N/A | BD342: N/A | BE342: N/A | BF342: N/A | BG342: N/A | BH342: N/A | BI342: N/A | BJ342: N/A | BK342: N/A | BL342: N/A | BM342: N/A | BN342: N/A | BO342: N/A | BP342: N/A | BQ342: N/A | BR342: N/A | BS342: N/A | BT342: N/A | BU342: N/A | BV342: N/A | BW342: N/A | BX342: N/A | BY342: N/A | BZ342: N/A
BA343: Use of Basic Water and Sanitation | BB343: Yes | BC343: N/A | BD343: N/A | BE343: N/A | BF343: N/A | BG343: N/A | BH343: N/A | BI343: N/A | BJ343: N/A | BK343: N/A | BL343: N/A | BM343: N/A | BN343: N/A | BO343: N/A | BP343: N/A | BQ343: N/A | BR343: N/A | BS343: N/A | BT343: N/A | BU343: N/A | BV343: N/A | BW343: N/A | BX343: N/A | BY343: N/A | BZ343: N/A
BB344: No | BC344: N/A | BD344: N/A | BE344: N/A | BF344: N/A | BG344: N/A | BH344: N/A | BI344: N/A | BJ344: N/A | BK344: N/A | BL344: N/A | BM344: N/A | BN344: N/A | BO344: N/A | BP344: N/A | BQ344: N/A | BR344: N/A | BS344: N/A | BT344: N/A | BU344: N/A | BV344: N/A | BW344: N/A | BX344: N/A | BY344: N/A | BZ344: N/A
BA345: Use of Basic Water and Hygiene | BB345: Yes | BC345: N/A | BD345: N/A | BE345: N/A | BF345: N/A | BG345: N/A | BH345: N/A | BI345: N/A | BJ345: N/A | BK345: N/A | BL345: N/A | BM345: N/A | BN345: N/A | BO345: N/A | BP345: N/A | BQ345: N/A | BR345: N/A | BS345: N/A | BT345: N/A | BU345: N/A | BV345: N/A | BW345: N/A | BX345: N/A | BY345: N/A | BZ345: N/A
BB346: No | BC346: N/A | BD346: N/A | BE346: N/A | BF346: N/A | BG346: N/A | BH346: N/A | BI346: N/A | BJ346: N/A | BK346: N/A | BL346: N/A | BM346: N/A | BN346: N/A | BO346: N/A | BP346: N/A | BQ346: N/A | BR346: N/A | BS346: N/A | BT346: N/A | BU346: N/A | BV346: N/A | BW346: N/A | BX346: N/A | BY346: N/A | BZ346: N/A
BA347: Use of Basic Sanitation and Hygiene | BB347: Yes | BC347: N/A | BD347: N/A | BE347: N/A | BF347: N/A | BG347: N/A | BH347: N/A | BI347: N/A | BJ347: N/A | BK347: N/A | BL347: N/A | BM347: N/A | BN347: N/A | BO347: N/A | BP347: N/A | BQ347: N/A | BR347: N/A | BS347: N/A | BT347: N/A | BU347: N/A | BV347: N/A | BW347: N/A | BX347: N/A | BY347: N/A | BZ347: N/A
BB348: No | BC348: N/A | BD348: N/A | BE348: N/A | BF348: N/A | BG348: N/A | BH348: N/A | BI348: N/A | BJ348: N/A | BK348: N/A | BL348: N/A | BM348: N/A | BN348: N/A | BO348: N/A | BP348: N/A | BQ348: N/A | BR348: N/A | BS348: N/A | BT348: N/A | BU348: N/A | BV348: N/A | BW348: N/A | BX348: N/A | BY348: N/A | BZ348: N/A
BA349: Use of Basic Water | BB349: Yes | BC349: N/A | BD349: N/A | BE349: N/A | BF349: N/A | BG349: N/A | BH349: N/A | BI349: N/A | BJ349: N/A | BK349: N/A | BL349: N/A | BM349: N/A | BN349: N/A | BO349: N/A | BP349: N/A | BQ349: N/A | BR349: N/A | BS349: N/A | BT349: N/A | BU349: N/A | BV349: N/A | BW349: N/A | BX349: N/A | BY349: N/A | BZ349: N/A
BB350: No | BC350: N/A | BD350: N/A | BE350: N/A | BF350: N/A | BG350: N/A | BH350: N/A | BI350: N/A | BJ350: N/A | BK350: N/A | BL350: N/A | BM350: N/A | BN350: N/A | BO350: N/A | BP350: N/A | BQ350: N/A | BR350: N/A | BS350: N/A | BT350: N/A | BU350: N/A | BV350: N/A | BW350: N/A | BX350: N/A | BY350: N/A | BZ350: N/A
BA351: Use of Basic Sanitation | BB351: Yes | BC351: N/A | BD351: N/A | BE351: N/A | BF351: N/A | BG351: N/A | BH351: N/A | BI351: N/A | BJ351: N/A | BK351: N/A | BL351: N/A | BM351: N/A | BN351: N/A | BO351: N/A | BP351: N/A | BQ351: N/A | BR351: N/A | BS351: N/A | BT351: N/A | BU351: N/A | BV351: N/A | BW351: N/A | BX351: N/A | BY351: N/A | BZ351: N/A
BB352: No | BC352: N/A | BD352: N/A | BE352: N/A | BF352: N/A | BG352: N/A | BH352: N/A | BI352: N/A | BJ352: N/A | BK352: N/A | BL352: N/A | BM352: N/A | BN352: N/A | BO352: N/A | BP352: N/A | BQ352: N/A | BR352: N/A | BS352: N/A | BT352: N/A | BU352: N/A | BV352: N/A | BW352: N/A | BX352: N/A | BY352: N/A | BZ352: N/A
BA353: Access to Basic Hygiene | BB353: Yes | BC353: N/A | BD353: N/A | BE353: N/A | BF353: N/A | BG353: N/A | BH353: N/A | BI353: N/A | BJ353: N/A | BK353: N/A | BL353: N/A | BM353: N/A | BN353: N/A | BO353: N/A | BP353: N/A | BQ353: N/A | BR353: N/A | BS353: N/A | BT353: N/A | BU353: N/A | BV353: N/A | BW353: N/A | BX353: N/A | BY353: N/A | BZ353: N/A
BB354: No | BC354: N/A | BD354: N/A | BE354: N/A | BF354: N/A | BG354: N/A | BH354: N/A | BI354: N/A | BJ354: N/A | BK354: N/A | BL354: N/A | BM354: N/A | BN354: N/A | BO354: N/A | BP354: N/A | BQ354: N/A | BR354: N/A | BS354: N/A | BT354: N/A | BU354: N/A | BV354: N/A | BW354: N/A | BX354: N/A | BY354: N/A | BZ354: N/A
C399: INITIAL (national) Wealth Index | H399: URBAN Wealth Index | M399: RURAL Wealth Index
C400: Component Matrix | H400: Component Matrix | M400: Component Matrix
E401: Component | J401: Component | O401: Component
B402: Note: The INITIAL (national) Wealth Index is based on the first component of the Principal Component Analysis (PCA) which has been obtained at national level. The final national-level (NATIONAL) Wealth Index is based on the URBAN and RURAL specific wealth indexes. Regression procedures are used to establish the relationships between the two sets of scores (urban and rural) and the initial (national) wealth factors. This allows best use of the available information for each area and a better precision of the FINAL (NATIONAL) Wealth Index. For dependency reasons, all WASH variables (contained in the generic MICS and DHS scripts) have been excluded from the sets of asset variables used in the PCAs. The PCA can extracts as many components as there are asset variables in the input. Only the first of the components is used to represent the Wealth Index. The scores represent the weights of the asset variables on the Wealth Index (correlations between the variables and the component). The communalities are the proportion of each variable's variance that can be explained by the component. Proportion of explained variance is the part of the model's total variance that is explained by the component. For more information on the procedure used: The DHS Wealth Index, DHS Comparative Reports No. 6, Shea Oscar Rutstein, Kiersten Johnson, ORC Macro International Inc., 2004. The DHS Wealth Index: Approaches for Rural and Urban Areas, Shea O. Rutstein, ORC Macro International Inc., 2008. MICS Methodological Paper No. 4, Review of options for reporting water, sanitation and hygiene coverage by wealth quintile, UNICEF, 2016. | E402: 1 | J402: 1 | O402: 1
C403: Has a TV, LCD, LED, etc... | E403: 0.6662218009 | H403: Own land | J403: 0.597126738 | M403: Owns house | O403: -0.7975586439
C404: Has washing machine | E404: 0.6241269023 | H404: Has a TV, LCD, LED, etc... | J404: 0.573781697 | M404: Rents house | O404: 0.7632278253
C405: Has an iron | E405: 0.6157184606 | H405: Owns house | J405: 0.5668991563 | M405: Own land | O405: -0.7162708917
C406: Has Satellite dish, receiver, etc... | E406: 0.578997703 | H406: Has washing machine | J406: 0.5557470268 | M406: Other cook | O406: -0.4787820791
C407: Has refrigerator, freezer, water cooler, etc... | E407: 0.563314021 | H407: Rents house | J407: -0.5419365698 | M407: Coal, lignite for cooking | O407: 0.4684987422
C408: Has a car, van, taxi, cart, etc... | E408: 0.4477423886 | H408: Has Satellite dish, receiver, etc... | J408: 0.5289333667 | M408: Has cooker, stove, oven, etc... | O408: 0.4222697906
C409: Has an electric fan | E409: 0.4371600808 | H409: Has an iron | J409: 0.5048382356 | M409: Dwelling: Apartment | O409: 0.3867431665
C410: Has cooker, stove, oven, etc... | E410: 0.4326835104 | H410: Has refrigerator, freezer, water cooler, etc... | J410: 0.4946895624 | M410: Dwelling: House | O410: -0.3790156633
C411: Has computer or laptop connected or not to an internet line | E411: 0.4288880948 | H411: Has a car, van, taxi, cart, etc... | J411: 0.3964638925 | M411: Has a TV, LCD, LED, etc... | O411: 0.2976574819
C412: Has telephone, cell phone, etc... | E412: 0.3695973909 | H412: Has computer or laptop connected or not to an internet line | J412: 0.3515461671 | M412: Has Satellite dish, receiver, etc... | O412: 0.289766689
C413: LPG, natural gas for cooking | E413: 0.3218451149 | H413: LPG, natural gas for cooking | J413: 0.3475235819 | M413: Has telephone, cell phone, etc... | O413: 0.2789662299
C414: Has DVD, VCR, CD player, audio player, etc... | E414: 0.2629691525 | H414: Has telephone, cell phone, etc... | J414: 0.3271274486 | M414: Has an iron | O414: 0.256148595
C415: Has an air conditioner | E415: 0.2246239221 | H415: Has an electric fan | J415: 0.2929857076 | M415: Provided free | O415: 0.1865070576
C416: Other cook | E416: -0.2159213384 | H416: Coal, lignite for cooking | J416: -0.2760977937 | M416: Has DVD, VCR, CD player, audio player, etc... | O416: 0.1786160283
C417: Has photo or video camera | E417: 0.1955389386 | H417: Has cooker, stove, oven, etc... | J417: 0.2687000873 | M417: Has washing machine | O417: 0.1411300496
C418: Dwelling: Apartment | E418: 0.1199957513 | H418: Has DVD, VCR, CD player, audio player, etc... | J418: 0.241381788 | M418: Has refrigerator, freezer, water cooler, etc... | O418: 0.1370296153
C419: Dwelling: House | E419: -0.1063770713 | H419: Has an air conditioner | J419: 0.2040621319 | M419: Has a car, van, taxi, cart, etc... | O419: 0.09354714742
C420: Has bicycle, scooter, motorcycle, etc... | E420: 0.1036298048 | H420: Has photo or video camera | J420: 0.1591764278 | M420: Has an electric fan | O420: 0.08919952592
C421: Has radio or radio-cassette | E421: 0.0880022003 | H421: Has radio or radio-cassette | J421: 0.1267177878 | M421: Has a sewing machine | O421: 0.08587579522
C422: Has a truck, tractor, etc... | E422: 0.07868686528 | H422: Has bicycle, scooter, motorcycle, etc... | J422: 0.08458589924 | M422: Has radio or radio-cassette | O422: -0.06379531552
C423: Provided free | E423: -0.07397694062 | H423: Has a truck, tractor, etc... | J423: 0.08188709937 | M423: Has other durables | O423: -0.06068064978
C424: Has other durables | E424: -0.06564718631 | H424: Electricity for cooking | J424: 0.0720592204 | M424: Has a truck, tractor, etc... | O424: 0.05682671541
C425: Rents house | E425: 0.06260430785 | H425: Dwelling: House | J425: 0.06882880418 | M425: Electricity for cooking | O425: -0.03664205463
C426: Has a sewing machine | E426: 0.06002360034 | H426: Dwelling: Apartment | J426: -0.05925592092 | M426: Has computer or laptop connected or not to an internet line | O426: -0.0218093336
C427: Electricity for cooking | E427: 0.03065337687 | H427: Has a sewing machine | J427: 0.05864241634
C428: Coal, lignite for cooking | E428: 0.02923002919 | H428: Provided free | J428: -0.04869724702
C429: Owns house | E429: -0.01701806754 | H429: Other cook | J429: 0.0323509167
H430: Has other durables | J430: -0.0164947331 | M430: Communalities
O431: Extraction
... 122 more rows

Sheet SHFS17
A2: =A1026 -> Somalia
A3: =A1034 -> 2017
A4: Use of drinking water sources
A5: by wealth quintile and sub-national region
A6: Notes:
A7: WHO/UNICEF JMP customised wealth index excludes water,
A8: sanitation and hygiene assets.
A9: Survey used for analysis: | B9: =A1025 -> SHFS17
A10: =B1028 -> 
A11: =B1027 -> 
A14: Use of drinking water sources | C14: NATIONAL wealth index quintile | H14: URBAN wealth index quintile | M14: RURAL wealth index quintile | R14: SUB-REGIONS: | BA14: Raw numbers of respondents: | BB14: Use of drinking water sources | BC14: NATIONAL wealth index quintile | BH14: URBAN wealth index quintile | BM14: RURAL wealth index quintile | BR14: SUB-REGIONS:
A15: Weighted percentage (used in graphs) | C15: Poorest | D15: Poor | E15: Middle | F15: Rich | G15: Richest | H15: 1 Poorest | I15: 2 Poor | J15: 3 Middle | K15: 4 Rich | L15: 5 Richest | M15: 1 Poorest | N15: 2 Poor | O15: 3 Middle | P15: 4 Rich | Q15: 5 Richest | R15: 1 Awdal | S15: 2 Bakool | T15: 3 Banadir | U15: 4 Bari | V15: 5 Bay | W15: 6 Galgaduug | X15: 7 Gedo | Y15: 8 Hiran | Z15: 9 Jubbada Dhexe | AA15: 10 Jubbada Hoose | AB15: 11 Mudug | AC15: 12 Nugal | AD15: 13 Sanaag | AE15: 14 Shabeellaha Dhexe | AF15: 15 Shabeellaha Hoose | AG15: 16 Sool | AH15: 17 Togdheer | AI15: 18 Woqooyi Galbeed | BA15: Water data, raw numbers (weighted) | BC15: Poorest | BD15: Poor | BE15: Middle | BF15: Rich | BG15: Richest | BH15: Poorest | BI15: Poor | BJ15: Middle | BK15: Rich | BL15: Richest | BM15: Poorest | BN15: Poor | BO15: Middle | BP15: Rich | BQ15: Richest | BR15: 1 Awdal | BS15: 2 Bakool | BT15: 3 Banadir | BU15: 4 Bari | BV15: 5 Bay | BW15: 6 Galgaduug | BX15: 7 Gedo | BY15: 8 Hiran | BZ15: 9 Jubbada Dhexe | CA15: 10 Jubbada Hoose | CB15: 11 Mudug | CC15: 12 Nugal | CD15: 13 Sanaag | CE15: 14 Shabeellaha Dhexe | CF15: 15 Shabeellaha Hoose | CG15: 16 Sool | CH15: 17 Togdheer | CI15: 18 Woqooyi Galbeed
A16: Water | B16: 1 Improved | C16: 73.67417783 | D16: 75.54967738 | E16: 92.40382864 | F16: 99.03975274 | G16: 99.57824264 | H16: 92.58454267 | I16: 95.64597689 | J16: 99.75120493 | K16: 99.95449605 | L16: 99.21442807 | M16: 63.55644752 | N16: 80.27797145 | O16: 75.52136865 | P16: 79.15362591 | Q16: 91.76438613 | R16: 83.2253914 | S16: 88.57864702 | T16: 98.08916988 | U16: 99.05448515 | V16: 93.70925057 | W16: 94.59934255 | X16: 74.60861672 | Y16: 99.38717076 | Z16: N/A | AA16: 92.58144284 | AB16: 87.49896281 | AC16: 92.41011396 | AD16: 93.65274024 | AE16: 61.92558473 | AF16: 97.08791058 | AG16: 74.67988979 | AH16: 73.07794074 | AI16: 86.2676592 | BA16: Water | BB16: Improved | BC16: N/A | BD16: N/A | BE16: N/A | BF16: N/A | BG16: N/A | BH16: N/A | BI16: N/A | BJ16: N/A | BK16: N/A | BL16: N/A | BM16: N/A | BN16: N/A | BO16: N/A | BP16: N/A | BQ16: N/A | BR16: N/A | BS16: N/A | BT16: N/A | BU16: N/A | BV16: N/A | BW16: N/A | BX16: N/A | BY16: N/A | BZ16: N/A | CA16: N/A | CB16: N/A | CC16: N/A | CD16: N/A | CE16: N/A | CF16: N/A | CG16: N/A | CH16: N/A | CI16: N/A
B17: 2 Not Improved | C17: 26.32582217 | D17: 24.45032262 | E17: 7.596171363 | F17: 0.9602472617 | G17: 0.4217573609 | H17: 7.415457325 | I17: 4.354023109 | J17: 0.2487950664 | K17: 0.04550394811 | L17: 0.7855719288 | M17: 36.44355248 | N17: 19.72202855 | O17: 24.47863135 | P17: 20.84637409 | Q17: 8.235613869 | R17: 16.7746086 | S17: 11.42135298 | T17: 1.91083012 | U17: 0.9455148536 | V17: 6.290749425 | W17: 5.400657455 | X17: 25.39138328 | Y17: 0.612829242 | Z17: N/A | AA17: 7.418557159 | AB17: 12.50103719 | AC17: 7.589886036 | AD17: 6.347259759 | AE17: 38.07441527 | AF17: 2.912089416 | AG17: 25.32011021 | AH17: 26.92205926 | AI17: 13.7323408 | BB17: Not Improved | BC17: N/A | BD17: N/A | BE17: N/A | BF17: N/A | BG17: N/A | BH17: N/A | BI17: N/A | BJ17: N/A | BK17: N/A | BL17: N/A | BM17: N/A | BN17: N/A | BO17: N/A | BP17: N/A | BQ17: N/A | BR17: N/A | BS17: N/A | BT17: N/A | BU17: N/A | BV17: N/A | BW17: N/A | BX17: N/A | BY17: N/A | BZ17: N/A | CA17: N/A | CB17: N/A | CC17: N/A | CD17: N/A | CE17: N/A | CF17: N/A | CG17: N/A | CH17: N/A | CI17: N/A
A18: Water ladder | B18: 1 Basic | C18: 42.00176719 | D18: 49.87002229 | E18: 86.75972712 | F18: 97.52302266 | G18: 95.57454511 | H18: 88.14607795 | I18: 94.54652071 | J18: 97.24001711 | K18: 96.19866021 | L18: 95.85629544 | M18: 22.22375371 | N18: 51.93892129 | O18: 42.19712029 | P18: 62.00738319 | Q18: 86.8591438 | R18: 56.24374069 | S18: 85.61646979 | T18: 98.07606294 | U18: 74.00093585 | V18: 80.08388852 | W18: 50.34580557 | X18: 70.52827457 | Y18: 96.25271821 | Z18: N/A | AA18: 89.03561902 | AB18: 73.7037072 | AC18: 55.27202674 | AD18: 58.9142858 | AE18: 35.6753448 | AF18: 96.41442188 | AG18: 61.67222159 | AH18: 63.97767811 | AI18: 71.96664602 | BA18: Water ladder | BB18: Basic | BC18: N/A | BD18: N/A | BE18: N/A | BF18: N/A | BG18: N/A | BH18: N/A | BI18: N/A | BJ18: N/A | BK18: N/A | BL18: N/A | BM18: N/A | BN18: N/A | BO18: N/A | BP18: N/A | BQ18: N/A | BR18: N/A | BS18: N/A | BT18: N/A | BU18: N/A | BV18: N/A | BW18: N/A | BX18: N/A | BY18: N/A | BZ18: N/A | CA18: N/A | CB18: N/A | CC18: N/A | CD18: N/A | CE18: N/A | CF18: N/A | CG18: N/A | CH18: N/A | CI18: N/A
B19: 2 Limited | C19: 31.67241064 | D19: 25.66157911 | E19: 5.637826306 | F19: 1.513821323 | G19: 4.000936007 | H19: 4.427908197 | I19: 1.085569882 | J19: 2.510240006 | K19: 3.755536484 | L19: 3.352980673 | M19: 41.33269381 | N19: 28.33905016 | O19: 33.32424836 | P19: 17.14624272 | Q19: 4.905242331 | R19: 26.98165072 | S19: 2.962177225 | T19: 0 | U19: 25.05354929 | V19: 13.62536206 | W19: 44.25353698 | X19: 4.080342152 | Y19: 3.134452545 | Z19: N/A | AA19: 3.545823821 | AB19: 13.7952556 | AC19: 37.13808722 | AD19: 34.73845444 | AE19: 26.25023993 | AF19: 0.6734887088 | AG19: 13.0076682 | AH19: 9.100262636 | AI19: 14.09863613 | BB19: Limited | BC19: N/A | BD19: N/A | BE19: N/A | BF19: N/A | BG19: N/A | BH19: N/A | BI19: N/A | BJ19: N/A | BK19: N/A | BL19: N/A | BM19: N/A | BN19: N/A | BO19: N/A | BP19: N/A | BQ19: N/A | BR19: N/A | BS19: N/A | BT19: N/A | BU19: N/A | BV19: N/A | BW19: N/A | BX19: N/A | BY19: N/A | BZ19: N/A | CA19: N/A | CB19: N/A | CC19: N/A | CD19: N/A | CE19: N/A | CF19: N/A | CG19: N/A | CH19: N/A | CI19: N/A
B20: 3 Other unimproved | C20: 22.80799611 | D20: 14.31373941 | E20: 5.078704765 | F20: 0.9603996782 | G20: 0.4245188868 | H20: 5.424249815 | I20: 4.364275936 | J20: 0.2497428799 | K20: 0.04580330692 | L20: 0.7907238826 | M20: 35.55558194 | N20: 15.12306055 | O20: 13.37953152 | P20: 10.36364135 | Q20: 4.019315737 | R20: 16.7746086 | S20: 11.42135298 | T20: 1.923937064 | U20: 0.9455148536 | V20: 3.574576986 | W20: 4.510630919 | X20: 24.03152456 | Y20: 0.612829242 | Z20: N/A | AA20: 7.418557159 | AB20: 6.925386579 | AC20: 7.589886036 | AD20: 6.347259759 | AE20: 6.059732341 | AF20: 1.866665422 | AG20: 23.5710072 | AH20: 26.92205926 | AI20: 13.93471785 | BB20: Unimproved | BC20: N/A | BD20: N/A | BE20: N/A | BF20: N/A | BG20: N/A | BH20: N/A | BI20: N/A | BJ20: N/A | BK20: N/A | BL20: N/A | BM20: N/A | BN20: N/A | BO20: N/A | BP20: N/A | BQ20: N/A | BR20: N/A | BS20: N/A | BT20: N/A | BU20: N/A | BV20: N/A | BW20: N/A | BX20: N/A | BY20: N/A | BZ20: N/A | CA20: N/A | CB20: N/A | CC20: N/A | CD20: N/A | CE20: N/A | CF20: N/A | CG20: N/A | CH20: N/A | CI20: N/A
B21: 4 Surface water | C21: 3.517826056 | D21: 10.15465918 | E21: 2.523741808 | F21: 0.002756341388 | G21: 0 | H21: 2.00176404 | I21: 0.003633474056 | J21: 0 | K21: 0 | L21: 0 | M21: 0.887970545 | N21: 4.598967998 | O21: 11.09909983 | P21: 10.48273274 | Q21: 4.216298132 | R21: 0 | S21: 0 | T21: 0 | U21: 0 | V21: 2.716172439 | W21: 0.8900265362 | X21: 1.359858719 | Y21: 0 | Z21: N/A | AA21: 0 | AB21: 5.575650615 | AC21: 0 | AD21: 0 | AE21: 32.01468293 | AF21: 1.045423994 | AG21: 1.749103009 | AH21: 0 | AI21: 0 | BB21: Surface water | BC21: N/A | BD21: N/A | BE21: N/A | BF21: N/A | BG21: N/A | BH21: N/A | BI21: N/A | BJ21: N/A | BK21: N/A | BL21: N/A | BM21: N/A | BN21: N/A | BO21: N/A | BP21: N/A | BQ21: N/A | BR21: N/A | BS21: N/A | BT21: N/A | BU21: N/A | BV21: N/A | BW21: N/A | BX21: N/A | BY21: N/A | BZ21: N/A | CA21: N/A | CB21: N/A | CC21: N/A | CD21: N/A | CE21: N/A | CF21: N/A | CG21: N/A | CH21: N/A | CI21: N/A
A22: Improved water point at more than 30 minutes | B22: 1 Yes | C22: 42.98983928 | D22: 33.97462603 | E22: 6.101705182 | F22: 1.528543583 | G22: 4.017993146 | H22: 4.783102015 | I22: 1.135152306 | J22: 2.516524848 | K22: 3.757257432 | L22: 3.379704806 | M22: 65.03304609 | N22: 35.30115379 | O22: 44.1255885 | P22: 21.66198013 | Q22: 5.345475012 | R22: 32.41997455 | S22: 3.3441211 | T22: 0 | U22: 25.29269548 | V22: 14.54003951 | W22: 46.77996251 | X22: 5.46899585 | Y22: 3.15377983 | Z22: N/A | AA22: 3.829950919 | AB22: 15.76619329 | AC22: 40.18833614 | AD22: 37.09283289 | AE22: 42.38997507 | AF22: 0.6936895694 | AG22: 17.41789957 | AH22: 12.45281756 | AI22: 16.38132796 | BA22: Improved water point at more than 30 minutes | BB22: Yes | BC22: N/A | BD22: N/A | BE22: N/A | BF22: N/A | BG22: N/A | BH22: N/A | BI22: N/A | BJ22: N/A | BK22: N/A | BL22: N/A | BM22: N/A | BN22: N/A | BO22: N/A | BP22: N/A | BQ22: N/A | BR22: N/A | BS22: N/A | BT22: N/A | BU22: N/A | BV22: N/A | BW22: N/A | BX22: N/A | BY22: N/A | BZ22: N/A | CA22: N/A | CB22: N/A | CC22: N/A | CD22: N/A | CE22: N/A | CF22: N/A | CG22: N/A | CH22: N/A | CI22: N/A
B23: 2 No | C23: 57.01016072 | D23: 66.02537397 | E23: 93.89829482 | F23: 98.47145642 | G23: 95.98200685 | H23: 95.21689799 | I23: 98.86484769 | J23: 97.48347515 | K23: 96.24274257 | L23: 96.62029519 | M23: 34.96695391 | N23: 64.69884621 | O23: 55.8744115 | P23: 78.33801987 | Q23: 94.65452499 | R23: 67.58002545 | S23: 96.6558789 | T23: 100 | U23: 74.70730452 | V23: 85.45996049 | W23: 53.22003749 | X23: 94.53100415 | Y23: 96.84622017 | Z23: N/A | AA23: 96.17004908 | AB23: 84.23380671 | AC23: 59.81166386 | AD23: 62.90716711 | AE23: 57.61002493 | AF23: 99.30631043 | AG23: 82.58210043 | AH23: 87.54718244 | AI23: 83.61867204 | BB23: No | BC23: N/A | BD23: N/A | BE23: N/A | BF23: N/A | BG23: N/A | BH23: N/A | BI23: N/A | BJ23: N/A | BK23: N/A | BL23: N/A | BM23: N/A | BN23: N/A | BO23: N/A | BP23: N/A | BQ23: N/A | BR23: N/A | BS23: N/A | BT23: N/A | BU23: N/A | BV23: N/A | BW23: N/A | BX23: N/A | BY23: N/A | BZ23: N/A | CA23: N/A | CB23: N/A | CC23: N/A | CD23: N/A | CE23: N/A | CF23: N/A | CG23: N/A | CH23: N/A | CI23: N/A
A24: Manually calculated ratios | B24: Improved wells | C24: =(C61+C62+C64)/(C61+C62+C63+C64+C65)*100 -> 75.02614084 | D24: 83.32083173 | E24: 88.06971577 | F24: 90.25553745 | G24: 83.09640933 | H24: 82.25039158 | I24: 77.02385793 | J24: 99.29933643 | K24: 98.39887962 | L24: 70.11369598 | M24: 64.11718342 | N24: 84.19398376 | O24: 85.68867135 | P24: 89.86468317 | Q24: 87.7894792 | R24: 76.26447766 | S24: 89.57297659 | T24: 46.85313014 | U24: 97.37002529 | V24: 95.6253386 | W24: 86.63251913 | X24: 58.78212939 | Y24: 79.5619001 | Z24: N/A | AA24: =(AA61+AA62+AA64)/(AA61+AA62+AA63+AA64+AA65)*100 -> 87.41262717 | AB24: 78.00456971 | AC24: 80.13837777 | AD24: 85.41857969 | AE24: 87.3223325 | AF24: 90.91026856 | AG24: 63.86485411 | AH24: 53.19045207 | AI24: 66.1064573
B25: Improved springs
B26: Other
C27: NATIONAL wealth index quintile | H27: URBAN wealth index quintile | M27: RURAL wealth index quintile | R27: SUB-REGIONS: | BA27: Raw numbers of respondents: | BB27: Use of drinking water sources | BC27: NATIONAL wealth index quintile | BH27: URBAN wealth index quintile | BM27: RURAL wealth index quintile | BR27: SUB-REGIONS:
A28: Percentage based on weighted population | C28: Poorest | D28: Poor | E28: Middle | F28: Rich | G28: Richest | H28: 1 Poorest | I28: 2 Poor | J28: 3 Middle | K28: 4 Rich | L28: 5 Richest | M28: 1 Poorest | N28: 2 Poor | O28: 3 Middle | P28: 4 Rich | Q28: 5 Richest | R28: 1 Awdal | S28: 2 Bakool | T28: 3 Banadir | U28: 4 Bari | V28: 5 Bay | W28: 6 Galgaduug | X28: 7 Gedo | Y28: 8 Hiran | Z28: 9 Jubbada Dhexe | AA28: 10 Jubbada Hoose | AB28: 11 Mudug | AC28: 12 Nugal | AD28: 13 Sanaag | AE28: 14 Shabeellaha Dhexe | AF28: 15 Shabeellaha Hoose | AG28: 16 Sool | AH28: 17 Togdheer | AI28: 18 Woqooyi Galbeed | BA28: Water data, raw numbers (weighted) | BC28: Poorest | BD28: Poor | BE28: Middle | BF28: Rich | BG28: Richest | BH28: Poorest | BI28: Poor | BJ28: Middle | BK28: Rich | BL28: Richest | BM28: Poorest | BN28: Poor | BO28: Middle | BP28: Rich | BQ28: Richest | BR28: 1 Awdal | BS28: 2 Bakool | BT28: 3 Banadir | BU28: 4 Bari | BV28: 5 Bay | BW28: 6 Galgaduug | BX28: 7 Gedo | BY28: 8 Hiran | BZ28: 9 Jubbada Dhexe | CA28: 10 Jubbada Hoose | CB28: 11 Mudug | CC28: 12 Nugal | CD28: 13 Sanaag | CE28: 14 Shabeellaha Dhexe | CF28: 15 Shabeellaha Hoose | CG28: 16 Sool | CH28: 17 Togdheer | CI28: 18 Woqooyi Galbeed
A29: Piped water | B29: 1 Yes | C29: 9.679117601 | D29: 13.51037501 | E29: 43.41505895 | F29: 80.8206971 | G29: 90.68702812 | H29: 55.84272474 | I29: 71.34816589 | J29: 82.11340928 | K29: 89.51488794 | L29: 90.72326778 | M29: 2.795121118 | N29: 8.017368671 | O29: 3.948245384 | P29: 11.16022271 | Q29: 50.48786103 | R29: 38.200408 | S29: 0 | T29: 94.03335711 | U29: 62.34738774 | V29: 17.22886257 | W29: 42.97137232 | X29: 31.89661309 | Y29: 48.12626509 | Z29: N/A | AA29: 33.0675631 | AB29: 59.39274186 | AC29: 48.40626238 | AD29: 43.5990934 | AE29: 7.505864789 | AF29: 91.81471433 | AG29: 0.3462303845 | AH29: 46.82614984 | AI29: 28.54884986 | BA29: Piped water | BB29: Yes | BC29: N/A | BD29: N/A | BE29: N/A | BF29: N/A | BG29: N/A | BH29: N/A | BI29: N/A | BJ29: N/A | BK29: N/A | BL29: N/A | BM29: N/A | BN29: N/A | BO29: N/A | BP29: N/A | BQ29: N/A | BR29: N/A | BS29: N/A | BT29: N/A | BU29: N/A | BV29: N/A | BW29: N/A | BX29: N/A | BY29: N/A | BZ29: N/A | CA29: N/A | CB29: N/A | CC29: N/A | CD29: N/A | CE29: N/A | CF29: N/A | CG29: N/A | CH29: N/A | CI29: N/A
B30: 2 No | C30: 90.3208824 | D30: 86.48962499 | E30: 56.58494105 | F30: 19.1793029 | G30: 9.31297188 | H30: 44.15727526 | I30: 28.65183411 | J30: 17.88659072 | K30: 10.48511206 | L30: 9.276732222 | M30: 97.20487888 | N30: 91.98263133 | O30: 96.05175462 | P30: 88.83977729 | Q30: 49.51213897 | R30: 61.799592 | S30: 100 | T30: 5.966642888 | U30: 37.65261226 | V30: 82.77113743 | W30: 57.02862768 | X30: 68.10338691 | Y30: 51.87373491 | Z30: N/A | AA30: 66.9324369 | AB30: 40.60725814 | AC30: 51.59373762 | AD30: 56.4009066 | AE30: 92.49413521 | AF30: 8.185285665 | AG30: 99.65376962 | AH30: 53.17385016 | AI30: 71.45115014 | BB30: No | BC30: N/A | BD30: N/A | BE30: N/A | BF30: N/A | BG30: N/A | BH30: N/A | BI30: N/A | BJ30: N/A | BK30: N/A | BL30: N/A | BM30: N/A | BN30: N/A | BO30: N/A | BP30: N/A | BQ30: N/A | BR30: N/A | BS30: N/A | BT30: N/A | BU30: N/A | BV30: N/A | BW30: N/A | BX30: N/A | BY30: N/A | BZ30: N/A | CA30: N/A | CB30: N/A | CC30: N/A | CD30: N/A | CE30: N/A | CF30: N/A | CG30: N/A | CH30: N/A | CI30: N/A
A31: Piped water on premises | B31: Yes | C31: 1.697957383 | D31: 4.121809877 | E31: 31.13177814 | F31: 74.41214222 | G31: 90.0562788 | H31: 24.99710588 | I31: 55.816788 | J31: 79.01275519 | K31: 87.2630295 | L31: 90.13732998 | M31: 0.02663377816 | N31: 0.04142704224 | O31: 1.589359879 | P31: 7.236490018 | Q31: 47.49334065 | R31: 23.8706302 | S31: 0 | T31: 79.85396517 | U31: 56.74771134 | V31: 10.1772009 | W31: 42.13218308 | X31: 23.12491456 | Y31: 48.02988923 | Z31: N/A | AA31: 15.6839333 | AB31: 48.25103248 | AC31: 47.56547171 | AD31: 43.40595408 | AE31: 5.872409571 | AF31: 91.81153693 | AG31: 0.3462303845 | AH31: 38.02530514 | AI31: 25.98962055 | BA31: Piped water on premises | BB31: Yes | BC31: N/A | BD31: N/A | BE31: N/A | BF31: N/A | BG31: N/A | BH31: N/A | BI31: N/A | BJ31: N/A | BK31: N/A | BL31: N/A | BM31: N/A | BN31: N/A | BO31: N/A | BP31: N/A | BQ31: N/A | BR31: N/A | BS31: N/A | BT31: N/A | BU31: N/A | BV31: N/A | BW31: N/A | BX31: N/A | BY31: N/A | BZ31: N/A | CA31: N/A | CB31: N/A | CC31: N/A | CD31: N/A | CE31: N/A | CF31: N/A | CG31: N/A | CH31: N/A | CI31: N/A
B32: No | C32: 98.30204262 | D32: 95.87819012 | E32: 68.86822186 | F32: 25.58785778 | G32: 9.943721196 | H32: 75.00289412 | I32: 44.183212 | J32: 20.98724481 | K32: 12.7369705 | L32: 9.862670022 | M32: 99.97336622 | N32: 99.95857296 | O32: 98.41064012 | P32: 92.76350998 | Q32: 52.50665935 | R32: 76.1293698 | S32: 100 | T32: 20.14603483 | U32: 43.25228866 | V32: 89.8227991 | W32: 57.86781692 | X32: 76.87508544 | Y32: 51.97011077 | Z32: N/A | AA32: 84.3160667 | AB32: 51.74896752 | AC32: 52.43452829 | AD32: 56.59404592 | AE32: 94.12759043 | AF32: 8.188463069 | AG32: 99.65376962 | AH32: 61.97469486 | AI32: 74.01037945 | BB32: No | BC32: N/A | BD32: N/A | BE32: N/A | BF32: N/A | BG32: N/A | BH32: N/A | BI32: N/A | BJ32: N/A | BK32: N/A | BL32: N/A | BM32: N/A | BN32: N/A | BO32: N/A | BP32: N/A | BQ32: N/A | BR32: N/A | BS32: N/A | BT32: N/A | BU32: N/A | BV32: N/A | BW32: N/A | BX32: N/A | BY32: N/A | BZ32: N/A | CA32: N/A | CB32: N/A | CC32: N/A | CD32: N/A | CE32: N/A | CF32: N/A | CG32: N/A | CH32: N/A | CI32: N/A
A33: Piped water into dwelling | B33: Yes | C33: N/A | D33: N/A | E33: N/A | F33: N/A | G33: N/A | H33: N/A | I33: N/A | J33: N/A | K33: N/A | L33: N/A | M33: N/A | N33: N/A | O33: N/A | P33: N/A | Q33: N/A | R33: N/A | S33: N/A | T33: N/A | U33: N/A | V33: N/A | W33: N/A | X33: N/A | Y33: N/A | Z33: N/A | AA33: N/A | AB33: N/A | AC33: N/A | AD33: N/A | AE33: N/A | AF33: N/A | AG33: N/A | AH33: N/A | AI33: N/A | BA33: Piped water into dwelling | BB33: Yes | BC33: N/A | BD33: N/A | BE33: N/A | BF33: N/A | BG33: N/A | BH33: N/A | BI33: N/A | BJ33: N/A | BK33: N/A | BL33: N/A | BM33: N/A | BN33: N/A | BO33: N/A | BP33: N/A | BQ33: N/A | BR33: N/A | BS33: N/A | BT33: N/A | BU33: N/A | BV33: N/A | BW33: N/A | BX33: N/A | BY33: N/A | BZ33: N/A | CA33: N/A | CB33: N/A | CC33: N/A | CD33: N/A | CE33: N/A | CF33: N/A | CG33: N/A | CH33: N/A | CI33: N/A
B34: No | C34: N/A | D34: N/A | E34: N/A | F34: N/A | G34: N/A | H34: N/A | I34: N/A | J34: N/A | K34: N/A | L34: N/A | M34: N/A | N34: N/A | O34: N/A | P34: N/A | Q34: N/A | R34: N/A | S34: N/A | T34: N/A | U34: N/A | V34: N/A | W34: N/A | X34: N/A | Y34: N/A | Z34: N/A | AA34: N/A | AB34: N/A | AC34: N/A | AD34: N/A | AE34: N/A | AF34: N/A | AG34: N/A | AH34: N/A | AI34: N/A | BB34: No | BC34: N/A | BD34: N/A | BE34: N/A | BF34: N/A | BG34: N/A | BH34: N/A | BI34: N/A | BJ34: N/A | BK34: N/A | BL34: N/A | BM34: N/A | BN34: N/A | BO34: N/A | BP34: N/A | BQ34: N/A | BR34: N/A | BS34: N/A | BT34: N/A | BU34: N/A | BV34: N/A | BW34: N/A | BX34: N/A | BY34: N/A | BZ34: N/A | CA34: N/A | CB34: N/A | CC34: N/A | CD34: N/A | CE34: N/A | CF34: N/A | CG34: N/A | CH34: N/A | CI34: N/A
A35: Water source on premises | B35: 1 Yes | C35: 1.697957383 | D35: 4.121809877 | E35: 31.13177814 | F35: 74.41214222 | G35: 90.0562788 | H35: 24.99710588 | I35: 55.816788 | J35: 79.01275519 | K35: 87.2630295 | L35: 90.13732998 | M35: 0.02663377816 | N35: 0.04142704224 | O35: 1.589359879 | P35: 7.236490018 | Q35: 47.49334065 | R35: 23.8706302 | S35: 0 | T35: 79.85396517 | U35: 56.74771134 | V35: 10.1772009 | W35: 42.13218308 | X35: 23.12491456 | Y35: 48.02988923 | Z35: N/A | AA35: 15.6839333 | AB35: 48.25103248 | AC35: 47.56547171 | AD35: 43.40595408 | AE35: 5.872409571 | AF35: 91.81153693 | AG35: 0.3462303845 | AH35: 38.02530514 | AI35: 25.98962055 | BA35: Water source on premises | BB35: Yes | BC35: N/A | BD35: N/A | BE35: N/A | BF35: N/A | BG35: N/A | BH35: N/A | BI35: N/A | BJ35: N/A | BK35: N/A | BL35: N/A | BM35: N/A | BN35: N/A | BO35: N/A | BP35: N/A | BQ35: N/A | BR35: N/A | BS35: N/A | BT35: N/A | BU35: N/A | BV35: N/A | BW35: N/A | BX35: N/A | BY35: N/A | BZ35: N/A | CA35: N/A | CB35: N/A | CC35: N/A | CD35: N/A | CE35: N/A | CF35: N/A | CG35: N/A | CH35: N/A | CI35: N/A
B36: 2 No | C36: 98.30204262 | D36: 95.87819012 | E36: 68.86822186 | F36: 25.58785778 | G36: 9.943721196 | H36: 75.00289412 | I36: 44.183212 | J36: 20.98724481 | K36: 12.7369705 | L36: 9.862670022 | M36: 99.97336622 | N36: 99.95857296 | O36: 98.41064012 | P36: 92.76350998 | Q36: 52.50665935 | R36: 76.1293698 | S36: 100 | T36: 20.14603483 | U36: 43.25228866 | V36: 89.8227991 | W36: 57.86781692 | X36: 76.87508544 | Y36: 51.97011077 | Z36: N/A | AA36: 84.3160667 | AB36: 51.74896752 | AC36: 52.43452829 | AD36: 56.59404592 | AE36: 94.12759043 | AF36: 8.188463069 | AG36: 99.65376962 | AH36: 61.97469486 | AI36: 74.01037945 | BB36: No | BC36: N/A | BD36: N/A | BE36: N/A | BF36: N/A | BG36: N/A | BH36: N/A | BI36: N/A | BJ36: N/A | BK36: N/A | BL36: N/A | BM36: N/A | BN36: N/A | BO36: N/A | BP36: N/A | BQ36: N/A | BR36: N/A | BS36: N/A | BT36: N/A | BU36: N/A | BV36: N/A | BW36: N/A | BX36: N/A | BY36: N/A | BZ36: N/A | CA36: N/A | CB36: N/A | CC36: N/A | CD36: N/A | CE36: N/A | CF36: N/A | CG36: N/A | CH36: N/A | CI36: N/A
A37: Improved Water source on premises | B37: 1 Yes | C37: 2.304684536 | D37: 5.455761056 | E37: 33.69100458 | F37: 75.13361066 | G37: 90.43770649 | H37: 26.99922163 | I37: 58.35769555 | J37: 79.20982533 | K37: 87.3027557 | L37: 90.85103017 | M37: 0.04190570618 | N37: 0.05160449559 | O37: 2.104516784 | P37: 9.142335471 | Q37: 51.75574387 | R37: 28.681908 | S37: 0 | T37: 81.40956363 | U37: 57.28939104 | V37: 10.86040154 | W37: 44.53750095 | X37: 30.99496489 | Y37: 48.32604537 | Z37: N/A | AA37: 16.94068792 | AB37: 55.14469079 | AC37: 51.47214917 | AD37: 46.34776726 | AE37: 9.483010288 | AF37: 94.56536491 | AG37: 0.4636193029 | AH37: 52.03390346 | AI37: 30.12672511 | BA37: Improved water source on premises | BB37: Yes | BC37: N/A | BD37: N/A | BE37: N/A | BF37: N/A | BG37: N/A | BH37: N/A | BI37: N/A | BJ37: N/A | BK37: N/A | BL37: N/A | BM37: N/A | BN37: N/A | BO37: N/A | BP37: N/A | BQ37: N/A | BR37: N/A | BS37: N/A | BT37: N/A | BU37: N/A | BV37: N/A | BW37: N/A | BX37: N/A | BY37: N/A | BZ37: N/A | CA37: N/A | CB37: N/A | CC37: N/A | CD37: N/A | CE37: N/A | CF37: N/A | CG37: N/A | CH37: N/A | CI37: N/A
B38: 2 No | C38: 97.69531546 | D38: 94.54423894 | E38: 66.30899542 | F38: 24.86638934 | G38: 9.562293512 | H38: 73.00077837 | I38: 41.64230445 | J38: 20.79017467 | K38: 12.6972443 | L38: 9.148969832 | M38: 99.95809429 | N38: 99.9483955 | O38: 97.89548322 | P38: 90.85766453 | Q38: 48.24425613 | R38: 71.318092 | S38: 100 | T38: 18.59043637 | U38: 42.71060896 | V38: 89.13959846 | W38: 55.46249905 | X38: 69.00503511 | Y38: 51.67395463 | Z38: N/A | AA38: 83.05931208 | AB38: 44.85530921 | AC38: 48.52785083 | AD38: 53.65223274 | AE38: 90.51698971 | AF38: 5.434635086 | AG38: 99.5363807 | AH38: 47.96609654 | AI38: 69.87327489 | BB38: No | BC38: N/A | BD38: N/A | BE38: N/A | BF38: N/A | BG38: N/A | BH38: N/A | BI38: N/A | BJ38: N/A | BK38: N/A | BL38: N/A | BM38: N/A | BN38: N/A | BO38: N/A | BP38: N/A | BQ38: N/A | BR38: N/A | BS38: N/A | BT38: N/A | BU38: N/A | BV38: N/A | BW38: N/A | BX38: N/A | BY38: N/A | BZ38: N/A | CA38: N/A | CB38: N/A | CC38: N/A | CD38: N/A | CE38: N/A | CF38: N/A | CG38: N/A | CH38: N/A | CI38: N/A
A39: Piped water on premises available when needed | B39: Yes | C39: N/A | D39: N/A | E39: N/A | F39: N/A | G39: N/A | H39: N/A | I39: N/A | J39: N/A | K39: N/A | L39: N/A | M39: N/A | N39: N/A | O39: N/A | P39: N/A | Q39: N/A | R39: N/A | S39: N/A | T39: N/A | U39: N/A | V39: N/A | W39: N/A | X39: N/A | Y39: N/A | Z39: N/A | AA39: N/A | AB39: N/A | AC39: N/A | AD39: N/A | AE39: N/A | AF39: N/A | AG39: N/A | AH39: N/A | AI39: N/A | BA39: Piped water on premises available when needed | BB39: Yes | BC39: N/A | BD39: N/A | BE39: N/A | BF39: N/A | BG39: N/A | BH39: N/A | BI39: N/A | BJ39: N/A | BK39: N/A | BL39: N/A | BM39: N/A | BN39: N/A | BO39: N/A | BP39: N/A | BQ39: N/A | BR39: N/A | BS39: N/A | BT39: N/A | BU39: N/A | BV39: N/A | BW39: N/A | BX39: N/A | BY39: N/A | BZ39: N/A | CA39: N/A | CB39: N/A | CC39: N/A | CD39: N/A | CE39: N/A | CF39: N/A | CG39: N/A | CH39: N/A | CI39: N/A
B40: No | C40: N/A | D40: N/A | E40: N/A | F40: N/A | G40: N/A | H40: N/A | I40: N/A | J40: N/A | K40: N/A | L40: N/A | M40: N/A | N40: N/A | O40: N/A | P40: N/A | Q40: N/A | R40: N/A | S40: N/A | T40: N/A | U40: N/A | V40: N/A | W40: N/A | X40: N/A | Y40: N/A | Z40: N/A | AA40: N/A | AB40: N/A | AC40: N/A | AD40: N/A | AE40: N/A | AF40: N/A | AG40: N/A | AH40: N/A | AI40: N/A | BB40: No | BC40: N/A | BD40: N/A | BE40: N/A | BF40: N/A | BG40: N/A | BH40: N/A | BI40: N/A | BJ40: N/A | BK40: N/A | BL40: N/A | BM40: N/A | BN40: N/A | BO40: N/A | BP40: N/A | BQ40: N/A | BR40: N/A | BS40: N/A | BT40: N/A | BU40: N/A | BV40: N/A | BW40: N/A | BX40: N/A | BY40: N/A | BZ40: N/A | CA40: N/A | CB40: N/A | CC40: N/A | CD40: N/A | CE40: N/A | CF40: N/A | CG40: N/A | CH40: N/A | CI40: N/A
A41: Water point at more than 30 minutes | B41: 1 Yes | C41: 45.29622348 | D41: 30.04247353 | E41: 6.322078998 | F41: 1.57451118 | G41: 4.056588359 | H41: 4.728425461 | I41: 1.111015128 | J41: 2.515765749 | K41: 3.760236633 | L41: 3.461010207 | M41: 60.847089 | N41: 39.62955516 | O41: 38.37680629 | P41: 20.77877068 | Q41: 5.236442508 | R41: 35.89822948 | S41: 3.980560961 | T41: 0 | U41: 25.70122976 | V41: 14.67299032 | W41: 45.80768062 | X41: 18.83443184 | Y41: 3.153044904 | Z41: N/A | AA41: 3.946976899 | AB41: 21.0780624 | AC41: 43.97756242 | AD41: 34.73845444 | AE41: 29.65596097 | AF41: 0.7265835196 | AG41: 25.83442355 | AH41: 12.17832847 | AI41: 15.03700445 | BA41: Water point at more than 30 minutes | BB41: Yes | BC41: N/A | BD41: N/A | BE41: N/A | BF41: N/A | BG41: N/A | BH41: N/A | BI41: N/A | BJ41: N/A | BK41: N/A | BL41: N/A | BM41: N/A | BN41: N/A | BO41: N/A | BP41: N/A | BQ41: N/A | BR41: N/A | BS41: N/A | BT41: N/A | BU41: N/A | BV41: N/A | BW41: N/A | BX41: N/A | BY41: N/A | BZ41: N/A | CA41: N/A | CB41: N/A | CC41: N/A | CD41: N/A | CE41: N/A | CF41: N/A | CG41: N/A | CH41: N/A | CI41: N/A
B42: 2 No | C42: 54.70377652 | D42: 69.95752647 | E42: 93.677921 | F42: 98.42548882 | G42: 95.94341164 | H42: 95.27157454 | I42: 98.88898487 | J42: 97.48423425 | K42: 96.23976337 | L42: 96.53898979 | M42: 39.152911 | N42: 60.37044484 | O42: 61.62319371 | P42: 79.22122932 | Q42: 94.76355749 | R42: 64.10177052 | S42: 96.01943904 | T42: 100 | U42: 74.29877024 | V42: 85.32700968 | W42: 54.19231938 | X42: 81.16556816 | Y42: 96.8469551 | Z42: N/A | AA42: 96.0530231 | AB42: 78.9219376 | AC42: 56.02243758 | AD42: 65.26154556 | AE42: 70.34403903 | AF42: 99.27341648 | AG42: 74.16557645 | AH42: 87.82167153 | AI42: 84.96299555 | BB42: No | BC42: N/A | BD42: N/A | BE42: N/A | BF42: N/A | BG42: N/A | BH42: N/A | BI42: N/A | BJ42: N/A | BK42: N/A | BL42: N/A | BM42: N/A | BN42: N/A | BO42: N/A | BP42: N/A | BQ42: N/A | BR42: N/A | BS42: N/A | BT42: N/A | BU42: N/A | BV42: N/A | BW42: N/A | BX42: N/A | BY42: N/A | BZ42: N/A | CA42: N/A | CB42: N/A | CC42: N/A | CD42: N/A | CE42: N/A | CF42: N/A | CG42: N/A | CH42: N/A | CI42: N/A
A43: Water source available when needed | B43: 1 Yes | C43: N/A | D43: N/A | E43: N/A | F43: N/A | G43: N/A | H43: N/A | I43: N/A | J43: N/A | K43: N/A | L43: N/A | M43: N/A | N43: N/A | O43: N/A | P43: N/A | Q43: N/A | R43: N/A | S43: N/A | T43: N/A | U43: N/A | V43: N/A | W43: N/A | X43: N/A | Y43: N/A | Z43: N/A | AA43: N/A | AB43: N/A | AC43: N/A | AD43: N/A | AE43: N/A | AF43: N/A | AG43: N/A | AH43: N/A | AI43: N/A | BA43: Water source available when needed | BB43: Yes | BC43: N/A | BD43: N/A | BE43: N/A | BF43: N/A | BG43: N/A | BH43: N/A | BI43: N/A | BJ43: N/A | BK43: N/A | BL43: N/A | BM43: N/A | BN43: N/A | BO43: N/A | BP43: N/A | BQ43: N/A | BR43: N/A | BS43: N/A | BT43: N/A | BU43: N/A | BV43: N/A | BW43: N/A | BX43: N/A | BY43: N/A | BZ43: N/A | CA43: N/A | CB43: N/A | CC43: N/A | CD43: N/A | CE43: N/A | CF43: N/A | CG43: N/A | CH43: N/A | CI43: N/A
B44: 2 No | C44: N/A | D44: N/A | E44: N/A | F44: N/A | G44: N/A | H44: N/A | I44: N/A | J44: N/A | K44: N/A | L44: N/A | M44: N/A | N44: N/A | O44: N/A | P44: N/A | Q44: N/A | R44: N/A | S44: N/A | T44: N/A | U44: N/A | V44: N/A | W44: N/A | X44: N/A | Y44: N/A | Z44: N/A | AA44: N/A | AB44: N/A | AC44: N/A | AD44: N/A | AE44: N/A | AF44: N/A | AG44: N/A | AH44: N/A | AI44: N/A | BB44: No | BC44: N/A | BD44: N/A | BE44: N/A | BF44: N/A | BG44: N/A | BH44: N/A | BI44: N/A | BJ44: N/A | BK44: N/A | BL44: N/A | BM44: N/A | BN44: N/A | BO44: N/A | BP44: N/A | BQ44: N/A | BR44: N/A | BS44: N/A | BT44: N/A | BU44: N/A | BV44: N/A | BW44: N/A | BX44: N/A | BY44: N/A | BZ44: N/A | CA44: N/A | CB44: N/A | CC44: N/A | CD44: N/A | CE44: N/A | CF44: N/A | CG44: N/A | CH44: N/A | CI44: N/A
A45: Improved water source available when needed | B45: 1 Yes | C45: N/A | D45: N/A | E45: N/A | F45: N/A | G45: N/A | H45: N/A | I45: N/A | J45: N/A | K45: N/A | L45: N/A | M45: N/A | N45: N/A | O45: N/A | P45: N/A | Q45: N/A | R45: N/A | S45: N/A | T45: N/A | U45: N/A | V45: N/A | W45: N/A | X45: N/A | Y45: N/A | Z45: N/A | AA45: N/A | AB45: N/A | AC45: N/A | AD45: N/A | AE45: N/A | AF45: N/A | AG45: N/A | AH45: N/A | AI45: N/A | BA45: Improved water source available when needed | BB45: Yes | BC45: N/A | BD45: N/A | BE45: N/A | BF45: N/A | BG45: N/A | BH45: N/A | BI45: N/A | BJ45: N/A | BK45: N/A | BL45: N/A | BM45: N/A | BN45: N/A | BO45: N/A | BP45: N/A | BQ45: N/A | BR45: N/A | BS45: N/A | BT45: N/A | BU45: N/A | BV45: N/A | BW45: N/A | BX45: N/A | BY45: N/A | BZ45: N/A | CA45: N/A | CB45: N/A | CC45: N/A | CD45: N/A | CE45: N/A | CF45: N/A | CG45: N/A | CH45: N/A | CI45: N/A
B46: 2 No | C46: N/A | D46: N/A | E46: N/A | F46: N/A | G46: N/A | H46: N/A | I46: N/A | J46: N/A | K46: N/A | L46: N/A | M46: N/A | N46: N/A | O46: N/A | P46: N/A | Q46: N/A | R46: N/A | S46: N/A | T46: N/A | U46: N/A | V46: N/A | W46: N/A | X46: N/A | Y46: N/A | Z46: N/A | AA46: N/A | AB46: N/A | AC46: N/A | AD46: N/A | AE46: N/A | AF46: N/A | AG46: N/A | AH46: N/A | AI46: N/A | BB46: No | BC46: N/A | BD46: N/A | BE46: N/A | BF46: N/A | BG46: N/A | BH46: N/A | BI46: N/A | BJ46: N/A | BK46: N/A | BL46: N/A | BM46: N/A | BN46: N/A | BO46: N/A | BP46: N/A | BQ46: N/A | BR46: N/A | BS46: N/A | BT46: N/A | BU46: N/A | BV46: N/A | BW46: N/A | BX46: N/A | BY46: N/A | BZ46: N/A | CA46: N/A | CB46: N/A | CC46: N/A | CD46: N/A | CE46: N/A | CF46: N/A | CG46: N/A | CH46: N/A | CI46: N/A
A47: Microbiological quality at point of collection | B47: Not contaminated (No E. coli in 100 mL) | C47: N/A | D47: N/A | E47: N/A | F47: N/A | G47: N/A | H47: N/A | I47: N/A | J47: N/A | K47: N/A | L47: N/A | M47: N/A | N47: N/A | O47: N/A | P47: N/A | Q47: N/A | R47: N/A | S47: N/A | T47: N/A | U47: N/A | V47: N/A | W47: N/A | X47: N/A | Y47: N/A | Z47: N/A | AA47: N/A | AB47: N/A | AC47: N/A | AD47: N/A | AE47: N/A | AF47: N/A | AG47: N/A | AH47: N/A | AI47: N/A | BA47: Microbiological quality at point of collection | BB47: Not contaminated (No E. coli in 100 mL) | BC47: N/A | BD47: N/A | BE47: N/A | BF47: N/A | BG47: N/A | BH47: N/A | BI47: N/A | BJ47: N/A | BK47: N/A | BL47: N/A | BM47: N/A | BN47: N/A | BO47: N/A | BP47: N/A | BQ47: N/A | BR47: N/A | BS47: N/A | BT47: N/A | BU47: N/A | BV47: N/A | BW47: N/A | BX47: N/A | BY47: N/A | BZ47: N/A | CA47: N/A | CB47: N/A | CC47: N/A | CD47: N/A | CE47: N/A | CF47: N/A | CG47: N/A | CH47: N/A | CI47: N/A
B48: Contaminated (E. coli detected in 100 mL) | C48: N/A | D48: N/A | E48: N/A | F48: N/A | G48: N/A | H48: N/A | I48: N/A | J48: N/A | K48: N/A | L48: N/A | M48: N/A | N48: N/A | O48: N/A | P48: N/A | Q48: N/A | R48: N/A | S48: N/A | T48: N/A | U48: N/A | V48: N/A | W48: N/A | X48: N/A | Y48: N/A | Z48: N/A | AA48: N/A | AB48: N/A | AC48: N/A | AD48: N/A | AE48: N/A | AF48: N/A | AG48: N/A | AH48: N/A | AI48: N/A | BB48: Contaminated (E. coli detected in 100 mL) | BC48: N/A | BD48: N/A | BE48: N/A | BF48: N/A | BG48: N/A | BH48: N/A | BI48: N/A | BJ48: N/A | BK48: N/A | BL48: N/A | BM48: N/A | BN48: N/A | BO48: N/A | BP48: N/A | BQ48: N/A | BR48: N/A | BS48: N/A | BT48: N/A | BU48: N/A | BV48: N/A | BW48: N/A | BX48: N/A | BY48: N/A | BZ48: N/A | CA48: N/A | CB48: N/A | CC48: N/A | CD48: N/A | CE48: N/A | CF48: N/A | CG48: N/A | CH48: N/A | CI48: N/A
B49: Highly contaminated (>100 CFU/100 mL) | C49: N/A | D49: N/A | E49: N/A | F49: N/A | G49: N/A | H49: N/A | I49: N/A | J49: N/A | K49: N/A | L49: N/A | M49: N/A | N49: N/A | O49: N/A | P49: N/A | Q49: N/A | R49: N/A | S49: N/A | T49: N/A | U49: N/A | V49: N/A | W49: N/A | X49: N/A | Y49: N/A | Z49: N/A | AA49: N/A | AB49: N/A | AC49: N/A | AD49: N/A | AE49: N/A | AF49: N/A | AG49: N/A | AH49: N/A | AI49: N/A | BB49: Highly contaminated (>100 CFU/100 mL) | BC49: N/A | BD49: N/A | BE49: N/A | BF49: N/A | BG49: N/A | BH49: N/A | BI49: N/A | BJ49: N/A | BK49: N/A | BL49: N/A | BM49: N/A | BN49: N/A | BO49: N/A | BP49: N/A | BQ49: N/A | BR49: N/A | BS49: N/A | BT49: N/A | BU49: N/A | BV49: N/A | BW49: N/A | BX49: N/A | BY49: N/A | BZ49: N/A | CA49: N/A | CB49: N/A | CC49: N/A | CD49: N/A | CE49: N/A | CF49: N/A | CG49: N/A | CH49: N/A | CI49: N/A
A50: Microbiological quality of improved water sources at point of collection | B50: Not contaminated (No E. coli in 100 mL) | C50: N/A | D50: N/A | E50: N/A | F50: N/A | G50: N/A | H50: N/A | I50: N/A | J50: N/A | K50: N/A | L50: N/A | M50: N/A | N50: N/A | O50: N/A | P50: N/A | Q50: N/A | R50: N/A | S50: N/A | T50: N/A | U50: N/A | V50: N/A | W50: N/A | X50: N/A | Y50: N/A | Z50: N/A | AA50: N/A | AB50: N/A | AC50: N/A | AD50: N/A | AE50: N/A | AF50: N/A | AG50: N/A | AH50: N/A | AI50: N/A | BA50: Microbiological quality of improved water sources at point of collection | BB50: Not contaminated (No E. coli in 100 mL) | BC50: N/A | BD50: N/A | BE50: N/A | BF50: N/A | BG50: N/A | BH50: N/A | BI50: N/A | BJ50: N/A | BK50: N/A | BL50: N/A | BM50: N/A | BN50: N/A | BO50: N/A | BP50: N/A | BQ50: N/A | BR50: N/A | BS50: N/A | BT50: N/A | BU50: N/A | BV50: N/A | BW50: N/A | BX50: N/A | BY50: N/A | BZ50: N/A | CA50: N/A | CB50: N/A | CC50: N/A | CD50: N/A | CE50: N/A | CF50: N/A | CG50: N/A | CH50: N/A | CI50: N/A
B51: Contaminated (E. coli detected in 100 mL) | C51: N/A | D51: N/A | E51: N/A | F51: N/A | G51: N/A | H51: N/A | I51: N/A | J51: N/A | K51: N/A | L51: N/A | M51: N/A | N51: N/A | O51: N/A | P51: N/A | Q51: N/A | R51: N/A | S51: N/A | T51: N/A | U51: N/A | V51: N/A | W51: N/A | X51: N/A | Y51: N/A | Z51: N/A | AA51: N/A | AB51: N/A | AC51: N/A | AD51: N/A | AE51: N/A | AF51: N/A | AG51: N/A | AH51: N/A | AI51: N/A | BB51: Contaminated (E. coli detected in 100 mL) | BC51: N/A | BD51: N/A | BE51: N/A | BF51: N/A | BG51: N/A | BH51: N/A | BI51: N/A | BJ51: N/A | BK51: N/A | BL51: N/A | BM51: N/A | BN51: N/A | BO51: N/A | BP51: N/A | BQ51: N/A | BR51: N/A | BS51: N/A | BT51: N/A | BU51: N/A | BV51: N/A | BW51: N/A | BX51: N/A | BY51: N/A | BZ51: N/A | CA51: N/A | CB51: N/A | CC51: N/A | CD51: N/A | CE51: N/A | CF51: N/A | CG51: N/A | CH51: N/A | CI51: N/A
B52: Highly contaminated (>100 CFU/100 mL) | C52: N/A | D52: N/A | E52: N/A | F52: N/A | G52: N/A | H52: N/A | I52: N/A | J52: N/A | K52: N/A | L52: N/A | M52: N/A | N52: N/A | O52: N/A | P52: N/A | Q52: N/A | R52: N/A | S52: N/A | T52: N/A | U52: N/A | V52: N/A | W52: N/A | X52: N/A | Y52: N/A | Z52: N/A | AA52: N/A | AB52: N/A | AC52: N/A | AD52: N/A | AE52: N/A | AF52: N/A | AG52: N/A | AH52: N/A | AI52: N/A | BB52: Highly contaminated (>100 CFU/100 mL) | BC52: N/A | BD52: N/A | BE52: N/A | BF52: N/A | BG52: N/A | BH52: N/A | BI52: N/A | BJ52: N/A | BK52: N/A | BL52: N/A | BM52: N/A | BN52: N/A | BO52: N/A | BP52: N/A | BQ52: N/A | BR52: N/A | BS52: N/A | BT52: N/A | BU52: N/A | BV52: N/A | BW52: N/A | BX52: N/A | BY52: N/A | BZ52: N/A | CA52: N/A | CB52: N/A | CC52: N/A | CD52: N/A | CE52: N/A | CF52: N/A | CG52: N/A | CH52: N/A | CI52: N/A
A53: Microbiological quality of piped on premises at point of collection | B53: Not contaminated (No E. coli in 100 mL) | C53: N/A | D53: N/A | E53: N/A | F53: N/A | G53: N/A | H53: N/A | I53: N/A | J53: N/A | K53: N/A | L53: N/A | M53: N/A | N53: N/A | O53: N/A | P53: N/A | Q53: N/A | R53: N/A | S53: N/A | T53: N/A | U53: N/A | V53: N/A | W53: N/A | X53: N/A | Y53: N/A | Z53: N/A | AA53: N/A | AB53: N/A | AC53: N/A | AD53: N/A | AE53: N/A | AF53: N/A | AG53: N/A | AH53: N/A | AI53: N/A | BA53: Microbiological quality of piped on premises at point of collection | BB53: Not contaminated (No E. coli in 100 mL) | BC53: N/A | BD53: N/A | BE53: N/A | BF53: N/A | BG53: N/A | BH53: N/A | BI53: N/A | BJ53: N/A | BK53: N/A | BL53: N/A | BM53: N/A | BN53: N/A | BO53: N/A | BP53: N/A | BQ53: N/A | BR53: N/A | BS53: N/A | BT53: N/A | BU53: N/A | BV53: N/A | BW53: N/A | BX53: N/A | BY53: N/A | BZ53: N/A | CA53: N/A | CB53: N/A | CC53: N/A | CD53: N/A | CE53: N/A | CF53: N/A | CG53: N/A | CH53: N/A | CI53: N/A
B54: Contaminated (E. coli detected in 100 mL) | C54: N/A | D54: N/A | E54: N/A | F54: N/A | G54: N/A | H54: N/A | I54: N/A | J54: N/A | K54: N/A | L54: N/A | M54: N/A | N54: N/A | O54: N/A | P54: N/A | Q54: N/A | R54: N/A | S54: N/A | T54: N/A | U54: N/A | V54: N/A | W54: N/A | X54: N/A | Y54: N/A | Z54: N/A | AA54: N/A | AB54: N/A | AC54: N/A | AD54: N/A | AE54: N/A | AF54: N/A | AG54: N/A | AH54: N/A | AI54: N/A | BB54: Contaminated (E. coli detected in 100 mL) | BC54: N/A | BD54: N/A | BE54: N/A | BF54: N/A | BG54: N/A | BH54: N/A | BI54: N/A | BJ54: N/A | BK54: N/A | BL54: N/A | BM54: N/A | BN54: N/A | BO54: N/A | BP54: N/A | BQ54: N/A | BR54: N/A | BS54: N/A | BT54: N/A | BU54: N/A | BV54: N/A | BW54: N/A | BX54: N/A | BY54: N/A | BZ54: N/A | CA54: N/A | CB54: N/A | CC54: N/A | CD54: N/A | CE54: N/A | CF54: N/A | CG54: N/A | CH54: N/A | CI54: N/A
B55: Highly contaminated (>100 CFU/100 mL) | C55: N/A | D55: N/A | E55: N/A | F55: N/A | G55: N/A | H55: N/A | I55: N/A | J55: N/A | K55: N/A | L55: N/A | M55: N/A | N55: N/A | O55: N/A | P55: N/A | Q55: N/A | R55: N/A | S55: N/A | T55: N/A | U55: N/A | V55: N/A | W55: N/A | X55: N/A | Y55: N/A | Z55: N/A | AA55: N/A | AB55: N/A | AC55: N/A | AD55: N/A | AE55: N/A | AF55: N/A | AG55: N/A | AH55: N/A | AI55: N/A | BB55: Highly contaminated (>100 CFU/100 mL) | BC55: N/A | BD55: N/A | BE55: N/A | BF55: N/A | BG55: N/A | BH55: N/A | BI55: N/A | BJ55: N/A | BK55: N/A | BL55: N/A | BM55: N/A | BN55: N/A | BO55: N/A | BP55: N/A | BQ55: N/A | BR55: N/A | BS55: N/A | BT55: N/A | BU55: N/A | BV55: N/A | BW55: N/A | BX55: N/A | BY55: N/A | BZ55: N/A | CA55: N/A | CB55: N/A | CC55: N/A | CD55: N/A | CE55: N/A | CF55: N/A | CG55: N/A | CH55: N/A | CI55: N/A
C56: NATIONAL wealth index quintile | H56: URBAN wealth index quintile | M56: RURAL wealth index quintile | R56: SUB-REGIONS: | BA56: Raw numbers of respondents: | BB56: Use of drinking water sources | BC56: NATIONAL wealth index quintile | BH56: URBAN wealth index quintile | BM56: RURAL wealth index quintile | BR56: SUB-REGIONS:
A57: Percentage based on weighted population | C57: Poorest | D57: Poor | E57: Middle | F57: Rich | G57: Richest | H57: 1 Poorest | I57: 2 Poor | J57: 3 Middle | K57: 4 Rich | L57: 5 Richest | M57: 1 Poorest | N57: 2 Poor | O57: 3 Middle | P57: 4 Rich | Q57: 5 Richest | R57: 1 Awdal | S57: 2 Bakool | T57: 3 Banadir | U57: 4 Bari | V57: 5 Bay | W57: 6 Galgaduug | X57: 7 Gedo | Y57: 8 Hiran | Z57: 9 Jubbada Dhexe | AA57: 10 Jubbada Hoose | AB57: 11 Mudug | AC57: 12 Nugal | AD57: 13 Sanaag | AE57: 14 Shabeellaha Dhexe | AF57: 15 Shabeellaha Hoose | AG57: 16 Sool | AH57: 17 Togdheer | AI57: 18 Woqooyi Galbeed | BA57: Water data, raw numbers (weighted) | BC57: Poorest | BD57: Poor | BE57: Middle | BF57: Rich | BG57: Richest | BH57: Poorest | BI57: Poor | BJ57: Middle | BK57: Rich | BL57: Richest | BM57: Poorest | BN57: Poor | BO57: Middle | BP57: Rich | BQ57: Richest | BR57: 1 Awdal | BS57: 2 Bakool | BT57: 3 Banadir | BU57: 4 Bari | BV57: 5 Bay | BW57: 6 Galgaduug | BX57: 7 Gedo | BY57: 8 Hiran | BZ57: 9 Jubbada Dhexe | CA57: 10 Jubbada Hoose | CB57: 11 Mudug | CC57: 12 Nugal | CD57: 13 Sanaag | CE57: 14 Shabeellaha Dhexe | CF57: 15 Shabeellaha Hoose | CG57: 16 Sool | CH57: 17 Togdheer | CI57: 18 Woqooyi Galbeed
